Workbook

Sheet Homepage
B1: Onshore / Offshore Bond Comparison Tool Built by M&G | J1: Tax Year 2026/27
B4: This tool is for UK financial professionals only. | R4: Assumptions
B5: Important information about this tool | R5: Will be issue for SRIT if PA lost
B6: This calculator is designed to give an estimation of a person’s tax liability for the differing investments that are used. It does not take into account all the possible individual circumstances that may impact on the tax position of the individual. It should not be taken as offering advice or any recommendation. You should be satisfied that the information you have entered into the calculator is correct, for example this tool will assume that any pension contributions and/or gift aid contributions are valid. You should ensure that the outputs are correct for your client. The information in this modeller is based on our current understanding of legislation and HMRC practice as at November 2025 all which is subject to change without notice. Every care has been taken as to its accuracy, but it must be appreciated that neither M&G nor its representatives can accept any responsibility for loss, however caused, suffered by any person who has acted or refrained from acting as a result of material contained in this tool. Certain areas have been omitted from this model for simplicity and ease of use including National Insurance, some sources of income and other reliefs, allowances and tax charges. Please note, this tool will cease to operate at the end of the tax year displayed above. | R6: AMC & platform charges same wrapped or not
R7: Wrapper charge for bonds taken at end of year
R8: Rounding to 0 DP
R9: Beneficial ordering caveat, 11k NSND, £100 savings gives onshore tax bill that wouldn't exist.
R10: BRB left for offshore won't factor in divis going into HRT
B16: Important information about the calculations
B18: Personal allowance is allocated to taxable income following the statutory order of income taxation, more beneficial ordering may be possible in some cases. Beneficial ordering is not applied to the top-slicing calculations. The tool assumes UK rates for the non-savings, non-dividend income that is inputted. Scottish taxpayers may have differing tax to pay where personal allowance is lost. Personal Allowance and Basic Rate Band increase by CPI from year 6. The starting point where personal allowance is reduced starts at £100,000 for all years, Additional Rate tax starts once personal allowance has been fully lost. The tool runs in tax years from 6 April to 5 April inclusive. The tool uses the dividend rates that apply from the 2026/27 tax year. Basic rate is 10.75%, Higher Rate is 35.75% and Additional Rate is 39.35%. The tool uses the savings rates that will apply from the 2027/28 tax year. Basic rate is 22%, Higher Rate is 42% and Additional Rate is 47%. Taxation over term is paid from other resources. No withdrawals are taken in the final year. 100 initial segments for bonds. No surrender costs.

Sheet Inputs
C1: Onshore / Offshore Bond Comparison Tool Built by M&G | W1: =Homepage!J1 -> Tax Year 2026/27 | AH1: Do not delete any of these
C3: 📊 PLANNING ASSUMPTIONS | G3: 💰 INCOME ASSUMPTIONS | O3: 📈 INVESTMENT ASSUMPTIONS
K4: Annual Increase
C5: Invested Amount | F5: 0 | G5: Existing Income | AQ5: Full segments and partials
F6: 0 | G6: Non Savings Non Dividend | I6: 0 | K6: 0 | O6: Growth Rate | Q6: 0 | AQ6: Partials Only | AR6: Savings Income | AT6: 0
C7: Tax assumption for surrenders | F7: 0 | G7: Savings | I7: 0 | K7: 0 | O7: Dividend Component | Q7: 0 | AR7: Dividend Return | AT7: =Q6*Q7 -> 0
G8: Dividend | I8: 0 | K8: 0 | AR8: Capital Gain | AT8: =Q6-AT7 -> 0 | AW8: 1
C9: Proposed Term (5 to 20 only) | H9: 0 | P9: 0 | AW9: =AW8+1 -> 2
G10: CPI Increase for Tax Bands from 2031 | K10: 0 | O10: Offshore cost difference | Q10: 0 | AW10: =AW9+1 -> 3
C11: Regular withdrawal amount? | K11: Projected income - year of encashment | P11: 0 | AM11: Internal Tax Rate | AT11: Assumed Basic | AW11: 4
F12: 0 | G12: Income in year or encashment | O12: Onshore Bond Internal Tax Rate | P12: 0 | Q12: =IF(AQ15=FALSE,0%,Bonds!F5) -> 0 | AM12: In Year One. | AT12: Assumed Higher | AW12: 5
C13: Bond encashment method | F13: 0 | G13: =G6 -> Non Savings Non Dividend | I13: 0 | K13: =IF(D9>0,(HLOOKUP((Inputs!$D$9-1),'Tax Analysis'!$E$3:$X$8,4,FALSE))*(1+K6),0) -> 0 | P13: 0 | AB13: Test on 20% | AM13: =IF(AQ15=FALSE,0%,Bonds!D5) -> 0 | AQ13: DO NOT DELETE | AT13: Assumed Additional | AW13: 6
F14: 0 | G14: =G7 -> Savings | I14: 0 | K14: =IF($D$9>0,(HLOOKUP((Inputs!$D$9-1),'Tax Analysis'!$E$3:$X$8,5,FALSE))*(1+K7),0) -> 0 | O14: Net Return (excluding charges) | Q14: =Q6-((1-Q7)*Q6*Bonds!C11) -> 0 | AB14: =Q6-((1-Q7)*Q6*20%) -> 0 | AW14: 7
G15: Dividend | I15: 0 | K15: =IF($D$9>0,(HLOOKUP((Inputs!$D$9-1),'Tax Analysis'!$E$3:$X$8,6,FALSE))*(1+K8),0) -> 0 | AQ15: =AND(D5>0,D9>0,SUM(AT6:AT8)>0%) -> FALSE | AW15: 8
E16: =User Input ->  | AW16: 9
AW17: 10
AW18: 11
C19: 📊 RESULTS SUMMARY | K19: 🎯 OUTCOME - The below graphs show the outcome for a full surrender using the actual tax bands based on the inputs, or the theoretical values if the surrender is managed within the selected tax rate for the graphical comparison. | AW19: 12
C20: Display Results for specific year | G20: The income used will be the projected value | AT20: Use annual exempt amount? | AU20: No | AW20: 13
D21: End of term values | AT21: ISA Wrap each year? | AU21: No | AW21: 14
D22: Onshore | G22: Offshore | I22: Difference | AW22: 15
C23: Surrender | D23: =HLOOKUP($D$20,Bonds!$E$212:$X$224,2,FALSE) ->  | G23: =HLOOKUP($D$20,Bonds!$E$228:$X$240,2,FALSE) ->  | I23: =G23-D23 ->  | AW23: 16
C24: Gain | D24: =HLOOKUP($D$20,Bonds!$E$212:$X$224,3,FALSE) ->  | G24: =HLOOKUP($D$20,Bonds!$E$228:$X$240,3,FALSE) ->  | I24: =G24-D24 ->  | AQ24: 0.074 | AU24: No | AW24: 17
AQ25: =AQ24/5 -> 0.0148 | AW25: 18
D26: Taxation | AQ26: =AQ25*4 -> 0.0592 | AW26: =AW25+1 -> 19
C27: Internal Taxation | D27: =HLOOKUP($D$20,Bonds!$E$212:$X$224,6,FALSE) ->  | G27: =HLOOKUP($D$20,Bonds!$E$228:$X$240,6,FALSE) ->  | I27: =G27-D27 ->  | AW27: 20
C28: Income Tax over term | D28: =HLOOKUP($D$20,Bonds!$E$212:$X$224,7,FALSE) ->  | G28: =HLOOKUP($D$20,Bonds!$E$228:$X$240,7,FALSE) -> 
C29: Tax on Surrender | D29: =HLOOKUP($D$20,Bonds!$E$212:$X$224,8,FALSE) ->  | G29: =HLOOKUP($D$20,Bonds!$E$228:$X$240,8,FALSE) -> 
D31: Net Proceeds
C32: On Surrender | D32: =D23-D29 ->  | G32: =G23-G29 -> 
C33: Gross Withdrawals | D33: =HLOOKUP($D$20,Bonds!$E$212:$X$224,12,FALSE) ->  | G33: =HLOOKUP($D$20,Bonds!$E$228:$X$240,12,FALSE) -> 
C34: Personal Taxes Paid Over Term | D34: =HLOOKUP($D$20,Bonds!$E$212:$X$224,13,FALSE) ->  | G34: =HLOOKUP($D$20,Bonds!$E$228:$X$240,13,FALSE) -> 
C35: Overall Outcome | D35: =D32-D34+D33 ->  | G35: =G32-G34+G33 ->  | I35: =G35-D35 -> 

Sheet Tax Analysis
E2: Year
E3: 1 | F3: =E3+1 -> 2 | G3: =F3+1 -> 3 | H3: 4 | I3: 5 | J3: 6 | K3: 7 | L3: 8 | M3: 9 | N3: 10 | O3: =N3+1 -> 11 | P3: =O3+1 -> 12 | Q3: 13 | R3: 14 | S3: 15 | T3: 16 | U3: 17 | V3: 18 | W3: 19 | X3: 20
B6: INCOME (non portfolio) | D6: Non Savings, Non Dividend | E6: ='Yr 1'!$D$14 -> 0 | F6: ='Yr 2'!$D$14 -> 0 | G6: ='Yr 3'!$D$14 -> 0 | H6: ='Yr 4'!$D$14 -> 0 | I6: ='Yr 5'!$D$14 -> 0 | J6: ='Yr 6'!$D$14 -> 0 | K6: ='Yr 7'!$D$14 -> 0 | L6: ='Yr 8'!$D$14 -> 0 | M6: ='Yr 9'!$D$14 -> 0 | N6: ='Yr 10'!$D$14 -> 0 | O6: ='Yr 11'!$D$14 -> 0 | P6: ='Yr 12'!$D$14 -> 0 | Q6: ='Yr 13'!$D$14 -> 0 | R6: ='Yr 14'!$D$14 -> 0 | S6: ='Yr 15'!$D$14 -> 0 | T6: ='Yr 16'!$D$14 -> 0 | U6: ='Yr 17'!$D$14 -> 0 | V6: ='Yr 18'!$D$14 -> 0 | W6: ='Yr 19'!$D$14 -> 0 | X6: ='Yr 20'!$D$14 -> 0
D7: Existing Savings | E7: ='Yr 1'!$D$15 -> 0 | F7: ='Yr 2'!$D$15 -> 0 | G7: ='Yr 3'!$D$15 -> 0 | H7: ='Yr 4'!$D$15 -> 0 | I7: ='Yr 5'!$D$15 -> 0 | J7: ='Yr 6'!$D$15 -> 0 | K7: ='Yr 7'!$D$15 -> 0 | L7: ='Yr 8'!$D$15 -> 0 | M7: ='Yr 9'!$D$15 -> 0 | N7: ='Yr 10'!$D$15 -> 0 | O7: ='Yr 11'!$D$15 -> 0 | P7: ='Yr 12'!$D$15 -> 0 | Q7: ='Yr 13'!$D$15 -> 0 | R7: ='Yr 14'!$D$15 -> 0 | S7: ='Yr 15'!$D$15 -> 0 | T7: ='Yr 16'!$D$15 -> 0 | U7: ='Yr 17'!$D$15 -> 0 | V7: ='Yr 18'!$D$15 -> 0 | W7: ='Yr 19'!$D$15 -> 0 | X7: ='Yr 20'!$D$15 -> 0
D8: Existing Dividend | E8: ='Yr 1'!$D$16 -> 0 | F8: ='Yr 2'!$D$16 -> 0 | G8: ='Yr 3'!$D$16 -> 0 | H8: ='Yr 4'!$D$16 -> 0 | I8: ='Yr 5'!$D$16 -> 0 | J8: ='Yr 6'!$D$16 -> 0 | K8: ='Yr 7'!$D$16 -> 0 | L8: ='Yr 8'!$D$16 -> 0 | M8: ='Yr 9'!$D$16 -> 0 | N8: ='Yr 10'!$D$16 -> 0 | O8: ='Yr 11'!$D$16 -> 0 | P8: ='Yr 12'!$D$16 -> 0 | Q8: ='Yr 13'!$D$16 -> 0 | R8: ='Yr 14'!$D$16 -> 0 | S8: ='Yr 15'!$D$16 -> 0 | T8: ='Yr 16'!$D$16 -> 0 | U8: ='Yr 17'!$D$16 -> 0 | V8: ='Yr 18'!$D$16 -> 0 | W8: ='Yr 19'!$D$16 -> 0 | X8: ='Yr 20'!$D$16 -> 0
D9: New Savings | E9: ='Yr 1'!#REF! ->  | F9: ='Yr 2'!#REF! ->  | G9: ='Yr 3'!#REF! ->  | H9: ='Yr 4'!#REF! ->  | I9: ='Yr 5'!#REF! ->  | J9: ='Yr 6'!#REF! ->  | K9: ='Yr 7'!#REF! ->  | L9: ='Yr 8'!#REF! ->  | M9: ='Yr 9'!#REF! ->  | N9: ='Yr 10'!#REF! ->  | O9: ='Yr 11'!#REF! ->  | P9: ='Yr 12'!#REF! ->  | Q9: ='Yr 13'!#REF! ->  | R9: ='Yr 14'!#REF! ->  | S9: ='Yr 15'!#REF! ->  | T9: ='Yr 16'!#REF! ->  | U9: ='Yr 17'!#REF! ->  | V9: ='Yr 18'!#REF! ->  | W9: ='Yr 19'!#REF! ->  | X9: ='Yr 20'!#REF! -> 
D10: New Dividend | E10: ='Yr 1'!#REF! ->  | F10: ='Yr 2'!#REF! ->  | G10: ='Yr 3'!#REF! ->  | H10: ='Yr 4'!#REF! ->  | I10: ='Yr 5'!#REF! ->  | J10: ='Yr 6'!#REF! ->  | K10: ='Yr 7'!#REF! ->  | L10: ='Yr 8'!#REF! ->  | M10: ='Yr 9'!#REF! ->  | N10: ='Yr 10'!#REF! ->  | O10: ='Yr 11'!#REF! ->  | P10: ='Yr 12'!#REF! ->  | Q10: ='Yr 13'!#REF! ->  | R10: ='Yr 14'!#REF! ->  | S10: ='Yr 15'!#REF! ->  | T10: ='Yr 16'!#REF! ->  | U10: ='Yr 17'!#REF! ->  | V10: ='Yr 18'!#REF! ->  | W10: ='Yr 19'!#REF! ->  | X10: ='Yr 20'!#REF! -> 
D11: Total | E11: =E6+E7+E8 -> 0 | F11: 0 | G11: 0 | H11: 0 | I11: 0 | J11: 0 | K11: 0 | L11: 0 | M11: 0 | N11: 0 | O11: 0 | P11: 0 | Q11: 0 | R11: 0 | S11: 0 | T11: 0 | U11: 0 | V11: 0 | W11: 0 | X11: 0
D12: Total Combined Divi | E12: =E8+E10 -> 
D13: Total Combined savings | E13: =E7+E9 -> 
B17: ONSHORE BOND
D18: Starting Value | E18: =Bonds!E8 -> 0 | F18: =Bonds!F8 -> 0 | G18: =Bonds!G8 -> 0 | H18: =Bonds!H8 -> 0 | I18: =Bonds!I8 -> 0 | J18: =Bonds!J8 -> 0 | K18: =Bonds!K8 -> 0 | L18: =Bonds!L8 -> 0 | M18: =Bonds!M8 -> 0 | N18: =Bonds!N8 -> 0 | O18: =Bonds!O8 -> 0 | P18: =Bonds!P8 -> 0 | Q18: =Bonds!Q8 -> 0 | R18: =Bonds!Q8 -> 0 | S18: =Bonds!R8 -> 0 | T18: =Bonds!S8 -> 0 | U18: =Bonds!T8 -> 0 | V18: =Bonds!U8 -> 0 | W18: =Bonds!V8 -> 0 | X18: =Bonds!W8 -> 0
D19: Internal Taxation | E19: =Bonds!E11+Bonds!E17 -> 0 | F19: =Bonds!F11+Bonds!F17 -> 0 | G19: =Bonds!G11+Bonds!G17 -> 0 | H19: =Bonds!H11+Bonds!H17 -> 0 | I19: =Bonds!I11+Bonds!I17 -> 0 | J19: =Bonds!J11+Bonds!J17 -> 0 | K19: =Bonds!K11+Bonds!K17 -> 0 | L19: =Bonds!L11+Bonds!L17 -> 0 | M19: =Bonds!M11+Bonds!M17 -> 0 | N19: =Bonds!N11+Bonds!N17 -> 0 | O19: =Bonds!O11+Bonds!O17 -> 0 | P19: =Bonds!P11+Bonds!P17 -> 0 | Q19: =Bonds!Q11+Bonds!Q17 -> 0 | R19: =Bonds!Q11+Bonds!Q17 -> 0 | S19: =Bonds!R11+Bonds!R17 -> 0 | T19: =Bonds!S11+Bonds!S17 -> 0 | U19: =Bonds!T11+Bonds!T17 -> 0 | V19: =Bonds!U11+Bonds!U17 -> 0 | W19: =Bonds!V11+Bonds!V17 -> 0 | X19: =Bonds!W11+Bonds!W17 -> 0
D20: Total Withdrawn | E20: =Bonds!E24 -> 0 | F20: =Bonds!F24 -> 0 | G20: =Bonds!G24 -> 0 | H20: =Bonds!H24 -> 0 | I20: =Bonds!I24 -> 0 | J20: =Bonds!J24 -> 0 | K20: =Bonds!K24 -> 0 | L20: =Bonds!L24 -> 0 | M20: =Bonds!M24 -> 0 | N20: =Bonds!N24 -> 0 | O20: =Bonds!O24 -> 0 | P20: =Bonds!P24 -> 0 | Q20: =Bonds!Q24 -> 0 | R20: =Bonds!R24 -> 0 | S20: =Bonds!S24 -> 0 | T20: =Bonds!T24 -> 0 | U20: =Bonds!U24 -> 0 | V20: =Bonds!V24 -> 0 | W20: =Bonds!W24 -> 0 | X20: =Bonds!X24 -> 0
D21: Closing Value | E21: =Bonds!E59 -> 0 | F21: =Bonds!F59 -> 0 | G21: =Bonds!G59 -> 0 | H21: =Bonds!H59 -> 0 | I21: =Bonds!I59 -> 0 | J21: =Bonds!J59 -> 0 | K21: =Bonds!K59 -> 0 | L21: =Bonds!L59 -> 0 | M21: =Bonds!M59 -> 0 | N21: =Bonds!N59 -> 0 | O21: =Bonds!O59 -> 0 | P21: =Bonds!P59 -> 0 | Q21: =Bonds!Q59 -> 0 | R21: =Bonds!R59 -> 0 | S21: =Bonds!S59 -> 0 | T21: =Bonds!T59 -> 0 | U21: =Bonds!U59 -> 0 | V21: =Bonds!V59 -> 0 | W21: =Bonds!W59 -> 0 | X21: =Bonds!X59 -> 0
D23: Bond Gain
D24: Gain | E24: =Bonds!E81 -> 0 | F24: =Bonds!F81 -> 0 | G24: =Bonds!G81 -> 0 | H24: =Bonds!H81 -> 0 | I24: =Bonds!I81 -> 0 | J24: =Bonds!J81 -> 0 | K24: =Bonds!K81 -> 0 | L24: =Bonds!L81 -> 0 | M24: =Bonds!M81 -> 0 | N24: =Bonds!N81 -> 0 | O24: =Bonds!O81 -> 0 | P24: =Bonds!P81 -> 0 | Q24: =Bonds!Q81 -> 0 | R24: =Bonds!R81 -> 0 | S24: =Bonds!S81 -> 0 | T24: =Bonds!T81 -> 0 | U24: =Bonds!U81 -> 0 | V24: =Bonds!V81 -> 0 | W24: =Bonds!W81 -> 0 | X24: =Bonds!X81 -> 0
D25: Slice Years (N) | E25: =Bonds!E83 -> 0 | F25: =Bonds!F83 -> 0 | G25: =Bonds!G83 -> 0 | H25: =Bonds!H83 -> 0 | I25: =Bonds!I83 -> 0 | J25: =Bonds!J83 -> 0 | K25: =Bonds!K83 -> 0 | L25: =Bonds!L83 -> 0 | M25: =Bonds!M83 -> 0 | N25: =Bonds!N83 -> 0 | O25: =Bonds!O83 -> 0 | P25: =Bonds!P83 -> 0 | Q25: =Bonds!Q83 -> 0 | R25: =Bonds!R83 -> 0 | S25: =Bonds!S83 -> 0 | T25: =Bonds!T83 -> 0 | U25: =Bonds!U83 -> 0 | V25: =Bonds!V83 -> 0 | W25: =Bonds!W83 -> 0 | X25: =Bonds!X83 -> 0
D26: Non-Savings Non-Dividend | E26: 0 | F26: 0 | G26: 0 | H26: 0 | I26: 0 | J26: 0 | K26: 0 | L26: 0 | M26: 0 | N26: 0 | O26: 0 | P26: 0 | Q26: 0 | R26: 0 | S26: 0 | T26: 0 | U26: 0 | V26: 0 | W26: 0 | X26: 0
D27: Tax | E27: ='Yr 1'!$AB$19 -> 0 | F27: ='Yr 2'!$AB$19 -> 0 | G27: ='Yr 3'!$AB$19 -> 0 | H27: ='Yr 4'!$AB$19 -> 0 | I27: ='Yr 5'!$AB$19 -> 0 | J27: ='Yr 6'!$AB$19 -> 0 | K27: ='Yr 7'!$AB$19 -> 0 | L27: ='Yr 8'!$AB$19 -> 0 | M27: ='Yr 9'!$AB$19 -> 0 | N27: ='Yr 10'!$AB$19 -> 0 | O27: ='Yr 11'!$AB$19 -> 0 | P27: ='Yr 12'!$AB$19 -> 0 | Q27: ='Yr 13'!$AB$19 -> 0 | R27: ='Yr 14'!$AB$19 -> 0 | S27: ='Yr 15'!$AB$19 -> 0 | T27: ='Yr 16'!$AB$19 -> 0 | U27: ='Yr 17'!$AB$19 -> 0 | V27: ='Yr 18'!$AB$19 -> 0 | W27: ='Yr 19'!$AB$19 -> 0 | X27: ='Yr 20'!$AB$19 -> 0
D28: Savings | E28: 0 | F28: 0 | G28: 0 | H28: 0 | I28: 0 | J28: 0 | K28: 0 | L28: 0 | M28: 0 | N28: 0 | O28: 0 | P28: 0 | Q28: 0 | R28: 0 | S28: 0 | T28: 0 | U28: 0 | V28: 0 | W28: 0 | X28: 0
D29: Tax | E29: ='Yr 1'!$AB$28 -> 0 | F29: ='Yr 2'!$AB$28 -> 0 | G29: ='Yr 3'!$AB$28 -> 0 | H29: ='Yr 4'!$AB$28 -> 0 | I29: ='Yr 5'!$AB$28 -> 0 | J29: ='Yr 6'!$AB$28 -> 0 | K29: ='Yr 7'!$AB$28 -> 0 | L29: ='Yr 8'!$AB$28 -> 0 | M29: ='Yr 9'!$AB$28 -> 0 | N29: ='Yr 10'!$AB$28 -> 0 | O29: ='Yr 11'!$AB$28 -> 0 | P29: ='Yr 12'!$AB$28 -> 0 | Q29: ='Yr 13'!$AB$28 -> 0 | R29: ='Yr 14'!$AB$28 -> 0 | S29: ='Yr 15'!$AB$28 -> 0 | T29: ='Yr 16'!$AB$28 -> 0 | U29: ='Yr 17'!$AB$28 -> 0 | V29: ='Yr 18'!$AB$28 -> 0 | W29: ='Yr 19'!$AB$28 -> 0 | X29: ='Yr 20'!$AB$28 -> 0
D30: Dividend | E30: 0 | F30: 0 | G30: 0 | H30: 0 | I30: 0 | J30: 0 | K30: 0 | L30: 0 | M30: 0 | N30: 0 | O30: 0 | P30: 0 | Q30: 0 | R30: 0 | S30: 0 | T30: 0 | U30: 0 | V30: 0 | W30: 0 | X30: 0
D31: Tax | E31: ='Yr 1'!$AB$46 -> 0 | F31: ='Yr 2'!$AB$46 -> 0 | G31: ='Yr 3'!$AB$46 -> 0 | H31: ='Yr 4'!$AB$46 -> 0 | I31: ='Yr 5'!$AB$46 -> 0 | J31: ='Yr 6'!$AB$46 -> 0 | K31: ='Yr 7'!$AB$46 -> 0 | L31: ='Yr 8'!$AB$46 -> 0 | M31: ='Yr 9'!$AB$46 -> 0 | N31: ='Yr 10'!$AB$46 -> 0 | O31: ='Yr 11'!$AB$46 -> 0 | P31: ='Yr 12'!$AB$46 -> 0 | Q31: ='Yr 13'!$AB$46 -> 0 | R31: ='Yr 14'!$AB$46 -> 0 | S31: ='Yr 15'!$AB$46 -> 0 | T31: ='Yr 16'!$AB$46 -> 0 | U31: ='Yr 17'!$AB$46 -> 0 | V31: ='Yr 18'!$AB$46 -> 0 | W31: ='Yr 19'!$AB$46 -> 0 | X31: ='Yr 20'!$AB$46 -> 0
D32: Tax on Bond Gain | E32: ='Yr 1'!$AB$56 -> 0 | F32: ='Yr 2'!$AB$56 -> 0 | G32: ='Yr 3'!$AB$56 -> 0 | H32: ='Yr 4'!$AB$56 -> 0 | I32: ='Yr 5'!$AB$56 -> 0 | J32: ='Yr 6'!$AB$56 -> 0 | K32: ='Yr 7'!$AB$56 -> 0 | L32: ='Yr 8'!$AB$56 -> 0 | M32: ='Yr 9'!$AB$56 -> 0 | N32: ='Yr 10'!$AB$56 -> 0 | O32: ='Yr 11'!$AB$56 -> 0 | P32: ='Yr 12'!$AB$56 -> 0 | Q32: ='Yr 13'!$AB$56 -> 0 | R32: ='Yr 14'!$AB$56 -> 0 | S32: ='Yr 15'!$AB$56 -> 0 | T32: ='Yr 16'!$AB$56 -> 0 | U32: ='Yr 17'!$AB$56 -> 0 | V32: ='Yr 18'!$AB$56 -> 0 | W32: ='Yr 19'!$AB$56 -> 0 | X32: ='Yr 20'!$AB$56 -> 0
D33: Onshore Bond Tax Credit | E33: ='Yr 1'!$AA$60 -> 0 | F33: ='Yr 2'!$AA$60 -> 0 | G33: ='Yr 3'!$AA$60 -> 0 | H33: ='Yr 4'!$AA$60 -> 0 | I33: ='Yr 5'!$AA$60 -> 0 | J33: ='Yr 6'!$AA$60 -> 0 | K33: ='Yr 7'!$AA$60 -> 0 | L33: ='Yr 8'!$AA$60 -> 0 | M33: ='Yr 9'!$AA$60 -> 0 | N33: ='Yr 10'!$AA$60 -> 0 | O33: ='Yr 11'!$AA$60 -> 0 | P33: ='Yr 12'!$AA$60 -> 0 | Q33: ='Yr 13'!$AA$60 -> 0 | R33: ='Yr 14'!$AA$60 -> 0 | S33: ='Yr 15'!$AA$60 -> 0 | T33: ='Yr 16'!$AA$60 -> 0 | U33: ='Yr 17'!$AA$60 -> 0 | V33: ='Yr 18'!$AA$60 -> 0 | W33: ='Yr 19'!$AA$60 -> 0 | X33: ='Yr 20'!$AA$60 -> 0
D34: Top Slicing Relief | E34: ='Yr 1'!$AA$61 -> 0 | F34: ='Yr 2'!$AA$61 -> 0 | G34: ='Yr 3'!$AA$61 -> 0 | H34: ='Yr 4'!$AA$61 -> 0 | I34: ='Yr 5'!$AA$61 -> 0 | J34: ='Yr 6'!$AA$61 -> 0 | K34: ='Yr 7'!$AA$61 -> 0 | L34: ='Yr 8'!$AA$61 -> 0 | M34: ='Yr 9'!$AA$61 -> 0 | N34: ='Yr 10'!$AA$61 -> 0 | O34: ='Yr 11'!$AA$61 -> 0 | P34: ='Yr 12'!$AA$61 -> 0 | Q34: ='Yr 13'!$Z$61 -> 0 | R34: ='Yr 14'!$Z$61 -> 0 | S34: ='Yr 15'!$Z$61 -> 0 | T34: ='Yr 16'!$Z$61 -> 0 | U34: ='Yr 17'!$Z$61 -> 0 | V34: ='Yr 18'!$Z$61 -> 0 | W34: ='Yr 19'!$Z$61 -> 0 | X34: ='Yr 20'!$Z$61 -> 0
D35: Deficiency Relief | E35: ='Yr 1'!$AA$62 -> 0 | F35: ='Yr 2'!$AA$62 -> 0 | G35: ='Yr 3'!$AA$62 -> 0 | H35: ='Yr 4'!$AA$62 -> 0 | I35: ='Yr 5'!$AA$62 -> 0 | J35: ='Yr 6'!$AA$62 -> 0 | K35: ='Yr 7'!$AA$62 -> 0 | L35: ='Yr 8'!$AA$62 -> 0 | M35: ='Yr 9'!$AA$62 -> 0 | N35: ='Yr 10'!$AA$62 -> 0 | O35: ='Yr 11'!$AA$62 -> 0 | P35: ='Yr 12'!$AA$62 -> 0 | Q35: ='Yr 13'!$AA$62 -> 0 | R35: ='Yr 14'!$AA$62 -> 0 | S35: ='Yr 15'!$AA$62 -> 0 | T35: ='Yr 16'!$AA$62 -> 0 | U35: ='Yr 17'!$AA$62 -> 0 | V35: ='Yr 18'!$AA$62 -> 0 | W35: ='Yr 19'!$AA$62 -> 0 | X35: ='Yr 20'!$AA$62 -> 0
D36: Personal Allowance Lost | E36: ='Yr 1'!$U$8 -> 0 | F36: ='Yr 2'!$U$8 -> 0 | G36: ='Yr 3'!$U$8 -> 0 | H36: ='Yr 4'!$U$8 -> 0 | I36: ='Yr 5'!$U$8 -> 0 | J36: ='Yr 6'!$U$8 -> 0 | K36: ='Yr 7'!$U$8 -> 0 | L36: ='Yr 8'!$U$8 -> 0 | M36: ='Yr 9'!$U$8 -> 0 | N36: ='Yr 10'!$U$8 -> 0 | O36: ='Yr 11'!$U$8 -> 0 | P36: ='Yr 12'!$U$8 -> 0 | Q36: ='Yr 13'!$U$8 -> 0 | R36: ='Yr 14'!$U$8 -> 0 | S36: ='Yr 15'!$U$8 -> 0 | T36: ='Yr 16'!$U$8 -> 0 | U36: ='Yr 17'!$U$8 -> 0 | V36: ='Yr 18'!$U$8 -> 0 | W36: ='Yr 19'!$U$8 -> 0 | X36: ='Yr 20'!$U$8 -> 0
D37: Total Tax | E37: =Bonds!E85 -> 0 | F37: =Bonds!F85 -> 0 | G37: =Bonds!G85 -> 0 | H37: =Bonds!H85 -> 0 | I37: =Bonds!I85 -> 0 | J37: =Bonds!J85 -> 0 | K37: =Bonds!K85 -> 0 | L37: =Bonds!L85 -> 0 | M37: =Bonds!M85 -> 0 | N37: =Bonds!N85 -> 0 | O37: =Bonds!O85 -> 0 | P37: =Bonds!P85 -> 0 | Q37: =Bonds!Q85 -> 0 | R37: =Bonds!R85 -> 0 | S37: =Bonds!S85 -> 0 | T37: =Bonds!T85 -> 0 | U37: =Bonds!U85 -> 0 | V37: =Bonds!V85 -> 0 | W37: =Bonds!W85 -> 0 | X37: =Bonds!X85 -> 0
D38: Surrender Values
D39: =Bonds!D229 -> Surrender | E39: =Bonds!E162 -> 0 | F39: =Bonds!F162 -> 0 | G39: =Bonds!G117 -> 0 | H39: =Bonds!H117 -> 0 | I39: =Bonds!I117 -> 0 | J39: =Bonds!J117 -> 0 | K39: =Bonds!K117 -> 0 | L39: =Bonds!L117 -> 0 | M39: =Bonds!M117 -> 0 | N39: =Bonds!N117 -> 0 | O39: =Bonds!O117 -> 0 | P39: =Bonds!P117 -> 0 | Q39: =Bonds!Q117 -> 0 | R39: =Bonds!R117 -> 0 | S39: =Bonds!S117 -> 0 | T39: =Bonds!T117 -> 0 | U39: =Bonds!U117 -> 0 | V39: =Bonds!V117 -> 0 | W39: =Bonds!W117 -> 0 | X39: =Bonds!X117 -> 0
D40: =Bonds!D230 -> Gain | E40: =Bonds!E135 ->  | F40: =Bonds!F135 ->  | G40: =Bonds!G135 ->  | H40: =Bonds!H135 ->  | I40: =Bonds!I135 ->  | J40: =Bonds!J135 ->  | K40: =Bonds!K135 ->  | L40: =Bonds!L135 ->  | M40: =Bonds!M135 ->  | N40: =Bonds!N135 ->  | O40: =Bonds!O135 ->  | P40: =Bonds!P135 ->  | Q40: =Bonds!Q135 ->  | R40: =Bonds!R135 ->  | S40: =Bonds!S135 ->  | T40: =Bonds!T135 ->  | U40: =Bonds!U135 ->  | V40: =Bonds!V135 ->  | W40: =Bonds!W135 ->  | X40: =Bonds!X135 -> 
D41: =Bonds!D136 -> Slice | E41: =Bonds!E136 ->  | F41: =Bonds!F136 ->  | G41: =Bonds!G136 ->  | H41: =Bonds!H136 ->  | I41: =Bonds!I136 ->  | J41: =Bonds!J136 ->  | K41: =Bonds!K136 ->  | L41: =Bonds!L136 ->  | M41: =Bonds!M136 ->  | N41: =Bonds!N136 ->  | O41: =Bonds!O136 ->  | P41: =Bonds!P136 ->  | Q41: =Bonds!Q136 ->  | R41: =Bonds!R136 ->  | S41: =Bonds!S136 ->  | T41: =Bonds!T136 ->  | U41: =Bonds!U136 ->  | V41: =Bonds!V136 ->  | W41: =Bonds!W136 ->  | X41: =Bonds!X136 -> 
D42: Tax paid through journey | E42: =Bonds!E168 -> 0 | F42: =Bonds!F168 -> 0 | G42: =Bonds!G168 -> 0 | H42: =Bonds!H168 -> 0 | I42: =Bonds!I168 -> 0 | J42: =Bonds!J168 -> 0 | K42: =Bonds!K168 -> 0 | L42: =Bonds!L168 -> 0 | M42: =Bonds!M168 -> 0 | N42: =Bonds!N168 -> 0 | O42: =Bonds!O168 -> 0 | P42: =Bonds!P168 -> 0 | Q42: =Bonds!Q168 -> 0 | R42: =Bonds!R168 -> 0 | S42: =Bonds!S168 -> 0 | T42: =Bonds!T168 -> 0 | U42: =Bonds!U168 -> 0 | V42: =Bonds!V168 -> 0 | W42: =Bonds!W168 -> 0 | X42: =Bonds!X168 -> 0
D43: Tax paid on surrender | E43: =Bonds!E170 -> 0 | F43: =Bonds!F170 -> 0 | G43: =Bonds!G170 -> 0 | H43: =Bonds!H170 -> 0 | I43: =Bonds!I170 -> 0 | J43: =Bonds!J170 -> 0 | K43: =Bonds!K170 -> 0 | L43: =Bonds!L170 -> 0 | M43: =Bonds!M170 -> 0 | N43: =Bonds!N170 -> 0 | O43: =Bonds!O170 -> 0 | P43: =Bonds!P170 -> 0 | Q43: =Bonds!Q170 -> 0 | R43: =Bonds!R170 -> 0 | S43: =Bonds!S170 -> 0 | T43: =Bonds!T170 -> 0 | U43: =Bonds!U170 -> 0 | V43: =Bonds!V170 -> 0 | W43: =Bonds!W170 -> 0 | X43: =Bonds!X170 -> 0
D44: Total Gross Withdrawals | E44: =Bonds!E166 -> 0 | F44: =Bonds!F166 -> 0 | G44: =Bonds!G166 -> 0 | H44: =Bonds!H166 -> 0 | I44: =Bonds!I166 -> 0 | J44: =Bonds!J166 -> 0 | K44: =Bonds!K166 -> 0 | L44: =Bonds!L166 -> 0 | M44: =Bonds!M166 -> 0 | N44: =Bonds!N166 -> 0 | O44: =Bonds!O166 -> 0 | P44: =Bonds!P166 -> 0 | Q44: =Bonds!Q166 -> 0 | R44: =Bonds!R166 -> 0 | S44: =Bonds!S166 -> 0 | T44: =Bonds!T166 -> 0 | U44: =Bonds!U166 -> 0 | V44: =Bonds!V166 -> 0 | W44: =Bonds!W166 -> 0 | X44: =Bonds!X166 -> 0
D45: Overall Outcome | E45: ='Tax Analysis'!E39-'Tax Analysis'!E42-'Tax Analysis'!E43+'Tax Analysis'!E44 -> 0 | F45: ='Tax Analysis'!F39-'Tax Analysis'!F42-'Tax Analysis'!F43+'Tax Analysis'!F44 -> 0 | G45: ='Tax Analysis'!G39-'Tax Analysis'!G42-'Tax Analysis'!G43+'Tax Analysis'!G44 -> 0 | H45: ='Tax Analysis'!H39-'Tax Analysis'!H42-'Tax Analysis'!H43+'Tax Analysis'!H44 -> 0 | I45: ='Tax Analysis'!I39-'Tax Analysis'!I42-'Tax Analysis'!I43+'Tax Analysis'!I44 -> 0 | J45: ='Tax Analysis'!J39-'Tax Analysis'!J42-'Tax Analysis'!J43+'Tax Analysis'!J44 -> 0 | K45: ='Tax Analysis'!K39-'Tax Analysis'!K42-'Tax Analysis'!K43+'Tax Analysis'!K44 -> 0 | L45: ='Tax Analysis'!L39-'Tax Analysis'!L42-'Tax Analysis'!L43+'Tax Analysis'!L44 -> 0 | M45: ='Tax Analysis'!M39-'Tax Analysis'!M42-'Tax Analysis'!M43+'Tax Analysis'!M44 -> 0 | N45: ='Tax Analysis'!N39-'Tax Analysis'!N42-'Tax Analysis'!N43+'Tax Analysis'!N44 -> 0 | O45: ='Tax Analysis'!O39-'Tax Analysis'!O42-'Tax Analysis'!O43+'Tax Analysis'!O44 -> 0 | P45: ='Tax Analysis'!P39-'Tax Analysis'!P42-'Tax Analysis'!P43+'Tax Analysis'!P44 -> 0 | Q45: ='Tax Analysis'!Q39-'Tax Analysis'!Q42-'Tax Analysis'!Q43+'Tax Analysis'!Q44 -> 0 | R45: ='Tax Analysis'!R39-'Tax Analysis'!R42-'Tax Analysis'!R43+'Tax Analysis'!R44 -> 0 | S45: ='Tax Analysis'!S39-'Tax Analysis'!S42-'Tax Analysis'!S43+'Tax Analysis'!S44 -> 0 | T45: ='Tax Analysis'!T39-'Tax Analysis'!T42-'Tax Analysis'!T43+'Tax Analysis'!T44 -> 0 | U45: ='Tax Analysis'!U39-'Tax Analysis'!U42-'Tax Analysis'!U43+'Tax Analysis'!U44 -> 0 | V45: ='Tax Analysis'!V39-'Tax Analysis'!V42-'Tax Analysis'!V43+'Tax Analysis'!V44 -> 0 | W45: ='Tax Analysis'!W39-'Tax Analysis'!W42-'Tax Analysis'!W43+'Tax Analysis'!W44 -> 0 | X45: ='Tax Analysis'!X39-'Tax Analysis'!X42-'Tax Analysis'!X43+'Tax Analysis'!X44 -> 0
B49: OFFSHORE BOND
D51: =D18 -> Starting Value | E51: =Bonds!E43 -> 0 | F51: =Bonds!F43 -> 0 | G51: =Bonds!G43 -> 0 | H51: =Bonds!H43 -> 0 | I51: =Bonds!I43 -> 0 | J51: =Bonds!J43 -> 0 | K51: =Bonds!K43 -> 0 | L51: =Bonds!L43 -> 0 | M51: =Bonds!M43 -> 0 | N51: =Bonds!N43 -> 0 | O51: =Bonds!O43 -> 0 | P51: =Bonds!P43 -> 0 | Q51: =Bonds!Q43 -> 0 | R51: =Bonds!R43 -> 0 | S51: =Bonds!S43 -> 0 | T51: =Bonds!T43 -> 0 | U51: =Bonds!U43 -> 0 | V51: =Bonds!V43 -> 0 | W51: =Bonds!W43 -> 0 | X51: =Bonds!X43 -> 0
D52: =D20 -> Total Withdrawn | E52: =Bonds!E55 -> 0 | F52: =Bonds!F55 -> 0 | G52: =Bonds!G55 -> 0 | H52: =Bonds!H55 -> 0 | I52: =Bonds!I55 -> 0 | J52: =Bonds!J55 -> 0 | K52: =Bonds!K55 -> 0 | L52: =Bonds!L55 -> 0 | M52: =Bonds!M55 -> 0 | N52: =Bonds!N55 -> 0 | O52: =Bonds!O55 -> 0 | P52: =Bonds!P55 -> 0 | Q52: =Bonds!Q55 -> 0 | R52: =Bonds!R55 -> 0 | S52: =Bonds!S55 -> 0 | T52: =Bonds!T55 -> 0 | U52: =Bonds!U55 -> 0 | V52: =Bonds!V55 -> 0 | W52: =Bonds!W55 -> 0 | X52: =Bonds!X55 -> 0
D53: Closing Value | E53: =Bonds!E59 -> 0 | F53: =Bonds!F59 -> 0 | G53: =Bonds!G59 -> 0 | H53: =Bonds!H59 -> 0 | I53: =Bonds!I59 -> 0 | J53: =Bonds!J59 -> 0 | K53: =Bonds!K59 -> 0 | L53: =Bonds!L59 -> 0 | M53: =Bonds!M59 -> 0 | N53: =Bonds!N59 -> 0 | O53: =Bonds!O59 -> 0 | P53: =Bonds!P59 -> 0 | Q53: =Bonds!Q59 -> 0 | R53: =Bonds!R59 -> 0 | S53: =Bonds!S59 -> 0 | T53: =Bonds!T59 -> 0 | U53: =Bonds!U59 -> 0 | V53: =Bonds!V59 -> 0 | W53: =Bonds!W59 -> 0 | X53: =Bonds!X59 -> 0
D55: Bond Gain
D56: Gain | E56: =Bonds!E95 -> 0 | F56: =Bonds!F95 -> 0 | G56: =Bonds!G95 -> 0 | H56: =Bonds!H95 -> 0 | I56: =Bonds!I95 -> 0 | J56: =Bonds!J95 -> 0 | K56: =Bonds!K95 -> 0 | L56: =Bonds!L95 -> 0 | M56: =Bonds!M95 -> 0 | N56: =Bonds!N95 -> 0 | O56: =Bonds!O95 -> 0 | P56: =Bonds!P95 -> 0 | Q56: =Bonds!Q95 -> 0 | R56: =Bonds!Q95 -> 0 | S56: =Bonds!R95 -> 0 | T56: =Bonds!S95 -> 0 | U56: =Bonds!T95 -> 0 | V56: =Bonds!U95 -> 0 | W56: =Bonds!V95 -> 0 | X56: =Bonds!W95 -> 0
D57: Slice Years (N) | E57: =Bonds!E97 -> 0 | F57: =Bonds!F97 -> 0 | G57: =Bonds!G97 -> 0 | H57: =Bonds!H97 -> 0 | I57: =Bonds!I97 -> 0 | J57: =Bonds!J97 -> 0 | K57: =Bonds!K97 -> 0 | L57: =Bonds!L97 -> 0 | M57: =Bonds!M97 -> 0 | N57: =Bonds!N97 -> 0 | O57: =Bonds!O97 -> 0 | P57: =Bonds!P97 -> 0 | Q57: =Bonds!Q97 -> 0 | R57: =Bonds!Q97 -> 0 | S57: =Bonds!R97 -> 0 | T57: =Bonds!S97 -> 0 | U57: =Bonds!T97 -> 0 | V57: =Bonds!U97 -> 0 | W57: =Bonds!V97 -> 0 | X57: =Bonds!W97 -> 0
D58: Non-Savings Non-Dividend | E58: 0 | F58: 0 | G58: 0 | H58: 0 | I58: 0 | J58: 0 | K58: 0 | L58: 0 | M58: 0 | N58: 0 | O58: 0 | P58: 0 | Q58: 0 | R58: 0 | S58: 0 | T58: 0 | U58: 0 | V58: 0 | W58: 0 | X58: 0
D59: Tax | E59: ='Yr 1'!$BM$19 -> 0 | F59: ='Yr 2'!$BM$19 -> 0 | G59: ='Yr 3'!$BM$19 -> 0 | H59: ='Yr 4'!$BM$19 -> 0 | I59: ='Yr 5'!$BM$19 -> 0 | J59: ='Yr 6'!$BM$19 -> 0 | K59: ='Yr 7'!$BM$19 -> 0 | L59: ='Yr 8'!$BM$19 -> 0 | M59: ='Yr 9'!$BM$19 -> 0 | N59: ='Yr 10'!$BM$19 -> 0 | O59: ='Yr 11'!$BM$19 -> 0 | P59: ='Yr 12'!$BM$19 -> 0 | Q59: ='Yr 13'!$BM$19 -> 0 | R59: ='Yr 14'!$BM$19 -> 0 | S59: ='Yr 15'!$BM$19 -> 0 | T59: ='Yr 16'!$BM$19 -> 0 | U59: ='Yr 17'!$BM$19 -> 0 | V59: ='Yr 18'!$BM$19 -> 0 | W59: ='Yr 19'!$BM$19 -> 0 | X59: ='Yr 20'!$BM$19 -> 0
D60: Savings | E60: 0 | F60: 0 | G60: 0 | H60: 0 | I60: 0 | J60: 0 | K60: 0 | L60: 0 | M60: 0 | N60: 0 | O60: 0 | P60: 0 | Q60: 0 | R60: 0 | S60: 0 | T60: 0 | U60: 0 | V60: 0 | W60: 0 | X60: 0
D61: Tax | E61: ='Yr 1'!$BM$28 -> 0 | F61: ='Yr 2'!$BM$28 -> 0 | G61: ='Yr 3'!$BM$28 -> 0 | H61: ='Yr 4'!$BM$28 -> 0 | I61: ='Yr 5'!$BM$28 -> 0 | J61: ='Yr 6'!$BM$28 -> 0 | K61: ='Yr 7'!$BM$28 -> 0 | L61: ='Yr 8'!$BM$28 -> 0 | M61: ='Yr 9'!$BM$28 -> 0 | N61: ='Yr 10'!$BM$28 -> 0 | O61: ='Yr 11'!$BM$28 -> 0 | P61: ='Yr 12'!$BM$28 -> 0 | Q61: ='Yr 13'!$BM$28 -> 0 | R61: ='Yr 14'!$BM$28 -> 0 | S61: ='Yr 15'!$BM$28 -> 0 | T61: ='Yr 16'!$BM$28 -> 0 | U61: ='Yr 17'!$BM$28 -> 0 | V61: ='Yr 18'!$BM$28 -> 0 | W61: ='Yr 19'!$BM$28 -> 0 | X61: ='Yr 20'!$BM$28 -> 0
D62: Dividend | E62: 0 | F62: 0 | G62: 0 | H62: 0 | I62: 0 | J62: 0 | K62: 0 | L62: 0 | M62: 0 | N62: 0 | O62: 0 | P62: 0 | Q62: 0 | R62: 0 | S62: 0 | T62: 0 | U62: 0 | V62: 0 | W62: 0 | X62: 0
D63: Tax | E63: ='Yr 1'!$BM$46 -> 0 | F63: ='Yr 2'!$BM$46 -> 0 | G63: ='Yr 3'!$BM$46 -> 0 | H63: ='Yr 4'!$BM$46 -> 0 | I63: ='Yr 5'!$BM$46 -> 0 | J63: ='Yr 6'!$BM$46 -> 0 | K63: ='Yr 7'!$BM$46 -> 0 | L63: ='Yr 8'!$BM$46 -> 0 | M63: ='Yr 9'!$BM$46 -> 0 | N63: ='Yr 10'!$BM$46 -> 0 | O63: ='Yr 11'!$BM$46 -> 0 | P63: ='Yr 12'!$BM$46 -> 0 | Q63: ='Yr 13'!$BM$46 -> 0 | R63: ='Yr 14'!$BM$46 -> 0 | S63: ='Yr 15'!$BM$46 -> 0 | T63: ='Yr 16'!$BM$46 -> 0 | U63: ='Yr 17'!$BM$46 -> 0 | V63: ='Yr 18'!$BM$46 -> 0 | W63: ='Yr 19'!$BM$46 -> 0 | X63: ='Yr 20'!$BM$46 -> 0
D64: Tax on Bond Gain | E64: ='Yr 1'!$BM$38 -> 0 | F64: ='Yr 2'!$BM$38 -> 0 | G64: ='Yr 3'!$BM$38 -> 0 | H64: ='Yr 4'!$BM$38 -> 0 | I64: ='Yr 5'!$BM$38 -> 0 | J64: ='Yr 6'!$BM$38 -> 0 | K64: ='Yr 7'!$BM$38 -> 0 | L64: ='Yr 8'!$BM$38 -> 0 | M64: ='Yr 9'!$BM$38 -> 0 | N64: ='Yr 10'!$BM$38 -> 0 | O64: ='Yr 11'!$BM$38 -> 0 | P64: ='Yr 12'!$BM$38 -> 0 | Q64: ='Yr 13'!$BM$38 -> 0 | R64: ='Yr 14'!$BM$38 -> 0 | S64: ='Yr 15'!$BM$38 -> 0 | T64: ='Yr 16'!$BM$38 -> 0 | U64: ='Yr 17'!$BM$38 -> 0 | V64: ='Yr 18'!$BM$38 -> 0 | W64: ='Yr 19'!$BM$38 -> 0 | X64: ='Yr 20'!$BM$38 -> 0
D65: Top Slicing Relief | E65: ='Yr 1'!$BL$61 -> 0 | F65: ='Yr 2'!$BL$61 -> 0 | G65: ='Yr 3'!$BL$61 -> 0 | H65: ='Yr 4'!$BL$61 -> 0 | I65: ='Yr 5'!$BL$61 -> 0 | J65: ='Yr 6'!$BL$61 -> 0 | K65: ='Yr 7'!$BL$61 -> 0 | L65: ='Yr 8'!$BL$61 -> 0 | M65: ='Yr 9'!$BL$61 -> 0 | N65: ='Yr 10'!$BL$61 -> 0 | O65: ='Yr 11'!$BL$61 -> 0 | P65: ='Yr 12'!$BL$61 -> 0 | Q65: ='Yr 13'!$BL$61 -> 0 | R65: ='Yr 14'!$BL$61 -> 0 | S65: ='Yr 15'!$BL$61 -> 0 | T65: ='Yr 16'!$BL$61 -> 0 | U65: ='Yr 17'!$BL$61 -> 0 | V65: ='Yr 18'!$BL$61 -> 0 | W65: ='Yr 19'!$BL$61 -> 0 | X65: ='Yr 20'!$BL$61 -> 0
D66: Deficiency Relief | E66: ='Yr 1'!$BL$62 -> 0 | F66: ='Yr 2'!$BL$62 -> 0 | G66: ='Yr 3'!$BL$62 -> 0 | H66: ='Yr 4'!$BL$62 -> 0 | I66: ='Yr 5'!$BL$62 -> 0 | J66: ='Yr 6'!$BL$62 -> 0 | K66: ='Yr 7'!$BL$62 -> 0 | L66: ='Yr 8'!$BL$62 -> 0 | M66: ='Yr 9'!$BL$62 -> 0 | N66: ='Yr 10'!$BL$62 -> 0 | O66: ='Yr 11'!$BL$62 -> 0 | P66: ='Yr 12'!$BL$62 -> 0 | Q66: ='Yr 13'!$BL$62 -> 0 | R66: ='Yr 14'!$BL$62 -> 0 | S66: ='Yr 15'!$BL$62 -> 0 | T66: ='Yr 16'!$BL$62 -> 0 | U66: ='Yr 17'!$BL$62 -> 0 | V66: ='Yr 18'!$BL$62 -> 0 | W66: ='Yr 19'!$BL$62 -> 0 | X66: ='Yr 20'!$BL$62 -> 0
D67: Personal Allowance Lost | E67: ='Yr 1'!$BF$8 -> 0 | F67: ='Yr 2'!$BF$8 -> 0 | G67: ='Yr 3'!$BF$8 -> 0 | H67: ='Yr 4'!$BF$8 -> 0 | I67: ='Yr 5'!$BF$8 -> 0 | J67: ='Yr 6'!$BF$8 -> 0 | K67: ='Yr 7'!$BF$8 -> 0 | L67: ='Yr 8'!$BF$8 -> 0 | M67: ='Yr 9'!$BF$8 -> 0 | N67: ='Yr 10'!$BF$8 -> 0 | O67: ='Yr 11'!$BF$8 -> 0 | P67: ='Yr 12'!$BF$8 -> 0 | Q67: ='Yr 13'!$BF$8 -> 0 | R67: ='Yr 14'!$BF$8 -> 0 | S67: ='Yr 15'!$BF$8 -> 0 | T67: ='Yr 16'!$BF$8 -> 0 | U67: ='Yr 17'!$BF$8 -> 0 | V67: ='Yr 18'!$BF$8 -> 0 | W67: ='Yr 19'!$BF$8 -> 0 | X67: ='Yr 20'!$BF$8 -> 0
D68: Total Tax | E68: =Bonds!E99 -> 0 | F68: =Bonds!F99 -> 0 | G68: =Bonds!G99 -> 0 | H68: =Bonds!H99 -> 0 | I68: =Bonds!I99 -> 0 | J68: =Bonds!J99 -> 0 | K68: =Bonds!K99 -> 0 | L68: =Bonds!L99 -> 0 | M68: =Bonds!M99 -> 0 | N68: =Bonds!N99 -> 0 | O68: =Bonds!O99 -> 0 | P68: =Bonds!P99 -> 0 | Q68: =Bonds!Q99 -> 0 | R68: =Bonds!R99 -> 0 | S68: =Bonds!S99 -> 0 | T68: =Bonds!T99 -> 0 | U68: =Bonds!U99 -> 0 | V68: =Bonds!V99 -> 0 | W68: =Bonds!W99 -> 0 | X68: =Bonds!X99 -> 0
D70: =D38 -> Surrender Values
D71: =D39 -> Surrender | E71: =Bonds!E163 -> 0 | F71: =Bonds!F163 -> 0 | G71: =Bonds!G163 -> 0 | H71: =Bonds!H163 -> 0 | I71: =Bonds!I163 -> 0 | J71: =Bonds!J163 -> 0 | K71: =Bonds!K163 -> 0 | L71: =Bonds!L163 -> 0 | M71: =Bonds!M163 -> 0 | N71: =Bonds!N163 -> 0 | O71: =Bonds!O163 -> 0 | P71: =Bonds!P163 -> 0 | Q71: =Bonds!Q163 -> 0 | R71: =Bonds!R163 -> 0 | S71: =Bonds!S163 -> 0 | T71: =Bonds!T163 -> 0 | U71: =Bonds!U163 -> 0 | V71: =Bonds!V163 -> 0 | W71: =Bonds!W163 -> 0 | X71: =Bonds!X163 -> 0
D72: =D40 -> Gain | E72: =Bonds!E137 ->  | F72: =Bonds!F137 ->  | G72: =Bonds!G137 ->  | H72: =Bonds!H137 ->  | I72: =Bonds!I137 ->  | J72: =Bonds!J137 ->  | K72: =Bonds!K137 ->  | L72: =Bonds!L137 ->  | M72: =Bonds!M137 ->  | N72: =Bonds!N137 ->  | O72: =Bonds!O137 ->  | P72: =Bonds!P137 ->  | Q72: =Bonds!Q137 ->  | R72: =Bonds!R137 ->  | S72: =Bonds!S137 ->  | T72: =Bonds!T137 ->  | U72: =Bonds!U137 ->  | V72: =Bonds!V137 ->  | W72: =Bonds!W137 ->  | X72: =Bonds!X137 -> 
D73: Slice | E73: =Bonds!E138 ->  | F73: =Bonds!F138 ->  | G73: =Bonds!G138 ->  | H73: =Bonds!H138 ->  | I73: =Bonds!I138 ->  | J73: =Bonds!J138 ->  | K73: =Bonds!K138 ->  | L73: =Bonds!L138 ->  | M73: =Bonds!M138 ->  | N73: =Bonds!N138 ->  | O73: =Bonds!O138 ->  | P73: =Bonds!P138 ->  | Q73: =Bonds!Q138 ->  | R73: =Bonds!R138 ->  | S73: =Bonds!S138 ->  | T73: =Bonds!T138 ->  | U73: =Bonds!U138 ->  | V73: =Bonds!V138 ->  | W73: =Bonds!W138 ->  | X73: =Bonds!X138 -> 
D74: Tax paid through journey | E74: =Bonds!E169 -> 0 | F74: =Bonds!F169 -> 0 | G74: =Bonds!G169 -> 0 | H74: =Bonds!H169 -> 0 | I74: =Bonds!I169 -> 0 | J74: =Bonds!J169 -> 0 | K74: =Bonds!K169 -> 0 | L74: =Bonds!L169 -> 0 | M74: =Bonds!M169 -> 0 | N74: =Bonds!N169 -> 0 | O74: =Bonds!O169 -> 0 | P74: =Bonds!P169 -> 0 | Q74: =Bonds!Q169 -> 0 | R74: =Bonds!R169 -> 0 | S74: =Bonds!S169 -> 0 | T74: =Bonds!T169 -> 0 | U74: =Bonds!U169 -> 0 | V74: =Bonds!V169 -> 0 | W74: =Bonds!W169 -> 0 | X74: =Bonds!X169 -> 0
D75: Tax paid on surrender | E75: =Bonds!E171 -> 0 | F75: =Bonds!F171 -> 0 | G75: =Bonds!G171 -> 0 | H75: =Bonds!H171 -> 0 | I75: =Bonds!I171 -> 0 | J75: =Bonds!J171 -> 0 | K75: =Bonds!K171 -> 0 | L75: =Bonds!L171 -> 0 | M75: =Bonds!M171 -> 0 | N75: =Bonds!N171 -> 0 | O75: =Bonds!O171 -> 0 | P75: =Bonds!P171 -> 0 | Q75: =Bonds!Q171 -> 0 | R75: =Bonds!R171 -> 0 | S75: =Bonds!S171 -> 0 | T75: =Bonds!T171 -> 0 | U75: =Bonds!U171 -> 0 | V75: =Bonds!V171 -> 0 | W75: =Bonds!W171 -> 0 | X75: =Bonds!X171 -> 0
D76: Total Gross Withdrawals | E76: =Bonds!E167 -> 0 | F76: =Bonds!F167 -> 0 | G76: =Bonds!G167 -> 0 | H76: =Bonds!H167 -> 0 | I76: =Bonds!I167 -> 0 | J76: =Bonds!J167 -> 0 | K76: =Bonds!K167 -> 0 | L76: =Bonds!L167 -> 0 | M76: =Bonds!M167 -> 0 | N76: =Bonds!N167 -> 0 | O76: =Bonds!O167 -> 0 | P76: =Bonds!P167 -> 0 | Q76: =Bonds!Q167 -> 0 | R76: =Bonds!R167 -> 0 | S76: =Bonds!S167 -> 0 | T76: =Bonds!T167 -> 0 | U76: =Bonds!U167 -> 0 | V76: =Bonds!V167 -> 0 | W76: =Bonds!W167 -> 0 | X76: =Bonds!X167 -> 0
D77: Overall Outcome | E77: ='Tax Analysis'!E71-'Tax Analysis'!E74-'Tax Analysis'!E75+'Tax Analysis'!E76 -> 0 | F77: ='Tax Analysis'!F71-'Tax Analysis'!F74-'Tax Analysis'!F75+'Tax Analysis'!F76 -> 0 | G77: ='Tax Analysis'!G71-'Tax Analysis'!G74-'Tax Analysis'!G75+'Tax Analysis'!G76 -> 0 | H77: ='Tax Analysis'!H71-'Tax Analysis'!H74-'Tax Analysis'!H75+'Tax Analysis'!H76 -> 0 | I77: ='Tax Analysis'!I71-'Tax Analysis'!I74-'Tax Analysis'!I75+'Tax Analysis'!I76 -> 0 | J77: ='Tax Analysis'!J71-'Tax Analysis'!J74-'Tax Analysis'!J75+'Tax Analysis'!J76 -> 0 | K77: ='Tax Analysis'!K71-'Tax Analysis'!K74-'Tax Analysis'!K75+'Tax Analysis'!K76 -> 0 | L77: ='Tax Analysis'!L71-'Tax Analysis'!L74-'Tax Analysis'!L75+'Tax Analysis'!L76 -> 0 | M77: ='Tax Analysis'!M71-'Tax Analysis'!M74-'Tax Analysis'!M75+'Tax Analysis'!M76 -> 0 | N77: ='Tax Analysis'!N71-'Tax Analysis'!N74-'Tax Analysis'!N75+'Tax Analysis'!N76 -> 0 | O77: ='Tax Analysis'!O71-'Tax Analysis'!O74-'Tax Analysis'!O75+'Tax Analysis'!O76 -> 0 | P77: ='Tax Analysis'!P71-'Tax Analysis'!P74-'Tax Analysis'!P75+'Tax Analysis'!P76 -> 0 | Q77: ='Tax Analysis'!Q71-'Tax Analysis'!Q74-'Tax Analysis'!Q75+'Tax Analysis'!Q76 -> 0 | R77: ='Tax Analysis'!R71-'Tax Analysis'!R74-'Tax Analysis'!R75+'Tax Analysis'!R76 -> 0 | S77: ='Tax Analysis'!S71-'Tax Analysis'!S74-'Tax Analysis'!S75+'Tax Analysis'!S76 -> 0 | T77: ='Tax Analysis'!T71-'Tax Analysis'!T74-'Tax Analysis'!T75+'Tax Analysis'!T76 -> 0 | U77: ='Tax Analysis'!U71-'Tax Analysis'!U74-'Tax Analysis'!U75+'Tax Analysis'!U76 -> 0 | V77: ='Tax Analysis'!V71-'Tax Analysis'!V74-'Tax Analysis'!V75+'Tax Analysis'!V76 -> 0 | W77: ='Tax Analysis'!W71-'Tax Analysis'!W74-'Tax Analysis'!W75+'Tax Analysis'!W76 -> 0 | X77: ='Tax Analysis'!X71-'Tax Analysis'!X74-'Tax Analysis'!X75+'Tax Analysis'!X76 -> 0
B80: =Inputs!D7 -> 0 | E80: =Bonds!E208 -> 0 | F80: =Bonds!F208 -> 0 | G80: =Bonds!G208 -> 0 | H80: =Bonds!H208 -> 0 | I80: =Bonds!I208 -> 0 | J80: =Bonds!J208 -> 0 | K80: =Bonds!K208 -> 0 | L80: =Bonds!L208 -> 0 | M80: =Bonds!M208 -> 0 | N80: =Bonds!N208 -> 0 | O80: =Bonds!O208 -> 0 | P80: =Bonds!P208 -> 0 | Q80: =Bonds!Q208 -> 0 | R80: =Bonds!R208 -> 0 | S80: =Bonds!S208 -> 0 | T80: =Bonds!T208 -> 0 | U80: =Bonds!U208 -> 0 | V80: =Bonds!V208 -> 0 | W80: =Bonds!W208 -> 0 | X80: =Bonds!X208 -> 0
B83: Actual Marginal - based on overall outcomes | E83: =E77-E45 -> 0 | F83: 0 | G83: 0 | H83: 0 | I83: 0 | J83: 0 | K83: 0 | L83: 0 | M83: 0 | N83: 0 | O83: 0 | P83: 0 | Q83: 0 | R83: 0 | S83: 0 | T83: 0 | U83: 0 | V83: 0 | W83: 0 | X83: 0
E89: =E3 -> 1 | F89: 2 | G89: 3 | H89: 4 | I89: 5 | J89: 6 | K89: 7 | L89: 8 | M89: 9 | N89: 10 | O89: 11 | P89: 12 | Q89: 13 | R89: =Q3 -> 13 | S89: 14 | T89: 15 | U89: 16 | V89: 17 | W89: 18 | X89: 19
D90: =#REF! ->  | E90: =#REF! ->  | F90: =#REF! ->  | G90: =#REF! ->  | H90: =#REF! ->  | I90: =#REF! ->  | J90: =#REF! ->  | K90: =#REF! ->  | L90: =#REF! ->  | M90: =#REF! ->  | N90: =#REF! ->  | O90: =#REF! ->  | P90: =#REF! ->  | Q90: =#REF! ->  | R90: =#REF! ->  | S90: =#REF! ->  | T90: =#REF! ->  | U90: =#REF! ->  | V90: =#REF! ->  | W90: =#REF! ->  | X90: =#REF! -> 
D91: =B17 -> ONSHORE BOND | E91: =E21 -> 0 | F91: 0 | G91: 0 | H91: 0 | I91: 0 | J91: 0 | K91: 0 | L91: 0 | M91: 0 | N91: 0 | O91: 0 | P91: 0 | Q91: 0 | R91: =Q21 -> 0 | S91: 0 | T91: 0 | U91: 0 | V91: 0 | W91: 0 | X91: 0
D92: =B49 -> OFFSHORE BOND | E92: =E53 -> 0 | F92: =F53 -> 0 | G92: 0 | H92: 0 | I92: 0 | J92: 0 | K92: 0 | L92: 0 | M92: 0 | N92: 0 | O92: =O53 -> 0 | P92: =P53 -> 0 | Q92: =Q53 -> 0 | R92: =Q53 -> 0 | S92: 0 | T92: 0 | U92: 0 | V92: 0 | W92: 0 | X92: 0

Sheet Glossary of Terms
B2: Inputs
B5: Section | C5: Input Name | E5: Description
B6: =Inputs!C3 -> 📊 PLANNING ASSUMPTIONS | C6: =Inputs!C5 -> Invested Amount | E6: This is the gross amount that the client is looking to invest.
C7: =Inputs!C9 -> Proposed Term (5 to 20 only) | E7: This is the term that the money is to be invested for.
C8: =Inputs!C11 -> Regular withdrawal amount? | E8: If the client is looking to take regular withdrawals from the portfolio the tool will take this gross amount from the investment on the 5th of April.
C9: =Inputs!C13 -> Bond encashment method | E9: For the Onshore and Offshore bonds you select if you want to do a partial surrender across all of the segments, or you can select to take full segments close to the withdrawal amount with any remainder being taken across the remaining segments.
B10: =Inputs!G3 -> 💰 INCOME ASSUMPTIONS | C10: =Inputs!G6 -> Non Savings Non Dividend | E10: This is the amount of income a client has that is not classed as savings or dividends (employment income etc.).
C11: =Inputs!G7 -> Savings | E11: This is any existing savings income that the client has, this is required to know how much savings allowances may be available for the proposed investment.
C12: =Inputs!G8 -> Dividend | E12: This is any existing dividend income that the client has, this is required to know how much dividend nil rate that may be available for the proposed investment.
C13: =Inputs!K4 -> Annual Increase | E13: These are here so you can factor in any percentage increases in the clients existing sources of income.
C14: =Inputs!G10 -> CPI Increase for Tax Bands from 2031 | E14: If you want to increase the tax bands from 2031 by CPI, please select the rate you feel is appropriate.
C15: =Inputs!G12 -> Income in year or encashment | E15: These are for the expected non portfolio income the client will have in the year of encashment.
C16: =Inputs!K11 -> Projected income - year of encashment | E16: If you wish to continue the increase assumptions for the client in the year of encashment, these are the figures required.
B17: =Inputs!O3 -> 📈 INVESTMENT ASSUMPTIONS | C17: =Inputs!O6 -> Growth Rate | E17: This is the expected gross return of the investment.
C18: =Inputs!AR7 -> Dividend Return | E18: This is the expected percentage return on the fund or portfolio produced by dividends.
C19: =Inputs!O10 -> Offshore cost difference | E19: This can be a positive or negative number to reflect if it is more or less expensive to have the investments on or offshore.
B22: Outputs
B25: Section | C25: Output Section | D25: Output Name | E25: Description
B26: Projected Values Inputs Page | C26: =Inputs!C23 -> Surrender | D26: =Inputs!C23 -> Surrender | E26: This is the surrender value of the investment at the end of the proposed term.
C27: =Inputs!D26 -> Taxation | D27: =Inputs!C27 -> Internal Taxation | E27: This is the internal taxation that has been paid by the onshore bond.
D28: =Inputs!C28 -> Income Tax over term | E28: This is the income tax that the client has had to pay from their own resources during the investment period.
D29: =Inputs!C29 -> Tax on Surrender | E29: This is the tax due on surrendering the investment at the end of the proposed term.
C30: =Inputs!D21 -> End of term values | D30: =Inputs!C32 -> On Surrender | E30: This is the value from the surrender values after any taxes on gains have been paid.
D31: =Inputs!C33 -> Gross Withdrawals | E31: This is the value of the gross withdrawals taken over the proposed term.
D32: =Inputs!C34 -> Personal Taxes Paid Over Term | E32: This is the total tax that the client has had to pay from their own resources during the investment period.
D33: =Inputs!C35 -> Overall Outcome | E33: This is the net surrender value of the investment, added to the ISA value and gross withdrawals taken, less any personal taxes paid over the term.
B36: Tax Analysis
B39: Section | C39: Output Section | D39: Output Name | E39: Description
B40: ='Tax Analysis'!B6 -> INCOME (non portfolio) | D40: ='Tax Analysis'!D6 -> Non Savings, Non Dividend | E40: This is the amount of non savings, non dividend income the client has for the year.
D41: ='Tax Analysis'!D7 -> Existing Savings | E41: This is the amount of savings income the client has for the year that has not come from the proposed investment.
D42: ='Tax Analysis'!D8 -> Existing Dividend | E42: This is the amount of dividend income the client has for the year that has not come from the proposed investment.
D43: ='Tax Analysis'!D11 -> Total | E43: This is the total of all income the client has for the year.
B44: ='Tax Analysis'!B17 -> ONSHORE BOND | C44: ='Tax Analysis'!D23 -> Bond Gain | D44: ='Tax Analysis'!D18 -> Starting Value | E44: This is the opening value of the Onshore Bond investment for the year.
D45: ='Tax Analysis'!D19 -> Internal Taxation | E45: This is the amount of taxation that the bond has paid on any interest or capital gains for the year (dividend income is exempt from tax in an onshore bond).
D46: ='Tax Analysis'!D20 -> Total Withdrawn | E46: This is the amount specified to be withdrawn in the inputs.
D47: ='Tax Analysis'!#REF! ->  | E47: This is the total amount withdrawn from the investment.
D48: ='Tax Analysis'!D20 -> Total Withdrawn | E48: This is the total amount withdrawn from the investment.
D49: ='Tax Analysis'!D21 -> Closing Value | E49: This is the closing value for the investment factoring in any withdrawals that have been taken.
D50: ='Tax Analysis'!D24 -> Gain | E50: This is the gain arising from a surrender in the year.
D51: ='Tax Analysis'!D25 -> Slice Years (N) | E51: This is the number of years that can be used for top slicing the above gain.
D52: ='Tax Analysis'!D26 -> Non-Savings Non-Dividend | E52: This is the amount of non savings, non dividend income that is paying more tax because of the investment and any withdrawals.
D53: ='Tax Analysis'!D27 -> Tax | E53: This is the amount of tax paid due to the above.
D54: ='Tax Analysis'!D28 -> Savings | E54: This is the amount of savings income that is paying more tax because of the investment and any withdrawals.
D55: ='Tax Analysis'!D29 -> Tax | E55: This is the amount of tax paid due to the above.
D56: ='Tax Analysis'!D30 -> Dividend | E56: This is the amount of dividend income that is paying more tax because of the investment and any withdrawals.
D57: ='Tax Analysis'!D31 -> Tax | E57: This is the amount of tax paid due to the above.
D58: ='Tax Analysis'!D32 -> Tax on Bond Gain | E58: This is the gross amount of tax due on the bond gain before any onshore bond tax credit, top slicing relief or deficiency relief could reduce the amount.
D59: ='Tax Analysis'!D33 -> Onshore Bond Tax Credit | E59: This is the amount of the non reclaimable tax credit that can be applied to the bond gain.
D60: ='Tax Analysis'!D34 -> Top Slicing Relief | E60: This is the amount of top slicing relief that can be applied to mitigate any gain generated.
D61: ='Tax Analysis'!D35 -> Deficiency Relief | E61: This is the amount of relief given on the bonds surrender if the final gain was negative and there have been previous chargeable events.
D62: ='Tax Analysis'!D36 -> Personal Allowance Lost | E62: This is the amount of personal allowance that has been lost because of the investment and any withdrawals.
D63: ='Tax Analysis'!D37 -> Total Tax | E63: This is the total tax due by the individual that is solely down to the investment.
B64: ='Tax Analysis'!B49 -> OFFSHORE BOND | C64: ='Tax Analysis'!D55 -> Bond Gain | D64: ='Tax Analysis'!D51 -> Starting Value | E64: This is the opening value of the Offshore Bond investment for the year.
D65: ='Tax Analysis'!D52 -> Total Withdrawn | E65: This is the amount specified to be withdrawn in the inputs.
D66: ='Tax Analysis'!#REF! ->  | E66: This is the total amount withdrawn from the investment.
D67: =D48 -> Total Withdrawn | E67: =E48 -> This is the total amount withdrawn from the investment.
D68: ='Tax Analysis'!D53 -> Closing Value | E68: This is the closing value for the investment factoring in any withdrawals that have been taken.
D69: ='Tax Analysis'!D56 -> Gain | E69: This is the gain arising from a surrender in the year.
D70: ='Tax Analysis'!D57 -> Slice Years (N) | E70: This is the number of years that can be used for top slicing the above gain.
D71: ='Tax Analysis'!D58 -> Non-Savings Non-Dividend | E71: This is the amount of non savings, non dividend income that is paying more tax because of the investment and any withdrawals.
D72: ='Tax Analysis'!D59 -> Tax | E72: This is the amount of tax paid due to the above.
D73: ='Tax Analysis'!D60 -> Savings | E73: This is the amount of savings income that is paying more tax because of the investment and any withdrawals.
D74: ='Tax Analysis'!D61 -> Tax | E74: This is the amount of tax paid due to the above.
D75: ='Tax Analysis'!D62 -> Dividend | E75: This is the amount of dividend income that is paying more tax because of the investment and any withdrawals.
D76: ='Tax Analysis'!D63 -> Tax | E76: This is the amount of tax paid due to the above.
D77: ='Tax Analysis'!D64 -> Tax on Bond Gain | E77: This is the gross amount of tax due on the bond gain before any top slicing relief or deficiency relief could reduce the amount.
D78: ='Tax Analysis'!D65 -> Top Slicing Relief | E78: This is the amount of top slicing relief that can be applied to mitigate any gain generated.
D79: ='Tax Analysis'!D66 -> Deficiency Relief | E79: This is the amount of relief given on the bonds surrender if the final gain was negative and there have been previous chargeable events.
D80: ='Tax Analysis'!D67 -> Personal Allowance Lost | E80: This is the amount of personal allowance that has been lost because of the investment and any withdrawals.
D81: ='Tax Analysis'!D68 -> Total Tax | E81: This is the total tax due by the individual that is solely down to the investment.
B84: Further Resources
B85: Taxation of investment bonds | E85: https://www.mandg.com/wealth/adviser-services/tech-matters/investments-and-taxation/taxation-of-investment-bonds

Sheet Parameters_Inc Calcs (hidden)
B2: PA standard | C2: 12570
B3: ANI Limit | C3: 100000 | D3: Divis | E3: Savings | F3: Gains | G3: NSND | I3: Suicide Code | J3: =TODAY() -> 2026-08-21
B4: Basic Rate Band | C4: 37700 | D4: 0.1075 | E4: 0.22 | F4: 0.18 | G4: 0.2 | J4: 2027-04-05
B5: Higher Threshold | C5: 50270 | D5: 0.3575 | E5: 0.42 | F5: 0.24 | G5: 0.4
B6: Higher Rate Band - Do not alter as calced | C6: =C8-C4 -> 87440
B7: PA Trap Start | C7: 100000
B8: Additional Threshold - Do not alter as calced | C8: =C7+(C2*2) -> 125140 | D8: 0.3935 | E8: 0.47 | G8: 0.45
B9: PSA Basic | C9: 1000
B10: PSA Higher | C10: 500
B11: PSA Add | C11: 0
B12: Starting Rate for Savings | C12: 5000
B13: ISA Allowance | C13: 20000
C14: Div | D14: CGT
B15: Collective allowances | C15: 500 | D15: 3000
D16: =IF(Inputs!AU20="No",0,D15) -> 0 | E16: Logic for AEA usage
B19: For tax band increases from the year detailed in C22, change the cell in C25 to the starting year of the tax year for updates
B21: CPI Rate Selected | C21: =Inputs!K10 -> 0
B22: CPI Increases from | C22: 2031
B23: Investment Year | C23: 1 | D23: =C23+1 -> 2 | E23: =D23+1 -> 3 | F23: 4 | G23: 5 | H23: 6 | I23: 7 | J23: 8 | K23: 9 | L23: =K23+1 -> 10 | M23: =L23+1 -> 11 | N23: =M23+1 -> 12 | O23: 13 | P23: 14 | Q23: 15 | R23: 16 | S23: 17 | T23: 18 | U23: 19 | V23: 20
B24: Tax Year Start | C24: 2026 | D24: =C24+1 -> 2027 | E24: =D24+1 -> 2028 | F24: 2029 | G24: 2030 | H24: 2031 | I24: 2032 | J24: 2033 | K24: 2034 | L24: =K24+1 -> 2035 | M24: =L24+1 -> 2036 | N24: =M24+1 -> 2037 | O24: 2038 | P24: 2039 | Q24: 2040 | R24: 2041 | S24: 2042 | T24: 2043 | U24: 2044 | V24: 2045
B25: Personal Allowance | C25: =C2 -> 12570 | D25: =IF(D24>=$C$22,C25*(1+$C$21),C25) -> 12570 | E25: 12570 | F25: =IF(F24>=$C$22,E25*(1+$C$21),E25) -> 12570 | G25: 12570 | H25: 12570 | I25: 12570 | J25: 12570 | K25: 12570 | L25: 12570 | M25: 12570 | N25: 12570 | O25: 12570 | P25: 12570 | Q25: 12570 | R25: 12570 | S25: 12570 | T25: 12570 | U25: =IF(U24>=$C$22,T25*(1+$C$21),T25) -> 12570 | V25: =IF(V24>=$C$22,U25*(1+$C$21),U25) -> 12570
B26: Basic Rate Band | C26: =C4 -> 37700 | D26: =IF(D24>=$C$22,C26*(1+$C$21),C26) -> 37700 | E26: =IF(E24>=$C$22,D26*(1+$C$21),D26) -> 37700 | F26: 37700 | G26: 37700 | H26: 37700 | I26: 37700 | J26: 37700 | K26: 37700 | L26: 37700 | M26: 37700 | N26: 37700 | O26: 37700 | P26: 37700 | Q26: 37700 | R26: 37700 | S26: 37700 | T26: 37700 | U26: =IF(U24>=$C$22,T26*(1+$C$21),T26) -> 37700 | V26: =IF(V24>=$C$22,U26*(1+$C$21),U26) -> 37700
B27: Higher Threshold | C27: =C25+C26 -> 50270 | D27: =D25+D26 -> 50270 | E27: 50270 | F27: 50270 | G27: 50270 | H27: 50270 | I27: 50270 | J27: 50270 | K27: 50270 | L27: 50270 | M27: =M25+M26 -> 50270 | N27: 50270 | O27: =O25+O26 -> 50270 | P27: 50270 | Q27: =Q25+Q26 -> 50270 | R27: 50270 | S27: =S25+S26 -> 50270 | T27: 50270 | U27: =U25+U26 -> 50270 | V27: 50270
B28: Higher Rate Band | C28: =C29-C26 -> 87440 | D28: =D29-D26 -> 87440 | E28: =E29-E26 -> 87440 | F28: 87440 | G28: =G29-G26 -> 87440 | H28: 87440 | I28: 87440 | J28: 87440 | K28: 87440 | L28: 87440 | M28: =M29-M26 -> 87440 | N28: 87440 | O28: =O29-O26 -> 87440 | P28: 87440 | Q28: =Q29-Q26 -> 87440 | R28: 87440 | S28: =S29-S26 -> 87440 | T28: 87440 | U28: =U29-U26 -> 87440 | V28: 87440
B29: Additional Threshold | C29: =C8 -> 125140 | D29: =IF(D24>=$C$22,$C$7+(D25*2),C29) -> 125140 | E29: 125140 | F29: 125140 | G29: =IF(G24>=$C$22,$C$7+(G25*2),F29) -> 125140 | H29: 125140 | I29: 125140 | J29: 125140 | K29: 125140 | L29: 125140 | M29: 125140 | N29: 125140 | O29: 125140 | P29: 125140 | Q29: 125140 | R29: 125140 | S29: 125140 | T29: 125140 | U29: =IF(U24>=$C$22,$C$7+(U25*2),T29) -> 125140 | V29: =IF(V24>=$C$22,$C$7+(V25*2),U29) -> 125140

Sheet Bonds (hidden)
A1: Partials | AC1: Full segments with partials after
C2: =Inputs!C9 -> Proposed Term (5 to 20 only) | D2: =Inputs!D9 -> 0 | F2: Post Final Year
B3: ONSHORE
C5: Year one int tax rate | D5: =((B10+B16)/SUM(B10:B16)*'Parameters_Inc Calcs'!E4) ->  | E5: Internal Tax | F5: =((B10+B16)/SUM(B10:B16)*C11) ->  | H5: =E8*(1+(SUM(B10:B16))*(1-F5))^D2 ->  | I5: What is this for?
E6: =AND(E7>$D$2) -> TRUE | F6: =AND(F7>$D$2) -> TRUE | G6: =AND(G7>$D$2) -> TRUE | H6: TRUE | I6: TRUE | J6: TRUE | K6: TRUE | L6: TRUE | M6: TRUE | N6: =AND(N7>$D$2) -> TRUE | O6: TRUE | P6: TRUE | Q6: TRUE | R6: TRUE | S6: TRUE | T6: =AND(T7>$D$2) -> TRUE | U6: TRUE | V6: TRUE | W6: TRUE | X6: TRUE
C7: Year | E7: 1 | F7: =E7+1 -> 2 | G7: =F7+1 -> 3 | H7: 4 | I7: 5 | J7: =I7+1 -> 6 | K7: =J7+1 -> 7 | L7: =K7+1 -> 8 | M7: =L7+1 -> 9 | N7: =M7+1 -> 10 | O7: =N7+1 -> 11 | P7: =O7+1 -> 12 | Q7: =P7+1 -> 13 | R7: =Q7+1 -> 14 | S7: =R7+1 -> 15 | T7: =S7+1 -> 16 | U7: =T7+1 -> 17 | V7: =U7+1 -> 18 | W7: =V7+1 -> 19 | X7: =W7+1 -> 20
C8: =Inputs!C5 -> Invested Amount | E8: =IF(E6=TRUE,0,IF(AND(Inputs!$AU$21="Yes",Inputs!$AU$24="Yes"),MAX(0,Inputs!$D$5-'Parameters_Inc Calcs'!$C$13),Inputs!$D$5)) -> 0 | F8: =IF(F6=TRUE,0,E28) -> 0 | G8: 0 | H8: 0 | I8: 0 | J8: 0 | K8: 0 | L8: 0 | M8: 0 | N8: 0 | O8: 0 | P8: 0 | Q8: 0 | R8: 0 | S8: 0 | T8: 0 | U8: 0 | V8: 0 | W8: 0 | X8: 0
B9: Yield
B10: =Inputs!AT6 -> 0 | C10: Savings income | D10: Amt | E10: =E8*$B$10 -> 0 | F10: =F8*$B$10 -> 0 | G10: 0 | H10: 0 | I10: 0 | J10: 0 | K10: 0 | L10: 0 | M10: 0 | N10: 0 | O10: =O8*$B$10 -> 0 | P10: 0 | Q10: =Q8*$B$10 -> 0 | R10: 0 | S10: =S8*$B$10 -> 0 | T10: =T8*$B$10 -> 0 | U10: =U8*$B$10 -> 0 | V10: =V8*$B$10 -> 0 | W10: =W8*$B$10 -> 0 | X10: =X8*$B$10 -> 0
C11: 0.22 | D11: Tax | E11: =E10*$C$11 -> 0 | F11: =F10*$C$11 -> 0 | G11: =G10*$C$11 -> 0 | H11: 0 | I11: 0 | J11: 0 | K11: 0 | L11: 0 | M11: 0 | N11: 0 | O11: =O10*$C$11 -> 0 | P11: 0 | Q11: =Q10*$C$11 -> 0 | R11: 0 | S11: =S10*$C$11 -> 0 | T11: =T10*$C$11 -> 0 | U11: =U10*$C$11 -> 0 | V11: =V10*$C$11 -> 0 | W11: =W10*$C$11 -> 0 | X11: =X10*$C$11 -> 0 | Y11: =SUM(E11:X11) -> 0
D12: Net | E12: =E10-E11 -> 0 | F12: =F10-F11 -> 0 | G12: 0 | H12: 0 | I12: 0 | J12: 0 | K12: 0 | L12: 0 | M12: 0 | N12: 0 | O12: =O10-O11 -> 0 | P12: 0 | Q12: =Q10-Q11 -> 0 | R12: 0 | S12: =S10-S11 -> 0 | T12: =T10-T11 -> 0 | U12: =U10-U11 -> 0 | V12: =V10-V11 -> 0 | W12: =W10-W11 -> 0 | X12: =X10-X11 -> 0 | AT12: =1.46*93 -> 135.78
B14: =Inputs!AT7 -> 0 | C14: Dividend Return | D14: Amt | E14: =E8*$B$14 -> 0 | F14: 0 | G14: 0 | H14: 0 | I14: 0 | J14: 0 | K14: 0 | L14: 0 | M14: 0 | N14: 0 | O14: 0 | P14: 0 | Q14: 0 | R14: 0 | S14: 0 | T14: 0 | U14: 0 | V14: 0 | W14: 0 | X14: 0
B16: =Inputs!AT8 -> 0 | C16: Capital Gain | D16: Amt | E16: =E8*$B$16 -> 0 | F16: 0 | G16: 0 | H16: 0 | I16: 0 | J16: 0 | K16: 0 | L16: 0 | M16: 0 | N16: 0 | O16: 0 | P16: 0 | Q16: 0 | R16: 0 | S16: 0 | T16: 0 | U16: 0 | V16: 0 | W16: 0 | X16: 0
C17: =C11 -> 0.22 | D17: Tax | E17: =E16*$C$17 -> 0 | F17: =F16*$C$17 -> 0 | G17: =G16*$C$17 -> 0 | H17: 0 | I17: 0 | J17: 0 | K17: 0 | L17: 0 | M17: 0 | N17: 0 | O17: =O16*$C$17 -> 0 | P17: 0 | Q17: =Q16*$C$17 -> 0 | R17: 0 | S17: =S16*$C$17 -> 0 | T17: =T16*$C$17 -> 0 | U17: =U16*$C$17 -> 0 | V17: =V16*$C$17 -> 0 | W17: =W16*$C$17 -> 0 | X17: =X16*$C$17 -> 0 | Y17: =SUM(E17:X17) -> 0 | AC17: ONSHORE
D18: Net | E18: =E16-E17 -> 0 | F18: =F16-F17 -> 0 | G18: 0 | H18: 0 | I18: 0 | J18: 0 | K18: 0 | L18: 0 | M18: 0 | N18: 0 | O18: =O16-O17 -> 0 | P18: 0 | Q18: =Q16-Q17 -> 0 | R18: 0 | S18: =S16-S17 -> 0 | T18: =T16-T17 -> 0 | U18: =U16-U17 -> 0 | V18: =V16-V17 -> 0 | W18: =W16-W17 -> 0 | X18: =X16-X17 -> 0
BH19: This should just need some UAT, the existing tool has final year calc sign off, so if this matches on final year then all good to go
D20: End Year Value (excl wrapper charge) | E20: =E8+E12+E14+E18 -> 0 | F20: 0 | G20: 0 | H20: 0 | I20: 0 | J20: 0 | K20: 0 | L20: 0 | M20: 0 | N20: 0 | O20: 0 | P20: 0 | Q20: 0 | R20: 0 | S20: 0 | T20: 0 | U20: 0 | V20: 0 | W20: 0 | X20: 0 | BH20: I have done this, but will need someone to verify
C21: Just made to equal row 20 | D21: End Year Value (inc wrapper charge) | E21: =E20 -> 0 | F21: =F20 -> 0 | G21: 0 | H21: 0 | I21: 0 | J21: 0 | K21: 0 | L21: 0 | M21: 0 | N21: 0 | O21: 0 | P21: 0 | Q21: 0 | R21: 0 | S21: 0 | T21: 0 | U21: 0 | V21: 0 | W21: 0 | X21: 0 | Y21: Just made to equal row 21 | AC21: 5% Per seg | AD21: =IF(E8>0,(E8/AD23)*5%,0) -> 0 | AE21: Seg Start Value | AF21: =E8/100 -> 0 | AS21: Gain Calcs on Full segments | AY21: Gain Calcs on Partials | BC21: Total Gains to be used | BG21: For simplified tool display
D22: Tax Deferred Allowance | E22: =E8*5% -> 0 | F22: =E22 -> 0 | G22: =F22 -> 0 | H22: 0 | I22: 0 | J22: 0 | K22: 0 | L22: 0 | M22: 0 | N22: 0 | O22: =N22 -> 0 | P22: 0 | Q22: 0 | R22: 0 | S22: 0 | T22: =S22 -> 0 | U22: =T22 -> 0 | V22: =U22 -> 0 | W22: =V22 -> 0 | X22: =W22 -> 0 | AC22: Year | AD22: Starting Segments | AE22: Closing Value Before ISA | AF22: Value Per Segment | AG22: SV needed | AH22: Segs to get Close | AI22: Value from Seg Surr | AJ22: Seg above SV logic | AK22: Segs Remaining | AL22: Remaining Needed | AM22: 5% for Year | AN22: 5% Remaining | AO22: WD per seg | AP22: Xs gains per seg | AQ22: Year End Segmenf Factor | AR22: Gain Per seg surr | AS22: Surrender Val | AT22: Total Withdrawals | AU22: Total Premiums | AV22: Prev XS Gains | AW22: Gain | AX22: Slice | AY22: XS Gain | AZ22: Years of Excess | BA22: Years for Slice | BB22: Slice | BC22: Total Gains | BD22: Total Slices | BE22: Derived N year 1 set to one | BG22: Surrender Value | BH22: Previous Withdrawals | BI22: Total Premiums | BJ22: Prev Excess | BK22: Gain | BL22: Slice | BO22: Gain on remaining segs
C23: Sort and ifs | D23: ISA Allowance | E23: =IF(Inputs!$D$9<=Bonds!E7,0,IF(Inputs!$AU$21="Yes",IF(E21<'Parameters_Inc Calcs'!$C$13,E21,'Parameters_Inc Calcs'!$C$13),0)) -> 0 | F23: =IF(Inputs!$D$9<=Bonds!F7,0,IF(Inputs!$AU$21="Yes",IF(F21<'Parameters_Inc Calcs'!$C$13,F21,'Parameters_Inc Calcs'!$C$13),0)) -> 0 | G23: =IF(Inputs!$D$9<=Bonds!G7,0,IF(Inputs!$AU$21="Yes",IF(G21<'Parameters_Inc Calcs'!$C$13,G21,'Parameters_Inc Calcs'!$C$13),0)) -> 0 | H23: =IF(Inputs!$D$9<=Bonds!H7,0,IF(Inputs!$AU$21="Yes",IF(H21<'Parameters_Inc Calcs'!$C$13,H21,'Parameters_Inc Calcs'!$C$13),0)) -> 0 | I23: =IF(Inputs!$D$9<=Bonds!I7,0,IF(Inputs!$AU$21="Yes",IF(I21<'Parameters_Inc Calcs'!$C$13,I21,'Parameters_Inc Calcs'!$C$13),0)) -> 0 | J23: =IF(Inputs!$D$9<=Bonds!J7,0,IF(Inputs!$AU$21="Yes",IF(J21<'Parameters_Inc Calcs'!$C$13,J21,'Parameters_Inc Calcs'!$C$13),0)) -> 0 | K23: =IF(Inputs!$D$9<=Bonds!K7,0,IF(Inputs!$AU$21="Yes",IF(K21<'Parameters_Inc Calcs'!$C$13,K21,'Parameters_Inc Calcs'!$C$13),0)) -> 0 | L23: =IF(Inputs!$D$9<=Bonds!L7,0,IF(Inputs!$AU$21="Yes",IF(L21<'Parameters_Inc Calcs'!$C$13,L21,'Parameters_Inc Calcs'!$C$13),0)) -> 0 | M23: =IF(Inputs!$D$9<=Bonds!M7,0,IF(Inputs!$AU$21="Yes",IF(M21<'Parameters_Inc Calcs'!$C$13,M21,'Parameters_Inc Calcs'!$C$13),0)) -> 0 | N23: =IF(Inputs!$D$9<=Bonds!N7,0,IF(Inputs!$AU$21="Yes",IF(N21<'Parameters_Inc Calcs'!$C$13,N21,'Parameters_Inc Calcs'!$C$13),0)) -> 0 | O23: =IF(Inputs!$D$9<=Bonds!O7,0,IF(Inputs!$AU$21="Yes",IF(O21<'Parameters_Inc Calcs'!$C$13,O21,'Parameters_Inc Calcs'!$C$13),0)) -> 0 | P23: =IF(Inputs!$D$9<=Bonds!P7,0,IF(Inputs!$AU$21="Yes",IF(P21<'Parameters_Inc Calcs'!$C$13,P21,'Parameters_Inc Calcs'!$C$13),0)) -> 0 | Q23: =IF(Inputs!$D$9<=Bonds!Q7,0,IF(Inputs!$AU$21="Yes",IF(Q21<'Parameters_Inc Calcs'!$C$13,Q21,'Parameters_Inc Calcs'!$C$13),0)) -> 0 | R23: =IF(Inputs!$D$9<=Bonds!R7,0,IF(Inputs!$AU$21="Yes",IF(R21<'Parameters_Inc Calcs'!$C$13,R21,'Parameters_Inc Calcs'!$C$13),0)) -> 0 | S23: =IF(Inputs!$D$9<=Bonds!S7,0,IF(Inputs!$AU$21="Yes",IF(S21<'Parameters_Inc Calcs'!$C$13,S21,'Parameters_Inc Calcs'!$C$13),0)) -> 0 | T23: =IF(Inputs!$D$9<=Bonds!T7,0,IF(Inputs!$AU$21="Yes",IF(T21<'Parameters_Inc Calcs'!$C$13,T21,'Parameters_Inc Calcs'!$C$13),0)) -> 0 | U23: =IF(Inputs!$D$9<=Bonds!U7,0,IF(Inputs!$AU$21="Yes",IF(U21<'Parameters_Inc Calcs'!$C$13,U21,'Parameters_Inc Calcs'!$C$13),0)) -> 0 | V23: =IF(Inputs!$D$9<=Bonds!V7,0,IF(Inputs!$AU$21="Yes",IF(V21<'Parameters_Inc Calcs'!$C$13,V21,'Parameters_Inc Calcs'!$C$13),0)) -> 0 | W23: =IF(Inputs!$D$9<=Bonds!W7,0,IF(Inputs!$AU$21="Yes",IF(W21<'Parameters_Inc Calcs'!$C$13,W21,'Parameters_Inc Calcs'!$C$13),0)) -> 0 | X23: =IF(Inputs!$D$9<=Bonds!X7,0,IF(Inputs!$AU$21="Yes",IF(X21<'Parameters_Inc Calcs'!$C$13,X21,'Parameters_Inc Calcs'!$C$13),0)) -> 0 | Y23: Total w/d | AC23: 1 | AD23: =IF(E8>0,IF(AC23>Inputs!$D$9,0,100),0) -> 0 | AE23: =E21 -> 0 | AF23: =IF(AD23>0,AE23/AD23,0) -> 0 | AG23: =E23+E24 -> 0 | AH23: =IF(AND(AF23>AG23,AG23>0),1,MIN(AD23,IF(AD23>0,ROUNDDOWN(AG23/AF23,0),0))) -> 0 | AI23: =AF23*AH23 -> 0 | AJ23: =IF(AG23>=AI23,0,1) -> 0 | AK23: =AD23-AH23 -> 0 | AL23: =IF(AK23>0,MAX(0,AG23-AI23),0) -> 0 | AM23: =(AD23-AH23)*$AD$21 -> 0 | AN23: =AM23-AL23 -> 0 | AO23: =IF(AK23>0,AL23/AK23,0) -> 0 | AP23: =IF(AN23<0,-AN23/AK23,0) -> 0 | AQ23: =IF(AC23>Inputs!$D$9,0,IF(AK23=0,0,AK23/AD23)) -> 0 | AR23: =IF(AC23=Inputs!$D$9,(AF23-$AF$21)*AK23,(AF23-$AF$21)*AH23) -> 0 | AS23: =IF(AC23=Inputs!$D$9,Bonds!AE23,AH23*AF23) -> 0 | AT23: 0 | AU23: =IF(AC23=Inputs!$D$9,AK23*Bonds!$AF$21,$AF$21*AH23) -> 0 | AV23: 0 | AW23: =(AS23+AT23)-(AU23+AV23) -> 0 | AX23: =AW23 -> 0 | AY23: =IF(AP23>0,SUM($AP$23:AP23)*AK23,0) -> 0 | AZ23: =IF(AN23<0,AC23,"") ->  | BA23: 1 | BB23: =IF(AY23>0,AY23/BA23,0) -> 0 | BC23: =AW23+AY23 -> 0 | BD23: =AX23+BB23 -> 0 | BE23: =IF((AW23+AX23+AY23+BB23)>0,BC23/BD23,0) -> 0 | BG23: =AE23 -> 0 | BH23: 0 | BI23: =AD23*$AF$21 -> 0 | BJ23: 0 | BK23: =(BG23+BH23)-(BI23+BJ23) -> 0 | BL23: =BK23/AC23 -> 0 | BO23: =(AF23-$AF$21)*AD23 -> 0
D24: Specified wd | E24: =IF(E7>=Inputs!$D$9,0,IF(Inputs!$D$11="",0,MIN(Inputs!$D$11,Bonds!E21-Bonds!E23))) -> 0 | F24: =IF(F7>=Inputs!$D$9,0,IF(Inputs!$D$11="",0,MIN(Inputs!$D$11,Bonds!F21-Bonds!F23))) -> 0 | G24: =IF(G7>=Inputs!$D$9,0,IF(Inputs!$D$11="",0,MIN(Inputs!$D$11,Bonds!G21-Bonds!G23))) -> 0 | H24: =IF(H7>=Inputs!$D$9,0,IF(Inputs!$D$11="",0,MIN(Inputs!$D$11,Bonds!H21-Bonds!H23))) -> 0 | I24: =IF(I7>=Inputs!$D$9,0,IF(Inputs!$D$11="",0,MIN(Inputs!$D$11,Bonds!I21-Bonds!I23))) -> 0 | J24: =IF(J7>=Inputs!$D$9,0,IF(Inputs!$D$11="",0,MIN(Inputs!$D$11,Bonds!J21-Bonds!J23))) -> 0 | K24: =IF(K7>=Inputs!$D$9,0,IF(Inputs!$D$11="",0,MIN(Inputs!$D$11,Bonds!K21-Bonds!K23))) -> 0 | L24: =IF(L7>=Inputs!$D$9,0,IF(Inputs!$D$11="",0,MIN(Inputs!$D$11,Bonds!L21-Bonds!L23))) -> 0 | M24: =IF(M7>=Inputs!$D$9,0,IF(Inputs!$D$11="",0,MIN(Inputs!$D$11,Bonds!M21-Bonds!M23))) -> 0 | N24: =IF(N7>=Inputs!$D$9,0,IF(Inputs!$D$11="",0,MIN(Inputs!$D$11,Bonds!N21-Bonds!N23))) -> 0 | O24: =IF(O7>=Inputs!$D$9,0,IF(Inputs!$D$11="",0,MIN(Inputs!$D$11,Bonds!O21-Bonds!O23))) -> 0 | P24: =IF(P7>=Inputs!$D$9,0,IF(Inputs!$D$11="",0,MIN(Inputs!$D$11,Bonds!P21-Bonds!P23))) -> 0 | Q24: =IF(Q7>=Inputs!$D$9,0,IF(Inputs!$D$11="",0,MIN(Inputs!$D$11,Bonds!Q21-Bonds!Q23))) -> 0 | R24: =IF(R7>=Inputs!$D$9,0,IF(Inputs!$D$11="",0,MIN(Inputs!$D$11,Bonds!R21-Bonds!R23))) -> 0 | S24: =IF(S7>=Inputs!$D$9,0,IF(Inputs!$D$11="",0,MIN(Inputs!$D$11,Bonds!S21-Bonds!S23))) -> 0 | T24: =IF(T7>=Inputs!$D$9,0,IF(Inputs!$D$11="",0,MIN(Inputs!$D$11,Bonds!T21-Bonds!T23))) -> 0 | U24: =IF(U7>=Inputs!$D$9,0,IF(Inputs!$D$11="",0,MIN(Inputs!$D$11,Bonds!U21-Bonds!U23))) -> 0 | V24: =IF(V7>=Inputs!$D$9,0,IF(Inputs!$D$11="",0,MIN(Inputs!$D$11,Bonds!V21-Bonds!V23))) -> 0 | W24: =IF(W7>=Inputs!$D$9,0,IF(Inputs!$D$11="",0,MIN(Inputs!$D$11,Bonds!W21-Bonds!W23))) -> 0 | X24: =IF(X7>=Inputs!$D$9,0,IF(Inputs!$D$11="",0,MIN(Inputs!$D$11,Bonds!X21-Bonds!X23))) -> 0 | Y24: =SUM(E24:X24) -> 0 | AC24: =AC23+1 -> 2 | AD24: =IF(AC24>Inputs!$D$9,0,AK23) -> 0 | AE24: =F21 -> 0 | AF24: =IF(AD24>0,AE24/AD24,0) -> 0 | AG24: =F23+F24 -> 0 | AH24: =IF(AND(AF24>AG24,AG24>0),1,MIN(AD24,IF(AD24>0,ROUNDDOWN(AG24/AF24,0),0))) -> 0 | AI24: =AF24*AH24 -> 0 | AJ24: =IF(AG24>=AI24,0,1) -> 0 | AK24: =AD24-AH24 -> 0 | AL24: =IF(AK24>0,MAX(0,AG24-AI24),0) -> 0 | AM24: =IF(AC24>Inputs!$D$9,0,((AD24-AH24)*$AD$21)+(MAX(0,AN23*AQ24))) -> 0 | AN24: =AM24-AL24 -> 0 | AO24: =IF(AK24>0,AL24/AK24,0) -> 0 | AP24: =IF(AN24<0,-AN24/AK24,0) -> 0 | AQ24: =IF(AC24>Inputs!$D$9,0,IF(AK24=0,0,AK24/AD24)) -> 0 | AR24: =IF(AC24=Inputs!$D$9,(AF24-$AF$21)*AK24,(AF24-$AF$21)*AH24) -> 0 | AS24: =IF(AC24=Inputs!$D$9,Bonds!AE24,AH24*AF24) -> 0 | AT24: =IF(AC24=Inputs!$D$9,AK24*(SUM($AO$23:AO23)),AH24*(SUM($AO$23:AO23))) -> 0 | AU24: =IF(AC24=Inputs!$D$9,AK24*Bonds!$AF$21,$AF$21*AH24) -> 0 | AV24: =IF(AC24=Inputs!$D$9,AK24*(SUM($AP$23:AP23)),AH24*(SUM($AP$23:AP23))) -> 0 | AW24: =(AS24+AT24)-(AU24+AV24) -> 0 | AX24: =AW24/AC24 -> 0 | AY24: =IF(AP24>0,SUM($AP$23:AP24)*AK24,0) -> 0 | AZ24: =IF(AN24<0,AC24,"") ->  | BA24: =IF(AY24>0,MAX(1,AC24-(MAX($AZ23:AZ$51))),0) -> 0 | BB24: 0 | BC24: =AW24+AY24 -> 0 | BD24: =AX24+BB24 -> 0 | BE24: =IF((AW24+AX24+AY24+BB24)>0,BC24/BD24,0) -> 0 | BG24: =AE24 -> 0 | BH24: =IF(AO23=0,0,SUM($AO$23:AO23)*AK23) -> 0 | BI24: 0 | BJ24: =AD24*(SUM($AP$23:AP23)) -> 0 | BK24: =(BG24+BH24)-(BI24+BJ24) -> 0 | BL24: =BK24/AC24 -> 0 | BO24: 0
D25: IN year Gain | E25: =IF(AND(E22<(E23+E24),E28>0),(E23+E24)-E22,0) -> 0 | F25: =IF(AND(F22<(F23+F24),F28>0),(F23+F24)-F22,0) -> 0 | G25: =IF(AND(G22<(G23+G24),G28>0),(G23+G24)-G22,0) -> 0 | H25: =IF(AND(H22<(H23+H24),H28>0),(H23+H24)-H22,0) -> 0 | I25: 0 | J25: 0 | K25: 0 | L25: 0 | M25: 0 | N25: 0 | O25: =IF(AND(O22<(O23+O24),O28>0),(O23+O24)-O22,0) -> 0 | P25: 0 | Q25: =IF(AND(Q22<(Q23+Q24),Q28>0),(Q23+Q24)-Q22,0) -> 0 | R25: 0 | S25: =IF(AND(S22<(S23+S24),S28>0),(S23+S24)-S22,0) -> 0 | T25: =IF(AND(T22<(T23+T24),T28>0),(T23+T24)-T22,0) -> 0 | U25: =IF(AND(U22<(U23+U24),U28>0),(U23+U24)-U22,0) -> 0 | V25: =IF(AND(V22<(V23+V24),V28>0),(V23+V24)-V22,0) -> 0 | W25: =IF(AND(W22<(W23+W24),W28>0),(W23+W24)-W22,0) -> 0 | X25: =IF(AND(X22<(X23+X24),X28>0),(X23+X24)-X22,0) -> 0 | AC25: =AC24+1 -> 3 | AD25: =IF(AC25>Inputs!$D$9,0,AK24) -> 0 | AE25: =G21 -> 0 | AF25: 0 | AG25: =G23+G24 -> 0 | AH25: 0 | AI25: =AF25*AH25 -> 0 | AJ25: 0 | AK25: =AD25-AH25 -> 0 | AL25: 0 | AM25: =IF(AC25>Inputs!$D$9,0,((AD25-AH25)*$AD$21)+(MAX(0,AN24*AQ25))) -> 0 | AN25: =AM25-AL25 -> 0 | AO25: =IF(AK25>0,AL25/AK25,0) -> 0 | AP25: 0 | AQ25: =IF(AC25>Inputs!$D$9,0,IF(AK25=0,0,AK25/AD25)) -> 0 | AR25: =IF(AC25=Inputs!$D$9,(AF25-$AF$21)*AK25,(AF25-$AF$21)*AH25) -> 0 | AS25: =IF(AC25=Inputs!$D$9,Bonds!AE25,AH25*AF25) -> 0 | AT25: =IF(AC25=Inputs!$D$9,AK25*(SUM($AO$23:AO24)),AH25*(SUM($AO$23:AO24))) -> 0 | AU25: =IF(AC25=Inputs!$D$9,AK25*Bonds!$AF$21,$AF$21*AH25) -> 0 | AV25: =IF(AC25=Inputs!$D$9,AK25*(SUM($AP$23:AP24)),AH25*(SUM($AP$23:AP24))) -> 0 | AW25: =(AS25+AT25)-(AU25+AV25) -> 0 | AX25: =AW25/AC25 -> 0 | AY25: =IF(AP25>0,SUM($AP$23:AP25)*AK25,0) -> 0 | BA25: =IF(AY25>0,MAX(1,AC25-(MAX($AZ24:AZ$51))),0) -> 0 | BB25: 0 | BC25: =AW25+AY25 -> 0 | BD25: =AX25+BB25 -> 0 | BE25: =IF((AW25+AX25+AY25+BB25)>0,BC25/BD25,0) -> 0 | BG25: 0 | BH25: =IF(AO24=0,0,SUM($AO$23:AO24)*AK24) -> 0 | BI25: 0 | BJ25: =AD25*(SUM($AP$23:AP24)) -> 0 | BK25: 0 | BL25: 0 | BO25: 0
D26: Gain on full surrender if bond depletes | E26: =IF(AND(E28=0,D28>0,E6=FALSE),((E21+(SUM(D$23:$E24)))-($E$8+(SUM(E$25:$E25)))),0) -> 0 | F26: =IF(AND(F28=0,E28>0,F6=FALSE),((F21+(SUM(E$23:$E24)))-($E$8+(SUM($E$25:F25)))),0) -> 0 | G26: =IF(AND(G28=0,F28>0,G6=FALSE),((G21+(SUM($E$23:F24)))-($E$8+(SUM($E$25:G25)))),0) -> 0 | H26: =IF(AND(H28=0,G28>0,H6=FALSE),((H21+(SUM($E$23:G24)))-($E$8+(SUM($E$25:H25)))),0) -> 0 | I26: =IF(AND(I28=0,H28>0,I6=FALSE),((I21+(SUM($E$23:H24)))-($E$8+(SUM($E$25:I25)))),0) -> 0 | J26: =IF(AND(J28=0,I28>0,J6=FALSE),((J21+(SUM($E$23:I24)))-($E$8+(SUM($E$25:J25)))),0) -> 0 | K26: =IF(AND(K28=0,J28>0,K6=FALSE),((K21+(SUM($E$23:J24)))-($E$8+(SUM($E$25:K25)))),0) -> 0 | L26: =IF(AND(L28=0,K28>0,L6=FALSE),((L21+(SUM($E$23:K24)))-($E$8+(SUM($E$25:L25)))),0) -> 0 | M26: =IF(AND(M28=0,L28>0,M6=FALSE),((M21+(SUM($E$23:L24)))-($E$8+(SUM($E$25:M25)))),0) -> 0 | N26: =IF(AND(N28=0,M28>0,N6=FALSE),((N21+(SUM($E$23:M24)))-($E$8+(SUM($E$25:N25)))),0) -> 0 | O26: =IF(AND(O28=0,N28>0,O6=FALSE),((O21+(SUM($E$23:N24)))-($E$8+(SUM($E$25:O25)))),0) -> 0 | P26: =IF(AND(P28=0,O28>0,P6=FALSE),((P21+(SUM($E$23:O24)))-($E$8+(SUM($E$25:P25)))),0) -> 0 | Q26: =IF(AND(Q28=0,P28>0,Q6=FALSE),((Q21+(SUM($E$23:P24)))-($E$8+(SUM($E$25:Q25)))),0) -> 0 | R26: =IF(AND(R28=0,Q28>0,R6=FALSE),((R21+(SUM($E$23:Q24)))-($E$8+(SUM($E$25:R25)))),0) -> 0 | S26: =IF(AND(S28=0,R28>0,S6=FALSE),((S21+(SUM($E$23:R24)))-($E$8+(SUM($E$25:S25)))),0) -> 0 | T26: =IF(AND(T28=0,S28>0,T6=FALSE),((T21+(SUM($E$23:S24)))-($E$8+(SUM($E$25:T25)))),0) -> 0 | U26: =IF(AND(U28=0,T28>0,U6=FALSE),((U21+(SUM($E$23:T24)))-($E$8+(SUM($E$25:U25)))),0) -> 0 | V26: =IF(AND(V28=0,U28>0,V6=FALSE),((V21+(SUM($E$23:U24)))-($E$8+(SUM($E$25:V25)))),0) -> 0 | W26: =IF(AND(W28=0,V28>0,W6=FALSE),((W21+(SUM($E$23:V24)))-($E$8+(SUM($E$25:W25)))),0) -> 0 | X26: =IF(AND(X28=0,W28>0,X6=FALSE),((X21+(SUM($E$23:W24)))-($E$8+(SUM($E$25:X25)))),0) -> 0 | AC26: 4 | AD26: =IF(AC26>Inputs!$D$9,0,AK25) -> 0 | AE26: =H21 -> 0 | AF26: 0 | AG26: =H23+H24 -> 0 | AH26: 0 | AI26: 0 | AJ26: 0 | AK26: 0 | AL26: 0 | AM26: =IF(AC26>Inputs!$D$9,0,((AD26-AH26)*$AD$21)+(MAX(0,AN25*AQ26))) -> 0 | AN26: 0 | AO26: =IF(AK26>0,AL26/AK26,0) -> 0 | AP26: =IF(AN26<0,-AN26/AK26,0) -> 0 | AQ26: =IF(AC26>Inputs!$D$9,0,IF(AK26=0,0,AK26/AD26)) -> 0 | AR26: =IF(AC26=Inputs!$D$9,(AF26-$AF$21)*AK26,(AF26-$AF$21)*AH26) -> 0 | AS26: =IF(AC26=Inputs!$D$9,Bonds!AE26,AH26*AF26) -> 0 | AT26: =IF(AC26=Inputs!$D$9,AK26*(SUM($AO$23:AO25)),AH26*(SUM($AO$23:AO25))) -> 0 | AU26: =IF(AC26=Inputs!$D$9,AK26*Bonds!$AF$21,$AF$21*AH26) -> 0 | AV26: =IF(AC26=Inputs!$D$9,AK26*(SUM($AP$23:AP25)),AH26*(SUM($AP$23:AP25))) -> 0 | AW26: =(AS26+AT26)-(AU26+AV26) -> 0 | AX26: 0 | AY26: =IF(AP26>0,SUM($AP$23:AP26)*AK26,0) -> 0 | BA26: =IF(AY26>0,MAX(1,AC26-(MAX($AZ25:AZ$51))),0) -> 0 | BB26: 0 | BC26: =AW26+AY26 -> 0 | BD26: 0 | BE26: =IF((AW26+AX26+AY26+BB26)>0,BC26/BD26,0) -> 0 | BG26: 0 | BH26: =IF(AO25=0,0,SUM($AO$23:AO25)*AK25) -> 0 | BI26: 0 | BJ26: =AD26*(SUM($AP$23:AP25)) -> 0 | BK26: 0 | BL26: 0 | BO26: 0
D27: Gain on full surrender if end of term | E27: =IF(AND(Bonds!E21>0,E7=Inputs!$D$9),(E21+(SUM(D$23:$E24)))-($E$8+(SUM(E$25:$E25))),0) -> 0 | F27: =IF(AND(Bonds!F21>0,F7=Inputs!$D$9),(F21+(SUM(E$23:$E24)))-($E$8+(SUM($E$25:F25))),0) -> 0 | G27: =IF(AND(Bonds!G21>0,G7=Inputs!$D$9),(G21+(SUM($E$23:F24)))-($E$8+(SUM($E$25:G25))),0) -> 0 | H27: =IF(AND(Bonds!H21>0,H7=Inputs!$D$9),(H21+(SUM($E$23:G24)))-($E$8+(SUM($E$25:H25))),0) -> 0 | I27: =IF(AND(Bonds!I21>0,I7=Inputs!$D$9),(I21+(SUM($E$23:H24)))-($E$8+(SUM($E$25:I25))),0) -> 0 | J27: =IF(AND(Bonds!J21>0,J7=Inputs!$D$9),(J21+(SUM($E$23:I24)))-($E$8+(SUM($E$25:J25))),0) -> 0 | K27: =IF(AND(Bonds!K21>0,K7=Inputs!$D$9),(K21+(SUM($E$23:J24)))-($E$8+(SUM($E$25:K25))),0) -> 0 | L27: =IF(AND(Bonds!L21>0,L7=Inputs!$D$9),(L21+(SUM($E$23:K24)))-($E$8+(SUM($E$25:L25))),0) -> 0 | M27: =IF(AND(Bonds!M21>0,M7=Inputs!$D$9),(M21+(SUM($E$23:L24)))-($E$8+(SUM($E$25:M25))),0) -> 0 | N27: =IF(AND(Bonds!N21>0,N7=Inputs!$D$9),(N21+(SUM($E$23:M24)))-($E$8+(SUM($E$25:N25))),0) -> 0 | O27: =IF(AND(Bonds!O21>0,O7=Inputs!$D$9),(O21+(SUM($E$23:N24)))-($E$8+(SUM($E$25:O25))),0) -> 0 | P27: =IF(AND(Bonds!P21>0,P7=Inputs!$D$9),(P21+(SUM($E$23:O24)))-($E$8+(SUM($E$25:P25))),0) -> 0 | Q27: =IF(AND(Bonds!Q21>0,Q7=Inputs!$D$9),(Q21+(SUM($E$23:P24)))-($E$8+(SUM($E$25:Q25))),0) -> 0 | R27: =IF(AND(Bonds!R21>0,R7=Inputs!$D$9),(R21+(SUM($E$23:Q24)))-($E$8+(SUM($E$25:R25))),0) -> 0 | S27: =IF(AND(Bonds!S21>0,S7=Inputs!$D$9),(S21+(SUM($E$23:R24)))-($E$8+(SUM($E$25:S25))),0) -> 0 | T27: =IF(AND(Bonds!T21>0,T7=Inputs!$D$9),(T21+(SUM($E$23:S24)))-($E$8+(SUM($E$25:T25))),0) -> 0 | U27: =IF(AND(Bonds!U21>0,U7=Inputs!$D$9),(U21+(SUM($E$23:T24)))-($E$8+(SUM($E$25:U25))),0) -> 0 | V27: =IF(AND(Bonds!V21>0,V7=Inputs!$D$9),(V21+(SUM($E$23:U24)))-($E$8+(SUM($E$25:V25))),0) -> 0 | W27: =IF(AND(Bonds!W21>0,W7=Inputs!$D$9),(W21+(SUM($E$23:V24)))-($E$8+(SUM($E$25:W25))),0) -> 0 | X27: =IF(AND(Bonds!X21>0,X7=Inputs!$D$9),(X21+(SUM($E$23:W24)))-($E$8+(SUM($E$25:X25))),0) -> 0 | Y27: =MAX(E27:X27) -> 0 | AC27: 5 | AD27: =IF(AC27>Inputs!$D$9,0,AK26) -> 0 | AE27: =I21 -> 0 | AF27: 0 | AG27: =I23+I24 -> 0 | AH27: 0 | AI27: =AF27*AH27 -> 0 | AJ27: =IF(AG27>=AI27,0,1) -> 0 | AK27: 0 | AL27: 0 | AM27: =IF(AC27>Inputs!$D$9,0,((AD27-AH27)*$AD$21)+(MAX(0,AN26*AQ27))) -> 0 | AN27: 0 | AO27: 0 | AP27: 0 | AQ27: =IF(AC27>Inputs!$D$9,0,IF(AK27=0,0,AK27/AD27)) -> 0 | AR27: =IF(AC27=Inputs!$D$9,(AF27-$AF$21)*AK27,(AF27-$AF$21)*AH27) -> 0 | AS27: =IF(AC27=Inputs!$D$9,Bonds!AE27,AH27*AF27) -> 0 | AT27: =IF(AC27=Inputs!$D$9,AK27*(SUM($AO$23:AO26)),AH27*(SUM($AO$23:AO26))) -> 0 | AU27: =IF(AC27=Inputs!$D$9,AK27*Bonds!$AF$21,$AF$21*AH27) -> 0 | AV27: =IF(AC27=Inputs!$D$9,AK27*(SUM($AP$23:AP26)),AH27*(SUM($AP$23:AP26))) -> 0 | AW27: =(AS27+AT27)-(AU27+AV27) -> 0 | AX27: 0 | AY27: =IF(AP27>0,SUM($AP$23:AP27)*AK27,0) -> 0 | BA27: =IF(AY27>0,MAX(1,AC27-(MAX($AZ26:AZ$51))),0) -> 0 | BB27: 0 | BC27: =AW27+AY27 -> 0 | BD27: 0 | BE27: =IF((AW27+AX27+AY27+BB27)>0,BC27/BD27,0) -> 0 | BG27: 0 | BH27: =IF(AO26=0,0,SUM($AO$23:AO26)*AK26) -> 0 | BI27: 0 | BJ27: =AD27*(SUM($AP$23:AP26)) -> 0 | BK27: 0 | BL27: 0 | BO27: 0
D28: Year end after ISA +wd | E28: =E21-E23-E24 -> 0 | F28: =F21-F23-F24 -> 0 | G28: =G21-G23-G24 -> 0 | H28: =H21-H23-H24 -> 0 | I28: 0 | J28: 0 | K28: =K21-K23-K24 -> 0 | L28: 0 | M28: 0 | N28: 0 | O28: =O21-O23-O24 -> 0 | P28: 0 | Q28: =Q21-Q23-Q24 -> 0 | R28: 0 | S28: =S21-S23-S24 -> 0 | T28: =T21-T23-T24 -> 0 | U28: =U21-U23-U24 -> 0 | V28: =V21-V23-V24 -> 0 | W28: =W21-W23-W24 -> 0 | X28: =X21-X23-X24 -> 0 | Y28: =IF(Inputs!D9="",0,HLOOKUP(Inputs!$D$9,$E$7:$X$33,22,FALSE)) -> 0 | AC28: 6 | AD28: =IF(AC28>Inputs!$D$9,0,AK27) -> 0 | AE28: =J21 -> 0 | AF28: 0 | AG28: =J23+J24 -> 0 | AH28: 0 | AI28: 0 | AJ28: 0 | AK28: 0 | AL28: 0 | AM28: =IF(AC28>Inputs!$D$9,0,((AD28-AH28)*$AD$21)+(MAX(0,AN27*AQ28))) -> 0 | AN28: 0 | AO28: 0 | AP28: 0 | AQ28: =IF(AC28>Inputs!$D$9,0,IF(AK28=0,0,AK28/AD28)) -> 0 | AR28: =IF(AC28=Inputs!$D$9,(AF28-$AF$21)*AK28,(AF28-$AF$21)*AH28) -> 0 | AS28: =IF(AC28=Inputs!$D$9,Bonds!AE28,AH28*AF28) -> 0 | AT28: =IF(AC28=Inputs!$D$9,AK28*(SUM($AO$23:AO27)),AH28*(SUM($AO$23:AO27))) -> 0 | AU28: =IF(AC28=Inputs!$D$9,AK28*Bonds!$AF$21,$AF$21*AH28) -> 0 | AV28: =IF(AC28=Inputs!$D$9,AK28*(SUM($AP$23:AP27)),AH28*(SUM($AP$23:AP27))) -> 0 | AW28: =(AS28+AT28)-(AU28+AV28) -> 0 | AX28: 0 | AY28: =IF(AP28>0,SUM($AP$23:AP28)*AK28,0) -> 0 | BA28: =IF(AY28>0,MAX(1,AC28-(MAX($AZ27:AZ$51))),0) -> 0 | BB28: 0 | BC28: 0 | BD28: 0 | BE28: 0 | BG28: 0 | BH28: =IF(AO27=0,0,SUM($AO$23:AO27)*AK27) -> 0 | BI28: 0 | BJ28: =AD28*(SUM($AP$23:AP27)) -> 0 | BK28: 0 | BL28: 0 | BO28: 0
AC29: 7 | AD29: =IF(AC29>Inputs!$D$9,0,AK28) -> 0 | AE29: =K21 -> 0 | AF29: 0 | AG29: =K23+K24 -> 0 | AH29: 0 | AI29: 0 | AJ29: 0 | AK29: =AD29-AH29 -> 0 | AL29: 0 | AM29: =IF(AC29>Inputs!$D$9,0,((AD29-AH29)*$AD$21)+(MAX(0,AN28*AQ29))) -> 0 | AN29: 0 | AO29: 0 | AP29: 0 | AQ29: =IF(AC29>Inputs!$D$9,0,IF(AK29=0,0,AK29/AD29)) -> 0 | AR29: =IF(AC29=Inputs!$D$9,(AF29-$AF$21)*AK29,(AF29-$AF$21)*AH29) -> 0 | AS29: =IF(AC29=Inputs!$D$9,Bonds!AE29,AH29*AF29) -> 0 | AT29: =IF(AC29=Inputs!$D$9,AK29*(SUM($AO$23:AO28)),AH29*(SUM($AO$23:AO28))) -> 0 | AU29: =IF(AC29=Inputs!$D$9,AK29*Bonds!$AF$21,$AF$21*AH29) -> 0 | AV29: =IF(AC29=Inputs!$D$9,AK29*(SUM($AP$23:AP28)),AH29*(SUM($AP$23:AP28))) -> 0 | AW29: =(AS29+AT29)-(AU29+AV29) -> 0 | AX29: 0 | AY29: =IF(AP29>0,SUM($AP$23:AP29)*AK29,0) -> 0 | BA29: =IF(AY29>0,MAX(1,AC29-(MAX($AZ28:AZ$51))),0) -> 0 | BB29: 0 | BC29: 0 | BD29: 0 | BE29: 0 | BG29: 0 | BH29: =IF(AO28=0,0,SUM($AO$23:AO28)*AK28) -> 0 | BI29: 0 | BJ29: =AD29*(SUM($AP$23:AP28)) -> 0 | BK29: 0 | BL29: 0 | BO29: 0
D30: Gain | E30: =SUM(E25:E27) -> 0 | F30: =SUM(F25:F27) -> 0 | G30: =SUM(G25:G27) -> 0 | H30: 0 | I30: 0 | J30: 0 | K30: 0 | L30: 0 | M30: 0 | N30: 0 | O30: =SUM(O25:O27) -> 0 | P30: 0 | Q30: =SUM(Q25:Q27) -> 0 | R30: 0 | S30: =SUM(S25:S27) -> 0 | T30: =SUM(T25:T27) -> 0 | U30: =SUM(U25:U27) -> 0 | V30: =SUM(V25:V27) -> 0 | W30: =SUM(W25:W27) -> 0 | X30: =SUM(X25:X27) -> 0 | Y30: =IF(Inputs!D9="",0,HLOOKUP(Inputs!$D$9,$E$7:$X$33,24,FALSE)) -> 0 | AC30: 8 | AD30: =IF(AC30>Inputs!$D$9,0,AK29) -> 0 | AE30: =L21 -> 0 | AF30: 0 | AG30: =L23+L24 -> 0 | AH30: 0 | AI30: 0 | AJ30: 0 | AK30: 0 | AL30: 0 | AM30: =IF(AC30>Inputs!$D$9,0,((AD30-AH30)*$AD$21)+(MAX(0,AN29*AQ30))) -> 0 | AN30: 0 | AO30: 0 | AP30: 0 | AQ30: =IF(AC30>Inputs!$D$9,0,IF(AK30=0,0,AK30/AD30)) -> 0 | AR30: =IF(AC30=Inputs!$D$9,(AF30-$AF$21)*AK30,(AF30-$AF$21)*AH30) -> 0 | AS30: =IF(AC30=Inputs!$D$9,Bonds!AE30,AH30*AF30) -> 0 | AT30: =IF(AC30=Inputs!$D$9,AK30*(SUM($AO$23:AO29)),AH30*(SUM($AO$23:AO29))) -> 0 | AU30: =IF(AC30=Inputs!$D$9,AK30*Bonds!$AF$21,$AF$21*AH30) -> 0 | AV30: =IF(AC30=Inputs!$D$9,AK30*(SUM($AP$23:AP29)),AH30*(SUM($AP$23:AP29))) -> 0 | AW30: 0 | AX30: 0 | AY30: =IF(AP30>0,SUM($AP$23:AP30)*AK30,0) -> 0 | BA30: =IF(AY30>0,MAX(1,AC30-(MAX($AZ29:AZ$51))),0) -> 0 | BB30: 0 | BC30: 0 | BD30: 0 | BE30: 0 | BG30: 0 | BH30: =IF(AO29=0,0,SUM($AO$23:AO29)*AK29) -> 0 | BI30: 0 | BJ30: =AD30*(SUM($AP$23:AP29)) -> 0 | BK30: 0 | BL30: 0 | BO30: 0
D31: Year of Excess | E31: =IF(E25>0,E7,"") ->  | AC31: 9 | AD31: =IF(AC31>Inputs!$D$9,0,AK30) -> 0 | AE31: =M21 -> 0 | AF31: 0 | AG31: =M23+M24 -> 0 | AH31: 0 | AI31: 0 | AJ31: 0 | AK31: 0 | AL31: 0 | AM31: =IF(AC31>Inputs!$D$9,0,((AD31-AH31)*$AD$21)+(MAX(0,AN30*AQ31))) -> 0 | AN31: 0 | AO31: 0 | AP31: 0 | AQ31: =IF(AC31>Inputs!$D$9,0,IF(AK31=0,0,AK31/AD31)) -> 0 | AR31: =IF(AC31=Inputs!$D$9,(AF31-$AF$21)*AK31,(AF31-$AF$21)*AH31) -> 0 | AS31: =IF(AC31=Inputs!$D$9,Bonds!AE31,AH31*AF31) -> 0 | AT31: =IF(AC31=Inputs!$D$9,AK31*(SUM($AO$23:AO30)),AH31*(SUM($AO$23:AO30))) -> 0 | AU31: =IF(AC31=Inputs!$D$9,AK31*Bonds!$AF$21,$AF$21*AH31) -> 0 | AV31: =IF(AC31=Inputs!$D$9,AK31*(SUM($AP$23:AP30)),AH31*(SUM($AP$23:AP30))) -> 0 | AW31: 0 | AX31: 0 | AY31: =IF(AP31>0,SUM($AP$23:AP31)*AK31,0) -> 0 | AZ31: =IF(AN31<0,AC31,"") ->  | BA31: =IF(AY31>0,MAX(1,AC31-(MAX($AZ30:AZ$51))),0) -> 0 | BB31: 0 | BC31: 0 | BD31: 0 | BE31: 0 | BG31: 0 | BH31: =IF(AO30=0,0,SUM($AO$23:AO30)*AK30) -> 0 | BI31: 0 | BJ31: =AD31*(SUM($AP$23:AP30)) -> 0 | BK31: 0 | BL31: 0 | BO31: 0
D32: Years for slicing | E32: =IF((E26+E27)<>0,E7,IF(E25>0,MAX(1,E7-(MAX($E31:E$31))),0)) -> 0 | F32: =IF((F26+F27)<>0,F7,IF(F25>0,MAX(1,F7-(MAX($E31:F$31))),0)) -> 0 | G32: =IF((G26+G27)<>0,G7,IF(G25>0,MAX(1,G7-(MAX($E31:G$31))),0)) -> 0 | H32: =IF((H26+H27)<>0,H7,IF(H25>0,MAX(1,H7-(MAX($E31:H$31))),0)) -> 0 | I32: =IF((I26+I27)<>0,I7,IF(I25>0,MAX(1,I7-(MAX($E31:I$31))),0)) -> 0 | J32: =IF((J26+J27)<>0,J7,IF(J25>0,MAX(1,J7-(MAX($E31:J$31))),0)) -> 0 | K32: =IF((K26+K27)<>0,K7,IF(K25>0,MAX(1,K7-(MAX($E31:K$31))),0)) -> 0 | L32: =IF((L26+L27)<>0,L7,IF(L25>0,MAX(1,L7-(MAX($E31:L$31))),0)) -> 0 | M32: =IF((M26+M27)<>0,M7,IF(M25>0,MAX(1,M7-(MAX($E31:M$31))),0)) -> 0 | N32: =IF((N26+N27)<>0,N7,IF(N25>0,MAX(1,N7-(MAX($E31:N$31))),0)) -> 0 | O32: =IF((O26+O27)<>0,O7,IF(O25>0,MAX(1,O7-(MAX($E31:O$31))),0)) -> 0 | P32: =IF((P26+P27)<>0,P7,IF(P25>0,MAX(1,P7-(MAX($E31:P$31))),0)) -> 0 | Q32: =IF((Q26+Q27)<>0,Q7,IF(Q25>0,MAX(1,Q7-(MAX($E31:Q$31))),0)) -> 0 | R32: =IF((R26+R27)<>0,R7,IF(R25>0,MAX(1,R7-(MAX($E31:R$31))),0)) -> 0 | S32: =IF((S26+S27)<>0,S7,IF(S25>0,MAX(1,S7-(MAX($E31:S$31))),0)) -> 0 | T32: =IF((T26+T27)<>0,T7,IF(T25>0,MAX(1,T7-(MAX($E31:T$31))),0)) -> 0 | U32: =IF((U26+U27)<>0,U7,IF(U25>0,MAX(1,U7-(MAX($E31:U$31))),0)) -> 0 | V32: =IF((V26+V27)<>0,V7,IF(V25>0,MAX(1,V7-(MAX($E31:V$31))),0)) -> 0 | W32: =IF((W26+W27)<>0,W7,IF(W25>0,MAX(1,W7-(MAX($E31:W$31))),0)) -> 0 | X32: =IF((X26+X27)<>0,X7,IF(X25>0,MAX(1,X7-(MAX($E31:X$31))),0)) -> 0 | Y32: =HLOOKUP(Inputs!$D$9,$E$7:$X$33,26,FALSE) ->  | AC32: =AC31+1 -> 10 | AD32: =IF(AC32>Inputs!$D$9,0,AK31) -> 0 | AE32: =N21 -> 0 | AF32: 0 | AG32: =N23+N24 -> 0 | AH32: 0 | AI32: 0 | AJ32: 0 | AK32: =AD32-AH32 -> 0 | AL32: 0 | AM32: =IF(AC32>Inputs!$D$9,0,((AD32-AH32)*$AD$21)+(MAX(0,AN31*AQ32))) -> 0 | AN32: 0 | AO32: 0 | AP32: 0 | AQ32: =IF(AC32>Inputs!$D$9,0,IF(AK32=0,0,AK32/AD32)) -> 0 | AR32: =IF(AC32=Inputs!$D$9,(AF32-$AF$21)*AK32,(AF32-$AF$21)*AH32) -> 0 | AS32: =IF(AC32=Inputs!$D$9,Bonds!AE32,AH32*AF32) -> 0 | AT32: =IF(AC32=Inputs!$D$9,AK32*(SUM($AO$23:AO31)),AH32*(SUM($AO$23:AO31))) -> 0 | AU32: =IF(AC32=Inputs!$D$9,AK32*Bonds!$AF$21,$AF$21*AH32) -> 0 | AV32: =IF(AC32=Inputs!$D$9,AK32*(SUM($AP$23:AP31)),AH32*(SUM($AP$23:AP31))) -> 0 | AW32: =(AS32+AT32)-(AU32+AV32) -> 0 | AX32: 0 | AY32: =IF(AP32>0,SUM($AP$23:AP32)*AK32,0) -> 0 | BA32: =IF(AY32>0,MAX(1,AC32-(MAX($AZ31:AZ$51))),0) -> 0 | BB32: 0 | BC32: =AW32+AY32 -> 0 | BD32: 0 | BE32: 0 | BG32: 0 | BH32: =IF(AO31=0,0,SUM($AO$23:AO31)*AK31) -> 0 | BI32: 0 | BJ32: =AD32*(SUM($AP$23:AP31)) -> 0 | BK32: 0 | BL32: 0 | BO32: 0
D33: Slice | E33: =IF(E26+E27>0,(E26+E27)/E7,IF(E25>0,E25/E32,0)) -> 0 | F33: 0 | G33: 0 | H33: 0 | I33: 0 | J33: 0 | K33: 0 | L33: 0 | M33: 0 | N33: 0 | O33: 0 | P33: 0 | Q33: 0 | R33: 0 | S33: 0 | T33: 0 | U33: 0 | V33: 0 | W33: 0 | X33: 0 | AC33: =AC32+1 -> 11 | AD33: =IF(AC33>Inputs!$D$9,0,AK32) -> 0 | AE33: =O21 -> 0 | AF33: =IF(AD33>0,AE33/AD33,0) -> 0 | AG33: =O23+O24 -> 0 | AH33: =IF(AND(AF33>AG33,AG33>0),1,MIN(AD33,IF(AD33>0,ROUNDDOWN(AG33/AF33,0),0))) -> 0 | AI33: =AF33*AH33 -> 0 | AJ33: =IF(AG33>=AI33,0,1) -> 0 | AK33: =AD33-AH33 -> 0 | AL33: =IF(AK33>0,MAX(0,AG33-AI33),0) -> 0 | AM33: =IF(AC33>Inputs!$D$9,0,((AD33-AH33)*$AD$21)+(MAX(0,AN32*AQ33))) -> 0 | AN33: =AM33-AL33 -> 0 | AO33: =IF(AK33>0,AL33/AK33,0) -> 0 | AP33: =IF(AN33<0,-AN33/AK33,0) -> 0 | AQ33: =IF(AC33>Inputs!$D$9,0,IF(AK33=0,0,AK33/AD33)) -> 0 | AR33: =IF(AC33=Inputs!$D$9,(AF33-$AF$21)*AK33,(AF33-$AF$21)*AH33) -> 0 | AS33: =IF(AC33=Inputs!$D$9,Bonds!AE33,AH33*AF33) -> 0 | AT33: =IF(AC33=Inputs!$D$9,AK33*(SUM($AO$23:AO32)),AH33*(SUM($AO$23:AO32))) -> 0 | AU33: =IF(AC33=Inputs!$D$9,AK33*Bonds!$AF$21,$AF$21*AH33) -> 0 | AV33: =IF(AC33=Inputs!$D$9,AK33*(SUM($AP$23:AP32)),AH33*(SUM($AP$23:AP32))) -> 0 | AW33: =(AS33+AT33)-(AU33+AV33) -> 0 | AX33: =AW33/AC33 -> 0 | AY33: =IF(AP33>0,SUM($AP$23:AP33)*AK33,0) -> 0 | AZ33: =IF(AN33<0,AC33,"") ->  | BA33: =IF(AY33>0,MAX(1,AC33-(MAX($AZ32:AZ$51))),0) -> 0 | BB33: =IF(AY33>0,AY33/BA33,0) -> 0 | BC33: =AW33+AY33 -> 0 | BD33: =AX33+BB33 -> 0 | BE33: =IF((AW33+AX33+AY33+BB33)>0,BC33/BD33,0) -> 0 | BG33: 0 | BH33: =IF(AO32=0,0,SUM($AO$23:AO32)*AK32) -> 0 | BI33: 0 | BJ33: =AD33*(SUM($AP$23:AP32)) -> 0 | BK33: 0 | BL33: 0 | BO33: 0
D34: Gain for simple calcs | E34: =E21-E8 -> 0 | F34: =IF(OR(F7>Inputs!$D$9,F8=0),0,(F21+(SUM(E$23:$E24)))-($E$8+(SUM($E$25:E25)))) -> 0 | G34: =IF(OR(G7>Inputs!$D$9,G8=0),0,(G21+(SUM($E$23:F24)))-($E$8+(SUM($E$25:F25)))) -> 0 | H34: =IF(OR(H7>Inputs!$D$9,H8=0),0,(H21+(SUM($E$23:G24)))-($E$8+(SUM($E$25:G25)))) -> 0 | I34: =IF(OR(I7>Inputs!$D$9,I8=0),0,(I21+(SUM($E$23:H24)))-($E$8+(SUM($E$25:H25)))) -> 0 | J34: =IF(OR(J7>Inputs!$D$9,J8=0),0,(J21+(SUM($E$23:I24)))-($E$8+(SUM($E$25:I25)))) -> 0 | K34: =IF(OR(K7>Inputs!$D$9,K8=0),0,(K21+(SUM($E$23:J24)))-($E$8+(SUM($E$25:J25)))) -> 0 | L34: =IF(OR(L7>Inputs!$D$9,L8=0),0,(L21+(SUM($E$23:K24)))-($E$8+(SUM($E$25:K25)))) -> 0 | M34: =IF(OR(M7>Inputs!$D$9,M8=0),0,(M21+(SUM($E$23:L24)))-($E$8+(SUM($E$25:L25)))) -> 0 | N34: =IF(OR(N7>Inputs!$D$9,N8=0),0,(N21+(SUM($E$23:M24)))-($E$8+(SUM($E$25:M25)))) -> 0 | O34: =IF(OR(O7>Inputs!$D$9,O8=0),0,(O21+(SUM($E$23:N24)))-($E$8+(SUM($E$25:N25)))) -> 0 | P34: =IF(OR(P7>Inputs!$D$9,P8=0),0,(P21+(SUM($E$23:O24)))-($E$8+(SUM($E$25:O25)))) -> 0 | Q34: =IF(OR(Q7>Inputs!$D$9,Q8=0),0,(Q21+(SUM($E$23:P24)))-($E$8+(SUM($E$25:P25)))) -> 0 | R34: =IF(OR(R7>Inputs!$D$9,R8=0),0,(R21+(SUM($E$23:Q24)))-($E$8+(SUM($E$25:Q25)))) -> 0 | S34: =IF(OR(S7>Inputs!$D$9,S8=0),0,(S21+(SUM($E$23:R24)))-($E$8+(SUM($E$25:R25)))) -> 0 | T34: =IF(OR(T7>Inputs!$D$9,T8=0),0,(T21+(SUM($E$23:S24)))-($E$8+(SUM($E$25:S25)))) -> 0 | U34: =IF(OR(U7>Inputs!$D$9,U8=0),0,(U21+(SUM($E$23:T24)))-($E$8+(SUM($E$25:T25)))) -> 0 | V34: =IF(OR(V7>Inputs!$D$9,V8=0),0,(V21+(SUM($E$23:U24)))-($E$8+(SUM($E$25:U25)))) -> 0 | W34: =IF(OR(W7>Inputs!$D$9,W8=0),0,(W21+(SUM($E$23:V24)))-($E$8+(SUM($E$25:V25)))) -> 0 | X34: =IF(OR(X7>Inputs!$D$9,X8=0),0,(X21+(SUM($E$23:W24)))-($E$8+(SUM($E$25:W25)))) -> 0 | AC34: =AC33+1 -> 12 | AD34: =IF(AC34>Inputs!$D$9,0,AK33) -> 0 | AE34: =P21 -> 0 | AF34: =IF(AD34>0,AE34/AD34,0) -> 0 | AG34: =P23+P24 -> 0 | AH34: =IF(AND(AF34>AG34,AG34>0),1,MIN(AD34,IF(AD34>0,ROUNDDOWN(AG34/AF34,0),0))) -> 0 | AI34: =AF34*AH34 -> 0 | AJ34: =IF(AG34>=AI34,0,1) -> 0 | AK34: =AD34-AH34 -> 0 | AL34: =IF(AK34>0,MAX(0,AG34-AI34),0) -> 0 | AM34: =IF(AC34>Inputs!$D$9,0,((AD34-AH34)*$AD$21)+(MAX(0,AN33*AQ34))) -> 0 | AN34: =AM34-AL34 -> 0 | AO34: =IF(AK34>0,AL34/AK34,0) -> 0 | AP34: =IF(AN34<0,-AN34/AK34,0) -> 0 | AQ34: =IF(AC34>Inputs!$D$9,0,IF(AK34=0,0,AK34/AD34)) -> 0 | AR34: =IF(AC34=Inputs!$D$9,(AF34-$AF$21)*AK34,(AF34-$AF$21)*AH34) -> 0 | AS34: =IF(AC34=Inputs!$D$9,Bonds!AE34,AH34*AF34) -> 0 | AT34: =IF(AC34=Inputs!$D$9,AK34*(SUM($AO$23:AO33)),AH34*(SUM($AO$23:AO33))) -> 0 | AU34: =IF(AC34=Inputs!$D$9,AK34*Bonds!$AF$21,$AF$21*AH34) -> 0 | AV34: =IF(AC34=Inputs!$D$9,AK34*(SUM($AP$23:AP33)),AH34*(SUM($AP$23:AP33))) -> 0 | AW34: 0 | AX34: 0 | AY34: =IF(AP34>0,SUM($AP$23:AP34)*AK34,0) -> 0 | BA34: =IF(AY34>0,MAX(1,AC34-(MAX($AZ33:AZ$51))),0) -> 0 | BB34: 0 | BC34: 0 | BD34: 0 | BE34: 0 | BG34: 0 | BH34: =IF(AO33=0,0,SUM($AO$23:AO33)*AK33) -> 0 | BI34: 0 | BJ34: =AD34*(SUM($AP$23:AP33)) -> 0 | BK34: 0 | BL34: 0 | BO34: 0
AC35: =AC34+1 -> 13 | AD35: =IF(AC35>Inputs!$D$9,0,AK34) -> 0 | AE35: =Q21 -> 0 | AF35: =IF(AD35>0,AE35/AD35,0) -> 0 | AG35: =Q23+Q24 -> 0 | AH35: =IF(AND(AF35>AG35,AG35>0),1,MIN(AD35,IF(AD35>0,ROUNDDOWN(AG35/AF35,0),0))) -> 0 | AI35: =AF35*AH35 -> 0 | AJ35: =IF(AG35>=AI35,0,1) -> 0 | AK35: =AD35-AH35 -> 0 | AL35: =IF(AK35>0,MAX(0,AG35-AI35),0) -> 0 | AM35: =IF(AC35>Inputs!$D$9,0,((AD35-AH35)*$AD$21)+(MAX(0,AN34*AQ35))) -> 0 | AN35: =AM35-AL35 -> 0 | AO35: =IF(AK35>0,AL35/AK35,0) -> 0 | AP35: =IF(AN35<0,-AN35/AK35,0) -> 0 | AQ35: =IF(AC35>Inputs!$D$9,0,IF(AK35=0,0,AK35/AD35)) -> 0 | AR35: =IF(AC35=Inputs!$D$9,(AF35-$AF$21)*AK35,(AF35-$AF$21)*AH35) -> 0 | AS35: =IF(AC35=Inputs!$D$9,Bonds!AE35,AH35*AF35) -> 0 | AT35: =IF(AC35=Inputs!$D$9,AK35*(SUM($AO$23:AO34)),AH35*(SUM($AO$23:AO34))) -> 0 | AU35: =IF(AC35=Inputs!$D$9,AK35*Bonds!$AF$21,$AF$21*AH35) -> 0 | AV35: =IF(AC35=Inputs!$D$9,AK35*(SUM($AP$23:AP34)),AH35*(SUM($AP$23:AP34))) -> 0 | AW35: 0 | AX35: 0 | AY35: =IF(AP35>0,SUM($AP$23:AP35)*AK35,0) -> 0 | BA35: =IF(AY35>0,MAX(1,AC35-(MAX($AZ34:AZ$51))),0) -> 0 | BB35: 0 | BC35: 0 | BD35: 0 | BE35: 0 | BG35: 0 | BH35: =IF(AO34=0,0,SUM($AO$23:AO34)*AK34) -> 0 | BI35: 0 | BJ35: =AD35*(SUM($AP$23:AP34)) -> 0 | BK35: 0 | BL35: 0 | BO35: 0
D36: IRT | E36: =(E11+E17)/(E10+E14+E16) ->  | F36: =(F11+F17)/(F10+F14+F16) ->  | AC36: =AC35+1 -> 14 | AD36: =IF(AC36>Inputs!$D$9,0,AK35) -> 0 | AE36: =R21 -> 0 | AF36: =IF(AD36>0,AE36/AD36,0) -> 0 | AG36: =R23+R24 -> 0 | AH36: =IF(AND(AF36>AG36,AG36>0),1,MIN(AD36,IF(AD36>0,ROUNDDOWN(AG36/AF36,0),0))) -> 0 | AI36: =AF36*AH36 -> 0 | AJ36: =IF(AG36>=AI36,0,1) -> 0 | AK36: =AD36-AH36 -> 0 | AL36: =IF(AK36>0,MAX(0,AG36-AI36),0) -> 0 | AM36: =IF(AC36>Inputs!$D$9,0,((AD36-AH36)*$AD$21)+(MAX(0,AN35*AQ36))) -> 0 | AN36: =AM36-AL36 -> 0 | AO36: =IF(AK36>0,AL36/AK36,0) -> 0 | AP36: =IF(AN36<0,-AN36/AK36,0) -> 0 | AQ36: =IF(AC36>Inputs!$D$9,0,IF(AK36=0,0,AK36/AD36)) -> 0 | AR36: =IF(AC36=Inputs!$D$9,(AF36-$AF$21)*AK36,(AF36-$AF$21)*AH36) -> 0 | AS36: =IF(AC36=Inputs!$D$9,Bonds!AE36,AH36*AF36) -> 0 | AT36: =IF(AC36=Inputs!$D$9,AK36*(SUM($AO$23:AO35)),AH36*(SUM($AO$23:AO35))) -> 0 | AU36: =IF(AC36=Inputs!$D$9,AK36*Bonds!$AF$21,$AF$21*AH36) -> 0 | AV36: =IF(AC36=Inputs!$D$9,AK36*(SUM($AP$23:AP35)),AH36*(SUM($AP$23:AP35))) -> 0 | AW36: =(AS36+AT36)-(AU36+AV36) -> 0 | AX36: =AW36/AC36 -> 0 | AY36: =IF(AP36>0,SUM($AP$23:AP36)*AK36,0) -> 0 | AZ36: =IF(AN36<0,AC36,"") ->  | BA36: =IF(AY36>0,MAX(1,AC36-(MAX($AZ35:AZ$51))),0) -> 0 | BB36: =IF(AY36>0,AY36/BA36,0) -> 0 | BC36: =AW36+AY36 -> 0 | BD36: =AX36+BB36 -> 0 | BE36: =IF((AW36+AX36+AY36+BB36)>0,BC36/BD36,0) -> 0 | BG36: 0 | BH36: =IF(AO35=0,0,SUM($AO$23:AO35)*AK35) -> 0 | BI36: 0 | BJ36: =AD36*(SUM($AP$23:AP35)) -> 0 | BK36: 0 | BL36: 0 | BO36: 0
AC37: 15 | AD37: =IF(AC37>Inputs!$D$9,0,AK36) -> 0 | AE37: =S21 -> 0 | AF37: =IF(AD37>0,AE37/AD37,0) -> 0 | AG37: =S23+S24 -> 0 | AH37: =IF(AND(AF37>AG37,AG37>0),1,MIN(AD37,IF(AD37>0,ROUNDDOWN(AG37/AF37,0),0))) -> 0 | AI37: =AF37*AH37 -> 0 | AJ37: =IF(AG37>=AI37,0,1) -> 0 | AK37: =AD37-AH37 -> 0 | AL37: =IF(AK37>0,MAX(0,AG37-AI37),0) -> 0 | AM37: =IF(AC37>Inputs!$D$9,0,((AD37-AH37)*$AD$21)+(MAX(0,AN36*AQ37))) -> 0 | AN37: =AM37-AL37 -> 0 | AO37: =IF(AK37>0,AL37/AK37,0) -> 0 | AP37: =IF(AN37<0,-AN37/AK37,0) -> 0 | AQ37: =IF(AC37>Inputs!$D$9,0,IF(AK37=0,0,AK37/AD37)) -> 0 | AR37: =IF(AC37=Inputs!$D$9,(AF37-$AF$21)*AK37,(AF37-$AF$21)*AH37) -> 0 | AS37: =IF(AC37=Inputs!$D$9,Bonds!AE37,AH37*AF37) -> 0 | AT37: =IF(AC37=Inputs!$D$9,AK37*(SUM($AO$23:AO36)),AH37*(SUM($AO$23:AO36))) -> 0 | AU37: =IF(AC37=Inputs!$D$9,AK37*Bonds!$AF$21,$AF$21*AH37) -> 0 | AV37: =IF(AC37=Inputs!$D$9,AK37*(SUM($AP$23:AP36)),AH37*(SUM($AP$23:AP36))) -> 0 | AW37: =(AS37+AT37)-(AU37+AV37) -> 0 | AX37: =AW37/AC37 -> 0 | AY37: =IF(AP37>0,SUM($AP$23:AP37)*AK37,0) -> 0 | AZ37: =IF(AN37<0,AC37,"") ->  | BA37: =IF(AY37>0,MAX(1,AC37-(MAX($AZ36:AZ$51))),0) -> 0 | BB37: =IF(AY37>0,AY37/BA37,0) -> 0 | BC37: =AW37+AY37 -> 0 | BD37: =AX37+BB37 -> 0 | BE37: =IF((AW37+AX37+AY37+BB37)>0,BC37/BD37,0) -> 0 | BG37: 0 | BH37: =IF(AO36=0,0,SUM($AO$23:AO36)*AK36) -> 0 | BI37: 0 | BJ37: =AD37*(SUM($AP$23:AP36)) -> 0 | BK37: 0 | BL37: 0 | BO37: 0
C38: OFFSHORE | AC38: 16 | AD38: =IF(AC38>Inputs!$D$9,0,AK37) -> 0 | AE38: =T21 -> 0 | AF38: =IF(AD38>0,AE38/AD38,0) -> 0 | AG38: =T23+T24 -> 0 | AH38: =IF(AND(AF38>AG38,AG38>0),1,MIN(AD38,IF(AD38>0,ROUNDDOWN(AG38/AF38,0),0))) -> 0 | AI38: =AF38*AH38 -> 0 | AJ38: =IF(AG38>=AI38,0,1) -> 0 | AK38: =AD38-AH38 -> 0 | AL38: =IF(AK38>0,MAX(0,AG38-AI38),0) -> 0 | AM38: =IF(AC38>Inputs!$D$9,0,((AD38-AH38)*$AD$21)+(MAX(0,AN37*AQ38))) -> 0 | AN38: =AM38-AL38 -> 0 | AO38: =IF(AK38>0,AL38/AK38,0) -> 0 | AP38: =IF(AN38<0,-AN38/AK38,0) -> 0 | AQ38: =IF(AC38>Inputs!$D$9,0,IF(AK38=0,0,AK38/AD38)) -> 0 | AR38: =IF(AC38=Inputs!$D$9,(AF38-$AF$21)*AK38,(AF38-$AF$21)*AH38) -> 0 | AS38: =IF(AC38=Inputs!$D$9,Bonds!AE38,AH38*AF38) -> 0 | AT38: =IF(AC38=Inputs!$D$9,AK38*(SUM($AO$23:AO37)),AH38*(SUM($AO$23:AO37))) -> 0 | AU38: =IF(AC38=Inputs!$D$9,AK38*Bonds!$AF$21,$AF$21*AH38) -> 0 | AV38: =IF(AC38=Inputs!$D$9,AK38*(SUM($AP$23:AP37)),AH38*(SUM($AP$23:AP37))) -> 0 | AW38: =(AS38+AT38)-(AU38+AV38) -> 0 | AX38: =AW38/AC38 -> 0 | AY38: =IF(AP38>0,SUM($AP$23:AP38)*AK38,0) -> 0 | AZ38: =IF(AN38<0,AC38,"") ->  | BA38: =IF(AY38>0,MAX(1,AC38-(MAX($AZ37:AZ$51))),0) -> 0 | BB38: =IF(AY38>0,AY38/BA38,0) -> 0 | BC38: =AW38+AY38 -> 0 | BD38: =AX38+BB38 -> 0 | BE38: =IF((AW38+AX38+AY38+BB38)>0,BC38/BD38,0) -> 0 | BG38: 0 | BH38: =IF(AO37=0,0,SUM($AO$23:AO37)*AK37) -> 0 | BI38: 0 | BJ38: =AD38*(SUM($AP$23:AP37)) -> 0 | BK38: 0 | BL38: 0 | BO38: 0
AC39: 17 | AD39: =IF(AC39>Inputs!$D$9,0,AK38) -> 0 | AE39: =U21 -> 0 | AF39: =IF(AD39>0,AE39/AD39,0) -> 0 | AG39: =U23+U24 -> 0 | AH39: =IF(AND(AF39>AG39,AG39>0),1,MIN(AD39,IF(AD39>0,ROUNDDOWN(AG39/AF39,0),0))) -> 0 | AI39: =AF39*AH39 -> 0 | AJ39: =IF(AG39>=AI39,0,1) -> 0 | AK39: =AD39-AH39 -> 0 | AL39: =IF(AK39>0,MAX(0,AG39-AI39),0) -> 0 | AM39: =IF(AC39>Inputs!$D$9,0,((AD39-AH39)*$AD$21)+(MAX(0,AN38*AQ39))) -> 0 | AN39: =AM39-AL39 -> 0 | AO39: =IF(AK39>0,AL39/AK39,0) -> 0 | AP39: =IF(AN39<0,-AN39/AK39,0) -> 0 | AQ39: =IF(AC39>Inputs!$D$9,0,IF(AK39=0,0,AK39/AD39)) -> 0 | AR39: =IF(AC39=Inputs!$D$9,(AF39-$AF$21)*AK39,(AF39-$AF$21)*AH39) -> 0 | AS39: =IF(AC39=Inputs!$D$9,Bonds!AE39,AH39*AF39) -> 0 | AT39: =IF(AC39=Inputs!$D$9,AK39*(SUM($AO$23:AO38)),AH39*(SUM($AO$23:AO38))) -> 0 | AU39: =IF(AC39=Inputs!$D$9,AK39*Bonds!$AF$21,$AF$21*AH39) -> 0 | AV39: =IF(AC39=Inputs!$D$9,AK39*(SUM($AP$23:AP38)),AH39*(SUM($AP$23:AP38))) -> 0 | AW39: =(AS39+AT39)-(AU39+AV39) -> 0 | AX39: =AW39/AC39 -> 0 | AY39: =IF(AP39>0,SUM($AP$23:AP39)*AK39,0) -> 0 | AZ39: =IF(AN39<0,AC39,"") ->  | BA39: =IF(AY39>0,MAX(1,AC39-(MAX($AZ38:AZ$51))),0) -> 0 | BB39: =IF(AY39>0,AY39/BA39,0) -> 0 | BC39: =AW39+AY39 -> 0 | BD39: =AX39+BB39 -> 0 | BE39: =IF((AW39+AX39+AY39+BB39)>0,BC39/BD39,0) -> 0 | BG39: 0 | BH39: =IF(AO38=0,0,SUM($AO$23:AO38)*AK38) -> 0 | BI39: 0 | BJ39: =AD39*(SUM($AP$23:AP38)) -> 0 | BK39: 0 | BL39: 0 | BO39: 0
C40: Year | E40: Internal Tax | F40: 0 | H40: =E43*(1+(SUM(B43:B47))*(1-F40))^D2 -> 0 | I40: What is this for? | AC40: 18 | AD40: =IF(AC40>Inputs!$D$9,0,AK39) -> 0 | AE40: =V21 -> 0 | AF40: =IF(AD40>0,AE40/AD40,0) -> 0 | AG40: =V23+V24 -> 0 | AH40: =IF(AND(AF40>AG40,AG40>0),1,MIN(AD40,IF(AD40>0,ROUNDDOWN(AG40/AF40,0),0))) -> 0 | AI40: =AF40*AH40 -> 0 | AJ40: =IF(AG40>=AI40,0,1) -> 0 | AK40: =AD40-AH40 -> 0 | AL40: =IF(AK40>0,MAX(0,AG40-AI40),0) -> 0 | AM40: =IF(AC40>Inputs!$D$9,0,((AD40-AH40)*$AD$21)+(MAX(0,AN39*AQ40))) -> 0 | AN40: =AM40-AL40 -> 0 | AO40: =IF(AK40>0,AL40/AK40,0) -> 0 | AP40: =IF(AN40<0,-AN40/AK40,0) -> 0 | AQ40: =IF(AC40>Inputs!$D$9,0,IF(AK40=0,0,AK40/AD40)) -> 0 | AR40: =IF(AC40=Inputs!$D$9,(AF40-$AF$21)*AK40,(AF40-$AF$21)*AH40) -> 0 | AS40: =IF(AC40=Inputs!$D$9,Bonds!AE40,AH40*AF40) -> 0 | AT40: =IF(AC40=Inputs!$D$9,AK40*(SUM($AO$23:AO39)),AH40*(SUM($AO$23:AO39))) -> 0 | AU40: =IF(AC40=Inputs!$D$9,AK40*Bonds!$AF$21,$AF$21*AH40) -> 0 | AV40: =IF(AC40=Inputs!$D$9,AK40*(SUM($AP$23:AP39)),AH40*(SUM($AP$23:AP39))) -> 0 | AW40: =(AS40+AT40)-(AU40+AV40) -> 0 | AX40: =AW40/AC40 -> 0 | AY40: =IF(AP40>0,SUM($AP$23:AP40)*AK40,0) -> 0 | AZ40: =IF(AN40<0,AC40,"") ->  | BA40: =IF(AY40>0,MAX(1,AC40-(MAX($AZ39:AZ$51))),0) -> 0 | BB40: =IF(AY40>0,AY40/BA40,0) -> 0 | BC40: =AW40+AY40 -> 0 | BD40: =AX40+BB40 -> 0 | BE40: =IF((AW40+AX40+AY40+BB40)>0,BC40/BD40,0) -> 0 | BG40: 0 | BH40: =IF(AO39=0,0,SUM($AO$23:AO39)*AK39) -> 0 | BI40: 0 | BJ40: =AD40*(SUM($AP$23:AP39)) -> 0 | BK40: 0 | BL40: 0 | BO40: 0
C41: =Inputs!#REF! ->  | AC41: 19 | AD41: =IF(AC41>Inputs!$D$9,0,AK40) -> 0 | AE41: =W21 -> 0 | AF41: =IF(AD41>0,AE41/AD41,0) -> 0 | AG41: =W23+W24 -> 0 | AH41: =IF(AND(AF41>AG41,AG41>0),1,MIN(AD41,IF(AD41>0,ROUNDDOWN(AG41/AF41,0),0))) -> 0 | AI41: =AF41*AH41 -> 0 | AJ41: =IF(AG41>=AI41,0,1) -> 0 | AK41: =AD41-AH41 -> 0 | AL41: =IF(AK41>0,MAX(0,AG41-AI41),0) -> 0 | AM41: =IF(AC41>Inputs!$D$9,0,((AD41-AH41)*$AD$21)+(MAX(0,AN40*AQ41))) -> 0 | AN41: =AM41-AL41 -> 0 | AO41: =IF(AK41>0,AL41/AK41,0) -> 0 | AP41: =IF(AN41<0,-AN41/AK41,0) -> 0 | AQ41: =IF(AC41>Inputs!$D$9,0,IF(AK41=0,0,AK41/AD41)) -> 0 | AR41: =IF(AC41=Inputs!$D$9,(AF41-$AF$21)*AK41,(AF41-$AF$21)*AH41) -> 0 | AS41: =IF(AC41=Inputs!$D$9,Bonds!AE41,AH41*AF41) -> 0 | AT41: =IF(AC41=Inputs!$D$9,AK41*(SUM($AO$23:AO40)),AH41*(SUM($AO$23:AO40))) -> 0 | AU41: =IF(AC41=Inputs!$D$9,AK41*Bonds!$AF$21,$AF$21*AH41) -> 0 | AV41: =IF(AC41=Inputs!$D$9,AK41*(SUM($AP$23:AP40)),AH41*(SUM($AP$23:AP40))) -> 0 | AW41: =(AS41+AT41)-(AU41+AV41) -> 0 | AX41: =AW41/AC41 -> 0 | AY41: =IF(AP41>0,SUM($AP$23:AP41)*AK41,0) -> 0 | AZ41: =IF(AN41<0,AC41,"") ->  | BA41: =IF(AY41>0,MAX(1,AC41-(MAX($AZ40:AZ$51))),0) -> 0 | BB41: =IF(AY41>0,AY41/BA41,0) -> 0 | BC41: =AW41+AY41 -> 0 | BD41: =AX41+BB41 -> 0 | BE41: =IF((AW41+AX41+AY41+BB41)>0,BC41/BD41,0) -> 0 | BG41: 0 | BH41: =IF(AO40=0,0,SUM($AO$23:AO40)*AK40) -> 0 | BI41: 0 | BJ41: =AD41*(SUM($AP$23:AP40)) -> 0 | BK41: 0 | BL41: 0 | BO41: 0
B42: Yield | E42: =E7 -> 1 | F42: 2 | G42: 3 | H42: 4 | I42: 5 | J42: 6 | K42: 7 | L42: 8 | M42: 9 | N42: 10 | O42: 11 | P42: 12 | Q42: 13 | R42: 14 | S42: 15 | T42: 16 | U42: 17 | V42: 18 | W42: 19 | X42: 20 | AC42: 20 | AD42: =IF(AC42>Inputs!$D$9,0,AK41) -> 0 | AE42: =X21 -> 0 | AF42: =IF(AD42>0,AE42/AD42,0) -> 0 | AG42: =X23+X24 -> 0 | AH42: =IF(AND(AF42>AG42,AG42>0),1,MIN(AD42,IF(AD42>0,ROUNDDOWN(AG42/AF42,0),0))) -> 0 | AI42: =AF42*AH42 -> 0 | AJ42: =IF(AG42>=AI42,0,1) -> 0 | AK42: =AD42-AH42 -> 0 | AL42: =IF(AK42>0,MAX(0,AG42-AI42),0) -> 0 | AM42: =IF(AC42>Inputs!$D$9,0,((AD42-AH42)*$AD$21)+(MAX(0,AN41*AQ42))) -> 0 | AN42: =AM42-AL42 -> 0 | AO42: =IF(AK42>0,AL42/AK42,0) -> 0 | AP42: =IF(AN42<0,-AN42/AK42,0) -> 0 | AQ42: =IF(AC42>Inputs!$D$9,0,IF(AK42=0,0,AK42/AD42)) -> 0 | AR42: =IF(AC42=Inputs!$D$9,(AF42-$AF$21)*AK42,(AF42-$AF$21)*AH42) -> 0 | AS42: =IF(AC42=Inputs!$D$9,Bonds!AE42,AH42*AF42) -> 0 | AT42: =IF(AC42=Inputs!$D$9,AK42*(SUM($AO$23:AO41)),AH42*(SUM($AO$23:AO41))) -> 0 | AU42: =IF(AC42=Inputs!$D$9,AK42*Bonds!$AF$21,$AF$21*AH42) -> 0 | AV42: =IF(AC42=Inputs!$D$9,AK42*(SUM($AP$23:AP41)),AH42*(SUM($AP$23:AP41))) -> 0 | AW42: =(AS42+AT42)-(AU42+AV42) -> 0 | AX42: =AW42/AC42 -> 0 | AY42: =IF(AP42>0,SUM($AP$23:AP42)*AK42,0) -> 0 | AZ42: =IF(AN42<0,AC42,"") ->  | BA42: =IF(AY42>0,MAX(1,AC42-(MAX($AZ41:AZ$51))),0) -> 0 | BB42: =IF(AY42>0,AY42/BA42,0) -> 0 | BC42: =AW42+AY42 -> 0 | BD42: =AX42+BB42 -> 0 | BE42: =IF((AW42+AX42+AY42+BB42)>0,BC42/BD42,0) -> 0 | BG42: 0 | BH42: =IF(AO41=0,0,SUM($AO$23:AO41)*AK41) -> 0 | BI42: 0 | BJ42: =AD42*(SUM($AP$23:AP41)) -> 0 | BK42: 0 | BL42: 0 | BO42: 0
B43: =B10 -> 0 | C43: Savings income | E43: =IF(E6=TRUE,0,E8) -> 0 | F43: =IF(F6=TRUE,0,E59) -> 0 | G43: 0 | H43: 0 | I43: 0 | J43: 0 | K43: 0 | L43: 0 | M43: 0 | N43: 0 | O43: 0 | P43: 0 | Q43: 0 | R43: 0 | S43: 0 | T43: 0 | U43: 0 | V43: 0 | W43: 0 | X43: 0
B45: =B14 -> 0 | C45: Dividend Return | D45: Amt | E45: =E43*$B$10 -> 0 | F45: 0 | G45: 0 | H45: 0 | I45: 0 | J45: 0 | K45: 0 | L45: 0 | M45: 0 | N45: 0 | O45: 0 | P45: 0 | Q45: 0 | R45: 0 | S45: 0 | T45: 0 | U45: 0 | V45: 0 | W45: 0 | X45: 0 | AC45: OFFSHORE
B47: =B16 -> 0 | C47: Capital Gain | D47: Amt | E47: =E43*$B$14 -> 0 | F47: 0 | G47: 0 | H47: 0 | I47: 0 | J47: 0 | K47: 0 | L47: 0 | M47: 0 | N47: 0 | O47: =O43*$B$14 -> 0 | P47: 0 | Q47: =Q43*$B$14 -> 0 | R47: 0 | S47: =S43*$B$14 -> 0 | T47: =T43*$B$14 -> 0 | U47: =U43*$B$14 -> 0 | V47: =V43*$B$14 -> 0 | W47: =W43*$B$14 -> 0 | X47: =X43*$B$14 -> 0
D49: Amt | E49: =E43*$B$16 -> 0 | F49: 0 | G49: 0 | H49: 0 | I49: 0 | J49: 0 | K49: 0 | L49: 0 | M49: 0 | N49: 0 | O49: =O43*$B$16 -> 0 | P49: 0 | Q49: 0 | R49: 0 | S49: 0 | T49: 0 | U49: 0 | V49: 0 | W49: 0 | X49: 0 | AC49: 5% Per seg | AD49: =IF(E43>0,(E43/AD51)*5%,0) -> 0 | AE49: Seg Start Value | AF49: =E43/100 -> 0 | AS49: Gain Calcs on Full segments | AY49: Gain Calcs on Partials | BC49: Total Gains to be used
AC50: Year | AD50: Starting Segments | AE50: Closing Value Before ISA | AF50: Value Per Segment | AG50: SV for ISA | AH50: Segs to get Close | AI50: Value from Seg Surr | AJ50: Seg above SV logic | AK50: Segs Remaining | AL50: Remaining Needed | AM50: 5% for Year | AN50: 5% Remaining | AO50: WD per seg | AP50: Xs gains per seg | AQ50: Year End Segmenf Factor | AR50: Gain Per seg surr | AS50: Surrender Val | AT50: Total Withdrawals | AU50: Total Premiums | AV50: Prev XS Gains | AW50: Gain | AX50: Slice | AY50: XS Gain | AZ50: Years of Excess | BA50: Years for Slice | BB50: Slice | BC50: Total Gains | BD50: Total Slices | BE50: Derived N year 1 set to one | BG50: Surrender Value | BH50: Previous Withdrawals | BI50: Total Premiums | BK50: Gain | BL50: Slice | BO50: Gain on remaining segs
D51: =D20 -> End Year Value (excl wrapper charge) | E51: =SUM(E43:E49) -> 0 | F51: =SUM(F43:F49) -> 0 | G51: 0 | H51: 0 | I51: 0 | J51: 0 | K51: 0 | L51: 0 | M51: 0 | N51: 0 | O51: =SUM(O43:O49) -> 0 | P51: 0 | Q51: =SUM(Q43:Q49) -> 0 | R51: 0 | S51: =SUM(S43:S49) -> 0 | T51: =SUM(T43:T49) -> 0 | U51: =SUM(U43:U49) -> 0 | V51: =SUM(V43:V49) -> 0 | W51: =SUM(W43:W49) -> 0 | X51: =SUM(X43:X49) -> 0 | AC51: 1 | AD51: =IF(E43>0,IF(AC51>Inputs!$D$9,0,100),0) -> 0 | AE51: =E52 -> 0 | AF51: =IF(AD51>0,AE51/AD51,0) -> 0 | AG51: =E54+E55 -> 0 | AH51: =IF(AND(AF51>AG51,AG51>0),1,MIN(AD51,IF(AD51>0,ROUNDDOWN(AG51/AF51,0),0))) -> 0 | AI51: =AF51*AH51 -> 0 | AJ51: =IF(AG51>=AI51,0,1) -> 0 | AK51: =AD51-AH51 -> 0 | AL51: =IF(AK51>0,MAX(0,AG51-AI51),0) -> 0 | AM51: =(AD51-AH51)*$AD$49 -> 0 | AN51: =AM51-AL51 -> 0 | AO51: =IF(AK51>0,AL51/AK51,0) -> 0 | AP51: =IF(AN51<0,-AN51/AK51,0) -> 0 | AQ51: =IF(AC51>Inputs!$D$9,0,IF(AK51=0,0,AK51/AD51)) -> 0 | AR51: =IF(AC51=Inputs!$D$9,(AF51-$AF$49)*AK51,(AF51-$AF$49)*AH51) -> 0 | AS51: =IF(AC51=Inputs!$D$9,Bonds!AE51,AH51*AF51) -> 0 | AT51: 0 | AU51: =IF(AC51=Inputs!$D$9,AK51*Bonds!$AF$49,$AF$49*AH51) -> 0 | AV51: 0 | AW51: =(AS51+AT51)-(AU51+AV51) -> 0 | AX51: =AW51 -> 0 | AY51: =IF(AP51>0,SUM($AP$51:AP51)*AK51,0) -> 0 | AZ51: =IF(AN51<0,AC51,"") ->  | BA51: 1 | BB51: =IF(AY51>0,AY51/BA51,0) -> 0 | BC51: =AW51+AY51 -> 0 | BD51: =AX51+BB51 -> 0 | BE51: =IF((AW51+AX51+AY51+BB51)>0,BC51/BD51,0) -> 0 | BG51: =AE51 -> 0 | BH51: 0 | BI51: =AD51*$AF$49 -> 0 | BJ51: 0 | BK51: =(BG51+BH51)-(BI51+BJ51) -> 0 | BL51: =BK51/AC51 -> 0 | BO51: =(AF51-$AF$21)*AD51 -> 0
D52: =D21 -> End Year Value (inc wrapper charge) | E52: =E51*(1-Inputs!$Q$10) -> 0 | F52: =F51*(1-Inputs!$Q$10) -> 0 | G52: =G51*(1-Inputs!$Q$10) -> 0 | H52: =H51*(1-Inputs!$Q$10) -> 0 | I52: =I51*(1-Inputs!$Q$10) -> 0 | J52: =J51*(1-Inputs!$Q$10) -> 0 | K52: =K51*(1-Inputs!$Q$10) -> 0 | L52: =L51*(1-Inputs!$Q$10) -> 0 | M52: =M51*(1-Inputs!$Q$10) -> 0 | N52: =N51*(1-Inputs!$Q$10) -> 0 | O52: =O51*(1-Inputs!$Q$10) -> 0 | P52: =P51*(1-Inputs!$Q$10) -> 0 | Q52: =Q51*(1-Inputs!$Q$10) -> 0 | R52: =R51*(1-Inputs!$Q$10) -> 0 | S52: =S51*(1-Inputs!$Q$10) -> 0 | T52: =T51*(1-Inputs!$Q$10) -> 0 | U52: =U51*(1-Inputs!$Q$10) -> 0 | V52: =V51*(1-Inputs!$Q$10) -> 0 | W52: =W51*(1-Inputs!$Q$10) -> 0 | X52: =X51*(1-Inputs!$Q$10) -> 0 | AC52: =AC51+1 -> 2 | AD52: =IF(AC52>Inputs!$D$9,0,AK51) -> 0 | AE52: =F52 -> 0 | AF52: =IF(AD52>0,AE52/AD52,0) -> 0 | AG52: =F54+F55 -> 0 | AH52: =IF(AND(AF52>AG52,AG52>0),1,MIN(AD52,IF(AD52>0,ROUNDDOWN(AG52/AF52,0),0))) -> 0 | AI52: =AF52*AH52 -> 0 | AJ52: =IF(AG52>=AI52,0,1) -> 0 | AK52: 0 | AL52: =IF(AK52>0,MAX(0,AG52-AI52),0) -> 0 | AM52: =IF(AC52>Inputs!$D$9,0,((AD52-AH52)*$AD$49)+(MAX(0,AN51*AQ52))) -> 0 | AN52: =AM52-AL52 -> 0 | AO52: =IF(AK52>0,AL52/AK52,0) -> 0 | AP52: =IF(AN52<0,-AN52/AK52,0) -> 0 | AQ52: =IF(AC52>Inputs!$D$9,0,IF(AK52=0,0,AK52/AD52)) -> 0 | AR52: =IF(AC52=Inputs!$D$9,(AF52-$AF$49)*AK52,(AF52-$AF$49)*AH52) -> 0 | AS52: =IF(AC52=Inputs!$D$9,Bonds!AE52,AH52*AF52) -> 0 | AT52: =IF(AC52=Inputs!$D$9,AK52*(SUM($AO$51:AO52)),AH52*(SUM($AO$51:AO51))) -> 0 | AU52: =IF(AC52=Inputs!$D$9,AK52*Bonds!$AF$49,$AF$49*AH52) -> 0 | AV52: =IF(AC52=Inputs!$D$9,AK52*(SUM($AP$51:AP51)),AH52*(SUM($AP$51:AP51))) -> 0 | AW52: =(AS52+AT52)-(AU52+AV52) -> 0 | AX52: =AW52/AC52 -> 0 | AY52: =IF(AP52>0,SUM($AP$51:AP52)*AK52,0) -> 0 | AZ52: =IF(AN52<0,AC52,"") ->  | BA52: =IF(AY52>0,MAX(1,AC52-(MAX($AZ$51:AZ51))),0) -> 0 | BB52: =IF(AY52>0,AY52/BA52,0) -> 0 | BC52: =AW52+AY52 -> 0 | BD52: =AX52+BB52 -> 0 | BE52: =IF((AW52+AX52+AY52+BB52)>0,BC52/BD52,0) -> 0 | BG52: =AE52 -> 0 | BH52: =IF(AO51=0,0,SUM($AO$51:AO51)*AK51) -> 0 | BI52: =AD52*$AF$49 -> 0 | BJ52: =AD52*(SUM($AP$51:AP51)) -> 0 | BK52: =(BG52+BH52)-(BI52+BJ52) -> 0 | BL52: =BK52/AC52 -> 0 | BO52: 0
D53: Tax Deferred Allowance | E53: =E43*5% -> 0 | F53: =E53 -> 0 | G53: =F53 -> 0 | H53: 0 | I53: 0 | J53: 0 | K53: 0 | L53: 0 | M53: 0 | N53: 0 | O53: 0 | P53: 0 | Q53: 0 | R53: 0 | S53: 0 | T53: =S53 -> 0 | U53: =T53 -> 0 | V53: =U53 -> 0 | W53: =V53 -> 0 | X53: =W53 -> 0 | AC53: =AC52+1 -> 3 | AD53: =IF(AC53>Inputs!$D$9,0,AK52) -> 0 | AE53: =G52 -> 0 | AF53: 0 | AG53: =G54+G55 -> 0 | AH53: =IF(AND(AF53>AG53,AG53>0),1,MIN(AD53,IF(AD53>0,ROUNDDOWN(AG53/AF53,0),0))) -> 0 | AI53: =AF53*AH53 -> 0 | AJ53: 0 | AK53: 0 | AL53: 0 | AM53: =IF(AC53>Inputs!$D$9,0,((AD53-AH53)*$AD$49)+(MAX(0,AN52*AQ53))) -> 0 | AN53: =AM53-AL53 -> 0 | AO53: 0 | AP53: 0 | AQ53: =IF(AC53>Inputs!$D$9,0,IF(AK53=0,0,AK53/AD53)) -> 0 | AR53: =IF(AC53=Inputs!$D$9,(AF53-$AF$49)*AK53,(AF53-$AF$49)*AH53) -> 0 | AS53: =IF(AC53=Inputs!$D$9,Bonds!AE53,AH53*AF53) -> 0 | AT53: =IF(AC53=Inputs!$D$9,AK53*(SUM($AO$51:AO53)),AH53*(SUM($AO$51:AO52))) -> 0 | AU53: =IF(AC53=Inputs!$D$9,AK53*Bonds!$AF$49,$AF$49*AH53) -> 0 | AV53: =IF(AC53=Inputs!$D$9,AK53*(SUM($AP$51:AP52)),AH53*(SUM($AP$51:AP52))) -> 0 | AW53: =(AS53+AT53)-(AU53+AV53) -> 0 | AX53: =AW53/AC53 -> 0 | AY53: =IF(AP53>0,SUM($AP$51:AP53)*AK53,0) -> 0 | AZ53: =IF(AN53<0,AC53,"") ->  | BA53: =IF(AY53>0,MAX(1,AC53-(MAX($AZ$51:AZ52))),0) -> 0 | BB53: =IF(AY53>0,AY53/BA53,0) -> 0 | BC53: 0 | BD53: =AX53+BB53 -> 0 | BE53: =IF((AW53+AX53+AY53+BB53)>0,BC53/BD53,0) -> 0 | BG53: 0 | BH53: =IF(AO52=0,0,SUM($AO$51:AO52)*AK52) -> 0 | BI53: 0 | BJ53: =AD53*(SUM($AP$51:AP52)) -> 0 | BK53: 0 | BL53: 0 | BO53: 0
D54: ISA Allowance | E54: =IF(Inputs!$D$9<=Bonds!E42,0,IF(Inputs!$AU$21="Yes",IF(E52<'Parameters_Inc Calcs'!$C$13,E52,'Parameters_Inc Calcs'!$C$13),0)) -> 0 | F54: =IF(Inputs!$D$9<=Bonds!F42,0,IF(Inputs!$AU$21="Yes",IF(F52<'Parameters_Inc Calcs'!$C$13,F52,'Parameters_Inc Calcs'!$C$13),0)) -> 0 | G54: =IF(Inputs!$D$9<=Bonds!G42,0,IF(Inputs!$AU$21="Yes",IF(G52<'Parameters_Inc Calcs'!$C$13,G52,'Parameters_Inc Calcs'!$C$13),0)) -> 0 | H54: =IF(Inputs!$D$9<=Bonds!H42,0,IF(Inputs!$AU$21="Yes",IF(H52<'Parameters_Inc Calcs'!$C$13,H52,'Parameters_Inc Calcs'!$C$13),0)) -> 0 | I54: =IF(Inputs!$D$9<=Bonds!I42,0,IF(Inputs!$AU$21="Yes",IF(I52<'Parameters_Inc Calcs'!$C$13,I52,'Parameters_Inc Calcs'!$C$13),0)) -> 0 | J54: =IF(Inputs!$D$9<=Bonds!J42,0,IF(Inputs!$AU$21="Yes",IF(J52<'Parameters_Inc Calcs'!$C$13,J52,'Parameters_Inc Calcs'!$C$13),0)) -> 0 | K54: =IF(Inputs!$D$9<=Bonds!K42,0,IF(Inputs!$AU$21="Yes",IF(K52<'Parameters_Inc Calcs'!$C$13,K52,'Parameters_Inc Calcs'!$C$13),0)) -> 0 | L54: =IF(Inputs!$D$9<=Bonds!L42,0,IF(Inputs!$AU$21="Yes",IF(L52<'Parameters_Inc Calcs'!$C$13,L52,'Parameters_Inc Calcs'!$C$13),0)) -> 0 | M54: =IF(Inputs!$D$9<=Bonds!M42,0,IF(Inputs!$AU$21="Yes",IF(M52<'Parameters_Inc Calcs'!$C$13,M52,'Parameters_Inc Calcs'!$C$13),0)) -> 0 | N54: =IF(Inputs!$D$9<=Bonds!N42,0,IF(Inputs!$AU$21="Yes",IF(N52<'Parameters_Inc Calcs'!$C$13,N52,'Parameters_Inc Calcs'!$C$13),0)) -> 0 | O54: =IF(Inputs!$D$9<=Bonds!O42,0,IF(Inputs!$AU$21="Yes",IF(O52<'Parameters_Inc Calcs'!$C$13,O52,'Parameters_Inc Calcs'!$C$13),0)) -> 0 | P54: =IF(Inputs!$D$9<=Bonds!P42,0,IF(Inputs!$AU$21="Yes",IF(P52<'Parameters_Inc Calcs'!$C$13,P52,'Parameters_Inc Calcs'!$C$13),0)) -> 0 | Q54: =IF(Inputs!$D$9<=Bonds!Q42,0,IF(Inputs!$AU$21="Yes",IF(Q52<'Parameters_Inc Calcs'!$C$13,Q52,'Parameters_Inc Calcs'!$C$13),0)) -> 0 | R54: =IF(Inputs!$D$9<=Bonds!R42,0,IF(Inputs!$AU$21="Yes",IF(R52<'Parameters_Inc Calcs'!$C$13,R52,'Parameters_Inc Calcs'!$C$13),0)) -> 0 | S54: =IF(Inputs!$D$9<=Bonds!S42,0,IF(Inputs!$AU$21="Yes",IF(S52<'Parameters_Inc Calcs'!$C$13,S52,'Parameters_Inc Calcs'!$C$13),0)) -> 0 | T54: =IF(Inputs!$D$9<=Bonds!T42,0,IF(Inputs!$AU$21="Yes",IF(T52<'Parameters_Inc Calcs'!$C$13,T52,'Parameters_Inc Calcs'!$C$13),0)) -> 0 | U54: =IF(Inputs!$D$9<=Bonds!U42,0,IF(Inputs!$AU$21="Yes",IF(U52<'Parameters_Inc Calcs'!$C$13,U52,'Parameters_Inc Calcs'!$C$13),0)) -> 0 | V54: =IF(Inputs!$D$9<=Bonds!V42,0,IF(Inputs!$AU$21="Yes",IF(V52<'Parameters_Inc Calcs'!$C$13,V52,'Parameters_Inc Calcs'!$C$13),0)) -> 0 | W54: =IF(Inputs!$D$9<=Bonds!W42,0,IF(Inputs!$AU$21="Yes",IF(W52<'Parameters_Inc Calcs'!$C$13,W52,'Parameters_Inc Calcs'!$C$13),0)) -> 0 | X54: =IF(Inputs!$D$9<=Bonds!X42,0,IF(Inputs!$AU$21="Yes",IF(X52<'Parameters_Inc Calcs'!$C$13,X52,'Parameters_Inc Calcs'!$C$13),0)) -> 0 | Y54: Total w/d | AC54: 4 | AD54: =IF(AC54>Inputs!$D$9,0,AK53) -> 0 | AE54: =H52 -> 0 | AF54: 0 | AG54: =H54+H55 -> 0 | AH54: =IF(AND(AF54>AG54,AG54>0),1,MIN(AD54,IF(AD54>0,ROUNDDOWN(AG54/AF54,0),0))) -> 0 | AI54: 0 | AJ54: 0 | AK54: 0 | AL54: 0 | AM54: =IF(AC54>Inputs!$D$9,0,((AD54-AH54)*$AD$49)+(MAX(0,AN53*AQ54))) -> 0 | AN54: =AM54-AL54 -> 0 | AO54: =IF(AK54>0,AL54/AK54,0) -> 0 | AP54: =IF(AN54<0,-AN54/AK54,0) -> 0 | AQ54: =IF(AC54>Inputs!$D$9,0,IF(AK54=0,0,AK54/AD54)) -> 0 | AR54: =IF(AC54=Inputs!$D$9,(AF54-$AF$49)*AK54,(AF54-$AF$49)*AH54) -> 0 | AS54: =IF(AC54=Inputs!$D$9,Bonds!AE54,AH54*AF54) -> 0 | AT54: =IF(AC54=Inputs!$D$9,AK54*(SUM($AO$51:AO54)),AH54*(SUM($AO$51:AO53))) -> 0 | AU54: =IF(AC54=Inputs!$D$9,AK54*Bonds!$AF$49,$AF$49*AH54) -> 0 | AV54: =IF(AC54=Inputs!$D$9,AK54*(SUM($AP$51:AP53)),AH54*(SUM($AP$51:AP53))) -> 0 | AW54: =(AS54+AT54)-(AU54+AV54) -> 0 | AX54: 0 | AY54: =IF(AP54>0,SUM($AP$51:AP54)*AK54,0) -> 0 | BA54: =IF(AY54>0,MAX(1,AC54-(MAX($AZ$51:AZ53))),0) -> 0 | BB54: =IF(AY54>0,AY54/BA54,0) -> 0 | BC54: 0 | BD54: 0 | BE54: =IF((AW54+AX54+AY54+BB54)>0,BC54/BD54,0) -> 0 | BG54: 0 | BH54: =IF(AO53=0,0,SUM($AO$51:AO53)*AK53) -> 0 | BI54: 0 | BJ54: =AD54*(SUM($AP$51:AP53)) -> 0 | BK54: 0 | BL54: 0 | BO54: 0
D55: Specified wd | E55: =IF(E42>=Inputs!$D$9,0,IF(Inputs!$D$11="",0,MIN(Inputs!$D$11,Bonds!E52-Bonds!E54))) -> 0 | F55: =IF(F42>=Inputs!$D$9,0,IF(Inputs!$D$11="",0,MIN(Inputs!$D$11,Bonds!F52-Bonds!F54))) -> 0 | G55: =IF(G42>=Inputs!$D$9,0,IF(Inputs!$D$11="",0,MIN(Inputs!$D$11,Bonds!G52-Bonds!G54))) -> 0 | H55: =IF(H42>=Inputs!$D$9,0,IF(Inputs!$D$11="",0,MIN(Inputs!$D$11,Bonds!H52-Bonds!H54))) -> 0 | I55: =IF(I42>=Inputs!$D$9,0,IF(Inputs!$D$11="",0,MIN(Inputs!$D$11,Bonds!I52-Bonds!I54))) -> 0 | J55: =IF(J42>=Inputs!$D$9,0,IF(Inputs!$D$11="",0,MIN(Inputs!$D$11,Bonds!J52-Bonds!J54))) -> 0 | K55: =IF(K42>=Inputs!$D$9,0,IF(Inputs!$D$11="",0,MIN(Inputs!$D$11,Bonds!K52-Bonds!K54))) -> 0 | L55: =IF(L42>=Inputs!$D$9,0,IF(Inputs!$D$11="",0,MIN(Inputs!$D$11,Bonds!L52-Bonds!L54))) -> 0 | M55: =IF(M42>=Inputs!$D$9,0,IF(Inputs!$D$11="",0,MIN(Inputs!$D$11,Bonds!M52-Bonds!M54))) -> 0 | N55: =IF(N42>=Inputs!$D$9,0,IF(Inputs!$D$11="",0,MIN(Inputs!$D$11,Bonds!N52-Bonds!N54))) -> 0 | O55: =IF(O42>=Inputs!$D$9,0,IF(Inputs!$D$11="",0,MIN(Inputs!$D$11,Bonds!O52-Bonds!O54))) -> 0 | P55: =IF(P42>=Inputs!$D$9,0,IF(Inputs!$D$11="",0,MIN(Inputs!$D$11,Bonds!P52-Bonds!P54))) -> 0 | Q55: =IF(Q42>=Inputs!$D$9,0,IF(Inputs!$D$11="",0,MIN(Inputs!$D$11,Bonds!Q52-Bonds!Q54))) -> 0 | R55: =IF(R42>=Inputs!$D$9,0,IF(Inputs!$D$11="",0,MIN(Inputs!$D$11,Bonds!R52-Bonds!R54))) -> 0 | S55: =IF(S42>=Inputs!$D$9,0,IF(Inputs!$D$11="",0,MIN(Inputs!$D$11,Bonds!S52-Bonds!S54))) -> 0 | T55: =IF(T42>=Inputs!$D$9,0,IF(Inputs!$D$11="",0,MIN(Inputs!$D$11,Bonds!T52-Bonds!T54))) -> 0 | U55: =IF(U42>=Inputs!$D$9,0,IF(Inputs!$D$11="",0,MIN(Inputs!$D$11,Bonds!U52-Bonds!U54))) -> 0 | V55: =IF(V42>=Inputs!$D$9,0,IF(Inputs!$D$11="",0,MIN(Inputs!$D$11,Bonds!V52-Bonds!V54))) -> 0 | W55: =IF(W42>=Inputs!$D$9,0,IF(Inputs!$D$11="",0,MIN(Inputs!$D$11,Bonds!W52-Bonds!W54))) -> 0 | X55: =IF(X42>=Inputs!$D$9,0,IF(Inputs!$D$11="",0,MIN(Inputs!$D$11,Bonds!X52-Bonds!X54))) -> 0 | Y55: =SUM(E55:X55) -> 0 | AC55: 5 | AD55: =IF(AC55>Inputs!$D$9,0,AK54) -> 0 | AE55: =I52 -> 0 | AF55: 0 | AG55: =I54+I55 -> 0 | AH55: =IF(AND(AF55>AG55,AG55>0),1,MIN(AD55,IF(AD55>0,ROUNDDOWN(AG55/AF55,0),0))) -> 0 | AI55: 0 | AJ55: 0 | AK55: 0 | AL55: 0 | AM55: =IF(AC55>Inputs!$D$9,0,((AD55-AH55)*$AD$49)+(MAX(0,AN54*AQ55))) -> 0 | AN55: =AM55-AL55 -> 0 | AO55: 0 | AP55: 0 | AQ55: =IF(AC55>Inputs!$D$9,0,IF(AK55=0,0,AK55/AD55)) -> 0 | AR55: =IF(AC55=Inputs!$D$9,(AF55-$AF$49)*AK55,(AF55-$AF$49)*AH55) -> 0 | AS55: =IF(AC55=Inputs!$D$9,Bonds!AE55,AH55*AF55) -> 0 | AT55: =IF(AC55=Inputs!$D$9,AK55*(SUM($AO$51:AO55)),AH55*(SUM($AO$51:AO54))) -> 0 | AU55: =IF(AC55=Inputs!$D$9,AK55*Bonds!$AF$49,$AF$49*AH55) -> 0 | AV55: =IF(AC55=Inputs!$D$9,AK55*(SUM($AP$51:AP54)),AH55*(SUM($AP$51:AP54))) -> 0 | AW55: 0 | AX55: 0 | AY55: =IF(AP55>0,SUM($AP$51:AP55)*AK55,0) -> 0 | BA55: =IF(AY55>0,MAX(1,AC55-(MAX($AZ$51:AZ54))),0) -> 0 | BB55: =IF(AY55>0,AY55/BA55,0) -> 0 | BC55: 0 | BD55: 0 | BE55: =IF((AW55+AX55+AY55+BB55)>0,BC55/BD55,0) -> 0 | BG55: 0 | BH55: =IF(AO54=0,0,SUM($AO$51:AO54)*AK54) -> 0 | BI55: 0 | BJ55: =AD55*(SUM($AP$51:AP54)) -> 0 | BK55: 0 | BL55: 0 | BO55: 0
D56: IN year Gain | E56: =IF(AND(E53<(E54+E55),E59>0),(E54+E55)-E53,0) -> 0 | F56: =IF(AND(F53<(F54+F55),F59>0),(F54+F55)-F53,0) -> 0 | G56: 0 | H56: 0 | I56: 0 | J56: 0 | K56: 0 | L56: 0 | M56: 0 | N56: 0 | O56: =IF(AND(O53<(O54+O55),O59>0),(O54+O55)-O53,0) -> 0 | P56: 0 | Q56: =IF(AND(Q53<(Q54+Q55),Q59>0),(Q54+Q55)-Q53,0) -> 0 | R56: 0 | S56: =IF(AND(S53<(S54+S55),S59>0),(S54+S55)-S53,0) -> 0 | T56: =IF(AND(T53<(T54+T55),T59>0),(T54+T55)-T53,0) -> 0 | U56: =IF(AND(U53<(U54+U55),U59>0),(U54+U55)-U53,0) -> 0 | V56: =IF(AND(V53<(V54+V55),V59>0),(V54+V55)-V53,0) -> 0 | W56: =IF(AND(W53<(W54+W55),W59>0),(W54+W55)-W53,0) -> 0 | X56: =IF(AND(X53<(X54+X55),X59>0),(X54+X55)-X53,0) -> 0 | AC56: 6 | AD56: =IF(AC56>Inputs!$D$9,0,AK55) -> 0 | AE56: =J52 -> 0 | AF56: 0 | AG56: =J54+J55 -> 0 | AH56: 0 | AI56: 0 | AJ56: 0 | AK56: 0 | AL56: 0 | AM56: =IF(AC56>Inputs!$D$9,0,((AD56-AH56)*$AD$49)+(MAX(0,AN55*AQ56))) -> 0 | AN56: 0 | AO56: 0 | AP56: 0 | AQ56: =IF(AC56>Inputs!$D$9,0,IF(AK56=0,0,AK56/AD56)) -> 0 | AR56: =IF(AC56=Inputs!$D$9,(AF56-$AF$49)*AK56,(AF56-$AF$49)*AH56) -> 0 | AS56: =IF(AC56=Inputs!$D$9,Bonds!AE56,AH56*AF56) -> 0 | AT56: =IF(AC56=Inputs!$D$9,AK56*(SUM($AO$51:AO56)),AH56*(SUM($AO$51:AO55))) -> 0 | AU56: =IF(AC56=Inputs!$D$9,AK56*Bonds!$AF$49,$AF$49*AH56) -> 0 | AV56: =IF(AC56=Inputs!$D$9,AK56*(SUM($AP$51:AP55)),AH56*(SUM($AP$51:AP55))) -> 0 | AW56: 0 | AX56: 0 | AY56: =IF(AP56>0,SUM($AP$51:AP56)*AK56,0) -> 0 | BA56: =IF(AY56>0,MAX(1,AC56-(MAX($AZ$51:AZ55))),0) -> 0 | BB56: 0 | BC56: =AW56+AY56 -> 0 | BD56: 0 | BE56: 0 | BG56: 0 | BH56: =IF(AO55=0,0,SUM($AO$51:AO55)*AK55) -> 0 | BI56: 0 | BJ56: =AD56*(SUM($AP$51:AP55)) -> 0 | BK56: 0 | BL56: 0 | BO56: 0
D57: Gain on full surrender if bond depletes | E57: =IF(AND(E59=0,D59>0,E6=FALSE),((E52+(SUM(D$54:$E55)))-($E$43+(SUM(D$56:$E56)))),0) -> 0 | F57: =IF(AND(F59=0,E59>0,F6=FALSE),((F52+(SUM(E$54:$E55)))-($E$43+(SUM(E$56:$E56)))),0) -> 0 | G57: =IF(AND(G59=0,F59>0,G6=FALSE),((G52+(SUM($E$54:F55)))-($E$43+(SUM($E$56:F56)))),0) -> 0 | H57: =IF(AND(H59=0,G59>0,H6=FALSE),((H52+(SUM($E$54:G55)))-($E$43+(SUM($E$56:G56)))),0) -> 0 | I57: =IF(AND(I59=0,H59>0,I6=FALSE),((I52+(SUM($E$54:H55)))-($E$43+(SUM($E$56:H56)))),0) -> 0 | J57: =IF(AND(J59=0,I59>0,J6=FALSE),((J52+(SUM($E$54:I55)))-($E$43+(SUM($E$56:I56)))),0) -> 0 | K57: =IF(AND(K59=0,J59>0,K6=FALSE),((K52+(SUM($E$54:J55)))-($E$43+(SUM($E$56:J56)))),0) -> 0 | L57: =IF(AND(L59=0,K59>0,L6=FALSE),((L52+(SUM($E$54:K55)))-($E$43+(SUM($E$56:K56)))),0) -> 0 | M57: =IF(AND(M59=0,L59>0,M6=FALSE),((M52+(SUM($E$54:L55)))-($E$43+(SUM($E$56:L56)))),0) -> 0 | N57: =IF(AND(N59=0,M59>0,N6=FALSE),((N52+(SUM($E$54:M55)))-($E$43+(SUM($E$56:M56)))),0) -> 0 | O57: =IF(AND(O59=0,N59>0,O6=FALSE),((O52+(SUM($E$54:N55)))-($E$43+(SUM($E$56:N56)))),0) -> 0 | P57: =IF(AND(P59=0,O59>0,P6=FALSE),((P52+(SUM($E$54:O55)))-($E$43+(SUM($E$56:O56)))),0) -> 0 | Q57: =IF(AND(Q59=0,P59>0,Q6=FALSE),((Q52+(SUM($E$54:P55)))-($E$43+(SUM($E$56:P56)))),0) -> 0 | R57: =IF(AND(R59=0,Q59>0,R6=FALSE),((R52+(SUM($E$54:Q55)))-($E$43+(SUM($E$56:Q56)))),0) -> 0 | S57: =IF(AND(S59=0,R59>0,S6=FALSE),((S52+(SUM($E$54:R55)))-($E$43+(SUM($E$56:R56)))),0) -> 0 | T57: =IF(AND(T59=0,S59>0,T6=FALSE),((T52+(SUM($E$54:S55)))-($E$43+(SUM($E$56:S56)))),0) -> 0 | U57: =IF(AND(U59=0,T59>0,U6=FALSE),((U52+(SUM($E$54:T55)))-($E$43+(SUM($E$56:T56)))),0) -> 0 | V57: =IF(AND(V59=0,U59>0,V6=FALSE),((V52+(SUM($E$54:U55)))-($E$43+(SUM($E$56:U56)))),0) -> 0 | W57: =IF(AND(W59=0,V59>0,W6=FALSE),((W52+(SUM($E$54:V55)))-($E$43+(SUM($E$56:V56)))),0) -> 0 | X57: =IF(AND(X59=0,W59>0,X6=FALSE),((X52+(SUM($E$54:W55)))-($E$43+(SUM($E$56:W56)))),0) -> 0 | AC57: 7 | AD57: =IF(AC57>Inputs!$D$9,0,AK56) -> 0 | AE57: =K52 -> 0 | AF57: =IF(AD57>0,AE57/AD57,0) -> 0 | AG57: =K54+K55 -> 0 | AH57: 0 | AI57: 0 | AJ57: 0 | AK57: 0 | AL57: 0 | AM57: =IF(AC57>Inputs!$D$9,0,((AD57-AH57)*$AD$49)+(MAX(0,AN56*AQ57))) -> 0 | AN57: 0 | AO57: 0 | AP57: 0 | AQ57: =IF(AC57>Inputs!$D$9,0,IF(AK57=0,0,AK57/AD57)) -> 0 | AR57: =IF(AC57=Inputs!$D$9,(AF57-$AF$49)*AK57,(AF57-$AF$49)*AH57) -> 0 | AS57: =IF(AC57=Inputs!$D$9,Bonds!AE57,AH57*AF57) -> 0 | AT57: =IF(AC57=Inputs!$D$9,AK57*(SUM($AO$51:AO57)),AH57*(SUM($AO$51:AO56))) -> 0 | AU57: =IF(AC57=Inputs!$D$9,AK57*Bonds!$AF$49,$AF$49*AH57) -> 0 | AV57: =IF(AC57=Inputs!$D$9,AK57*(SUM($AP$51:AP56)),AH57*(SUM($AP$51:AP56))) -> 0 | AW57: 0 | AX57: 0 | AY57: =IF(AP57>0,SUM($AP$51:AP57)*AK57,0) -> 0 | BA57: =IF(AY57>0,MAX(1,AC57-(MAX($AZ$51:AZ56))),0) -> 0 | BB57: 0 | BC57: 0 | BD57: 0 | BE57: 0 | BG57: 0 | BH57: =IF(AO56=0,0,SUM($AO$51:AO56)*AK56) -> 0 | BI57: 0 | BJ57: =AD57*(SUM($AP$51:AP56)) -> 0 | BK57: 0 | BL57: 0 | BO57: 0
D58: Gain on full surrender if end of term | E58: =IF(AND(Bonds!E52>0,E7=Inputs!$D$9),(E52+(SUM(D$54:$E55)))-($E$43+(SUM(D$56:$E56))),0) -> 0 | F58: =IF(AND(Bonds!F52>0,F7=Inputs!$D$9),(F52+(SUM(E$54:$E55)))-($E$43+(SUM(E$56:$E56))),0) -> 0 | G58: =IF(AND(Bonds!G52>0,G7=Inputs!$D$9),(G52+(SUM($E$54:F55)))-($E$43+(SUM($E$56:F56))),0) -> 0 | H58: =IF(AND(Bonds!H52>0,H7=Inputs!$D$9),(H52+(SUM($E$54:G55)))-($E$43+(SUM($E$56:G56))),0) -> 0 | I58: =IF(AND(Bonds!I52>0,I7=Inputs!$D$9),(I52+(SUM($E$54:H55)))-($E$43+(SUM($E$56:H56))),0) -> 0 | J58: =IF(AND(Bonds!J52>0,J7=Inputs!$D$9),(J52+(SUM($E$54:I55)))-($E$43+(SUM($E$56:I56))),0) -> 0 | K58: =IF(AND(Bonds!K52>0,K7=Inputs!$D$9),(K52+(SUM($E$54:J55)))-($E$43+(SUM($E$56:J56))),0) -> 0 | L58: =IF(AND(Bonds!L52>0,L7=Inputs!$D$9),(L52+(SUM($E$54:K55)))-($E$43+(SUM($E$56:K56))),0) -> 0 | M58: =IF(AND(Bonds!M52>0,M7=Inputs!$D$9),(M52+(SUM($E$54:L55)))-($E$43+(SUM($E$56:L56))),0) -> 0 | N58: =IF(AND(Bonds!N52>0,N7=Inputs!$D$9),(N52+(SUM($E$54:M55)))-($E$43+(SUM($E$56:M56))),0) -> 0 | O58: =IF(AND(Bonds!O52>0,O7=Inputs!$D$9),(O52+(SUM($E$54:N55)))-($E$43+(SUM($E$56:N56))),0) -> 0 | P58: =IF(AND(Bonds!P52>0,P7=Inputs!$D$9),(P52+(SUM($E$54:O55)))-($E$43+(SUM($E$56:O56))),0) -> 0 | Q58: =IF(AND(Bonds!Q52>0,Q7=Inputs!$D$9),(Q52+(SUM($E$54:P55)))-($E$43+(SUM($E$56:P56))),0) -> 0 | R58: =IF(AND(Bonds!R52>0,R7=Inputs!$D$9),(R52+(SUM($E$54:Q55)))-($E$43+(SUM($E$56:Q56))),0) -> 0 | S58: =IF(AND(Bonds!S52>0,S7=Inputs!$D$9),(S52+(SUM($E$54:R55)))-($E$43+(SUM($E$56:R56))),0) -> 0 | T58: =IF(AND(Bonds!T52>0,T7=Inputs!$D$9),(T52+(SUM($E$54:S55)))-($E$43+(SUM($E$56:S56))),0) -> 0 | U58: =IF(AND(Bonds!U52>0,U7=Inputs!$D$9),(U52+(SUM($E$54:T55)))-($E$43+(SUM($E$56:T56))),0) -> 0 | V58: =IF(AND(Bonds!V52>0,V7=Inputs!$D$9),(V52+(SUM($E$54:U55)))-($E$43+(SUM($E$56:U56))),0) -> 0 | W58: =IF(AND(Bonds!W52>0,W7=Inputs!$D$9),(W52+(SUM($E$54:V55)))-($E$43+(SUM($E$56:V56))),0) -> 0 | X58: =IF(AND(Bonds!X52>0,X7=Inputs!$D$9),(X52+(SUM($E$54:W55)))-($E$43+(SUM($E$56:W56))),0) -> 0 | Y58: =MAX(E58:X58) -> 0 | AC58: 8 | AD58: =IF(AC58>Inputs!$D$9,0,AK57) -> 0 | AE58: =L52 -> 0 | AF58: 0 | AG58: =L54+L55 -> 0 | AH58: 0 | AI58: 0 | AJ58: 0 | AK58: 0 | AL58: 0 | AM58: =IF(AC58>Inputs!$D$9,0,((AD58-AH58)*$AD$49)+(MAX(0,AN57*AQ58))) -> 0 | AN58: 0 | AO58: 0 | AP58: 0 | AQ58: =IF(AC58>Inputs!$D$9,0,IF(AK58=0,0,AK58/AD58)) -> 0 | AR58: =IF(AC58=Inputs!$D$9,(AF58-$AF$49)*AK58,(AF58-$AF$49)*AH58) -> 0 | AS58: =IF(AC58=Inputs!$D$9,Bonds!AE58,AH58*AF58) -> 0 | AT58: =IF(AC58=Inputs!$D$9,AK58*(SUM($AO$51:AO58)),AH58*(SUM($AO$51:AO57))) -> 0 | AU58: =IF(AC58=Inputs!$D$9,AK58*Bonds!$AF$49,$AF$49*AH58) -> 0 | AV58: =IF(AC58=Inputs!$D$9,AK58*(SUM($AP$51:AP57)),AH58*(SUM($AP$51:AP57))) -> 0 | AW58: 0 | AX58: 0 | AY58: =IF(AP58>0,SUM($AP$51:AP58)*AK58,0) -> 0 | BA58: =IF(AY58>0,MAX(1,AC58-(MAX($AZ$51:AZ57))),0) -> 0 | BB58: 0 | BC58: 0 | BD58: 0 | BE58: 0 | BG58: 0 | BH58: =IF(AO57=0,0,SUM($AO$51:AO57)*AK57) -> 0 | BI58: 0 | BJ58: =AD58*(SUM($AP$51:AP57)) -> 0 | BK58: 0 | BL58: 0 | BO58: 0
D59: Year end after ISA | E59: =E52-E54-E55 -> 0 | F59: =F52-F54-F55 -> 0 | G59: =G52-G54-G55 -> 0 | H59: 0 | I59: 0 | J59: 0 | K59: 0 | L59: 0 | M59: 0 | N59: 0 | O59: =O52-O54-O55 -> 0 | P59: 0 | Q59: =Q52-Q54-Q55 -> 0 | R59: 0 | S59: =S52-S54-S55 -> 0 | T59: =T52-T54-T55 -> 0 | U59: =U52-U54-U55 -> 0 | V59: =V52-V54-V55 -> 0 | W59: =W52-W54-W55 -> 0 | X59: =X52-X54-X55 -> 0 | Y59: =IF(Inputs!D9="",0,HLOOKUP(Inputs!$D$9,$E$42:$X$64,18,FALSE)) -> 0 | AC59: 9 | AD59: =IF(AC59>Inputs!$D$9,0,AK58) -> 0 | AE59: =M52 -> 0 | AF59: 0 | AG59: =M54+M55 -> 0 | AH59: 0 | AI59: 0 | AJ59: 0 | AK59: 0 | AL59: 0 | AM59: =IF(AC59>Inputs!$D$9,0,((AD59-AH59)*$AD$49)+(MAX(0,AN58*AQ59))) -> 0 | AN59: 0 | AO59: 0 | AP59: 0 | AQ59: =IF(AC59>Inputs!$D$9,0,IF(AK59=0,0,AK59/AD59)) -> 0 | AR59: =IF(AC59=Inputs!$D$9,(AF59-$AF$49)*AK59,(AF59-$AF$49)*AH59) -> 0 | AS59: =IF(AC59=Inputs!$D$9,Bonds!AE59,AH59*AF59) -> 0 | AT59: =IF(AC59=Inputs!$D$9,AK59*(SUM($AO$51:AO59)),AH59*(SUM($AO$51:AO58))) -> 0 | AU59: =IF(AC59=Inputs!$D$9,AK59*Bonds!$AF$49,$AF$49*AH59) -> 0 | AV59: =IF(AC59=Inputs!$D$9,AK59*(SUM($AP$51:AP58)),AH59*(SUM($AP$51:AP58))) -> 0 | AW59: 0 | AX59: 0 | AY59: =IF(AP59>0,SUM($AP$51:AP59)*AK59,0) -> 0 | BA59: =IF(AY59>0,MAX(1,AC59-(MAX($AZ$51:AZ58))),0) -> 0 | BB59: 0 | BC59: 0 | BD59: 0 | BE59: 0 | BG59: 0 | BH59: =IF(AO58=0,0,SUM($AO$51:AO58)*AK58) -> 0 | BI59: 0 | BJ59: =AD59*(SUM($AP$51:AP58)) -> 0 | BK59: 0 | BL59: 0 | BO59: 0
AC60: 10 | AD60: =IF(AC60>Inputs!$D$9,0,AK59) -> 0 | AE60: =N52 -> 0 | AF60: 0 | AG60: =N54+N55 -> 0 | AH60: 0 | AI60: 0 | AJ60: 0 | AK60: 0 | AL60: 0 | AM60: =IF(AC60>Inputs!$D$9,0,((AD60-AH60)*$AD$49)+(MAX(0,AN59*AQ60))) -> 0 | AN60: 0 | AO60: 0 | AP60: 0 | AQ60: =IF(AC60>Inputs!$D$9,0,IF(AK60=0,0,AK60/AD60)) -> 0 | AR60: =IF(AC60=Inputs!$D$9,(AF60-$AF$49)*AK60,(AF60-$AF$49)*AH60) -> 0 | AS60: =IF(AC60=Inputs!$D$9,Bonds!AE60,AH60*AF60) -> 0 | AT60: =IF(AC60=Inputs!$D$9,AK60*(SUM($AO$51:AO60)),AH60*(SUM($AO$51:AO59))) -> 0 | AU60: =IF(AC60=Inputs!$D$9,AK60*Bonds!$AF$49,$AF$49*AH60) -> 0 | AV60: =IF(AC60=Inputs!$D$9,AK60*(SUM($AP$51:AP59)),AH60*(SUM($AP$51:AP59))) -> 0 | AW60: 0 | AX60: 0 | AY60: =IF(AP60>0,SUM($AP$51:AP60)*AK60,0) -> 0 | BA60: =IF(AY60>0,MAX(1,AC60-(MAX($AZ$51:AZ59))),0) -> 0 | BB60: 0 | BC60: 0 | BD60: 0 | BE60: 0 | BG60: 0 | BH60: =IF(AO59=0,0,SUM($AO$51:AO59)*AK59) -> 0 | BI60: 0 | BJ60: =AD60*(SUM($AP$51:AP59)) -> 0 | BK60: 0 | BL60: 0 | BO60: 0
D61: Gain | E61: =SUM(E56:E58) -> 0 | F61: =SUM(F56:F58) -> 0 | G61: =SUM(G56:G58) -> 0 | H61: 0 | I61: 0 | J61: 0 | K61: 0 | L61: 0 | M61: 0 | N61: 0 | O61: =SUM(O56:O58) -> 0 | P61: 0 | Q61: =SUM(Q56:Q58) -> 0 | R61: 0 | S61: =SUM(S56:S58) -> 0 | T61: =SUM(T56:T58) -> 0 | U61: =SUM(U56:U58) -> 0 | V61: =SUM(V56:V58) -> 0 | W61: =SUM(W56:W58) -> 0 | X61: =SUM(X56:X58) -> 0 | AC61: 11 | AD61: =IF(AC61>Inputs!$D$9,0,AK60) -> 0 | AE61: =O52 -> 0 | AF61: =IF(AD61>0,AE61/AD61,0) -> 0 | AG61: =O54+O55 -> 0 | AH61: =IF(AND(AF61>AG61,AG61>0),1,MIN(AD61,IF(AD61>0,ROUNDDOWN(AG61/AF61,0),0))) -> 0 | AI61: =AF61*AH61 -> 0 | AJ61: =IF(AG61>=AI61,0,1) -> 0 | AK61: =AD61-AH61 -> 0 | AL61: =IF(AK61>0,MAX(0,AG61-AI61),0) -> 0 | AM61: =IF(AC61>Inputs!$D$9,0,((AD61-AH61)*$AD$49)+(MAX(0,AN60*AQ61))) -> 0 | AN61: =AM61-AL61 -> 0 | AO61: =IF(AK61>0,AL61/AK61,0) -> 0 | AP61: =IF(AN61<0,-AN61/AK61,0) -> 0 | AQ61: =IF(AC61>Inputs!$D$9,0,IF(AK61=0,0,AK61/AD61)) -> 0 | AR61: =IF(AC61=Inputs!$D$9,(AF61-$AF$49)*AK61,(AF61-$AF$49)*AH61) -> 0 | AS61: =IF(AC61=Inputs!$D$9,Bonds!AE61,AH61*AF61) -> 0 | AT61: =IF(AC61=Inputs!$D$9,AK61*(SUM($AO$51:AO61)),AH61*(SUM($AO$51:AO60))) -> 0 | AU61: =IF(AC61=Inputs!$D$9,AK61*Bonds!$AF$49,$AF$49*AH61) -> 0 | AV61: =IF(AC61=Inputs!$D$9,AK61*(SUM($AP$51:AP60)),AH61*(SUM($AP$51:AP60))) -> 0 | AW61: =(AS61+AT61)-(AU61+AV61) -> 0 | AX61: =AW61/AC61 -> 0 | AY61: =IF(AP61>0,SUM($AP$51:AP61)*AK61,0) -> 0 | AZ61: =IF(AN61<0,AC61,"") ->  | BA61: =IF(AY61>0,MAX(1,AC61-(MAX($AZ$51:AZ60))),0) -> 0 | BB61: =IF(AY61>0,AY61/BA61,0) -> 0 | BC61: =AW61+AY61 -> 0 | BD61: =AX61+BB61 -> 0 | BE61: =IF((AW61+AX61+AY61+BB61)>0,BC61/BD61,0) -> 0 | BG61: 0 | BH61: =IF(AO60=0,0,SUM($AO$51:AO60)*AK60) -> 0 | BI61: 0 | BJ61: =AD61*(SUM($AP$51:AP60)) -> 0 | BK61: 0 | BL61: 0 | BO61: 0
D62: Year of Excess | E62: =IF(E56>0,E42,"") ->  | F62: =IF(F56>0,F42,"") ->  | G62: =IF(G56>0,G42,"") ->  | H62: =IF(H56>0,H42,"") ->  | I62: =IF(I56>0,I42,"") ->  | J62: =IF(J56>0,J42,"") ->  | O62: =IF(O56>0,O42,"") ->  | Q62: =IF(Q56>0,Q42,"") ->  | S62: =IF(S56>0,S42,"") ->  | T62: =IF(T56>0,T42,"") ->  | U62: =IF(U56>0,U42,"") ->  | V62: =IF(V56>0,V42,"") ->  | W62: =IF(W56>0,W42,"") ->  | X62: =IF(X56>0,X42,"") ->  | Y62: =IF(Inputs!D9="",0,HLOOKUP(Inputs!$D$9,$E$42:$X$64,20,FALSE)) -> 0 | AC62: 12 | AD62: =IF(AC62>Inputs!$D$9,0,AK61) -> 0 | AE62: =P52 -> 0 | AF62: =IF(AD62>0,AE62/AD62,0) -> 0 | AG62: =P54+P55 -> 0 | AH62: =IF(AND(AF62>AG62,AG62>0),1,MIN(AD62,IF(AD62>0,ROUNDDOWN(AG62/AF62,0),0))) -> 0 | AI62: =AF62*AH62 -> 0 | AJ62: =IF(AG62>=AI62,0,1) -> 0 | AK62: =AD62-AH62 -> 0 | AL62: =IF(AK62>0,MAX(0,AG62-AI62),0) -> 0 | AM62: =IF(AC62>Inputs!$D$9,0,((AD62-AH62)*$AD$49)+(MAX(0,AN61*AQ62))) -> 0 | AN62: =AM62-AL62 -> 0 | AO62: =IF(AK62>0,AL62/AK62,0) -> 0 | AP62: =IF(AN62<0,-AN62/AK62,0) -> 0 | AQ62: =IF(AC62>Inputs!$D$9,0,IF(AK62=0,0,AK62/AD62)) -> 0 | AR62: =IF(AC62=Inputs!$D$9,(AF62-$AF$49)*AK62,(AF62-$AF$49)*AH62) -> 0 | AS62: =IF(AC62=Inputs!$D$9,Bonds!AE62,AH62*AF62) -> 0 | AT62: =IF(AC62=Inputs!$D$9,AK62*(SUM($AO$51:AO62)),AH62*(SUM($AO$51:AO61))) -> 0 | AU62: =IF(AC62=Inputs!$D$9,AK62*Bonds!$AF$49,$AF$49*AH62) -> 0 | AV62: =IF(AC62=Inputs!$D$9,AK62*(SUM($AP$51:AP61)),AH62*(SUM($AP$51:AP61))) -> 0 | AW62: 0 | AX62: 0 | AY62: =IF(AP62>0,SUM($AP$51:AP62)*AK62,0) -> 0 | BA62: =IF(AY62>0,MAX(1,AC62-(MAX($AZ$51:AZ61))),0) -> 0 | BB62: 0 | BC62: 0 | BD62: 0 | BE62: 0 | BG62: 0 | BH62: =IF(AO61=0,0,SUM($AO$51:AO61)*AK61) -> 0 | BI62: 0 | BJ62: =AD62*(SUM($AP$51:AP61)) -> 0 | BK62: 0 | BL62: 0 | BO62: 0
D63: Years for slicing | E63: =IF((E57+E58)<>0,E42,IF(E56>0,MAX(1,E42-(MAX($E$62:E62))),0)) -> 0 | F63: =IF((F57+F58)<>0,F42,IF(F56>0,MAX(1,F42-(MAX($E$62:F62))),0)) -> 0 | G63: =IF((G57+G58)<>0,G42,IF(G56>0,MAX(1,G42-(MAX($E$62:G62))),0)) -> 0 | H63: =IF((H57+H58)<>0,H42,IF(H56>0,MAX(1,H42-(MAX($E$62:H62))),0)) -> 0 | I63: =IF((I57+I58)<>0,I42,IF(I56>0,MAX(1,I42-(MAX($E$62:I62))),0)) -> 0 | J63: =IF((J57+J58)<>0,J42,IF(J56>0,MAX(1,J42-(MAX($E$62:J62))),0)) -> 0 | K63: =IF((K57+K58)<>0,K42,IF(K56>0,MAX(1,K42-(MAX($E$62:K62))),0)) -> 0 | L63: =IF((L57+L58)<>0,L42,IF(L56>0,MAX(1,L42-(MAX($E$62:L62))),0)) -> 0 | M63: =IF((M57+M58)<>0,M42,IF(M56>0,MAX(1,M42-(MAX($E$62:M62))),0)) -> 0 | N63: =IF((N57+N58)<>0,N42,IF(N56>0,MAX(1,N42-(MAX($E$62:N62))),0)) -> 0 | O63: =IF((O57+O58)<>0,O42,IF(O56>0,MAX(1,O42-(MAX($E$62:O62))),0)) -> 0 | P63: =IF((P57+P58)<>0,P42,IF(P56>0,MAX(1,P42-(MAX($E$62:P62))),0)) -> 0 | Q63: =IF((Q57+Q58)<>0,Q42,IF(Q56>0,MAX(1,Q42-(MAX($E$62:Q62))),0)) -> 0 | R63: =IF((R57+R58)<>0,R42,IF(R56>0,MAX(1,R42-(MAX($E$62:R62))),0)) -> 0 | S63: =IF((S57+S58)<>0,S42,IF(S56>0,MAX(1,S42-(MAX($E$62:S62))),0)) -> 0 | T63: =IF((T57+T58)<>0,T42,IF(T56>0,MAX(1,T42-(MAX($E$62:T62))),0)) -> 0 | U63: =IF((U57+U58)<>0,U42,IF(U56>0,MAX(1,U42-(MAX($E$62:U62))),0)) -> 0 | V63: =IF((V57+V58)<>0,V42,IF(V56>0,MAX(1,V42-(MAX($E$62:V62))),0)) -> 0 | W63: =IF((W57+W58)<>0,W42,IF(W56>0,MAX(1,W42-(MAX($E$62:W62))),0)) -> 0 | X63: =IF((X57+X58)<>0,X42,IF(X56>0,MAX(1,X42-(MAX($E$62:X62))),0)) -> 0 | AC63: 13 | AD63: =IF(AC63>Inputs!$D$9,0,AK62) -> 0 | AE63: =Q52 -> 0 | AF63: =IF(AD63>0,AE63/AD63,0) -> 0 | AG63: =Q54+Q55 -> 0 | AH63: =IF(AND(AF63>AG63,AG63>0),1,MIN(AD63,IF(AD63>0,ROUNDDOWN(AG63/AF63,0),0))) -> 0 | AI63: =AF63*AH63 -> 0 | AJ63: =IF(AG63>=AI63,0,1) -> 0 | AK63: =AD63-AH63 -> 0 | AL63: =IF(AK63>0,MAX(0,AG63-AI63),0) -> 0 | AM63: =IF(AC63>Inputs!$D$9,0,((AD63-AH63)*$AD$49)+(MAX(0,AN62*AQ63))) -> 0 | AN63: =AM63-AL63 -> 0 | AO63: =IF(AK63>0,AL63/AK63,0) -> 0 | AP63: =IF(AN63<0,-AN63/AK63,0) -> 0 | AQ63: =IF(AC63>Inputs!$D$9,0,IF(AK63=0,0,AK63/AD63)) -> 0 | AR63: =IF(AC63=Inputs!$D$9,(AF63-$AF$49)*AK63,(AF63-$AF$49)*AH63) -> 0 | AS63: =IF(AC63=Inputs!$D$9,Bonds!AE63,AH63*AF63) -> 0 | AT63: =IF(AC63=Inputs!$D$9,AK63*(SUM($AO$51:AO63)),AH63*(SUM($AO$51:AO62))) -> 0 | AU63: =IF(AC63=Inputs!$D$9,AK63*Bonds!$AF$49,$AF$49*AH63) -> 0 | AV63: =IF(AC63=Inputs!$D$9,AK63*(SUM($AP$51:AP62)),AH63*(SUM($AP$51:AP62))) -> 0 | AW63: 0 | AX63: 0 | AY63: =IF(AP63>0,SUM($AP$51:AP63)*AK63,0) -> 0 | BA63: =IF(AY63>0,MAX(1,AC63-(MAX($AZ$51:AZ62))),0) -> 0 | BB63: 0 | BC63: 0 | BD63: 0 | BE63: 0 | BG63: 0 | BH63: =IF(AO62=0,0,SUM($AO$51:AO62)*AK62) -> 0 | BI63: 0 | BJ63: =AD63*(SUM($AP$51:AP62)) -> 0 | BK63: 0 | BL63: 0 | BO63: 0
D64: Slice | E64: =IF(E57+E58>0,(E57+E58)/E42,IF(E56>0,E56/E63,0)) -> 0 | F64: =IF(F57+F58>0,(F57+F58)/F42,IF(F56>0,F56/F63,0)) -> 0 | G64: 0 | H64: 0 | I64: 0 | J64: 0 | K64: 0 | L64: 0 | M64: 0 | N64: 0 | O64: =IF(O57+O58>0,(O57+O58)/O42,IF(O56>0,O56/O63,0)) -> 0 | P64: 0 | Q64: =IF(Q57+Q58>0,(Q57+Q58)/Q42,IF(Q56>0,Q56/Q63,0)) -> 0 | R64: 0 | S64: =IF(S57+S58>0,(S57+S58)/S42,IF(S56>0,S56/S63,0)) -> 0 | T64: =IF(T57+T58>0,(T57+T58)/T42,IF(T56>0,T56/T63,0)) -> 0 | U64: =IF(U57+U58>0,(U57+U58)/U42,IF(U56>0,U56/U63,0)) -> 0 | V64: =IF(V57+V58>0,(V57+V58)/V42,IF(V56>0,V56/V63,0)) -> 0 | W64: =IF(W57+W58>0,(W57+W58)/W42,IF(W56>0,W56/W63,0)) -> 0 | X64: =IF(X57+X58>0,(X57+X58)/X42,IF(X56>0,X56/X63,0)) -> 0 | AC64: 14 | AD64: =IF(AC64>Inputs!$D$9,0,AK63) -> 0 | AE64: =R52 -> 0 | AF64: =IF(AD64>0,AE64/AD64,0) -> 0 | AG64: =R54+R55 -> 0 | AH64: =IF(AND(AF64>AG64,AG64>0),1,MIN(AD64,IF(AD64>0,ROUNDDOWN(AG64/AF64,0),0))) -> 0 | AI64: =AF64*AH64 -> 0 | AJ64: =IF(AG64>=AI64,0,1) -> 0 | AK64: =AD64-AH64 -> 0 | AL64: =IF(AK64>0,MAX(0,AG64-AI64),0) -> 0 | AM64: =IF(AC64>Inputs!$D$9,0,((AD64-AH64)*$AD$49)+(MAX(0,AN63*AQ64))) -> 0 | AN64: =AM64-AL64 -> 0 | AO64: =IF(AK64>0,AL64/AK64,0) -> 0 | AP64: =IF(AN64<0,-AN64/AK64,0) -> 0 | AQ64: =IF(AC64>Inputs!$D$9,0,IF(AK64=0,0,AK64/AD64)) -> 0 | AR64: =IF(AC64=Inputs!$D$9,(AF64-$AF$49)*AK64,(AF64-$AF$49)*AH64) -> 0 | AS64: =IF(AC64=Inputs!$D$9,Bonds!AE64,AH64*AF64) -> 0 | AT64: =IF(AC64=Inputs!$D$9,AK64*(SUM($AO$51:AO64)),AH64*(SUM($AO$51:AO63))) -> 0 | AU64: =IF(AC64=Inputs!$D$9,AK64*Bonds!$AF$49,$AF$49*AH64) -> 0 | AV64: =IF(AC64=Inputs!$D$9,AK64*(SUM($AP$51:AP63)),AH64*(SUM($AP$51:AP63))) -> 0 | AW64: =(AS64+AT64)-(AU64+AV64) -> 0 | AX64: =AW64/AC64 -> 0 | AY64: =IF(AP64>0,SUM($AP$51:AP64)*AK64,0) -> 0 | AZ64: =IF(AN64<0,AC64,"") ->  | BA64: =IF(AY64>0,MAX(1,AC64-(MAX($AZ$51:AZ63))),0) -> 0 | BB64: =IF(AY64>0,AY64/BA64,0) -> 0 | BC64: =AW64+AY64 -> 0 | BD64: =AX64+BB64 -> 0 | BE64: =IF((AW64+AX64+AY64+BB64)>0,BC64/BD64,0) -> 0 | BG64: 0 | BH64: =IF(AO63=0,0,SUM($AO$51:AO63)*AK63) -> 0 | BI64: 0 | BJ64: =AD64*(SUM($AP$51:AP63)) -> 0 | BK64: 0 | BL64: 0 | BO64: 0
C65: Sort this one | D65: Gain for simple calcs | E65: =E52-E43 -> 0 | F65: =IF(OR(F42>Inputs!$D$9,F43=0),0,(F52+(SUM(E$54:$E55)))-($E$8+(SUM($E$56:E56)))) -> 0 | G65: =IF(OR(G42>Inputs!$D$9,G43=0),0,(G52+(SUM($E$54:F55)))-($E$8+(SUM($E$56:F56)))) -> 0 | H65: =IF(OR(H42>Inputs!$D$9,H43=0),0,(H52+(SUM($E$54:G55)))-($E$8+(SUM($E$56:G56)))) -> 0 | I65: =IF(OR(I42>Inputs!$D$9,I43=0),0,(I52+(SUM($E$54:H55)))-($E$8+(SUM($E$56:H56)))) -> 0 | J65: =IF(OR(J42>Inputs!$D$9,J43=0),0,(J52+(SUM($E$54:I55)))-($E$8+(SUM($E$56:I56)))) -> 0 | K65: =IF(OR(K42>Inputs!$D$9,K43=0),0,(K52+(SUM($E$54:J55)))-($E$8+(SUM($E$56:J56)))) -> 0 | L65: =IF(OR(L42>Inputs!$D$9,L43=0),0,(L52+(SUM($E$54:K55)))-($E$8+(SUM($E$56:K56)))) -> 0 | M65: =IF(OR(M42>Inputs!$D$9,M43=0),0,(M52+(SUM($E$54:L55)))-($E$8+(SUM($E$56:L56)))) -> 0 | N65: =IF(OR(N42>Inputs!$D$9,N43=0),0,(N52+(SUM($E$54:M55)))-($E$8+(SUM($E$56:M56)))) -> 0 | O65: =IF(OR(O42>Inputs!$D$9,O43=0),0,(O52+(SUM($E$54:N55)))-($E$8+(SUM($E$56:N56)))) -> 0 | P65: =IF(OR(P42>Inputs!$D$9,P43=0),0,(P52+(SUM($E$54:O55)))-($E$8+(SUM($E$56:O56)))) -> 0 | Q65: =IF(OR(Q42>Inputs!$D$9,Q43=0),0,(Q52+(SUM($E$54:P55)))-($E$8+(SUM($E$56:P56)))) -> 0 | R65: =IF(OR(R42>Inputs!$D$9,R43=0),0,(R52+(SUM($E$54:Q55)))-($E$8+(SUM($E$56:Q56)))) -> 0 | S65: =IF(OR(S42>Inputs!$D$9,S43=0),0,(S52+(SUM($E$54:R55)))-($E$8+(SUM($E$56:R56)))) -> 0 | T65: =IF(OR(T42>Inputs!$D$9,T43=0),0,(T52+(SUM($E$54:S55)))-($E$8+(SUM($E$56:S56)))) -> 0 | U65: =IF(OR(U42>Inputs!$D$9,U43=0),0,(U52+(SUM($E$54:T55)))-($E$8+(SUM($E$56:T56)))) -> 0 | V65: =IF(OR(V42>Inputs!$D$9,V43=0),0,(V52+(SUM($E$54:U55)))-($E$8+(SUM($E$56:U56)))) -> 0 | W65: =IF(OR(W42>Inputs!$D$9,W43=0),0,(W52+(SUM($E$54:V55)))-($E$8+(SUM($E$56:V56)))) -> 0 | X65: =IF(OR(X42>Inputs!$D$9,X43=0),0,(X52+(SUM($E$54:W55)))-($E$8+(SUM($E$56:W56)))) -> 0 | AC65: 15 | AD65: =IF(AC65>Inputs!$D$9,0,AK64) -> 0 | AE65: =S52 -> 0 | AF65: =IF(AD65>0,AE65/AD65,0) -> 0 | AG65: =S54+S55 -> 0 | AH65: =IF(AND(AF65>AG65,AG65>0),1,MIN(AD65,IF(AD65>0,ROUNDDOWN(AG65/AF65,0),0))) -> 0 | AI65: =AF65*AH65 -> 0 | AJ65: =IF(AG65>=AI65,0,1) -> 0 | AK65: =AD65-AH65 -> 0 | AL65: =IF(AK65>0,MAX(0,AG65-AI65),0) -> 0 | AM65: =IF(AC65>Inputs!$D$9,0,((AD65-AH65)*$AD$49)+(MAX(0,AN64*AQ65))) -> 0 | AN65: =AM65-AL65 -> 0 | AO65: =IF(AK65>0,AL65/AK65,0) -> 0 | AP65: =IF(AN65<0,-AN65/AK65,0) -> 0 | AQ65: =IF(AC65>Inputs!$D$9,0,IF(AK65=0,0,AK65/AD65)) -> 0 | AR65: =IF(AC65=Inputs!$D$9,(AF65-$AF$49)*AK65,(AF65-$AF$49)*AH65) -> 0 | AS65: =IF(AC65=Inputs!$D$9,Bonds!AE65,AH65*AF65) -> 0 | AT65: =IF(AC65=Inputs!$D$9,AK65*(SUM($AO$51:AO65)),AH65*(SUM($AO$51:AO64))) -> 0 | AU65: =IF(AC65=Inputs!$D$9,AK65*Bonds!$AF$49,$AF$49*AH65) -> 0 | AV65: =IF(AC65=Inputs!$D$9,AK65*(SUM($AP$51:AP64)),AH65*(SUM($AP$51:AP64))) -> 0 | AW65: =(AS65+AT65)-(AU65+AV65) -> 0 | AX65: =AW65/AC65 -> 0 | AY65: =IF(AP65>0,SUM($AP$51:AP65)*AK65,0) -> 0 | AZ65: =IF(AN65<0,AC65,"") ->  | BA65: =IF(AY65>0,MAX(1,AC65-(MAX($AZ$51:AZ64))),0) -> 0 | BB65: =IF(AY65>0,AY65/BA65,0) -> 0 | BC65: =AW65+AY65 -> 0 | BD65: =AX65+BB65 -> 0 | BE65: =IF((AW65+AX65+AY65+BB65)>0,BC65/BD65,0) -> 0 | BG65: 0 | BH65: =IF(AO64=0,0,SUM($AO$51:AO64)*AK64) -> 0 | BI65: 0 | BJ65: =AD65*(SUM($AP$51:AP64)) -> 0 | BK65: 0 | BL65: 0 | BO65: 0
AC66: 16 | AD66: =IF(AC66>Inputs!$D$9,0,AK65) -> 0 | AE66: =T52 -> 0 | AF66: =IF(AD66>0,AE66/AD66,0) -> 0 | AG66: =T54+T55 -> 0 | AH66: =IF(AND(AF66>AG66,AG66>0),1,MIN(AD66,IF(AD66>0,ROUNDDOWN(AG66/AF66,0),0))) -> 0 | AI66: =AF66*AH66 -> 0 | AJ66: =IF(AG66>=AI66,0,1) -> 0 | AK66: =AD66-AH66 -> 0 | AL66: =IF(AK66>0,MAX(0,AG66-AI66),0) -> 0 | AM66: =IF(AC66>Inputs!$D$9,0,((AD66-AH66)*$AD$49)+(MAX(0,AN65*AQ66))) -> 0 | AN66: =AM66-AL66 -> 0 | AO66: =IF(AK66>0,AL66/AK66,0) -> 0 | AP66: =IF(AN66<0,-AN66/AK66,0) -> 0 | AQ66: =IF(AC66>Inputs!$D$9,0,IF(AK66=0,0,AK66/AD66)) -> 0 | AR66: =IF(AC66=Inputs!$D$9,(AF66-$AF$49)*AK66,(AF66-$AF$49)*AH66) -> 0 | AS66: =IF(AC66=Inputs!$D$9,Bonds!AE66,AH66*AF66) -> 0 | AT66: =IF(AC66=Inputs!$D$9,AK66*(SUM($AO$51:AO66)),AH66*(SUM($AO$51:AO65))) -> 0 | AU66: =IF(AC66=Inputs!$D$9,AK66*Bonds!$AF$49,$AF$49*AH66) -> 0 | AV66: =IF(AC66=Inputs!$D$9,AK66*(SUM($AP$51:AP65)),AH66*(SUM($AP$51:AP65))) -> 0 | AW66: =(AS66+AT66)-(AU66+AV66) -> 0 | AX66: =AW66/AC66 -> 0 | AY66: =IF(AP66>0,SUM($AP$51:AP66)*AK66,0) -> 0 | AZ66: =IF(AN66<0,AC66,"") ->  | BA66: =IF(AY66>0,MAX(1,AC66-(MAX($AZ$51:AZ65))),0) -> 0 | BB66: =IF(AY66>0,AY66/BA66,0) -> 0 | BC66: =AW66+AY66 -> 0 | BD66: =AX66+BB66 -> 0 | BE66: =IF((AW66+AX66+AY66+BB66)>0,BC66/BD66,0) -> 0 | BG66: 0 | BH66: =IF(AO65=0,0,SUM($AO$51:AO65)*AK65) -> 0 | BI66: 0 | BJ66: =AD66*(SUM($AP$51:AP65)) -> 0 | BK66: 0 | BL66: 0 | BO66: 0
AC67: 17 | AD67: =IF(AC67>Inputs!$D$9,0,AK66) -> 0 | AE67: =U52 -> 0 | AF67: =IF(AD67>0,AE67/AD67,0) -> 0 | AG67: =U54+U55 -> 0 | AH67: =IF(AND(AF67>AG67,AG67>0),1,MIN(AD67,IF(AD67>0,ROUNDDOWN(AG67/AF67,0),0))) -> 0 | AI67: =AF67*AH67 -> 0 | AJ67: =IF(AG67>=AI67,0,1) -> 0 | AK67: =AD67-AH67 -> 0 | AL67: =IF(AK67>0,MAX(0,AG67-AI67),0) -> 0 | AM67: =IF(AC67>Inputs!$D$9,0,((AD67-AH67)*$AD$49)+(MAX(0,AN66*AQ67))) -> 0 | AN67: =AM67-AL67 -> 0 | AO67: =IF(AK67>0,AL67/AK67,0) -> 0 | AP67: =IF(AN67<0,-AN67/AK67,0) -> 0 | AQ67: =IF(AC67>Inputs!$D$9,0,IF(AK67=0,0,AK67/AD67)) -> 0 | AR67: =IF(AC67=Inputs!$D$9,(AF67-$AF$49)*AK67,(AF67-$AF$49)*AH67) -> 0 | AS67: =IF(AC67=Inputs!$D$9,Bonds!AE67,AH67*AF67) -> 0 | AT67: =IF(AC67=Inputs!$D$9,AK67*(SUM($AO$51:AO67)),AH67*(SUM($AO$51:AO66))) -> 0 | AU67: =IF(AC67=Inputs!$D$9,AK67*Bonds!$AF$49,$AF$49*AH67) -> 0 | AV67: =IF(AC67=Inputs!$D$9,AK67*(SUM($AP$51:AP66)),AH67*(SUM($AP$51:AP66))) -> 0 | AW67: =(AS67+AT67)-(AU67+AV67) -> 0 | AX67: =AW67/AC67 -> 0 | AY67: =IF(AP67>0,SUM($AP$51:AP67)*AK67,0) -> 0 | AZ67: =IF(AN67<0,AC67,"") ->  | BA67: =IF(AY67>0,MAX(1,AC67-(MAX($AZ$51:AZ66))),0) -> 0 | BB67: =IF(AY67>0,AY67/BA67,0) -> 0 | BC67: =AW67+AY67 -> 0 | BD67: =AX67+BB67 -> 0 | BE67: =IF((AW67+AX67+AY67+BB67)>0,BC67/BD67,0) -> 0 | BG67: 0 | BH67: =IF(AO66=0,0,SUM($AO$51:AO66)*AK66) -> 0 | BI67: 0 | BJ67: =AD67*(SUM($AP$51:AP66)) -> 0 | BK67: 0 | BL67: 0 | BO67: 0
AC68: 18 | AD68: =IF(AC68>Inputs!$D$9,0,AK67) -> 0 | AE68: =V52 -> 0 | AF68: =IF(AD68>0,AE68/AD68,0) -> 0 | AG68: =V54+V55 -> 0 | AH68: =IF(AND(AF68>AG68,AG68>0),1,MIN(AD68,IF(AD68>0,ROUNDDOWN(AG68/AF68,0),0))) -> 0 | AI68: =AF68*AH68 -> 0 | AJ68: =IF(AG68>=AI68,0,1) -> 0 | AK68: =AD68-AH68 -> 0 | AL68: =IF(AK68>0,MAX(0,AG68-AI68),0) -> 0 | AM68: =IF(AC68>Inputs!$D$9,0,((AD68-AH68)*$AD$49)+(MAX(0,AN67*AQ68))) -> 0 | AN68: =AM68-AL68 -> 0 | AO68: =IF(AK68>0,AL68/AK68,0) -> 0 | AP68: =IF(AN68<0,-AN68/AK68,0) -> 0 | AQ68: =IF(AC68>Inputs!$D$9,0,IF(AK68=0,0,AK68/AD68)) -> 0 | AR68: =IF(AC68=Inputs!$D$9,(AF68-$AF$49)*AK68,(AF68-$AF$49)*AH68) -> 0 | AS68: =IF(AC68=Inputs!$D$9,Bonds!AE68,AH68*AF68) -> 0 | AT68: =IF(AC68=Inputs!$D$9,AK68*(SUM($AO$51:AO68)),AH68*(SUM($AO$51:AO67))) -> 0 | AU68: =IF(AC68=Inputs!$D$9,AK68*Bonds!$AF$49,$AF$49*AH68) -> 0 | AV68: =IF(AC68=Inputs!$D$9,AK68*(SUM($AP$51:AP67)),AH68*(SUM($AP$51:AP67))) -> 0 | AW68: =(AS68+AT68)-(AU68+AV68) -> 0 | AX68: =AW68/AC68 -> 0 | AY68: =IF(AP68>0,SUM($AP$51:AP68)*AK68,0) -> 0 | AZ68: =IF(AN68<0,AC68,"") ->  | BA68: =IF(AY68>0,MAX(1,AC68-(MAX($AZ$51:AZ67))),0) -> 0 | BB68: =IF(AY68>0,AY68/BA68,0) -> 0 | BC68: =AW68+AY68 -> 0 | BD68: =AX68+BB68 -> 0 | BE68: =IF((AW68+AX68+AY68+BB68)>0,BC68/BD68,0) -> 0 | BG68: 0 | BH68: =IF(AO67=0,0,SUM($AO$51:AO67)*AK67) -> 0 | BI68: 0 | BJ68: =AD68*(SUM($AP$51:AP67)) -> 0 | BK68: 0 | BL68: 0 | BO68: 0
AC69: 19 | AD69: =IF(AC69>Inputs!$D$9,0,AK68) -> 0 | AE69: =W52 -> 0 | AF69: =IF(AD69>0,AE69/AD69,0) -> 0 | AG69: =W54+W55 -> 0 | AH69: =IF(AND(AF69>AG69,AG69>0),1,MIN(AD69,IF(AD69>0,ROUNDDOWN(AG69/AF69,0),0))) -> 0 | AI69: =AF69*AH69 -> 0 | AJ69: =IF(AG69>=AI69,0,1) -> 0 | AK69: =AD69-AH69 -> 0 | AL69: =IF(AK69>0,MAX(0,AG69-AI69),0) -> 0 | AM69: =IF(AC69>Inputs!$D$9,0,((AD69-AH69)*$AD$49)+(MAX(0,AN68*AQ69))) -> 0 | AN69: =AM69-AL69 -> 0 | AO69: =IF(AK69>0,AL69/AK69,0) -> 0 | AP69: =IF(AN69<0,-AN69/AK69,0) -> 0 | AQ69: =IF(AC69>Inputs!$D$9,0,IF(AK69=0,0,AK69/AD69)) -> 0 | AR69: =IF(AC69=Inputs!$D$9,(AF69-$AF$49)*AK69,(AF69-$AF$49)*AH69) -> 0 | AS69: =IF(AC69=Inputs!$D$9,Bonds!AE69,AH69*AF69) -> 0 | AT69: =IF(AC69=Inputs!$D$9,AK69*(SUM($AO$51:AO69)),AH69*(SUM($AO$51:AO68))) -> 0 | AU69: =IF(AC69=Inputs!$D$9,AK69*Bonds!$AF$49,$AF$49*AH69) -> 0 | AV69: =IF(AC69=Inputs!$D$9,AK69*(SUM($AP$51:AP68)),AH69*(SUM($AP$51:AP68))) -> 0 | AW69: =(AS69+AT69)-(AU69+AV69) -> 0 | AX69: =AW69/AC69 -> 0 | AY69: =IF(AP69>0,SUM($AP$51:AP69)*AK69,0) -> 0 | AZ69: =IF(AN69<0,AC69,"") ->  | BA69: =IF(AY69>0,MAX(1,AC69-(MAX($AZ$51:AZ68))),0) -> 0 | BB69: =IF(AY69>0,AY69/BA69,0) -> 0 | BC69: =AW69+AY69 -> 0 | BD69: =AX69+BB69 -> 0 | BE69: =IF((AW69+AX69+AY69+BB69)>0,BC69/BD69,0) -> 0 | BG69: 0 | BH69: =IF(AO68=0,0,SUM($AO$51:AO68)*AK68) -> 0 | BI69: 0 | BJ69: =AD69*(SUM($AP$51:AP68)) -> 0 | BK69: 0 | BL69: 0 | BO69: 0
AC70: =AC69+1 -> 20 | AD70: =IF(AC70>Inputs!$D$9,0,AK69) -> 0 | AE70: =X52 -> 0 | AF70: =IF(AD70>0,AE70/AD70,0) -> 0 | AG70: =X54+X55 -> 0 | AH70: =IF(AND(AF70>AG70,AG70>0),1,MIN(AD70,IF(AD70>0,ROUNDDOWN(AG70/AF70,0),0))) -> 0 | AI70: =AF70*AH70 -> 0 | AJ70: =IF(AG70>=AI70,0,1) -> 0 | AK70: =AD70-AH70 -> 0 | AL70: =IF(AK70>0,MAX(0,AG70-AI70),0) -> 0 | AM70: =IF(AC70>Inputs!$D$9,0,((AD70-AH70)*$AD$49)+(MAX(0,AN69*AQ70))) -> 0 | AN70: =AM70-AL70 -> 0 | AO70: =IF(AK70>0,AL70/AK70,0) -> 0 | AP70: =IF(AN70<0,-AN70/AK70,0) -> 0 | AQ70: =IF(AC70>Inputs!$D$9,0,IF(AK70=0,0,AK70/AD70)) -> 0 | AR70: =IF(AC70=Inputs!$D$9,(AF70-$AF$49)*AK70,(AF70-$AF$49)*AH70) -> 0 | AS70: =IF(AC70=Inputs!$D$9,Bonds!AE70,AH70*AF70) -> 0 | AT70: =IF(AC70=Inputs!$D$9,AK70*(SUM($AO$51:AO70)),AH70*(SUM($AO$51:AO69))) -> 0 | AU70: =IF(AC70=Inputs!$D$9,AK70*Bonds!$AF$49,$AF$49*AH70) -> 0 | AV70: =IF(AC70=Inputs!$D$9,AK70*(SUM($AP$51:AP69)),AH70*(SUM($AP$51:AP69))) -> 0 | AW70: =(AS70+AT70)-(AU70+AV70) -> 0 | AX70: =AW70/AC70 -> 0 | AY70: =IF(AP70>0,SUM($AP$51:AP70)*AK70,0) -> 0 | AZ70: =IF(AN70<0,AC70,"") ->  | BA70: =IF(AY70>0,MAX(1,AC70-(MAX($AZ$51:AZ69))),0) -> 0 | BB70: =IF(AY70>0,AY70/BA70,0) -> 0 | BC70: =AW70+AY70 -> 0 | BD70: =AX70+BB70 -> 0 | BE70: =IF((AW70+AX70+AY70+BB70)>0,BC70/BD70,0) -> 0 | BG70: 0 | BH70: =IF(AO69=0,0,SUM($AO$51:AO69)*AK69) -> 0 | BI70: =AD70*$AF$49 -> 0 | BJ70: =AD70*(SUM($AP$51:AP69)) -> 0 | BK70: 0 | BL70: 0 | BO70: 0
D78: Bond Gains to use for in year and surrender calcs
D79: Onshore
E80: =E42 -> 1 | F80: 2 | G80: 3 | H80: 4 | I80: 5 | J80: 6 | K80: 7 | L80: 8 | M80: 9 | N80: 10 | O80: 11 | P80: 12 | Q80: 13 | R80: 14 | S80: 15 | T80: 16 | U80: 17 | V80: 18 | W80: 19 | X80: 20
D81: Gain | E81: =IF(Inputs!$D$13=Inputs!AQ5,Bonds!BC23,Bonds!E30) -> 0 | F81: =IF(Inputs!$D$13=Inputs!AQ5,Bonds!BC24,Bonds!F30) -> 0 | G81: =IF(Inputs!$D$13=Inputs!AQ5,Bonds!BC25,Bonds!G30) -> 0 | H81: =IF(Inputs!$D$13=Inputs!AQ5,Bonds!BC26,Bonds!H30) -> 0 | I81: =IF(Inputs!$D$13=Inputs!AQ5,Bonds!BC27,Bonds!I30) -> 0 | J81: =IF(Inputs!$D$13=Inputs!AQ5,Bonds!BC28,Bonds!J30) -> 0 | K81: =IF(Inputs!$D$13=Inputs!AQ5,Bonds!BC29,Bonds!K30) -> 0 | L81: =IF(Inputs!$D$13=Inputs!AQ5,Bonds!BC30,Bonds!L30) -> 0 | M81: =IF(Inputs!$D$13=Inputs!AQ5,Bonds!BC31,Bonds!M30) -> 0 | N81: =IF(Inputs!$D$13=Inputs!AQ5,Bonds!BC32,Bonds!N30) -> 0 | O81: =IF(Inputs!$D$13=Inputs!AQ5,Bonds!BC33,Bonds!O30) -> 0 | P81: =IF(Inputs!$D$13=Inputs!AQ5,Bonds!BC34,Bonds!P30) -> 0 | Q81: =IF(Inputs!$D$13=Inputs!AQ5,Bonds!BC35,Bonds!Q30) -> 0 | R81: =IF(Inputs!$D$13=Inputs!AQ5,Bonds!BC36,Bonds!R30) -> 0 | S81: =IF(Inputs!$D$13=Inputs!AQ5,Bonds!BC37,Bonds!S30) -> 0 | T81: =IF(Inputs!$D$13=Inputs!$AQ$5,Bonds!BC38,Bonds!T30) -> 0 | U81: =IF(Inputs!$D$13=Inputs!$AQ$5,Bonds!BC39,Bonds!U30) -> 0 | V81: =IF(Inputs!$D$13=Inputs!$AQ$5,Bonds!BC40,Bonds!V30) -> 0 | W81: =IF(Inputs!$D$13=Inputs!$AQ$5,Bonds!BC41,Bonds!W30) -> 0 | X81: =IF(Inputs!$D$13=Inputs!$AQ$5,Bonds!BC42,Bonds!X30) -> 0 | Y81: =IF(Inputs!$D$9="",0,HLOOKUP(Inputs!$D$9,$E$80:$X$89,2,FALSE)) -> 0
D82: Slice | E82: =IF(Inputs!$D$13=Inputs!AQ5,Bonds!BD23,Bonds!E33) -> 0 | F82: =IF(Inputs!$D$13=Inputs!AQ5,Bonds!BD24,Bonds!F33) -> 0 | G82: =IF(Inputs!$D$13=Inputs!AQ5,Bonds!BD25,Bonds!G33) -> 0 | H82: =IF(Inputs!$D$13=Inputs!AQ5,Bonds!BD26,Bonds!H33) -> 0 | I82: =IF(Inputs!$D$13=Inputs!AQ5,Bonds!BD27,Bonds!I33) -> 0 | J82: =IF(Inputs!$D$13=Inputs!AQ5,Bonds!BD28,Bonds!J33) -> 0 | K82: =IF(Inputs!$D$13=Inputs!AQ5,Bonds!BD29,Bonds!K33) -> 0 | L82: =IF(Inputs!$D$13=Inputs!AQ5,Bonds!BD30,Bonds!L33) -> 0 | M82: =IF(Inputs!$D$13=Inputs!AQ5,Bonds!BD31,Bonds!M33) -> 0 | N82: =IF(Inputs!$D$13=Inputs!AQ5,Bonds!BD32,Bonds!N33) -> 0 | O82: =IF(Inputs!$D$13=Inputs!AQ5,Bonds!BD33,Bonds!O33) -> 0 | P82: =IF(Inputs!$D$13=Inputs!AQ5,Bonds!BD34,Bonds!P33) -> 0 | Q82: =IF(Inputs!$D$13=Inputs!AQ5,Bonds!BD35,Bonds!Q33) -> 0 | R82: =IF(Inputs!$D$13=Inputs!AQ5,Bonds!BD36,Bonds!R33) -> 0 | S82: =IF(Inputs!$D$13=Inputs!AQ5,Bonds!BD37,Bonds!S33) -> 0 | T82: =IF(Inputs!$D$13=Inputs!$AQ$5,Bonds!BD38,Bonds!T33) -> 0 | U82: =IF(Inputs!$D$13=Inputs!$AQ$5,Bonds!BD39,Bonds!U33) -> 0 | V82: =IF(Inputs!$D$13=Inputs!$AQ$5,Bonds!BD40,Bonds!V33) -> 0 | W82: =IF(Inputs!$D$13=Inputs!$AQ$5,Bonds!BD41,Bonds!W33) -> 0 | X82: =IF(Inputs!$D$13=Inputs!$AQ$5,Bonds!BD42,Bonds!X33) -> 0
D83: N | E83: =IF(Inputs!$D$13=Inputs!AQ5,Bonds!BE23,Bonds!E32) -> 0 | F83: =IF(Inputs!$D$13=Inputs!AQ5,Bonds!BE24,Bonds!F32) -> 0 | G83: =IF(Inputs!$D$13=Inputs!AQ5,Bonds!BE25,Bonds!G32) -> 0 | H83: =IF(Inputs!$D$13=Inputs!AQ5,Bonds!BE26,Bonds!H32) -> 0 | I83: =IF(Inputs!$D$13=Inputs!AQ5,Bonds!BE27,Bonds!I32) -> 0 | J83: =IF(Inputs!$D$13=Inputs!AQ5,Bonds!BE28,Bonds!J32) -> 0 | K83: =IF(Inputs!$D$13=Inputs!AQ5,Bonds!BE29,Bonds!K32) -> 0 | L83: =IF(Inputs!$D$13=Inputs!AQ5,Bonds!BE30,Bonds!L32) -> 0 | M83: =IF(Inputs!$D$13=Inputs!AQ5,Bonds!BE31,Bonds!M32) -> 0 | N83: =IF(Inputs!$D$13=Inputs!AQ5,Bonds!BE32,Bonds!N32) -> 0 | O83: =IF(Inputs!$D$13=Inputs!AQ5,Bonds!BE33,Bonds!O32) -> 0 | P83: =IF(Inputs!$D$13=Inputs!AQ5,Bonds!BE34,Bonds!P32) -> 0 | Q83: =IF(Inputs!$D$13=Inputs!AQ5,Bonds!BE35,Bonds!Q32) -> 0 | R83: =IF(Inputs!$D$13=Inputs!AQ5,Bonds!BE36,Bonds!R32) -> 0 | S83: =IF(Inputs!$D$13=Inputs!AQ5,Bonds!BE37,Bonds!S32) -> 0 | T83: =IF(Inputs!$D$13=Inputs!AQ5,Bonds!BE38,Bonds!T32) -> 0 | U83: =IF(Inputs!$D$13=Inputs!AQ5,Bonds!BE39,Bonds!U32) -> 0 | V83: =IF(Inputs!$D$13=Inputs!AQ5,Bonds!BE40,Bonds!V32) -> 0 | W83: =IF(Inputs!$D$13=Inputs!AQ5,Bonds!BE41,Bonds!W32) -> 0 | X83: =IF(Inputs!$D$13=Inputs!AQ5,Bonds!BE42,Bonds!X32) -> 0
D84: Deficiency previous gains? | E84: =IF(E81>=0,0,IF(Inputs!$D$13=Inputs!$AQ$5,SUM($AY$23:AY23),SUM($E$25:E25))) -> 0 | F84: =IF(F81>=0,0,IF(Inputs!$D$13=Inputs!$AQ$5,SUM($AY$23:AZ23),SUM($E$25:F25))) -> 0 | G84: =IF(G81>=0,0,IF(Inputs!$D$13=Inputs!$AQ$5,SUM($AY$23:BA23),SUM($E$25:G25))) -> 0 | H84: =IF(H81>=0,0,IF(Inputs!$D$13=Inputs!$AQ$5,SUM($AY$23:BB23),SUM($E$25:H25))) -> 0 | I84: =IF(I81>=0,0,IF(Inputs!$D$13=Inputs!$AQ$5,SUM($AY$23:BC23),SUM($E$25:I25))) -> 0 | J84: =IF(J81>=0,0,IF(Inputs!$D$13=Inputs!$AQ$5,SUM($AY$23:BD23),SUM($E$25:J25))) -> 0 | K84: =IF(K81>=0,0,IF(Inputs!$D$13=Inputs!$AQ$5,SUM($AY$23:BE23),SUM($E$25:K25))) -> 0 | L84: =IF(L81>=0,0,IF(Inputs!$D$13=Inputs!$AQ$5,SUM($AY$23:BF23),SUM($E$25:L25))) -> 0 | M84: =IF(M81>=0,0,IF(Inputs!$D$13=Inputs!$AQ$5,SUM($AY$23:BO23),SUM($E$25:M25))) -> 0 | N84: =IF(N81>=0,0,IF(Inputs!$D$13=Inputs!$AQ$5,SUM($AY$23:BH23),SUM($E$25:N25))) -> 0 | O84: =IF(O81>=0,0,IF(Inputs!$D$13=Inputs!$AQ$5,SUM($AY$23:BI23),SUM($E$25:O25))) -> 0 | P84: =IF(P81>=0,0,IF(Inputs!$D$13=Inputs!$AQ$5,SUM($AY$23:BJ23),SUM($E$25:P25))) -> 0 | Q84: =IF(Q81>=0,0,IF(Inputs!$D$13=Inputs!$AQ$5,SUM($AY$23:BK23),SUM($E$25:Q25))) -> 0 | R84: =IF(R81>=0,0,IF(Inputs!$D$13=Inputs!$AQ$5,SUM($AY$23:BL23),SUM($E$25:R25))) -> 0 | S84: =IF(S81>=0,0,IF(Inputs!$D$13=Inputs!$AQ$5,SUM($AY$23:BN23),SUM($E$25:S25))) -> 0 | T84: =IF(T81>=0,0,IF(Inputs!$D$13=Inputs!$AQ$5,SUM($AY$23:BO23),SUM($E$25:T25))) -> 0 | U84: =IF(U81>=0,0,IF(Inputs!$D$13=Inputs!$AQ$5,SUM($AY$23:BP23),SUM($E$25:U25))) -> 0 | V84: =IF(V81>=0,0,IF(Inputs!$D$13=Inputs!$AQ$5,SUM($AY$23:BQ23),SUM($E$25:V25))) -> 0 | W84: =IF(W81>=0,0,IF(Inputs!$D$13=Inputs!$AQ$5,SUM($AY$23:BR23),SUM($E$25:W25))) -> 0 | X84: =IF(X81>=0,0,IF(Inputs!$D$13=Inputs!$AQ$5,SUM($AY$23:BS23),SUM($E$25:X25))) -> 0 | Y84: Total | Z84: Laat year | AA84: Over term
D85: Tax | E85: ='Yr 1'!$AA$69 -> 0 | F85: ='Yr 2'!$AA$69 -> 0 | G85: ='Yr 3'!$AA$69 -> 0 | H85: ='Yr 4'!$AA$69 -> 0 | I85: ='Yr 5'!$AA$69 -> 0 | J85: ='Yr 6'!$AA$69 -> 0 | K85: ='Yr 7'!$AA$69 -> 0 | L85: ='Yr 8'!$AA$69 -> 0 | M85: ='Yr 9'!$AA$69 -> 0 | N85: ='Yr 10'!$AA$69 -> 0 | O85: ='Yr 11'!$AA$69 -> 0 | P85: ='Yr 12'!$AA$69 -> 0 | Q85: ='Yr 13'!$AA$69 -> 0 | R85: ='Yr 14'!$AA$69 -> 0 | S85: ='Yr 15'!$AA$69 -> 0 | T85: ='Yr 16'!$AA$69 -> 0 | U85: ='Yr 17'!$AA$69 -> 0 | V85: ='Yr 18'!$AA$69 -> 0 | W85: ='Yr 19'!$AA$69 -> 0 | X85: ='Yr 20'!$AA$69 -> 0 | Y85: =SUM(E85:X85) -> 0 | Z85: =IF(Inputs!$D$9="",0,HLOOKUP(Inputs!$D$9,$E$80:$X$89,6,FALSE)) -> 0 | AA85: =Y85-Z85 -> 0
D87: ISA Investment | E87: =IF(AND(Inputs!$AU$21="Yes",Inputs!$AU$24="Yes"),'Parameters_Inc Calcs'!$C$13,0) -> 0 | F87: =E23 -> 0 | G87: 0 | H87: 0 | I87: 0 | J87: 0 | K87: 0 | L87: 0 | M87: 0 | N87: 0 | O87: 0 | P87: 0 | Q87: 0 | R87: 0 | S87: 0 | T87: 0 | U87: 0 | V87: 0 | W87: 0 | X87: 0
D88: ISA Start of Year | E88: =E87 -> 0 | F88: =IF(F42>Inputs!$D$9,0,F87+E89) -> 0 | G88: =IF(G42>Inputs!$D$9,0,G87+F89) -> 0 | H88: =IF(H42>Inputs!$D$9,0,H87+G89) -> 0 | I88: =IF(I42>Inputs!$D$9,0,I87+H89) -> 0 | J88: =IF(J42>Inputs!$D$9,0,J87+I89) -> 0 | K88: =IF(K42>Inputs!$D$9,0,K87+J89) -> 0 | L88: =IF(L42>Inputs!$D$9,0,L87+K89) -> 0 | M88: =IF(M42>Inputs!$D$9,0,M87+L89) -> 0 | N88: =IF(N42>Inputs!$D$9,0,N87+M89) -> 0 | O88: =IF(O42>Inputs!$D$9,0,O87+N89) -> 0 | P88: =IF(P42>Inputs!$D$9,0,P87+O89) -> 0 | Q88: =IF(Q42>Inputs!$D$9,0,Q87+P89) -> 0 | R88: =IF(R42>Inputs!$D$9,0,R87+Q89) -> 0 | S88: =IF(S42>Inputs!$D$9,0,S87+R89) -> 0 | T88: =IF(T42>Inputs!$D$9,0,T87+S89) -> 0 | U88: =IF(U42>Inputs!$D$9,0,U87+T89) -> 0 | V88: =IF(V42>Inputs!$D$9,0,V87+U89) -> 0 | W88: =IF(W42>Inputs!$D$9,0,W87+V89) -> 0 | X88: =IF(X42>Inputs!$D$9,0,X87+W89) -> 0
D89: ISA End of Year | E89: =IF(E42>Inputs!$D$9,0,E88*(1+(SUM($B$43:$B$47)))) -> 0 | F89: =IF(F42>Inputs!$D$9,0,F88*(1+(SUM($B$43:$B$47)))) -> 0 | G89: =IF(G42>Inputs!$D$9,0,G88*(1+(SUM($B$43:$B$47)))) -> 0 | H89: =IF(H42>Inputs!$D$9,0,H88*(1+(SUM($B$43:$B$47)))) -> 0 | I89: =IF(I42>Inputs!$D$9,0,I88*(1+(SUM($B$43:$B$47)))) -> 0 | J89: =IF(J42>Inputs!$D$9,0,J88*(1+(SUM($B$43:$B$47)))) -> 0 | K89: =IF(K42>Inputs!$D$9,0,K88*(1+(SUM($B$43:$B$47)))) -> 0 | L89: =IF(L42>Inputs!$D$9,0,L88*(1+(SUM($B$43:$B$47)))) -> 0 | M89: =IF(M42>Inputs!$D$9,0,M88*(1+(SUM($B$43:$B$47)))) -> 0 | N89: =IF(N42>Inputs!$D$9,0,N88*(1+(SUM($B$43:$B$47)))) -> 0 | O89: =IF(O42>Inputs!$D$9,0,O88*(1+(SUM($B$43:$B$47)))) -> 0 | P89: =IF(P42>Inputs!$D$9,0,P88*(1+(SUM($B$43:$B$47)))) -> 0 | Q89: =IF(Q42>Inputs!$D$9,0,Q88*(1+(SUM($B$43:$B$47)))) -> 0 | R89: =IF(R42>Inputs!$D$9,0,R88*(1+(SUM($B$43:$B$47)))) -> 0 | S89: =IF(S42>Inputs!$D$9,0,S88*(1+(SUM($B$43:$B$47)))) -> 0 | T89: =IF(T42>Inputs!$D$9,0,T88*(1+(SUM($B$43:$B$47)))) -> 0 | U89: =IF(U42>Inputs!$D$9,0,U88*(1+(SUM($B$43:$B$47)))) -> 0 | V89: =IF(V42>Inputs!$D$9,0,V88*(1+(SUM($B$43:$B$47)))) -> 0 | W89: =IF(W42>Inputs!$D$9,0,W88*(1+(SUM($B$43:$B$47)))) -> 0 | X89: =IF(X42>Inputs!$D$9,0,X88*(1+(SUM($B$43:$B$47)))) -> 0 | Y89: =MAX(E89:X89) -> 0
C90: Full and partials only | D90: Segs W/d | E90: =AH23 -> 0 | F90: =AH24 -> 0 | G90: =AH25 -> 0 | H90: =AH26 -> 0 | I90: =AH27 -> 0 | J90: =AH28 -> 0 | K90: =AH29 -> 0 | L90: =AH30 -> 0 | M90: =AH31 -> 0 | N90: =AH32 -> 0 | O90: =AH33 -> 0 | P90: =AH34 -> 0 | Q90: =AH35 -> 0 | R90: =AH36 -> 0 | S90: =AH37 -> 0 | T90: =AH38 -> 0 | U90: =AH39 -> 0 | V90: =AH40 -> 0 | W90: =AH41 -> 0 | X90: =AH42 -> 0
D91: Partial Taken | E91: =AL23 -> 0 | F91: =AL24 -> 0 | G91: =AL25 -> 0 | H91: =AL26 -> 0 | I91: =AL27 -> 0 | J91: =AL28 -> 0 | K91: =AL29 -> 0 | L91: =AL30 -> 0 | M91: =AL31 -> 0 | N91: =AL32 -> 0 | O91: =AL33 -> 0 | P91: =AL34 -> 0 | Q91: =AL35 -> 0 | R91: =AL36 -> 0 | S91: =AL37 -> 0 | T91: =AL38 -> 0 | U91: =AL39 -> 0 | V91: =AL40 -> 0 | W91: =AL41 -> 0 | X91: =AL42 -> 0
D92: Year end value prior to w/d | E92: =E21 -> 0 | F92: 0 | G92: 0 | H92: 0 | I92: 0 | J92: 0 | K92: 0 | L92: 0 | M92: 0 | N92: 0 | O92: 0 | P92: 0 | Q92: 0 | R92: 0 | S92: 0 | T92: 0 | U92: 0 | V92: 0 | W92: 0 | X92: 0
D93: Offshore
E94: =E7 -> 1 | F94: 2 | G94: 3 | H94: 4 | I94: 5 | J94: 6 | K94: 7 | L94: 8 | M94: 9 | N94: 10 | O94: 11 | P94: 12 | Q94: 13 | R94: 14 | S94: 15 | T94: 16 | U94: 17 | V94: 18 | W94: 19 | X94: 20
D95: Gain | E95: =IF(Inputs!$D$13=Inputs!AQ5,Bonds!BC51,Bonds!E61) -> 0 | F95: =IF(Inputs!$D$13=Inputs!AQ5,Bonds!BC52,Bonds!F61) -> 0 | G95: =IF(Inputs!$D$13=Inputs!AQ5,Bonds!BC53,Bonds!G61) -> 0 | H95: =IF(Inputs!$D$13=Inputs!AQ5,Bonds!BC54,Bonds!H61) -> 0 | I95: =IF(Inputs!$D$13=Inputs!AQ5,Bonds!BC55,Bonds!I61) -> 0 | J95: =IF(Inputs!$D$13=Inputs!AQ5,Bonds!BC56,Bonds!J61) -> 0 | K95: =IF(Inputs!$D$13=Inputs!AQ5,Bonds!BC57,Bonds!K61) -> 0 | L95: =IF(Inputs!$D$13=Inputs!AQ5,Bonds!BC58,Bonds!L61) -> 0 | M95: =IF(Inputs!$D$13=Inputs!AQ5,Bonds!BC59,Bonds!M61) -> 0 | N95: =IF(Inputs!$D$13=Inputs!AQ5,Bonds!BC60,Bonds!N61) -> 0 | O95: =IF(Inputs!$D$13=Inputs!AQ5,Bonds!BC61,Bonds!O61) -> 0 | P95: =IF(Inputs!$D$13=Inputs!AQ5,Bonds!BC62,Bonds!P61) -> 0 | Q95: =IF(Inputs!$D$13=Inputs!AQ5,Bonds!BC63,Bonds!Q61) -> 0 | R95: =IF(Inputs!$D$13=Inputs!AQ5,Bonds!BC64,Bonds!R61) -> 0 | S95: =IF(Inputs!$D$13=Inputs!AQ5,Bonds!BC65,Bonds!S61) -> 0 | T95: =IF(Inputs!$D$13=Inputs!$AQ$5,Bonds!BC66,Bonds!T61) -> 0 | U95: =IF(Inputs!$D$13=Inputs!$AQ$5,Bonds!BC67,Bonds!U61) -> 0 | V95: =IF(Inputs!$D$13=Inputs!$AQ$5,Bonds!BC68,Bonds!V61) -> 0 | W95: =IF(Inputs!$D$13=Inputs!$AQ$5,Bonds!BC69,Bonds!W61) -> 0 | X95: =IF(Inputs!$D$13=Inputs!$AQ$5,Bonds!BC70,Bonds!X61) -> 0 | Y95: =IF(Inputs!$D$9="",0,HLOOKUP(Inputs!$D$9,$E$94:$X$103,2,FALSE)) -> 0
D96: Slice | E96: =IF(Inputs!$D$13=Inputs!AQ5,Bonds!BD51,Bonds!E64) -> 0 | F96: =IF(Inputs!$D$13=Inputs!AQ5,Bonds!BD52,Bonds!F64) -> 0 | G96: =IF(Inputs!$D$13=Inputs!AQ5,Bonds!BD53,Bonds!G64) -> 0 | H96: =IF(Inputs!$D$13=Inputs!AQ5,Bonds!BD54,Bonds!H64) -> 0 | I96: =IF(Inputs!$D$13=Inputs!AQ5,Bonds!BD55,Bonds!I64) -> 0 | J96: =IF(Inputs!$D$13=Inputs!AQ5,Bonds!BD56,Bonds!J64) -> 0 | K96: =IF(Inputs!$D$13=Inputs!AQ5,Bonds!BD57,Bonds!K64) -> 0 | L96: =IF(Inputs!$D$13=Inputs!AQ5,Bonds!BD58,Bonds!L64) -> 0 | M96: =IF(Inputs!$D$13=Inputs!AQ5,Bonds!BD59,Bonds!M64) -> 0 | N96: =IF(Inputs!$D$13=Inputs!AQ5,Bonds!BD60,Bonds!N64) -> 0 | O96: =IF(Inputs!$D$13=Inputs!AQ5,Bonds!BD61,Bonds!O64) -> 0 | P96: =IF(Inputs!$D$13=Inputs!AQ5,Bonds!BD62,Bonds!P64) -> 0 | Q96: =IF(Inputs!$D$13=Inputs!AQ5,Bonds!BD63,Bonds!Q64) -> 0 | R96: =IF(Inputs!$D$13=Inputs!AQ5,Bonds!BD64,Bonds!R64) -> 0 | S96: =IF(Inputs!$D$13=Inputs!AQ5,Bonds!BD65,Bonds!S64) -> 0 | T96: =IF(Inputs!$D$13=Inputs!$AQ$5,Bonds!BD66,Bonds!T64) -> 0 | U96: =IF(Inputs!$D$13=Inputs!$AQ$5,Bonds!BD67,Bonds!U64) -> 0 | V96: =IF(Inputs!$D$13=Inputs!$AQ$5,Bonds!BD68,Bonds!V64) -> 0 | W96: =IF(Inputs!$D$13=Inputs!$AQ$5,Bonds!BD69,Bonds!W64) -> 0 | X96: =IF(Inputs!$D$13=Inputs!$AQ$5,Bonds!BD70,Bonds!X64) -> 0
D97: N | E97: =IF(Inputs!$D$13=Inputs!AQ5,Bonds!BE51,Bonds!E63) -> 0 | F97: =IF(Inputs!$D$13=Inputs!AQ5,Bonds!BE52,Bonds!F63) -> 0 | G97: =IF(Inputs!$D$13=Inputs!AQ5,Bonds!BE53,Bonds!G63) -> 0 | H97: =IF(Inputs!$D$13=Inputs!AQ5,Bonds!BE54,Bonds!H63) -> 0 | I97: =IF(Inputs!$D$13=Inputs!AQ5,Bonds!BE55,Bonds!I63) -> 0 | J97: =IF(Inputs!$D$13=Inputs!AQ5,Bonds!BE56,Bonds!J63) -> 0 | K97: =IF(Inputs!$D$13=Inputs!AQ5,Bonds!BE57,Bonds!K63) -> 0 | L97: =IF(Inputs!$D$13=Inputs!AQ5,Bonds!BE58,Bonds!L63) -> 0 | M97: =IF(Inputs!$D$13=Inputs!AQ5,Bonds!BE59,Bonds!M63) -> 0 | N97: =IF(Inputs!$D$13=Inputs!AQ5,Bonds!BE60,Bonds!N63) -> 0 | O97: =IF(Inputs!$D$13=Inputs!AQ5,Bonds!BE61,Bonds!O63) -> 0 | P97: =IF(Inputs!$D$13=Inputs!AQ5,Bonds!BE62,Bonds!P63) -> 0 | Q97: =IF(Inputs!$D$13=Inputs!AQ5,Bonds!BE63,Bonds!Q63) -> 0 | R97: =IF(Inputs!$D$13=Inputs!AQ5,Bonds!BE64,Bonds!R63) -> 0 | S97: =IF(Inputs!$D$13=Inputs!AQ5,Bonds!BE65,Bonds!S63) -> 0 | T97: =IF(Inputs!$D$13=Inputs!$AQ$5,Bonds!BE66,Bonds!T63) -> 0 | U97: =IF(Inputs!$D$13=Inputs!$AQ$5,Bonds!BE67,Bonds!U63) -> 0 | V97: =IF(Inputs!$D$13=Inputs!$AQ$5,Bonds!BE68,Bonds!V63) -> 0 | W97: =IF(Inputs!$D$13=Inputs!$AQ$5,Bonds!BE69,Bonds!W63) -> 0 | X97: =IF(Inputs!$D$13=Inputs!$AQ$5,Bonds!BE70,Bonds!X63) -> 0
D98: Deficiency previous gains? | E98: =IF(E95>=0,0,IF(Inputs!$D$13=Inputs!$AQ$5,SUM($AY$51:AY51),SUM($E$56:E56))) -> 0 | F98: =IF(F95>=0,0,IF(Inputs!$D$13=Inputs!$AQ$5,SUM($AY$51:AZ51),SUM($E$56:F56))) -> 0 | G98: =IF(G95>=0,0,IF(Inputs!$D$13=Inputs!$AQ$5,SUM($AY$51:BA51),SUM($E$56:G56))) -> 0 | H98: =IF(H95>=0,0,IF(Inputs!$D$13=Inputs!$AQ$5,SUM($AY$51:BB51),SUM($E$56:H56))) -> 0 | I98: =IF(I95>=0,0,IF(Inputs!$D$13=Inputs!$AQ$5,SUM($AY$51:BC51),SUM($E$56:I56))) -> 0 | J98: =IF(J95>=0,0,IF(Inputs!$D$13=Inputs!$AQ$5,SUM($AY$51:BD51),SUM($E$56:J56))) -> 0 | K98: =IF(K95>=0,0,IF(Inputs!$D$13=Inputs!$AQ$5,SUM($AY$51:BE51),SUM($E$56:K56))) -> 0 | L98: =IF(L95>=0,0,IF(Inputs!$D$13=Inputs!$AQ$5,SUM($AY$51:BF51),SUM($E$56:L56))) -> 0 | M98: =IF(M95>=0,0,IF(Inputs!$D$13=Inputs!$AQ$5,SUM($AY$51:BG51),SUM($E$56:M56))) -> 0 | N98: =IF(N95>=0,0,IF(Inputs!$D$13=Inputs!$AQ$5,SUM($AY$51:BH51),SUM($E$56:N56))) -> 0 | O98: =IF(O95>=0,0,IF(Inputs!$D$13=Inputs!$AQ$5,SUM($AY$51:BI51),SUM($E$56:O56))) -> 0 | P98: =IF(P95>=0,0,IF(Inputs!$D$13=Inputs!$AQ$5,SUM($AY$51:BJ51),SUM($E$56:P56))) -> 0 | Q98: =IF(Q95>=0,0,IF(Inputs!$D$13=Inputs!$AQ$5,SUM($AY$51:BK51),SUM($E$56:Q56))) -> 0 | R98: =IF(R95>=0,0,IF(Inputs!$D$13=Inputs!$AQ$5,SUM($AY$51:BL51),SUM($E$56:R56))) -> 0 | S98: =IF(S95>=0,0,IF(Inputs!$D$13=Inputs!$AQ$5,SUM($AY$51:BN51),SUM($E$56:S56))) -> 0 | T98: =IF(T95>=0,0,IF(Inputs!$D$13=Inputs!$AQ$5,SUM($AY$51:BO51),SUM($E$56:T56))) -> 0 | U98: =IF(U95>=0,0,IF(Inputs!$D$13=Inputs!$AQ$5,SUM($AY$51:BP51),SUM($E$56:U56))) -> 0 | V98: =IF(V95>=0,0,IF(Inputs!$D$13=Inputs!$AQ$5,SUM($AY$51:BQ51),SUM($E$56:V56))) -> 0 | W98: =IF(W95>=0,0,IF(Inputs!$D$13=Inputs!$AQ$5,SUM($AY$51:BR51),SUM($E$56:W56))) -> 0 | X98: =IF(X95>=0,0,IF(Inputs!$D$13=Inputs!$AQ$5,SUM($AY$51:BS51),SUM($E$56:X56))) -> 0 | Y98: Total | Z98: Laat year | AA98: Over term
D99: Tax | E99: ='Yr 1'!$BL$69 -> 0 | F99: ='Yr 2'!$BL$69 -> 0 | G99: ='Yr 3'!$BL$69 -> 0 | H99: ='Yr 4'!$BL$69 -> 0 | I99: ='Yr 5'!$BL$69 -> 0 | J99: ='Yr 6'!$BL$69 -> 0 | K99: ='Yr 7'!$BL$69 -> 0 | L99: ='Yr 8'!$BL$69 -> 0 | M99: ='Yr 9'!$BL$69 -> 0 | N99: ='Yr 10'!$BL$69 -> 0 | O99: ='Yr 11'!$BL$69 -> 0 | P99: ='Yr 12'!$BL$69 -> 0 | Q99: ='Yr 13'!$BL$69 -> 0 | R99: ='Yr 14'!$BL$69 -> 0 | S99: ='Yr 15'!$BL$69 -> 0 | T99: ='Yr 16'!$BL$69 -> 0 | U99: ='Yr 17'!$BL$69 -> 0 | V99: ='Yr 18'!$BL$69 -> 0 | W99: ='Yr 19'!$BL$69 -> 0 | X99: ='Yr 20'!$BL$69 -> 0 | Y99: =SUM(E99:X99) -> 0 | Z99: =IF(Inputs!$D$9="",0,HLOOKUP(Inputs!$D$9,$E$94:$X$103,6,FALSE)) -> 0 | AA99: =Y99-Z99 -> 0
D101: ISA Investment | E101: =IF(AND(Inputs!$AU$21="Yes",Inputs!$AU$24="Yes"),'Parameters_Inc Calcs'!$C$13,0) -> 0 | F101: =E54 -> 0 | G101: 0 | H101: 0 | I101: 0 | J101: 0 | K101: 0 | L101: 0 | M101: 0 | N101: 0 | O101: 0 | P101: 0 | Q101: 0 | R101: 0 | S101: 0 | T101: 0 | U101: 0 | V101: 0 | W101: 0 | X101: 0
D102: ISA Start of Year | E102: =E101 -> 0 | F102: =IF(F42>Inputs!$D$9,0,F101+E103) -> 0 | G102: =IF(G42>Inputs!$D$9,0,G101+F103) -> 0 | H102: =IF(H42>Inputs!$D$9,0,H101+G103) -> 0 | I102: =IF(I42>Inputs!$D$9,0,I101+H103) -> 0 | J102: =IF(J42>Inputs!$D$9,0,J101+I103) -> 0 | K102: =IF(K42>Inputs!$D$9,0,K101+J103) -> 0 | L102: =IF(L42>Inputs!$D$9,0,L101+K103) -> 0 | M102: =IF(M42>Inputs!$D$9,0,M101+L103) -> 0 | N102: =IF(N42>Inputs!$D$9,0,N101+M103) -> 0 | O102: =IF(O42>Inputs!$D$9,0,O101+N103) -> 0 | P102: =IF(P42>Inputs!$D$9,0,P101+O103) -> 0 | Q102: =IF(Q42>Inputs!$D$9,0,Q101+P103) -> 0 | R102: =IF(R42>Inputs!$D$9,0,R101+Q103) -> 0 | S102: =IF(S42>Inputs!$D$9,0,S101+R103) -> 0 | T102: =IF(T42>Inputs!$D$9,0,T101+S103) -> 0 | U102: =IF(U42>Inputs!$D$9,0,U101+T103) -> 0 | V102: =IF(V42>Inputs!$D$9,0,V101+U103) -> 0 | W102: =IF(W42>Inputs!$D$9,0,W101+V103) -> 0 | X102: =IF(X42>Inputs!$D$9,0,X101+W103) -> 0
D103: ISA End of Year | E103: =IF(E42>Inputs!$D$9,0,E102*(1+(SUM($B$43:$B$47)))) -> 0 | F103: =IF(F42>Inputs!$D$9,0,F102*(1+(SUM($B$43:$B$47)))) -> 0 | G103: =IF(G42>Inputs!$D$9,0,G102*(1+(SUM($B$43:$B$47)))) -> 0 | H103: =IF(H42>Inputs!$D$9,0,H102*(1+(SUM($B$43:$B$47)))) -> 0 | I103: =IF(I42>Inputs!$D$9,0,I102*(1+(SUM($B$43:$B$47)))) -> 0 | J103: =IF(J42>Inputs!$D$9,0,J102*(1+(SUM($B$43:$B$47)))) -> 0 | K103: =IF(K42>Inputs!$D$9,0,K102*(1+(SUM($B$43:$B$47)))) -> 0 | L103: =IF(L42>Inputs!$D$9,0,L102*(1+(SUM($B$43:$B$47)))) -> 0 | M103: =IF(M42>Inputs!$D$9,0,M102*(1+(SUM($B$43:$B$47)))) -> 0 | N103: =IF(N42>Inputs!$D$9,0,N102*(1+(SUM($B$43:$B$47)))) -> 0 | O103: =IF(O42>Inputs!$D$9,0,O102*(1+(SUM($B$43:$B$47)))) -> 0 | P103: =IF(P42>Inputs!$D$9,0,P102*(1+(SUM($B$43:$B$47)))) -> 0 | Q103: =IF(Q42>Inputs!$D$9,0,Q102*(1+(SUM($B$43:$B$47)))) -> 0 | R103: =IF(R42>Inputs!$D$9,0,R102*(1+(SUM($B$43:$B$47)))) -> 0 | S103: =IF(S42>Inputs!$D$9,0,S102*(1+(SUM($B$43:$B$47)))) -> 0 | T103: =IF(T42>Inputs!$D$9,0,T102*(1+(SUM($B$43:$B$47)))) -> 0 | U103: =IF(U42>Inputs!$D$9,0,U102*(1+(SUM($B$43:$B$47)))) -> 0 | V103: =IF(V42>Inputs!$D$9,0,V102*(1+(SUM($B$43:$B$47)))) -> 0 | W103: =IF(W42>Inputs!$D$9,0,W102*(1+(SUM($B$43:$B$47)))) -> 0 | X103: =IF(X42>Inputs!$D$9,0,X102*(1+(SUM($B$43:$B$47)))) -> 0 | Y103: =MAX(E103:X103) -> 0
D104: Segs W/d | E104: =AH51 -> 0 | F104: =AH52 -> 0 | G104: =AH53 -> 0 | H104: =AH54 -> 0 | I104: =AH55 -> 0 | J104: =AH56 -> 0 | K104: =AH57 -> 0 | L104: =AH58 -> 0 | M104: =AH59 -> 0 | N104: =AH60 -> 0 | O104: =AH61 -> 0 | P104: =AH62 -> 0 | Q104: =AH63 -> 0 | R104: =AH64 -> 0 | S104: =AH65 -> 0 | T104: =AH66 -> 0 | U104: =AH67 -> 0 | V104: =AH68 -> 0 | W104: =AH69 -> 0 | X104: =AH70 -> 0
D105: Partial Taken | E105: =AL51 -> 0 | F105: =AL52 -> 0 | G105: =AL53 -> 0 | H105: =AL54 -> 0 | I105: =AL55 -> 0 | J105: =AL56 -> 0 | K105: =AL57 -> 0 | L105: =AL58 -> 0 | M105: =AL59 -> 0 | N105: =AL60 -> 0 | O105: =AL61 -> 0 | P105: =AL62 -> 0 | Q105: =AL63 -> 0 | R105: =AL64 -> 0 | S105: =AL65 -> 0 | T105: =AL66 -> 0 | U105: =AL67 -> 0 | V105: =AL68 -> 0 | W105: =AL69 -> 0 | X105: =AL70 -> 0
D106: Year end value prior to w/d | E106: =E52 -> 0 | F106: 0 | G106: 0 | H106: 0 | I106: 0 | J106: 0 | K106: 0 | L106: 0 | M106: 0 | N106: 0 | O106: 0 | P106: 0 | Q106: 0 | R106: 0 | S106: 0 | T106: 0 | U106: 0 | V106: 0 | W106: 0 | X106: 0
G108: 26218
E110: 1 | F110: =E110+1 -> 2 | G110: =F110+1 -> 3 | H110: 4 | I110: 5 | J110: 6 | K110: 7 | L110: 8 | M110: =L110+1 -> 9 | N110: =M110+1 -> 10 | O110: 11 | P110: 12 | Q110: 13 | R110: 14 | S110: 15 | T110: 16 | U110: 17 | V110: 18 | W110: 19 | X110: 20
D111: For surrender calcs
D113: ONSHORE
D115: Gain | E115: =IF(Inputs!$D$13=Inputs!$AQ$6,Bonds!E34,Bonds!BK23) -> 0 | F115: =IF(Inputs!$D$13=Inputs!$AQ$6,Bonds!F34,Bonds!BK24) -> 0 | G115: =IF(Inputs!$D$13=Inputs!$AQ$6,Bonds!G34,Bonds!BK25) -> 0 | H115: =IF(Inputs!$D$13=Inputs!$AQ$6,Bonds!H34,Bonds!BK26) -> 0 | I115: =IF(Inputs!$D$13=Inputs!$AQ$6,Bonds!I34,Bonds!BK27) -> 0 | J115: =IF(Inputs!$D$13=Inputs!$AQ$6,Bonds!J34,Bonds!BK28) -> 0 | K115: =IF(Inputs!$D$13=Inputs!$AQ$6,Bonds!K34,Bonds!BK29) -> 0 | L115: =IF(Inputs!$D$13=Inputs!$AQ$6,Bonds!L34,Bonds!BK30) -> 0 | M115: =IF(Inputs!$D$13=Inputs!$AQ$6,Bonds!M34,Bonds!BK31) -> 0 | N115: =IF(Inputs!$D$13=Inputs!$AQ$6,Bonds!N34,Bonds!BK32) -> 0 | O115: =IF(Inputs!$D$13=Inputs!$AQ$6,Bonds!O34,Bonds!BK33) -> 0 | P115: =IF(Inputs!$D$13=Inputs!$AQ$6,Bonds!P34,Bonds!BK34) -> 0 | Q115: =IF(Inputs!$D$13=Inputs!$AQ$6,Bonds!Q34,Bonds!BK35) -> 0 | R115: =IF(Inputs!$D$13=Inputs!$AQ$6,Bonds!R34,Bonds!BK36) -> 0 | S115: =IF(Inputs!$D$13=Inputs!$AQ$6,Bonds!S34,Bonds!BK37) -> 0 | T115: =IF(Inputs!$D$13=Inputs!$AQ$6,Bonds!T34,Bonds!BK38) -> 0 | U115: =IF(Inputs!$D$13=Inputs!$AQ$6,Bonds!U34,Bonds!BK39) -> 0 | V115: =IF(Inputs!$D$13=Inputs!$AQ$6,Bonds!V34,Bonds!BK40) -> 0 | W115: =IF(Inputs!$D$13=Inputs!$AQ$6,Bonds!W34,Bonds!BK41) -> 0 | X115: =IF(Inputs!$D$13=Inputs!$AQ$6,Bonds!X34,Bonds!BK42) -> 0
D116: Slice | E116: =E115/E7 -> 0 | F116: 0 | G116: 0 | H116: 0 | I116: 0 | J116: 0 | K116: 0 | L116: 0 | M116: 0 | N116: 0 | O116: 0 | P116: 0 | Q116: 0 | R116: 0 | S116: 0 | T116: 0 | U116: 0 | V116: 0 | W116: 0 | X116: =X115/X7 -> 0
D117: Gross SV | E117: =E21 -> 0 | F117: 0 | G117: 0 | H117: 0 | I117: 0 | J117: 0 | K117: 0 | L117: 0 | M117: 0 | N117: 0 | O117: 0 | P117: 0 | Q117: 0 | R117: 0 | S117: 0 | T117: 0 | U117: 0 | V117: 0 | W117: 0 | X117: 0
B118: Param | C118: 0.25 | D118: Assumed tax for simple calcs - surrender | E118: =E115*$C$118 -> 0 | F118: =F115*$C$118 -> 0 | G118: 0 | H118: 0 | I118: 0 | J118: 0 | K118: 0 | L118: 0 | M118: 0 | N118: 0 | O118: 0 | P118: 0 | Q118: 0 | R118: 0 | S118: 0 | T118: 0 | U118: 0 | V118: 0 | W118: 0 | X118: 0
D119: Cumulative Tax - Journey | E119: =E85 -> 0 | F119: =E119+F85 -> 0 | G119: =F119+G85 -> 0 | H119: 0 | I119: 0 | J119: 0 | K119: 0 | L119: 0 | M119: 0 | N119: 0 | O119: 0 | P119: 0 | Q119: 0 | R119: 0 | S119: 0 | T119: 0 | U119: 0 | V119: 0 | W119: 0 | X119: =W119+X85 -> 0
D120: Surrender Tax + cumulative | E120: =E118 -> 0 | F120: =F118+E119 -> 0 | G120: =G118+F119 -> 0 | H120: =H118+G119 -> 0 | I120: 0 | J120: 0 | K120: 0 | L120: 0 | M120: 0 | N120: 0 | O120: 0 | P120: 0 | Q120: 0 | R120: 0 | S120: 0 | T120: 0 | U120: 0 | V120: 0 | W120: 0 | X120: 0
D121: Net SV | E121: =E117-E120 -> 0 | F121: =F117-F120 -> 0 | G121: 0 | H121: 0 | I121: 0 | J121: 0 | K121: 0 | L121: 0 | M121: 0 | N121: 0 | O121: 0 | P121: 0 | Q121: 0 | R121: 0 | S121: 0 | T121: 0 | U121: 0 | V121: 0 | W121: 0 | X121: 0
D122: OFFSHORE
D124: =D115 -> Gain | E124: =IF(Inputs!$D$13=Inputs!$AQ$6,Bonds!E65,Bonds!BK51) -> 0 | F124: =IF(Inputs!$D$13=Inputs!$AQ$6,Bonds!F65,Bonds!BK52) -> 0 | G124: =IF(Inputs!$D$13=Inputs!$AQ$6,Bonds!G65,Bonds!BK53) -> 0 | H124: =IF(Inputs!$D$13=Inputs!$AQ$6,Bonds!H65,Bonds!BK54) -> 0 | I124: =IF(Inputs!$D$13=Inputs!$AQ$6,Bonds!I65,Bonds!BK55) -> 0 | J124: =IF(Inputs!$D$13=Inputs!$AQ$6,Bonds!J65,Bonds!BK56) -> 0 | K124: =IF(Inputs!$D$13=Inputs!$AQ$6,Bonds!K65,Bonds!BK57) -> 0 | L124: =IF(Inputs!$D$13=Inputs!$AQ$6,Bonds!L65,Bonds!BK58) -> 0 | M124: =IF(Inputs!$D$13=Inputs!$AQ$6,Bonds!M65,Bonds!BK59) -> 0 | N124: =IF(Inputs!$D$13=Inputs!$AQ$6,Bonds!N65,Bonds!BK60) -> 0 | O124: =IF(Inputs!$D$13=Inputs!$AQ$6,Bonds!O65,Bonds!BK61) -> 0 | P124: =IF(Inputs!$D$13=Inputs!$AQ$6,Bonds!P65,Bonds!BK62) -> 0 | Q124: =IF(Inputs!$D$13=Inputs!$AQ$6,Bonds!Q65,Bonds!BK63) -> 0 | R124: =IF(Inputs!$D$13=Inputs!$AQ$6,Bonds!R65,Bonds!BK64) -> 0 | S124: =IF(Inputs!$D$13=Inputs!$AQ$6,Bonds!S65,Bonds!BK65) -> 0 | T124: =IF(Inputs!$D$13=Inputs!$AQ$6,Bonds!T65,Bonds!BK66) -> 0 | U124: =IF(Inputs!$D$13=Inputs!$AQ$6,Bonds!U65,Bonds!BK67) -> 0 | V124: =IF(Inputs!$D$13=Inputs!$AQ$6,Bonds!V65,Bonds!BK68) -> 0 | W124: =IF(Inputs!$D$13=Inputs!$AQ$6,Bonds!W65,Bonds!BK69) -> 0 | X124: =IF(Inputs!$D$13=Inputs!$AQ$6,Bonds!X65,Bonds!BK70) -> 0
D125: =D116 -> Slice | E125: =E124/E7 -> 0 | F125: 0 | G125: 0 | H125: 0 | I125: 0 | J125: 0 | K125: 0 | L125: 0 | M125: 0 | N125: 0 | O125: 0 | P125: 0 | Q125: 0 | R125: 0 | S125: 0 | T125: 0 | U125: 0 | V125: 0 | W125: 0 | X125: 0
D126: Gross SV | E126: =E52 -> 0 | F126: 0 | G126: 0 | H126: 0 | I126: 0 | J126: 0 | K126: 0 | L126: 0 | M126: 0 | N126: 0 | O126: 0 | P126: 0 | Q126: 0 | R126: 0 | S126: 0 | T126: 0 | U126: 0 | V126: 0 | W126: 0 | X126: 0
B127: Simple | C127: 0.45 | D127: =D118 -> Assumed tax for simple calcs - surrender | E127: =E124*$C$127 -> 0 | F127: =F124*$C$127 -> 0 | G127: 0 | H127: 0 | I127: 0 | J127: 0 | K127: 0 | L127: 0 | M127: 0 | N127: 0 | O127: 0 | P127: 0 | Q127: 0 | R127: 0 | S127: 0 | T127: 0 | U127: 0 | V127: 0 | W127: 0 | X127: 0
D128: Cumulative Tax - Journey | E128: =E99 -> 0 | F128: =E128+F99 -> 0 | G128: =F128+G99 -> 0 | H128: 0 | I128: 0 | J128: 0 | K128: 0 | L128: 0 | M128: 0 | N128: 0 | O128: 0 | P128: 0 | Q128: 0 | R128: 0 | S128: 0 | T128: 0 | U128: 0 | V128: 0 | W128: 0 | X128: =W128+X99 -> 0
D129: Surrender Tax + cumulative | E129: =E127 -> 0 | F129: =F127+E128 -> 0 | G129: =G127+F128 -> 0 | H129: 0 | I129: 0 | J129: 0 | K129: 0 | L129: 0 | M129: 0 | N129: 0 | O129: 0 | P129: 0 | Q129: 0 | R129: 0 | S129: 0 | T129: 0 | U129: 0 | V129: 0 | W129: 0 | X129: =X127+W128 -> 0
D130: =D121 -> Net SV | E130: =E126-E129 -> 0 | F130: 0 | G130: 0 | H130: 0 | I130: 0 | J130: 0 | K130: 0 | L130: 0 | M130: 0 | N130: 0 | O130: 0 | P130: =P126-P129 -> 0 | Q130: 0 | R130: 0 | S130: 0 | T130: 0 | U130: 0 | V130: 0 | W130: 0 | X130: =X126-X129 -> 0
E131: =E130-E121 -> 0 | F131: =F130-F121 -> 0 | G131: =G130-G121 -> 0 | H131: 0 | I131: 0 | J131: 0 | K131: 0 | L131: 0 | M131: 0 | N131: 0 | O131: 0 | P131: =P130-P121 -> 0 | Q131: =Q130-Q121 -> 0 | R131: =R130-R121 -> 0 | S131: =S130-S121 -> 0 | T131: =T130-T121 -> 0 | U131: =U130-U121 -> 0 | V131: =V130-V121 -> 0 | W131: =W130-W121 -> 0 | X131: =X130-X121 -> 0
C135: Onshore | D135: =D115 -> Gain | E135: =IF(E115=0,NA(),E115) ->  | F135: =IF(F115=0,NA(),F115) ->  | G135: =IF(G115=0,NA(),G115) -> 
D136: =D116 -> Slice | E136: =IF(E116=0,NA(),E116) ->  | F136: =IF(F116=0,NA(),F116) ->  | X136: =IF(X116=0,NA(),X116) -> 
C137: Offshore | D137: =D124 -> Gain | E137: =IF(E124=0,NA(),E124) ->  | F137: =IF(F124=0,NA(),F124) ->  | N137: =IF(N124=0,NA(),N124) -> 
D138: =D125 -> Slice | E138: =IF(E125=0,NA(),E125) ->  | F138: =IF(F125=0,NA(),F125) -> 
C142: No Tax
C143: 0 | D143: Onshore | E143: =E135*(1-$C$143) -> 
D144: Offshore | E144: =E137*(1-$C$143) -> 
C145: 0.2 | D145: =D143 -> Onshore | E145: =E135*(1-$C$145) -> 
C146: 0.25 | D146: Offshore | E146: =E137*(1-$C$146) -> 
C147: 0.22 | D147: Onshore | E147: =E135*(1-$C$147) ->  | F147: =F135*(1-$C$147) -> 
C148: 0.42 | D148: Offshore | E148: =E137*(1-$C$148) ->  | F148: =F137*(1-$C$148) -> 
C149: 0.25 | D149: Onshore | E149: =E135*(1-$C$149) ->  | F149: =F135*(1-$C$149) -> 
C150: 0.47 | D150: Offshore | E150: =E137*(1-$C$150) ->  | F150: =F137*(1-$C$150) -> 
D154: No Tax | E154: =E144-E143 ->  | F154: =F144-F143 ->  | K154: =K144-K143 -> 
D155: Basic Rate | E155: =E146-E145 ->  | F155: =F146-F145 ->  | G155: =G146-G145 ->  | H155: =H146-H145 ->  | I155: =I146-I145 -> 
D156: Higher Rate | E156: =E148-E147 ->  | F156: =F148-F147 -> 
D157: Additional Rate | E157: =E150-E149 ->  | F157: =F150-F149 -> 
D159: Big mega meaty tax calcs
E161: =E42 -> 1 | F161: 2 | G161: 3 | H161: 4 | I161: 5 | J161: 6 | K161: 7 | L161: 8 | M161: 9 | N161: 10 | O161: 11 | P161: 12 | Q161: 13 | R161: 14 | S161: 15 | T161: 16 | U161: 17 | V161: 18 | W161: 19 | X161: 20
D162: Surrender Value Onshore | E162: =E92 -> 0 | F162: =F92 -> 0 | G162: =G92 -> 0 | H162: 0 | I162: 0 | J162: 0 | K162: 0 | L162: 0 | M162: 0 | N162: 0 | O162: 0 | P162: 0 | Q162: 0 | R162: 0 | S162: 0 | T162: 0 | U162: 0 | V162: 0 | W162: 0 | X162: 0
D163: Surrender Value Offshore | E163: =E106 -> 0 | F163: =F106 -> 0 | G163: 0 | H163: =H106 -> 0 | I163: 0 | J163: 0 | K163: 0 | L163: 0 | M163: 0 | N163: 0 | O163: 0 | P163: 0 | Q163: 0 | R163: 0 | S163: 0 | T163: 0 | U163: 0 | V163: 0 | W163: 0 | X163: 0
B166: Hardcoded yr1 0 ad no w/d in year of encashment | D166: Cumulative W/d Onshore | E166: 0 | F166: =E166+Bonds!E24 -> 0 | G166: =F166+Bonds!F24 -> 0 | H166: =G166+Bonds!G24 -> 0 | I166: =H166+Bonds!H24 -> 0 | J166: =I166+Bonds!I24 -> 0 | K166: =J166+Bonds!J24 -> 0 | L166: =K166+Bonds!K24 -> 0 | M166: =L166+Bonds!L24 -> 0 | N166: =M166+Bonds!M24 -> 0 | O166: =N166+Bonds!N24 -> 0 | P166: =O166+Bonds!O24 -> 0 | Q166: =P166+Bonds!P24 -> 0 | R166: =Q166+Bonds!Q24 -> 0 | S166: =R166+Bonds!R24 -> 0 | T166: =S166+Bonds!S24 -> 0 | U166: =T166+Bonds!T24 -> 0 | V166: =U166+Bonds!U24 -> 0 | W166: =V166+Bonds!V24 -> 0 | X166: =W166+Bonds!W24 -> 0
D167: Cumulative W/d Offshore | E167: 0 | F167: =E167+Bonds!E55 -> 0 | G167: =F167+Bonds!F55 -> 0 | H167: =G167+Bonds!G55 -> 0 | I167: =H167+Bonds!H55 -> 0 | J167: =I167+Bonds!I55 -> 0 | K167: =J167+Bonds!J55 -> 0 | L167: =K167+Bonds!K55 -> 0 | M167: =L167+Bonds!L55 -> 0 | N167: =M167+Bonds!M55 -> 0 | O167: =N167+Bonds!N55 -> 0 | P167: =O167+Bonds!O55 -> 0 | Q167: =P167+Bonds!P55 -> 0 | R167: =Q167+Bonds!Q55 -> 0 | S167: =R167+Bonds!R55 -> 0 | T167: =S167+Bonds!S55 -> 0 | U167: =T167+Bonds!T55 -> 0 | V167: =U167+Bonds!U55 -> 0 | W167: =V167+Bonds!V55 -> 0 | X167: =W167+Bonds!W55 -> 0
D168: Cumulative Tax Onshore | E168: 0 | F168: =SUM($E$85:E85) -> 0 | G168: =SUM($E$85:F85) -> 0 | H168: =SUM($E$85:G85) -> 0 | I168: =SUM($E$85:H85) -> 0 | J168: =SUM($E$85:I85) -> 0 | K168: =SUM($E$85:J85) -> 0 | L168: =SUM($E$85:K85) -> 0 | M168: =SUM($E$85:L85) -> 0 | N168: =SUM($E$85:M85) -> 0 | O168: =SUM($E$85:N85) -> 0 | P168: =SUM($E$85:O85) -> 0 | Q168: =SUM($E$85:P85) -> 0 | R168: =SUM($E$85:Q85) -> 0 | S168: =SUM($E$85:R85) -> 0 | T168: =SUM($E$85:S85) -> 0 | U168: =SUM($E$85:T85) -> 0 | V168: =SUM($E$85:U85) -> 0 | W168: =SUM($E$85:V85) -> 0 | X168: =SUM($E$85:W85) -> 0
D169: Cumulative Tax Offshore | E169: 0 | F169: =SUM($E$99:E99) -> 0 | G169: =SUM($E$99:F99) -> 0 | H169: =SUM($E$99:G99) -> 0 | I169: =SUM($E$99:H99) -> 0 | J169: =SUM($E$99:I99) -> 0 | K169: =SUM($E$99:J99) -> 0 | L169: =SUM($E$99:K99) -> 0 | M169: =SUM($E$99:L99) -> 0 | N169: =SUM($E$99:M99) -> 0 | O169: =SUM($E$99:N99) -> 0 | P169: =SUM($E$99:O99) -> 0 | Q169: =SUM($E$99:P99) -> 0 | R169: =SUM($E$99:Q99) -> 0 | S169: =SUM($E$99:R99) -> 0 | T169: =SUM($E$99:S99) -> 0 | U169: =SUM($E$99:T99) -> 0 | V169: =SUM($E$99:U99) -> 0 | W169: =SUM($E$99:V99) -> 0 | X169: =SUM($E$99:W99) -> 0
D170: Surrender Tax Onshore | E170: ='Yr 1'!$CW$69 -> 0 | F170: ='Yr 2'!$CW$69 -> 0 | G170: ='Yr 3'!$CW$69 -> 0 | H170: ='Yr 4'!$CW$69 -> 0 | I170: ='Yr 5'!$CW$69 -> 0 | J170: ='Yr 6'!$CW$69 -> 0 | K170: ='Yr 7'!$CW$69 -> 0 | L170: ='Yr 8'!$CW$69 -> 0 | M170: ='Yr 9'!$CW$69 -> 0 | N170: ='Yr 10'!$CW$69 -> 0 | O170: ='Yr 11'!$CW$69 -> 0 | P170: ='Yr 12'!$CW$69 -> 0 | Q170: ='Yr 13'!$CW$69 -> 0 | R170: ='Yr 14'!$CW$69 -> 0 | S170: ='Yr 15'!$CW$69 -> 0 | T170: ='Yr 16'!$CW$69 -> 0 | U170: ='Yr 17'!$CW$69 -> 0 | V170: ='Yr 18'!$CW$69 -> 0 | W170: ='Yr 19'!$CW$69 -> 0 | X170: ='Yr 20'!$CW$69 -> 0
D171: Surrender Tax Offshore | E171: ='Yr 1'!$EH$69 -> 0 | F171: ='Yr 2'!$EH$69 -> 0 | G171: ='Yr 3'!$EH$69 -> 0 | H171: ='Yr 4'!$EH$69 -> 0 | I171: ='Yr 5'!$EH$69 -> 0 | J171: ='Yr 6'!$EH$69 -> 0 | K171: ='Yr 7'!$EH$69 -> 0 | L171: ='Yr 8'!$EH$69 -> 0 | M171: ='Yr 9'!$EH$69 -> 0 | N171: ='Yr 10'!$EH$69 -> 0 | O171: ='Yr 11'!$EH$69 -> 0 | P171: ='Yr 12'!$EH$69 -> 0 | Q171: ='Yr 13'!$EH$69 -> 0 | R171: ='Yr 14'!$EH$69 -> 0 | S171: ='Yr 15'!$EH$69 -> 0 | T171: ='Yr 16'!$EH$69 -> 0 | U171: ='Yr 17'!$EH$69 -> 0 | V171: ='Yr 18'!$EH$69 -> 0 | W171: ='Yr 19'!$EH$69 -> 0 | X171: ='Yr 20'!$EH$69 -> 0
D173: Net Value Onshore (Total) | E173: =E162+E166-E168-E170 -> 0 | F173: =F162+F166-F168-F170 -> 0 | G173: =G162+G166-G168-G170 -> 0 | H173: 0 | I173: 0 | J173: 0 | K173: 0 | L173: 0 | M173: 0 | N173: 0 | O173: 0 | P173: =P162+P166-P168-P170 -> 0 | Q173: 0 | R173: =R162+R166-R168-R170 -> 0 | S173: 0 | T173: 0 | U173: 0 | V173: 0 | W173: 0 | X173: 0
D174: Net Value Offshore (Total) | E174: =E163+E167-E169-E171 -> 0 | F174: =F163+F167-F169-F171 -> 0 | G174: 0 | H174: 0 | I174: 0 | J174: 0 | K174: 0 | L174: 0 | M174: 0 | N174: 0 | O174: 0 | P174: =P163+P167-P169-P171 -> 0 | Q174: 0 | R174: 0 | S174: 0 | T174: 0 | U174: 0 | V174: 0 | W174: 0 | X174: 0
D176: Year of Investment | E176: =E161 -> 1 | F176: =F161 -> 2 | G176: 3 | H176: 4 | I176: 5 | J176: 6 | K176: 7 | L176: 8 | M176: 9 | N176: 10 | O176: 11 | P176: 12 | Q176: 13 | R176: 14 | S176: 15 | T176: 16 | U176: 17 | V176: 18 | W176: 19 | X176: 20
D177: Difference off to on - Full calcs | E177: =E174-E173 -> 0 | F177: =F174-F173 -> 0 | G177: 0 | H177: =H174-H173 -> 0 | I177: 0 | J177: 0 | K177: 0 | L177: 0 | M177: 0 | N177: =N174-N173 -> 0 | O177: 0 | P177: =P174-P173 -> 0 | Q177: =Q174-Q173 -> 0 | R177: 0 | S177: 0 | T177: 0 | U177: 0 | V177: 0 | W177: 0 | X177: =X174-X173 -> 0
E180: =E131-E177 -> 0 | F180: 0 | G180: 0 | H180: 0 | I180: 0 | J180: 0 | K180: 0 | L180: 0 | M180: 0 | N180: 0 | O180: 0 | P180: 0 | Q180: 0 | R180: 0 | S180: 0 | T180: 0 | U180: 0 | V180: 0 | W180: 0 | X180: 0
D182: Percentage variance from tax simple vs full to o/s net sv | E182: =E180/E174 ->  | F182: =F180/F174 -> 
B187: Simple Net SV Calcs | C187: 0 | D187: Non | E187: =E117-(E115*$C$187) -> 0 | F187: =F117-((F115*$C$187)+E119) -> 0 | G187: =G117-((G115*$C$187)+F119) -> 0 | H187: 0 | I187: 0 | J187: =J117-((J115*$C$187)+I119) -> 0 | K187: 0 | L187: 0 | M187: 0 | N187: 0 | O187: 0 | P187: 0 | Q187: 0 | R187: 0 | S187: 0 | T187: 0 | U187: 0 | V187: 0 | W187: 0 | X187: 0
C188: 0 | D188: Basic | E188: =E117-(E115*$C$188) -> 0 | F188: =F117-((F115*$C$188)+E119) -> 0 | G188: =G117-((G115*$C$188)+F119) -> 0 | H188: 0 | I188: 0 | J188: 0 | K188: 0 | L188: 0 | M188: 0 | N188: 0 | O188: 0 | P188: 0 | Q188: 0 | R188: 0 | S188: 0 | T188: 0 | U188: 0 | V188: 0 | W188: 0 | X188: =X117-((X115*$C$188)+W119) -> 0
C189: 0.2 | D189: Higher | E189: =E117-(E115*$C$189) -> 0 | F189: =F117-((F115*$C$189)+E119) -> 0 | G189: =G117-((G115*$C$189)+F119) -> 0 | H189: =H117-((H115*$C$189)+G119) -> 0 | I189: 0 | J189: 0 | K189: 0 | L189: 0 | M189: 0 | N189: 0 | O189: 0 | P189: 0 | Q189: 0 | R189: 0 | S189: 0 | T189: 0 | U189: 0 | V189: 0 | W189: 0 | X189: 0
C190: 0.25 | D190: Additional | E190: =E117-(E115*$C$190) -> 0 | F190: =F117-((F115*$C$190)+E119) -> 0 | G190: =G117-((G115*$C$190)+F119) -> 0 | H190: 0 | I190: 0 | J190: 0 | K190: 0 | L190: 0 | M190: 0 | N190: 0 | O190: 0 | P190: 0 | Q190: 0 | R190: 0 | S190: 0 | T190: 0 | U190: 0 | V190: 0 | W190: 0 | X190: =X117-((X115*$C$190)+W119) -> 0
C191: 0 | D191: =D187 -> Non | E191: =E126-(E124*$C$191) -> 0 | F191: =F126-((F124*$C$191)+E128) -> 0 | G191: =G126-((G124*$C$191)+F128) -> 0 | H191: =H126-((H124*$C$191)+G128) -> 0 | I191: =I126-((I124*$C$191)+H128) -> 0 | J191: =J126-((J124*$C$191)+I128) -> 0 | K191: 0 | L191: 0 | M191: 0 | N191: 0 | O191: 0 | P191: 0 | Q191: 0 | R191: 0 | S191: 0 | T191: 0 | U191: 0 | V191: 0 | W191: 0 | X191: 0
C192: 0.22 | D192: =D188 -> Basic | E192: =E126-(E124*$C$192) -> 0 | F192: =F126-((F124*$C$192)+E128) -> 0 | G192: =G126-((G124*$C$192)+F128) -> 0 | H192: =H126-((H124*$C$192)+G128) -> 0 | I192: 0 | J192: 0 | K192: 0 | L192: 0 | M192: 0 | N192: 0 | O192: 0 | P192: 0 | Q192: =Q126-((Q124*$C$192)+P128) -> 0 | R192: 0 | S192: 0 | T192: 0 | U192: 0 | V192: 0 | W192: 0 | X192: =X126-((X124*$C$192)+W128) -> 0
C193: 0.42 | D193: Higher | E193: =E126-(E124*$C$193) -> 0 | F193: =F126-((F124*$C$193)+E128) -> 0 | G193: =G126-((G124*$C$193)+F128) -> 0 | H193: =H126-((H124*$C$193)+G128) -> 0 | I193: 0 | J193: 0 | K193: 0 | L193: 0 | M193: 0 | N193: 0 | O193: 0 | P193: 0 | Q193: 0 | R193: 0 | S193: 0 | T193: 0 | U193: 0 | V193: 0 | W193: 0 | X193: =X126-((X124*$C$193)+W128) -> 0
C194: 0.47 | D194: Additional | E194: =E126-(E124*$C$194) -> 0 | F194: =F126-((F124*$C$194)+E128) -> 0 | G194: =G126-((G124*$C$194)+F128) -> 0 | H194: 0 | I194: 0 | J194: 0 | K194: 0 | L194: 0 | M194: 0 | N194: 0 | O194: 0 | P194: 0 | Q194: 0 | R194: 0 | S194: 0 | T194: 0 | U194: 0 | V194: 0 | W194: 0 | X194: 0
D197: Assumed Non | E197: =IF(E80>Inputs!$D$9,NA(),E191-E187) ->  | F197: =IF(F80>Inputs!$D$9,NA(),F191-F187) ->  | G197: =IF(G80>Inputs!$D$9,NA(),G191-G187) ->  | H197: =IF(H80>Inputs!$D$9,NA(),H191-H187) ->  | I197: =IF(I80>Inputs!$D$9,NA(),I191-I187) ->  | J197: =IF(J80>Inputs!$D$9,NA(),J191-J187) ->  | K197: =IF(K80>Inputs!$D$9,NA(),K191-K187) ->  | L197: =IF(L80>Inputs!$D$9,NA(),L191-L187) ->  | M197: =IF(M80>Inputs!$D$9,NA(),M191-M187) ->  | N197: =IF(N80>Inputs!$D$9,NA(),N191-N187) ->  | O197: =IF(O80>Inputs!$D$9,NA(),O191-O187) ->  | P197: =IF(P80>Inputs!$D$9,NA(),P191-P187) ->  | Q197: =IF(Q80>Inputs!$D$9,NA(),Q191-Q187) ->  | R197: =IF(R80>Inputs!$D$9,NA(),R191-R187) ->  | S197: =IF(S80>Inputs!$D$9,NA(),S191-S187) ->  | T197: =IF(T80>Inputs!$D$9,NA(),T191-T187) ->  | U197: =IF(U80>Inputs!$D$9,NA(),U191-U187) ->  | V197: =IF(V80>Inputs!$D$9,NA(),V191-V187) ->  | W197: =IF(W80>Inputs!$D$9,NA(),W191-W187) ->  | X197: =IF(X80>Inputs!$D$9,NA(),X191-X187) -> 
D198: Assumed Basic | E198: =IF(E80>Inputs!$D$9,NA(),E192-E188) ->  | F198: =IF(F80>Inputs!$D$9,NA(),F192-F188) ->  | G198: =IF(G80>Inputs!$D$9,NA(),G192-G188) ->  | H198: =IF(H80>Inputs!$D$9,NA(),H192-H188) ->  | I198: =IF(I80>Inputs!$D$9,NA(),I192-I188) ->  | J198: =IF(J80>Inputs!$D$9,NA(),J192-J188) ->  | K198: =IF(K80>Inputs!$D$9,NA(),K192-K188) ->  | L198: =IF(L80>Inputs!$D$9,NA(),L192-L188) ->  | M198: =IF(M80>Inputs!$D$9,NA(),M192-M188) ->  | N198: =IF(N80>Inputs!$D$9,NA(),N192-N188) ->  | O198: =IF(O80>Inputs!$D$9,NA(),O192-O188) ->  | P198: =IF(P80>Inputs!$D$9,NA(),P192-P188) ->  | Q198: =IF(Q80>Inputs!$D$9,NA(),Q192-Q188) ->  | R198: =IF(R80>Inputs!$D$9,NA(),R192-R188) ->  | S198: =IF(S80>Inputs!$D$9,NA(),S192-S188) ->  | T198: =IF(T80>Inputs!$D$9,NA(),T192-T188) ->  | U198: =IF(U80>Inputs!$D$9,NA(),U192-U188) ->  | V198: =IF(V80>Inputs!$D$9,NA(),V192-V188) ->  | W198: =IF(W80>Inputs!$D$9,NA(),W192-W188) ->  | X198: =IF(X80>Inputs!$D$9,NA(),X192-X188) -> 
D199: Assumed Higher | E199: =IF(E80>Inputs!$D$9,NA(),E193-E189) ->  | F199: =IF(F80>Inputs!$D$9,NA(),F193-F189) ->  | G199: =IF(G80>Inputs!$D$9,NA(),G193-G189) ->  | H199: =IF(H80>Inputs!$D$9,NA(),H193-H189) ->  | I199: =IF(I80>Inputs!$D$9,NA(),I193-I189) ->  | J199: =IF(J80>Inputs!$D$9,NA(),J193-J189) ->  | K199: =IF(K80>Inputs!$D$9,NA(),K193-K189) ->  | L199: =IF(L80>Inputs!$D$9,NA(),L193-L189) ->  | M199: =IF(M80>Inputs!$D$9,NA(),M193-M189) ->  | N199: =IF(N80>Inputs!$D$9,NA(),N193-N189) ->  | O199: =IF(O80>Inputs!$D$9,NA(),O193-O189) ->  | P199: =IF(P80>Inputs!$D$9,NA(),P193-P189) ->  | Q199: =IF(Q80>Inputs!$D$9,NA(),Q193-Q189) ->  | R199: =IF(R80>Inputs!$D$9,NA(),R193-R189) ->  | S199: =IF(S80>Inputs!$D$9,NA(),S193-S189) ->  | T199: =IF(T80>Inputs!$D$9,NA(),T193-T189) ->  | U199: =IF(U80>Inputs!$D$9,NA(),U193-U189) ->  | V199: =IF(V80>Inputs!$D$9,NA(),V193-V189) ->  | W199: =IF(W80>Inputs!$D$9,NA(),W193-W189) ->  | X199: =IF(X80>Inputs!$D$9,NA(),X193-X189) -> 
D200: Assumed Additional | E200: =IF(E80>Inputs!$D$9,NA(),E194-E190) ->  | F200: =IF(F80>Inputs!$D$9,NA(),F194-F190) ->  | G200: =IF(G80>Inputs!$D$9,NA(),G194-G190) ->  | H200: =IF(H80>Inputs!$D$9,NA(),H194-H190) ->  | I200: =IF(I80>Inputs!$D$9,NA(),I194-I190) ->  | J200: =IF(J80>Inputs!$D$9,NA(),J194-J190) ->  | K200: =IF(K80>Inputs!$D$9,NA(),K194-K190) ->  | L200: =IF(L80>Inputs!$D$9,NA(),L194-L190) ->  | M200: =IF(M80>Inputs!$D$9,NA(),M194-M190) ->  | N200: =IF(N80>Inputs!$D$9,NA(),N194-N190) ->  | O200: =IF(O80>Inputs!$D$9,NA(),O194-O190) ->  | P200: =IF(P80>Inputs!$D$9,NA(),P194-P190) ->  | Q200: =IF(Q80>Inputs!$D$9,NA(),Q194-Q190) ->  | R200: =IF(R80>Inputs!$D$9,NA(),R194-R190) ->  | S200: =IF(S80>Inputs!$D$9,NA(),S194-S190) ->  | T200: =IF(T80>Inputs!$D$9,NA(),T194-T190) ->  | U200: =IF(U80>Inputs!$D$9,NA(),U194-U190) ->  | V200: =IF(V80>Inputs!$D$9,NA(),V194-V190) ->  | W200: =IF(W80>Inputs!$D$9,NA(),W194-W190) ->  | X200: =IF(X80>Inputs!$D$9,NA(),X194-X190) -> 
D201: Actual Marginal | E201: =IF(E80>Inputs!$D$9,NA(),E177) ->  | F201: =IF(F80>Inputs!$D$9,NA(),F177) ->  | G201: =IF(G80>Inputs!$D$9,NA(),G177) ->  | H201: =IF(H80>Inputs!$D$9,NA(),H177) ->  | I201: =IF(I80>Inputs!$D$9,NA(),I177) ->  | J201: =IF(J80>Inputs!$D$9,NA(),J177) ->  | K201: =IF(K80>Inputs!$D$9,NA(),K177) ->  | L201: =IF(L80>Inputs!$D$9,NA(),L177) ->  | M201: =IF(M80>Inputs!$D$9,NA(),M177) ->  | N201: =IF(N80>Inputs!$D$9,NA(),N177) ->  | O201: =IF(O80>Inputs!$D$9,NA(),O177) ->  | P201: =IF(P80>Inputs!$D$9,NA(),P177) ->  | Q201: =IF(Q80>Inputs!$D$9,NA(),Q177) ->  | R201: =IF(R80>Inputs!$D$9,NA(),R177) ->  | S201: =IF(S80>Inputs!$D$9,NA(),S177) ->  | T201: =IF(T80>Inputs!$D$9,NA(),T177) ->  | U201: =IF(U80>Inputs!$D$9,NA(),U177) ->  | V201: =IF(V80>Inputs!$D$9,NA(),V177) ->  | W201: =IF(W80>Inputs!$D$9,NA(),W177) ->  | X201: =IF(X80>Inputs!$D$9,NA(),X177) -> 
G203: =G198-G201 ->  | H203: =H198-H201 -> 
D208: =Inputs!D7 -> 0 | E208: =IF($D$208=$D$198,E198,IF($D$208=$D$199,E199,IF($D$208=$D$200,E200,0))) -> 0 | F208: =IF($D$208=$D$198,F198,IF($D$208=$D$199,F199,IF($D$208=$D$200,F200,0))) -> 0 | G208: 0 | H208: 0 | I208: 0 | J208: 0 | K208: 0 | L208: 0 | M208: 0 | N208: 0 | O208: 0 | P208: 0 | Q208: 0 | R208: 0 | S208: 0 | T208: 0 | U208: 0 | V208: 0 | W208: 0 | X208: 0
D209: =D201 -> Actual Marginal | E209: =E201 ->  | F209: =F201 -> 
D211: for onshore look up
E212: =E161 -> 1 | F212: =F161 -> 2 | G212: 3 | H212: 4 | I212: 5 | J212: 6 | K212: 7 | L212: 8 | M212: 9 | N212: 10 | O212: 11 | P212: 12 | Q212: 13 | R212: 14 | S212: 15 | T212: 16 | U212: 17 | V212: 18 | W212: 19 | X212: 20
C213: 1 | D213: Surrender | E213: =E162 -> 0 | F213: =F162 -> 0 | G213: 0 | H213: 0 | I213: 0 | J213: 0 | K213: 0 | L213: 0 | M213: 0 | N213: 0 | O213: 0 | P213: 0 | Q213: 0 | R213: 0 | S213: 0 | T213: 0 | U213: 0 | V213: 0 | W213: 0 | X213: 0
C214: =C213+1 -> 2 | D214: Gain | E214: =E135 ->  | F214: =F135 ->  | J214: =J135 -> 
C215: =C214+1 -> 3
C216: 4
C217: 5 | D217: Internal Taxation | E217: =E17 -> 0 | F217: =E217+F17 -> 0 | G217: =F217+G17 -> 0 | H217: 0 | I217: 0 | J217: 0 | K217: 0 | L217: 0 | M217: 0 | N217: 0 | O217: 0 | P217: 0 | Q217: 0 | R217: 0 | S217: 0 | T217: 0 | U217: 0 | V217: 0 | W217: 0 | X217: 0
C218: 6 | D218: Income Tax over term | E218: =E85 -> 0 | F218: =E218+F85 -> 0 | G218: =F218+G85 -> 0 | H218: 0 | I218: 0 | J218: 0 | K218: 0 | L218: 0 | M218: 0 | N218: 0 | O218: 0 | P218: 0 | Q218: 0 | R218: 0 | S218: 0 | T218: 0 | U218: 0 | V218: 0 | W218: 0 | X218: 0
C219: 7 | D219: Tax on Surrender | E219: =E170 -> 0 | F219: =F170 -> 0 | G219: 0 | H219: 0 | I219: 0 | J219: 0 | K219: 0 | L219: 0 | M219: 0 | N219: 0 | O219: 0 | P219: 0 | Q219: 0 | R219: 0 | S219: 0 | T219: 0 | U219: 0 | V219: 0 | W219: 0 | X219: 0
C220: 8
C221: 9
C222: 10 | D222: On Surrender | E222: =E173 -> 0 | F222: =F173 -> 0 | G222: 0 | H222: 0 | I222: 0 | J222: 0 | K222: 0 | L222: 0 | M222: 0 | N222: 0 | O222: 0 | P222: 0 | Q222: 0 | R222: 0 | S222: 0 | T222: 0 | U222: 0 | V222: 0 | W222: 0 | X222: 0
C223: 11 | D223: Gross Withdrawals | E223: =E166 -> 0 | F223: =F166 -> 0 | G223: =G166 -> 0 | H223: 0 | I223: 0 | J223: 0 | K223: 0 | L223: 0 | M223: 0 | N223: 0 | O223: 0 | P223: 0 | Q223: 0 | R223: 0 | S223: 0 | T223: 0 | U223: 0 | V223: 0 | W223: 0 | X223: =X166 -> 0
C224: 12 | D224: Personal Taxes Paid Over Term | E224: =E168 -> 0 | F224: =F168 -> 0 | G224: 0 | H224: 0 | I224: 0 | J224: 0 | K224: 0 | L224: 0 | M224: 0 | N224: 0 | O224: 0 | P224: 0 | Q224: 0 | R224: 0 | S224: 0 | T224: 0 | U224: 0 | V224: 0 | W224: 0 | X224: 0
E228: =E212 -> 1 | F228: =F212 -> 2 | G228: 3 | H228: 4 | I228: 5 | J228: 6 | K228: 7 | L228: 8 | M228: 9 | N228: 10 | O228: 11 | P228: 12 | Q228: 13 | R228: 14 | S228: 15 | T228: 16 | U228: 17 | V228: 18 | W228: 19 | X228: 20
D229: Surrender | E229: =E126 -> 0 | F229: =F126 -> 0 | G229: 0 | H229: 0 | I229: 0 | J229: 0 | K229: 0 | L229: 0 | M229: 0 | N229: 0 | O229: 0 | P229: 0 | Q229: 0 | R229: 0 | S229: 0 | T229: 0 | U229: 0 | V229: 0 | W229: 0 | X229: 0
D230: Gain | E230: =E124 -> 0 | F230: =F124 -> 0 | G230: 0 | H230: 0 | I230: 0 | J230: 0 | K230: 0 | L230: 0 | M230: 0 | N230: 0 | O230: 0 | P230: 0 | Q230: 0 | R230: 0 | S230: 0 | T230: 0 | U230: 0 | V230: 0 | W230: 0 | X230: 0
D233: Internal Taxation | E233: 0 | F233: =E233 -> 0 | G233: =F233 -> 0 | H233: 0 | I233: 0 | J233: 0 | K233: 0 | L233: 0 | M233: 0 | N233: 0 | O233: 0 | P233: 0 | Q233: 0 | R233: 0 | S233: 0 | T233: 0 | U233: 0 | V233: 0 | W233: 0 | X233: 0
D234: Income Tax over term | E234: =E169 -> 0 | F234: =F169 -> 0 | G234: 0 | H234: 0 | I234: 0 | J234: 0 | K234: 0 | L234: 0 | M234: 0 | N234: 0 | O234: 0 | P234: 0 | Q234: 0 | R234: 0 | S234: 0 | T234: 0 | U234: 0 | V234: 0 | W234: 0 | X234: 0
D235: Tax on Surrender | E235: =E171 -> 0 | F235: =F171 -> 0 | G235: 0 | H235: 0 | I235: 0 | J235: 0 | K235: 0 | L235: 0 | M235: 0 | N235: 0 | O235: 0 | P235: 0 | Q235: 0 | R235: 0 | S235: 0 | T235: 0 | U235: 0 | V235: 0 | W235: 0 | X235: 0
D238: On Surrender | E238: =E174 -> 0 | F238: =F189 -> 0 | G238: 0 | H238: 0 | I238: 0 | J238: 0 | K238: 0 | L238: 0 | M238: 0 | N238: 0 | O238: 0 | P238: 0 | Q238: 0 | R238: 0 | S238: 0 | T238: 0 | U238: 0 | V238: 0 | W238: 0 | X238: 0
D239: Gross Withdrawals | E239: =E167 -> 0 | F239: =F167 -> 0 | G239: =G167 -> 0 | H239: 0 | I239: 0 | J239: 0 | K239: 0 | L239: 0 | M239: 0 | N239: 0 | O239: 0 | P239: 0 | Q239: 0 | R239: 0 | S239: 0 | T239: 0 | U239: 0 | V239: 0 | W239: 0 | X239: 0
D240: Personal Taxes Paid Over Term | E240: =E169 -> 0 | F240: =F169 -> 0 | G240: 0 | H240: 0 | I240: 0 | J240: 0 | K240: 0 | L240: 0 | M240: 0 | N240: 0 | O240: 0 | P240: 0 | Q240: 0 | R240: 0 | S240: 0 | T240: 0 | U240: 0 | V240: 0 | W240: 0 | X240: 0
P256: 12 | Q256: =P256+1 -> 13 | R256: =Q256+1 -> 14 | S256: 15 | T256: 16 | U256: 17 | V256: 18 | W256: 19 | X256: 20
P257: =P115 -> 0 | Q257: 0 | R257: 0 | S257: 0 | T257: 0 | U257: 0 | V257: 0 | W257: 0 | X257: 0
P258: =P124 -> 0 | Q258: 0 | R258: 0 | S258: 0 | T258: 0 | U258: 0 | V258: 0 | W258: 0 | X258: 0
K261: Checking on hacked TRM £20k level NSND and £500 savings | M261: 1486 | P261: 4110 | Q261: 4110 | R261: 4110 | S261: 4110 | T261: 4110 | U261: 4110 | V261: 4110 | W261: 4110 | X261: 4110
P262: 78653 | Q262: 88239 | R262: 101019 | S262: 116175 | T262: 132893 | U262: 151288 | V262: 171486 | W262: 193618 | X262: 217829
P264: =P261-$M$261 -> 2624 | Q264: 2624 | R264: 2624 | S264: 2624 | T264: 2624 | U264: 2624 | V264: 2624 | W264: 2624 | X264: 2624
P265: =P262-$M$261 -> 77167 | Q265: 86753 | R265: 99533 | S265: 114689 | T265: 131407 | U265: 149802 | V265: 170000 | W265: 192132 | X265: 216343
P267: =P162-P264 -> -2624 | Q267: -2624 | R267: -2624 | S267: -2624 | T267: -2624 | U267: -2624 | V267: -2624 | W267: -2624 | X267: -2624
P268: =P163-P265 -> -77167 | Q268: -86753 | R268: -99533 | S268: -114689 | T268: -131407 | U268: -149802 | V268: -170000 | W268: -192132 | X268: -216343
P269: =P267-P268 -> 74543 | Q269: =Q267-Q268 -> 84129 | R269: 96909 | S269: 112065 | T269: 128783 | U269: 147178 | V269: 167376 | W269: 189508 | X269: 213719
P271: =P201+P269 ->  | Q271: =Q201+Q269 -> 

Sheet Yr 1 (hidden)
G1: Before for All Situations | R1: Onshore Bond After | BC1: Offshore After | CN1: ONSHORE FULL CALCS SURRENDER EACH YEAR | DY1: OFFSHORE FULL CALCS SURRENDER EACH YEAR
G2: Before | R2: Workings | AD2: Workings Top Slicing Full | AK2: Workings Top Slicing Slice | AR2: Slicing Calcs | BC2: Workings | BO2: Workings Top Slicing Full | BV2: Workings Top Slicing Slice | CC2: Slicing Calcs | CN2: Workings | CZ2: Workings Top Slicing Full | DG2: Workings Top Slicing Slice | DN2: Slicing Calcs | DY2: Workings | EK2: Workings Top Slicing Full | ER2: Workings Top Slicing Slice | EY2: Slicing Calcs
R3: Full Bond Gain | S3: =MAX(0,Bonds!E81) -> 0 | AK3: Slice | AL3: =Bonds!E82 -> 0 | BC3: Full Bond Gain | BD3: =MAX(0,Bonds!E95) -> 0 | BV3: Slice | BW3: =Bonds!E96 -> 0 | CN3: Full Bond Gain | CO3: =MAX(0,Bonds!E115) -> 0 | DG3: Slice | DH3: =Bonds!E116 -> 0 | DY3: Full Bond Gain | DZ3: =MAX(0,Bonds!E124) -> 0 | ER3: Slice | ES3: =Bonds!E125 -> 0
R4: NSND in Year of encashment | S4: =$D$14 -> 0 | AK4: NSND in Year of encashment | AL4: =$D$14 -> 0 | BC4: NSND in Year of encashment | BD4: =$D$14 -> 0 | BV4: NSND in Year of encashment | BW4: =$D$14 -> 0 | CN4: NSND in Year of encashment | CO4: =$D$14 -> 0 | DG4: NSND in Year of encashment | DH4: =$D$14 -> 0 | DY4: NSND in Year of encashment | DZ4: =$D$14 -> 0 | ER4: NSND in Year of encashment | ES4: =$D$14 -> 0
R5: Savings in Year of encashment | S5: =$D$15 -> 0 | AK5: Savings in Year of encashment | AL5: =$D$15 -> 0 | BC5: Savings in Year of encashment | BD5: =$D$15 -> 0 | BV5: Savings in Year of encashment | BW5: =$D$15 -> 0 | CN5: Savings in Year of encashment | CO5: =$D$15 -> 0 | DG5: Savings in Year of encashment | DH5: =$D$15 -> 0 | DY5: Savings in Year of encashment | DZ5: =$D$15 -> 0 | ER5: Savings in Year of encashment | ES5: =$D$15 -> 0
R6: Dividend in Year of encashment | S6: =$D$16 -> 0 | AK6: Dividend in Year of encashment | AL6: =$D$16 -> 0 | BC6: Dividend in Year of encashment | BD6: =$D$16 -> 0 | BV6: Dividend in Year of encashment | BW6: =$D$16 -> 0 | CN6: Dividend in Year of encashment | CO6: =$D$16 -> 0 | DG6: Dividend in Year of encashment | DH6: =$D$16 -> 0 | DY6: Dividend in Year of encashment | DZ6: =$D$16 -> 0 | ER6: Dividend in Year of encashment | ES6: =$D$16 -> 0
B7: Year | C7: 1 | D7: move year on 1 | G7: Allowances: | R7: Personal Allowance Adjustment | S7: =IF((S3+S4+S5+S6)<'Parameters_Inc Calcs'!$C$3,0,MIN($D$36,((S3+S4+S5+S6)-'Parameters_Inc Calcs'!$C$3)/2)) -> 0 | U7: PA Lost | AK7: Personal Allowance Adjustment | AL7: =IF((AL3+AL4+AL5+AL6)<'Parameters_Inc Calcs'!$C$3,0,MIN($D$36,((AL3+AL4+AL5+AL6)-'Parameters_Inc Calcs'!$C$3)/2)) -> 0 | BC7: Personal Allowance Adjustment | BD7: =IF((BD3+BD4+BD5+BD6)<'Parameters_Inc Calcs'!$C$3,0,MIN($D$36,((BD3+BD4+BD5+BD6)-'Parameters_Inc Calcs'!$C$3)/2)) -> 0 | BF7: PA Lost | BV7: Personal Allowance Adjustment | BW7: =IF((BW3+BW4+BW5+BW6)<'Parameters_Inc Calcs'!$C$3,0,MIN($D$36,((BW3+BW4+BW5+BW6)-'Parameters_Inc Calcs'!$C$3)/2)) -> 0 | CN7: Personal Allowance Adjustment | CO7: =IF((CO3+CO4+CO5+CO6)<'Parameters_Inc Calcs'!$C$3,0,MIN($D$36,((CO3+CO4+CO5+CO6)-'Parameters_Inc Calcs'!$C$3)/2)) -> 0 | CQ7: PA Lost | DG7: Personal Allowance Adjustment | DH7: =IF((DH3+DH4+DH5+DH6)<'Parameters_Inc Calcs'!$C$3,0,MIN($D$36,((DH3+DH4+DH5+DH6)-'Parameters_Inc Calcs'!$C$3)/2)) -> 0 | DY7: Personal Allowance Adjustment | DZ7: =IF((DZ3+DZ4+DZ5+DZ6)<'Parameters_Inc Calcs'!$C$3,0,MIN($D$36,((DZ3+DZ4+DZ5+DZ6)-'Parameters_Inc Calcs'!$C$3)/2)) -> 0 | EB7: PA Lost | ER7: Personal Allowance Adjustment | ES7: =IF((ES3+ES4+ES5+ES6)<'Parameters_Inc Calcs'!$C$3,0,MIN($D$36,((ES3+ES4+ES5+ES6)-'Parameters_Inc Calcs'!$C$3)/2)) -> 0
B8: Final Year | C8: =IF(C7=Inputs!D9,"Yes","No") -> No | G8: Pers_Allow_Adj | R8: PA to Use | S8: =$D$36-S7 -> 12570 | U8: =$H$9-S8 -> 0 | AK8: PA to Use - Silver adjustment | AL8: =$D$36-AL7 -> 12570 | BC8: PA to Use | BD8: =$D$36-BD7 -> 12570 | BF8: =$H$9-BD8 -> 0 | BV8: PA to Use - Silver adjustment | BW8: =$D$36-BW7 -> 12570 | CN8: PA to Use | CO8: =$D$36-CO7 -> 12570 | CQ8: =$H$9-CO8 -> 0 | DG8: PA to Use - Silver adjustment | DH8: =$D$36-DH7 -> 12570 | DY8: PA to Use | DZ8: =$D$36-DZ7 -> 12570 | EB8: =$H$9-DZ8 -> 0 | ER8: PA to Use - Silver adjustment | ES8: =$D$36-ES7 -> 12570
B9: After Final Year | C9: =AND(C7>Inputs!D9) -> TRUE | G9: Tot_Pers_Allow | H9: =$D$27 -> 12570 | R9: Starter Rate to Use | S9: =IF(S4>S8+'Parameters_Inc Calcs'!$C$12,0,MIN('Parameters_Inc Calcs'!$C$12,S8+'Parameters_Inc Calcs'!$C$12-S4)) -> 5000 | AK9: Starter Rate to Use -"gold" adjustment | AL9: =IF(AL4>AL8+'Parameters_Inc Calcs'!$C$12,0,MIN('Parameters_Inc Calcs'!$C$12,AL8+'Parameters_Inc Calcs'!$C$12-AL4)) -> 5000 | BC9: Starter Rate to Use | BD9: =IF(BD4>BD8+'Parameters_Inc Calcs'!$C$12,0,MIN('Parameters_Inc Calcs'!$C$12,BD8+'Parameters_Inc Calcs'!$C$12-BD4)) -> 5000 | BV9: Starter Rate to Use -"gold" adjustment | BW9: =IF(BW4>BW8+'Parameters_Inc Calcs'!$C$12,0,MIN('Parameters_Inc Calcs'!$C$12,BW8+'Parameters_Inc Calcs'!$C$12-BW4)) -> 5000 | CN9: Starter Rate to Use | CO9: =IF(CO4>CO8+'Parameters_Inc Calcs'!$C$12,0,MIN('Parameters_Inc Calcs'!$C$12,CO8+'Parameters_Inc Calcs'!$C$12-CO4)) -> 5000 | DG9: Starter Rate to Use -"gold" adjustment | DH9: =IF(DH4>DH8+'Parameters_Inc Calcs'!$C$12,0,MIN('Parameters_Inc Calcs'!$C$12,DH8+'Parameters_Inc Calcs'!$C$12-DH4)) -> 5000 | DY9: Starter Rate to Use | DZ9: =IF(DZ4>DZ8+'Parameters_Inc Calcs'!$C$12,0,MIN('Parameters_Inc Calcs'!$C$12,DZ8+'Parameters_Inc Calcs'!$C$12-DZ4)) -> 5000 | ER9: Starter Rate to Use -"gold" adjustment | ES9: =IF(ES4>ES8+'Parameters_Inc Calcs'!$C$12,0,MIN('Parameters_Inc Calcs'!$C$12,ES8+'Parameters_Inc Calcs'!$C$12-ES4)) -> 5000
G10: Pers_Sav_Allow | H10: =D45 -> 1000 | R10: PSA to USE | S10: =IF(SUM(S3:S6)>'Parameters_Inc Calcs'!$C$8,'Parameters_Inc Calcs'!$C$11,IF(SUM(S3:S6)>'Parameters_Inc Calcs'!$C$5,'Parameters_Inc Calcs'!$C$10,'Parameters_Inc Calcs'!$C$9)) -> 1000 | AK10: PSA to use - from full calc as no silver adjustment | AL10: =IF(SUM(AL3:AL6)>'Parameters_Inc Calcs'!$C$8,'Parameters_Inc Calcs'!$C$11,IF(SUM(AL3:AL6)>'Parameters_Inc Calcs'!$C$5,'Parameters_Inc Calcs'!$C$10,'Parameters_Inc Calcs'!$C$9)) -> 1000 | BC10: PSA to USE | BD10: =IF(SUM(BD3:BD6)>'Parameters_Inc Calcs'!$C$8,'Parameters_Inc Calcs'!$C$11,IF(SUM(BD3:BD6)>'Parameters_Inc Calcs'!$C$5,'Parameters_Inc Calcs'!$C$10,'Parameters_Inc Calcs'!$C$9)) -> 1000 | BV10: PSA to use - "gold" adjustment | BW10: =IF(SUM(BW3:BW6)>'Parameters_Inc Calcs'!$C$8,'Parameters_Inc Calcs'!$C$11,IF(SUM(BW3:BW6)>'Parameters_Inc Calcs'!$C$5,'Parameters_Inc Calcs'!$C$10,'Parameters_Inc Calcs'!$C$9)) -> 1000 | CN10: PSA to USE | CO10: =IF(SUM(CO3:CO6)>'Parameters_Inc Calcs'!$C$8,'Parameters_Inc Calcs'!$C$11,IF(SUM(CO3:CO6)>'Parameters_Inc Calcs'!$C$5,'Parameters_Inc Calcs'!$C$10,'Parameters_Inc Calcs'!$C$9)) -> 1000 | DG10: PSA to use - from full calc as no silver adjustment | DH10: =IF(SUM(DH3:DH6)>'Parameters_Inc Calcs'!$C$8,'Parameters_Inc Calcs'!$C$11,IF(SUM(DH3:DH6)>'Parameters_Inc Calcs'!$C$5,'Parameters_Inc Calcs'!$C$10,'Parameters_Inc Calcs'!$C$9)) -> 1000 | DY10: PSA to USE | DZ10: =IF(SUM(DZ3:DZ6)>'Parameters_Inc Calcs'!$C$8,'Parameters_Inc Calcs'!$C$11,IF(SUM(DZ3:DZ6)>'Parameters_Inc Calcs'!$C$5,'Parameters_Inc Calcs'!$C$10,'Parameters_Inc Calcs'!$C$9)) -> 1000 | ER10: PSA to use - "gold" adjustment | ES10: =IF(SUM(ES3:ES6)>'Parameters_Inc Calcs'!$C$8,'Parameters_Inc Calcs'!$C$11,IF(SUM(ES3:ES6)>'Parameters_Inc Calcs'!$C$5,'Parameters_Inc Calcs'!$C$10,'Parameters_Inc Calcs'!$C$9)) -> 1000
AB12: Difference to All before | BM12: Difference to All before | CX12: Difference to All before | EI12: Difference to All before
B13: Factor | C13: Before | G13: Non Savings Income Apportionment | R13: Non Savings Income Apportionment | AD13: Non Savings Income Apportionment | AK13: Non Savings Income Apportionment | BC13: Non Savings Income Apportionment | BO13: Non Savings Income Apportionment | BV13: Non Savings Income Apportionment | CN13: Non Savings Income Apportionment | CZ13: Non Savings Income Apportionment | DG13: Non Savings Income Apportionment | DY13: Non Savings Income Apportionment | EK13: Non Savings Income Apportionment | ER13: Non Savings Income Apportionment
B14: 1 | C14: NSND | D14: =IF(OR($C$8="Yes",$C$9=TRUE),Inputs!I13,Inputs!I6*B14) -> 0
B15: 1 | C15: Savings | D15: =IF(OR($C$8="Yes",$C$9=TRUE),Inputs!I14,Inputs!I7*B15) -> 0 | H15: Allowances | I15: Still to tax | J15: Used | K15: Unused | N15: Before | O15: Rate | S15: Allowances | T15: Still to tax | U15: Used | V15: Unused | X15: Amount | Y15: Rate | Z15: Tax | AE15: Allowances | AF15: Still to tax | AG15: Used | AH15: Unused | AL15: Allowances | AM15: Still to tax | AN15: Used | AO15: Unused | AV15: Top Slicing | BD15: Allowances | BE15: Still to tax | BF15: Used | BG15: Unused | BI15: Amount | BJ15: Rate | BK15: Tax | BP15: Allowances | BQ15: Still to tax | BR15: Used | BS15: Unused | BW15: Allowances | BX15: Still to tax | BY15: Used | BZ15: Unused | CG15: Top Slicing | CO15: Allowances | CP15: Still to tax | CQ15: Used | CR15: Unused | CT15: Amount | CU15: Rate | CV15: Tax | DA15: Allowances | DB15: Still to tax | DC15: Used | DD15: Unused | DH15: Allowances | DI15: Still to tax | DJ15: Used | DK15: Unused | DR15: Top Slicing | DZ15: Allowances | EA15: Still to tax | EB15: Used | EC15: Unused | EE15: Amount | EF15: Rate | EG15: Tax | EL15: Allowances | EM15: Still to tax | EN15: Used | EO15: Unused | ES15: Allowances | ET15: Still to tax | EU15: Used | EV15: Unused | FC15: Top Slicing
B16: 1 | C16: Divi | D16: =IF(OR($C$8="Yes",$C$9=TRUE),Inputs!I15,Inputs!I8*B16) -> 0 | G16: Personal Allowance | H16: =H9 -> 12570 | I16: =D14 -> 0 | J16: =MIN(H16,I16) -> 0 | K16: =MAX(0,H16-J16) -> 12570 | N16: =$J$16*O16 -> 0 | O16: 0 | R16: Personal Allowance | S16: =S8 -> 12570 | T16: =S4 -> 0 | U16: =MIN(S16,T16) -> 0 | V16: =MAX(0,S16-U16) -> 12570 | X16: =U16 -> 0 | Y16: 0 | Z16: =X16*Y16 -> 0 | AD16: Personal Allowance | AE16: =S8 -> 12570 | AF16: =MAX(0,S4) -> 0 | AG16: =MIN(AE16,AF16) -> 0 | AH16: =MAX(0,AE16-AG16) -> 12570 | AK16: Personal Allowance | AL16: =AL8 -> 12570 | AM16: =MAX(0,AL4) -> 0 | AN16: =MIN(AL16,AM16) -> 0 | AO16: =MAX(0,AL16-AN16) -> 12570 | BC16: Personal Allowance | BD16: =BD8 -> 12570 | BE16: =BD4 -> 0 | BF16: =MIN(BD16,BE16) -> 0 | BG16: =MAX(0,BD16-BF16) -> 12570 | BI16: =BF16 -> 0 | BJ16: 0 | BK16: =BI16*BJ16 -> 0 | BO16: Personal Allowance | BP16: =BD8 -> 12570 | BQ16: =MAX(0,BD4) -> 0 | BR16: =MIN(BP16,BQ16) -> 0 | BS16: =MAX(0,BP16-BR16) -> 12570 | BV16: Personal Allowance | BW16: =BW8 -> 12570 | BX16: =MAX(0,BW4) -> 0 | BY16: =MIN(BW16,BX16) -> 0 | BZ16: =MAX(0,BW16-BY16) -> 12570 | CN16: Personal Allowance | CO16: =CO8 -> 12570 | CP16: =CO4 -> 0 | CQ16: =MIN(CO16,CP16) -> 0 | CR16: =MAX(0,CO16-CQ16) -> 12570 | CT16: =CQ16 -> 0 | CU16: 0 | CV16: =CT16*CU16 -> 0 | CZ16: Personal Allowance | DA16: =CO8 -> 12570 | DB16: =MAX(0,CO4) -> 0 | DC16: =MIN(DA16,DB16) -> 0 | DD16: =MAX(0,DA16-DC16) -> 12570 | DG16: Personal Allowance | DH16: =DH8 -> 12570 | DI16: =MAX(0,DH4) -> 0 | DJ16: =MIN(DH16,DI16) -> 0 | DK16: =MAX(0,DH16-DJ16) -> 12570 | DY16: Personal Allowance | DZ16: =DZ8 -> 12570 | EA16: =DZ4 -> 0 | EB16: =MIN(DZ16,EA16) -> 0 | EC16: =MAX(0,DZ16-EB16) -> 12570 | EE16: =EB16 -> 0 | EF16: 0 | EG16: =EE16*EF16 -> 0 | EK16: Personal Allowance | EL16: =DZ8 -> 12570 | EM16: =MAX(0,DZ4) -> 0 | EN16: =MIN(EL16,EM16) -> 0 | EO16: =MAX(0,EL16-EN16) -> 12570 | ER16: Personal Allowance | ES16: =ES8 -> 12570 | ET16: =MAX(0,ES4) -> 0 | EU16: =MIN(ES16,ET16) -> 0 | EV16: =MAX(0,ES16-EU16) -> 12570
B17: =Inputs!AT6 -> 0 | G17: Basic Rate | H17: =$D$31 -> 37700 | I17: =MAX(0,I16-J16) -> 0 | J17: =MIN(H17,I17) -> 0 | K17: =MAX(0,H17-J17) -> 37700 | N17: =$J$17*O17 -> 0 | O17: ='Parameters_Inc Calcs'!$G$4 -> 0.2 | R17: Basic Rate | S17: =$D$31 -> 37700 | T17: =MAX(0,T16-U16) -> 0 | U17: =MIN(S17,T17) -> 0 | V17: =MAX(0,S17-U17) -> 37700 | X17: =U17 -> 0 | Y17: ='Parameters_Inc Calcs'!$G$4 -> 0.2 | Z17: =X17*Y17 -> 0 | AD17: Basic Rate | AE17: =$D$31 -> 37700 | AF17: =MAX(0,AF16-AG16) -> 0 | AG17: =MIN(AE17,AF17) -> 0 | AH17: =MAX(0,AE17-AG17) -> 37700 | AK17: Basic Rate | AL17: =AE17 -> 37700 | AM17: =MAX(0,AM16-AN16) -> 0 | AN17: =MIN(AL17,AM17) -> 0 | AO17: =MAX(0,AL17-AN17) -> 37700 | AW17: Taxation of full gain | AX17: =S3 -> 0 | BC17: Basic Rate | BD17: =$D$31 -> 37700 | BE17: =MAX(0,BE16-BF16) -> 0 | BF17: =MIN(BD17,BE17) -> 0 | BG17: =MAX(0,BD17-BF17) -> 37700 | BI17: =BF17 -> 0 | BJ17: ='Parameters_Inc Calcs'!$G$4 -> 0.2 | BK17: =BI17*BJ17 -> 0 | BO17: Basic Rate | BP17: =BD17 -> 37700 | BQ17: =MAX(0,BQ16-BR16) -> 0 | BR17: =MIN(BP17,BQ17) -> 0 | BS17: =MAX(0,BP17-BR17) -> 37700 | BV17: Basic Rate | BW17: =BP17 -> 37700 | BX17: =MAX(0,BX16-BY16) -> 0 | BY17: =MIN(BW17,BX17) -> 0 | BZ17: =MAX(0,BW17-BY17) -> 37700 | CH17: Taxation of full gain | CI17: =BD3 -> 0 | CN17: Basic Rate | CO17: =$D$31 -> 37700 | CP17: =MAX(0,CP16-CQ16) -> 0 | CQ17: =MIN(CO17,CP17) -> 0 | CR17: =MAX(0,CO17-CQ17) -> 37700 | CT17: =CQ17 -> 0 | CU17: ='Parameters_Inc Calcs'!$G$4 -> 0.2 | CV17: =CT17*CU17 -> 0 | CZ17: Basic Rate | DA17: =$D$31 -> 37700 | DB17: =MAX(0,DB16-DC16) -> 0 | DC17: =MIN(DA17,DB17) -> 0 | DD17: =MAX(0,DA17-DC17) -> 37700 | DG17: Basic Rate | DH17: =DA17 -> 37700 | DI17: =MAX(0,DI16-DJ16) -> 0 | DJ17: =MIN(DH17,DI17) -> 0 | DK17: =MAX(0,DH17-DJ17) -> 37700 | DS17: Taxation of full gain | DT17: =CO3 -> 0 | DY17: Basic Rate | DZ17: =$D$31 -> 37700 | EA17: =MAX(0,EA16-EB16) -> 0 | EB17: =MIN(DZ17,EA17) -> 0 | EC17: =MAX(0,DZ17-EB17) -> 37700 | EE17: =EB17 -> 0 | EF17: ='Parameters_Inc Calcs'!$G$4 -> 0.2 | EG17: =EE17*EF17 -> 0 | EK17: Basic Rate | EL17: =DZ17 -> 37700 | EM17: =MAX(0,EM16-EN16) -> 0 | EN17: =MIN(EL17,EM17) -> 0 | EO17: =MAX(0,EL17-EN17) -> 37700 | ER17: Basic Rate | ES17: =EL17 -> 37700 | ET17: =MAX(0,ET16-EU16) -> 0 | EU17: =MIN(ES17,ET17) -> 0 | EV17: =MAX(0,ES17-EU17) -> 37700 | FD17: Taxation of full gain | FE17: =DZ3 -> 0
B18: =Inputs!AT7 -> 0 | G18: Higher Rate | H18: =$D$33 -> 87440 | I18: =MAX(0,I17-J17) -> 0 | J18: =MIN(H18,I18) -> 0 | K18: =MAX(0,H18-J18) -> 87440 | N18: =$J$18*O18 -> 0 | O18: ='Parameters_Inc Calcs'!$G$5 -> 0.4 | R18: Higher Rate | S18: =$D$33 -> 87440 | T18: =MAX(0,T17-U17) -> 0 | U18: =MIN(S18,T18) -> 0 | V18: =MAX(0,S18-U18) -> 87440 | X18: =U18 -> 0 | Y18: ='Parameters_Inc Calcs'!$G$5 -> 0.4 | Z18: =X18*Y18 -> 0 | AD18: Higher Rate | AE18: =$D$33 -> 87440 | AF18: =MAX(0,AF17-AG17) -> 0 | AG18: =MIN(AE18,AF18) -> 0 | AH18: =MAX(0,AE18-AG18) -> 87440 | AK18: Higher Rate | AL18: =AE18 -> 87440 | AM18: =MAX(0,AM17-AN17) -> 0 | AN18: =MIN(AL18,AM18) -> 0 | AO18: =MAX(0,AL18-AN18) -> 87440 | BA18: Tax | BC18: Higher Rate | BD18: =$D$33 -> 87440 | BE18: =MAX(0,BE17-BF17) -> 0 | BF18: =MIN(BD18,BE18) -> 0 | BG18: =MAX(0,BD18-BF18) -> 87440 | BI18: =BF18 -> 0 | BJ18: ='Parameters_Inc Calcs'!$G$5 -> 0.4 | BK18: =BI18*BJ18 -> 0 | BO18: Higher Rate | BP18: =BD18 -> 87440 | BQ18: =MAX(0,BQ17-BR17) -> 0 | BR18: =MIN(BP18,BQ18) -> 0 | BS18: =MAX(0,BP18-BR18) -> 87440 | BV18: Higher Rate | BW18: =BP18 -> 87440 | BX18: =MAX(0,BX17-BY17) -> 0 | BY18: =MIN(BW18,BX18) -> 0 | BZ18: =MAX(0,BW18-BY18) -> 87440 | CL18: Tax | CN18: Higher Rate | CO18: =$D$33 -> 87440 | CP18: =MAX(0,CP17-CQ17) -> 0 | CQ18: =MIN(CO18,CP18) -> 0 | CR18: =MAX(0,CO18-CQ18) -> 87440 | CT18: =CQ18 -> 0 | CU18: ='Parameters_Inc Calcs'!$G$5 -> 0.4 | CV18: =CT18*CU18 -> 0 | CZ18: Higher Rate | DA18: =$D$33 -> 87440 | DB18: =MAX(0,DB17-DC17) -> 0 | DC18: =MIN(DA18,DB18) -> 0 | DD18: =MAX(0,DA18-DC18) -> 87440 | DG18: Higher Rate | DH18: =DA18 -> 87440 | DI18: =MAX(0,DI17-DJ17) -> 0 | DJ18: =MIN(DH18,DI18) -> 0 | DK18: =MAX(0,DH18-DJ18) -> 87440 | DW18: Tax | DY18: Higher Rate | DZ18: =$D$33 -> 87440 | EA18: =MAX(0,EA17-EB17) -> 0 | EB18: =MIN(DZ18,EA18) -> 0 | EC18: =MAX(0,DZ18-EB18) -> 87440 | EE18: =EB18 -> 0 | EF18: ='Parameters_Inc Calcs'!$G$5 -> 0.4 | EG18: =EE18*EF18 -> 0 | EK18: Higher Rate | EL18: =DZ18 -> 87440 | EM18: =MAX(0,EM17-EN17) -> 0 | EN18: =MIN(EL18,EM18) -> 0 | EO18: =MAX(0,EL18-EN18) -> 87440 | ER18: Higher Rate | ES18: =EL18 -> 87440 | ET18: =MAX(0,ET17-EU17) -> 0 | EU18: =MIN(ES18,ET18) -> 0 | EV18: =MAX(0,ES18-EU18) -> 87440 | FH18: Tax
C19: ANI | D19: =SUM(D14:D18) -> 0 | G19: Additional Rate | I19: =MAX(0,I18-J18) -> 0 | J19: =I19 -> 0 | K19: NA | N19: =$J$19*O19 -> 0 | O19: ='Parameters_Inc Calcs'!$G$8 -> 0.45 | R19: Additional Rate | T19: =MAX(0,T18-U18) -> 0 | U19: =MIN(S19,T19) -> 0 | V19: NA | X19: =U19 -> 0 | Y19: ='Parameters_Inc Calcs'!$G$8 -> 0.45 | Z19: =X19*Y19 -> 0 | AA19: =SUM(Z16:Z19) -> 0 | AB19: =AA19-$N$20 -> 0 | AD19: Additional Rate | AF19: =MAX(0,AF18-AG18) -> 0 | AG19: =MIN(AE19,AF19) -> 0 | AK19: Additional Rate | AM19: =MAX(0,AM18-AN18) -> 0 | AN19: =MIN(AL19,AM19) -> 0 | AV19: Step 1 | AW19: Personal Allowance | AX19: =AG50 -> 0 | AY19: @ | AZ19: =Y25 -> 0 | BA19: =AX19*AZ19 -> 0 | BC19: Additional Rate | BE19: =MAX(0,BE18-BF18) -> 0 | BF19: =MIN(BD19,BE19) -> 0 | BG19: NA | BI19: =BF19 -> 0 | BJ19: ='Parameters_Inc Calcs'!$G$8 -> 0.45 | BK19: =BI19*BJ19 -> 0 | BL19: =SUM(BK16:BK19) -> 0 | BM19: =BL19-$N$20 -> 0 | BO19: Additional Rate | BQ19: =MAX(0,BQ18-BR18) -> 0 | BR19: =MIN(BP19,BQ19) -> 0 | BV19: Additional Rate | BX19: =MAX(0,BX18-BY18) -> 0 | BY19: =MIN(BW19,BX19) -> 0 | CG19: Step 1 | CH19: Personal Allowance | CI19: =BR50 -> 0 | CJ19: @ | CK19: =BJ25 -> 0 | CL19: =CI19*CK19 -> 0 | CN19: Additional Rate | CP19: =MAX(0,CP18-CQ18) -> 0 | CQ19: =MIN(CO19,CP19) -> 0 | CR19: NA | CT19: =CQ19 -> 0 | CU19: ='Parameters_Inc Calcs'!$G$8 -> 0.45 | CV19: =CT19*CU19 -> 0 | CW19: =SUM(CV16:CV19) -> 0 | CX19: =CW19-$N$20 -> 0 | CZ19: Additional Rate | DB19: =MAX(0,DB18-DC18) -> 0 | DC19: =MIN(DA19,DB19) -> 0 | DG19: Additional Rate | DI19: =MAX(0,DI18-DJ18) -> 0 | DJ19: =MIN(DH19,DI19) -> 0 | DR19: Step 1 | DS19: Personal Allowance | DT19: =DC50 -> 0 | DU19: @ | DV19: =CU25 -> 0 | DW19: =DT19*DV19 -> 0 | DY19: Additional Rate | EA19: =MAX(0,EA18-EB18) -> 0 | EB19: =MIN(DZ19,EA19) -> 0 | EC19: NA | EE19: =EB19 -> 0 | EF19: ='Parameters_Inc Calcs'!$G$8 -> 0.45 | EG19: =EE19*EF19 -> 0 | EH19: =SUM(EG16:EG19) -> 0 | EI19: =EH19-$N$20 -> 0 | EK19: Additional Rate | EM19: =MAX(0,EM18-EN18) -> 0 | EN19: =MIN(EL19,EM19) -> 0 | ER19: Additional Rate | ET19: =MAX(0,ET18-EU18) -> 0 | EU19: =MIN(ES19,ET19) -> 0 | FC19: Step 1 | FD19: Personal Allowance | FE19: =EN50 -> 0 | FF19: @ | FG19: =EF25 -> 0 | FH19: =FE19*FG19 -> 0
N20: =SUM(N16:N19) -> 0 | AW20: Starting Rate | AX20: 0 | AY20: @ | AZ20: =Y23 -> 0 | BA20: 0 | CH20: Starting Rate | CI20: 0 | CJ20: @ | CK20: =BJ23 -> 0 | CL20: 0 | DS20: Starting Rate | DT20: 0 | DU20: @ | DV20: =CU23 -> 0 | DW20: 0 | FD20: Starting Rate | FE20: 0 | FF20: @ | FG20: =EF23 -> 0 | FH20: 0
G21: Savings Income Tax Band Apportionment | R21: Savings Income Tax Band Apportionment | AD21: Savings Income Tax Band Apportionment | AK21: Savings Income Tax Band Apportionment | AW21: Personal Savings Allowance | AX21: 0 | AY21: @ | AZ21: =Y25 -> 0 | BA21: 0 | BC21: Savings Income Tax Band Apportionment | BO21: Savings Income Tax Band Apportionment | BV21: Savings Income Tax Band Apportionment | CH21: Personal Savings Allowance | CI21: 0 | CJ21: @ | CK21: =BJ25 -> 0 | CL21: 0 | CN21: Savings Income Tax Band Apportionment | CZ21: Savings Income Tax Band Apportionment | DG21: Savings Income Tax Band Apportionment | DS21: Personal Savings Allowance | DT21: 0 | DU21: @ | DV21: =CU25 -> 0 | DW21: 0 | DY21: Savings Income Tax Band Apportionment | EK21: Savings Income Tax Band Apportionment | ER21: Savings Income Tax Band Apportionment | FD21: Personal Savings Allowance | FE21: 0 | FF21: @ | FG21: =EF25 -> 0 | FH21: 0
H22: Allowances | I22: Still to tax | J22: Used | K22: Unused | N22: Before | O22: Rate | S22: Allowances | T22: Still to tax | U22: Used | V22: Unused | X22: Amount | Y22: Rate | Z22: Tax | AE22: Allowances | AF22: Still to tax | AG22: Used | AH22: Unused | AW22: Basic Rate | AX22: 0 | AY22: @ | AZ22: ='Parameters_Inc Calcs'!$E$4 -> 0.22 | BA22: 0 | BD22: Allowances | BE22: Still to tax | BF22: Used | BG22: Unused | BI22: Amount | BJ22: Rate | BK22: Tax | BP22: Allowances | BQ22: Still to tax | BR22: Used | BS22: Unused | CH22: Basic Rate | CI22: 0 | CJ22: @ | CK22: ='Parameters_Inc Calcs'!$E$4 -> 0.22 | CL22: 0 | CO22: Allowances | CP22: Still to tax | CQ22: Used | CR22: Unused | CT22: Amount | CU22: Rate | CV22: Tax | DA22: Allowances | DB22: Still to tax | DC22: Used | DD22: Unused | DS22: Basic Rate | DT22: 0 | DU22: @ | DV22: ='Parameters_Inc Calcs'!$E$4 -> 0.22 | DW22: 0 | DZ22: Allowances | EA22: Still to tax | EB22: Used | EC22: Unused | EE22: Amount | EF22: Rate | EG22: Tax | EL22: Allowances | EM22: Still to tax | EN22: Used | EO22: Unused | FD22: Basic Rate | FE22: 0 | FF22: @ | FG22: ='Parameters_Inc Calcs'!$E$4 -> 0.22 | FH22: 0
C23: ANI Limit | D23: ='Parameters_Inc Calcs'!$C$3 -> 100000 | G23: Starting Rate | H23: =$D$43 -> 5000 | I23: =D15 -> 0 | J23: =MIN(H23,I23) -> 0 | K23: =MAX(0,H23-J23) -> 5000 | N23: =$J$23*O23 -> 0 | O23: 0 | R23: Starting Rate | S23: =S9 -> 5000 | T23: =S5 -> 0 | U23: =MIN(S23,T23) -> 0 | V23: =MAX(0,S23-U23) -> 5000 | X23: =U23 -> 0 | Y23: 0 | Z23: =X23*Y23 -> 0 | AD23: Personal Allowance | AE23: =AH16 -> 12570 | AF23: =S5 -> 0 | AG23: =MIN(AE23,AF23) -> 0 | AH23: =MAX(0,AE23-AG23) -> 12570 | AK23: Personal Allowance | AL23: =AO16 -> 12570 | AM23: =AL5 -> 0 | AN23: =MIN(AL23,AM23) -> 0 | AO23: =MAX(0,AL23-AN23) -> 12570 | AW23: Higher Rate | AX23: 0 | AY23: @ | AZ23: ='Parameters_Inc Calcs'!$E$5 -> 0.42 | BA23: =AX23*AZ23 -> 0 | BC23: Starting Rate | BD23: =BD9 -> 5000 | BE23: =BD5 -> 0 | BF23: =MIN(BD23,BE23) -> 0 | BG23: =MAX(0,BD23-BF23) -> 5000 | BI23: =BF23 -> 0 | BJ23: 0 | BK23: =BI23*BJ23 -> 0 | BO23: Personal Allowance | BP23: =BS16 -> 12570 | BQ23: =BD5 -> 0 | BR23: =MIN(BP23,BQ23) -> 0 | BS23: =MAX(0,BP23-BR23) -> 12570 | BV23: Personal Allowance | BW23: =BZ16 -> 12570 | BX23: =BW5 -> 0 | BY23: =MIN(BW23,BX23) -> 0 | BZ23: =MAX(0,BW23-BY23) -> 12570 | CH23: Higher Rate | CI23: 0 | CJ23: @ | CK23: ='Parameters_Inc Calcs'!$E$5 -> 0.42 | CL23: =CI23*CK23 -> 0 | CN23: Starting Rate | CO23: =CO9 -> 5000 | CP23: =CO5 -> 0 | CQ23: =MIN(CO23,CP23) -> 0 | CR23: =MAX(0,CO23-CQ23) -> 5000 | CT23: =CQ23 -> 0 | CU23: 0 | CV23: =CT23*CU23 -> 0 | CZ23: Personal Allowance | DA23: =DD16 -> 12570 | DB23: =CO5 -> 0 | DC23: =MIN(DA23,DB23) -> 0 | DD23: =MAX(0,DA23-DC23) -> 12570 | DG23: Personal Allowance | DH23: =DK16 -> 12570 | DI23: =DH5 -> 0 | DJ23: =MIN(DH23,DI23) -> 0 | DK23: =MAX(0,DH23-DJ23) -> 12570 | DS23: Higher Rate | DT23: 0 | DU23: @ | DV23: ='Parameters_Inc Calcs'!$E$5 -> 0.42 | DW23: =DT23*DV23 -> 0 | DY23: Starting Rate | DZ23: =DZ9 -> 5000 | EA23: =DZ5 -> 0 | EB23: =MIN(DZ23,EA23) -> 0 | EC23: =MAX(0,DZ23-EB23) -> 5000 | EE23: =EB23 -> 0 | EF23: 0 | EG23: =EE23*EF23 -> 0 | EK23: Personal Allowance | EL23: =EO16 -> 12570 | EM23: =DZ5 -> 0 | EN23: =MIN(EL23,EM23) -> 0 | EO23: =MAX(0,EL23-EN23) -> 12570 | ER23: Personal Allowance | ES23: =EV16 -> 12570 | ET23: =ES5 -> 0 | EU23: =MIN(ES23,ET23) -> 0 | EV23: =MAX(0,ES23-EU23) -> 12570 | FD23: Higher Rate | FE23: 0 | FF23: @ | FG23: ='Parameters_Inc Calcs'!$E$5 -> 0.42 | FH23: =FE23*FG23 -> 0
C24: ANI Excess | D24: =MAX(0,D19-D23) -> 0 | G24: Personal Savings Allowance | H24: =D45 -> 1000 | I24: =MAX(0,I23-J23) -> 0 | J24: 0 | K24: =MAX(0,H24-J24) -> 1000 | L24: Higher Rate Adjustment for PSA and SRS Bands | N24: =$J$24*O24 -> 0 | O24: 0 | R24: Personal Savings Allowance | S24: =S10 -> 1000 | T24: =MAX(0,T23-U23) -> 0 | U24: 0 | V24: =MAX(0,S24-U24) -> 1000 | X24: 0 | Y24: 0 | Z24: 0 | AD24: Starting Rate | AE24: =S9 -> 5000 | AF24: =MAX(0,AF23-AG23) -> 0 | AG24: 0 | AH24: =MAX(0,AE24-AG24) -> 5000 | AK24: Starting Rate | AL24: =AL9 -> 5000 | AM24: =MAX(0,AM23-AN23) -> 0 | AN24: 0 | AO24: =MAX(0,AL24-AN24) -> 5000 | AW24: Additional Rate | AX24: 0 | AY24: @ | AZ24: ='Parameters_Inc Calcs'!$E$8 -> 0.47 | BA24: 0 | BC24: Personal Savings Allowance | BD24: =BD10 -> 1000 | BE24: =MAX(0,BE23-BF23) -> 0 | BF24: 0 | BG24: =MAX(0,BD24-BF24) -> 1000 | BI24: 0 | BJ24: 0 | BK24: 0 | BO24: Starting Rate | BP24: =BD9 -> 5000 | BQ24: =MAX(0,BQ23-BR23) -> 0 | BR24: 0 | BS24: =MAX(0,BP24-BR24) -> 5000 | BV24: Starting Rate | BW24: =BW9 -> 5000 | BX24: =MAX(0,BX23-BY23) -> 0 | BY24: 0 | BZ24: =MAX(0,BW24-BY24) -> 5000 | CH24: Additional Rate | CI24: 0 | CJ24: @ | CK24: ='Parameters_Inc Calcs'!$E$8 -> 0.47 | CL24: =CI24*CK24 -> 0 | CN24: Personal Savings Allowance | CO24: =CO10 -> 1000 | CP24: =MAX(0,CP23-CQ23) -> 0 | CQ24: 0 | CR24: =MAX(0,CO24-CQ24) -> 1000 | CT24: 0 | CU24: 0 | CV24: 0 | CZ24: Starting Rate | DA24: =CO9 -> 5000 | DB24: =MAX(0,DB23-DC23) -> 0 | DC24: 0 | DD24: =MAX(0,DA24-DC24) -> 5000 | DG24: Starting Rate | DH24: =DH9 -> 5000 | DI24: =MAX(0,DI23-DJ23) -> 0 | DJ24: 0 | DK24: =MAX(0,DH24-DJ24) -> 5000 | DS24: Additional Rate | DT24: 0 | DU24: @ | DV24: ='Parameters_Inc Calcs'!$E$8 -> 0.47 | DW24: =DT24*DV24 -> 0 | DY24: Personal Savings Allowance | DZ24: =DZ10 -> 1000 | EA24: =MAX(0,EA23-EB23) -> 0 | EB24: 0 | EC24: =MAX(0,DZ24-EB24) -> 1000 | EE24: 0 | EF24: 0 | EG24: 0 | EK24: Starting Rate | EL24: =DZ9 -> 5000 | EM24: =MAX(0,EM23-EN23) -> 0 | EN24: 0 | EO24: =MAX(0,EL24-EN24) -> 5000 | ER24: Starting Rate | ES24: =ES9 -> 5000 | ET24: =MAX(0,ET23-EU23) -> 0 | EU24: 0 | EV24: =MAX(0,ES24-EU24) -> 5000 | FD24: Additional Rate | FE24: 0 | FF24: @ | FG24: ='Parameters_Inc Calcs'!$E$8 -> 0.47 | FH24: =FE24*FG24 -> 0
C25: PA adjustment | D25: =D24/2 -> 0 | G25: Personal Allowance | H25: =K16 -> 12570 | I25: =MAX(0,I24-J24) -> 0 | J25: 0 | K25: =MAX(0,H25-J25) -> 12570 | N25: =$J$25*O25 -> 0 | O25: 0 | R25: Personal Allowance | S25: =V16 -> 12570 | T25: =MAX(0,T24-U24) -> 0 | U25: 0 | V25: =MAX(0,S25-U25) -> 12570 | X25: 0 | Y25: 0 | Z25: 0 | AD25: Personal Savings Allowance | AE25: =S10 -> 1000 | AF25: =MAX(0,AF24-AG24) -> 0 | AG25: 0 | AH25: =MAX(0,AE25-AG25) -> 1000 | AK25: Personal Savings Allowance | AL25: =AL10 -> 1000 | AM25: =MAX(0,AM24-AN24) -> 0 | AN25: 0 | AO25: =MAX(0,AL25-AN25) -> 1000 | AW25: Total Liability | BA25: =SUM(BA19:BA24) -> 0 | BC25: Personal Allowance | BD25: =BG16 -> 12570 | BE25: =MAX(0,BE24-BF24) -> 0 | BF25: 0 | BG25: =MAX(0,BD25-BF25) -> 12570 | BI25: 0 | BJ25: 0 | BK25: 0 | BO25: Personal Savings Allowance | BP25: =BD10 -> 1000 | BQ25: =MAX(0,BQ24-BR24) -> 0 | BR25: 0 | BS25: =MAX(0,BP25-BR25) -> 1000 | BV25: Personal Savings Allowance | BW25: =BW10 -> 1000 | BX25: =MAX(0,BX24-BY24) -> 0 | BY25: 0 | BZ25: =MAX(0,BW25-BY25) -> 1000 | CH25: Total Liability | CL25: =SUM(CL19:CL24) -> 0 | CN25: Personal Allowance | CO25: =CR16 -> 12570 | CP25: =MAX(0,CP24-CQ24) -> 0 | CQ25: 0 | CR25: =MAX(0,CO25-CQ25) -> 12570 | CT25: 0 | CU25: 0 | CV25: 0 | CZ25: Personal Savings Allowance | DA25: =CO10 -> 1000 | DB25: =MAX(0,DB24-DC24) -> 0 | DC25: 0 | DD25: =MAX(0,DA25-DC25) -> 1000 | DG25: Personal Savings Allowance | DH25: =DH10 -> 1000 | DI25: =MAX(0,DI24-DJ24) -> 0 | DJ25: 0 | DK25: =MAX(0,DH25-DJ25) -> 1000 | DS25: Total Liability | DW25: =SUM(DW19:DW24) -> 0 | DY25: Personal Allowance | DZ25: =EC16 -> 12570 | EA25: =MAX(0,EA24-EB24) -> 0 | EB25: 0 | EC25: =MAX(0,DZ25-EB25) -> 12570 | EE25: 0 | EF25: 0 | EG25: 0 | EK25: Personal Savings Allowance | EL25: =DZ10 -> 1000 | EM25: =MAX(0,EM24-EN24) -> 0 | EN25: 0 | EO25: =MAX(0,EL25-EN25) -> 1000 | ER25: Personal Savings Allowance | ES25: =ES10 -> 1000 | ET25: =MAX(0,ET24-EU24) -> 0 | EU25: 0 | EV25: =MAX(0,ES25-EU25) -> 1000 | FD25: Total Liability | FH25: =SUM(FH19:FH24) -> 0
G26: Basic Rate | H26: =MAX(0,K17-SUM(J23:J24)) -> 37700 | I26: =MAX(0,I25-J25) -> 0 | J26: 0 | K26: =MAX(0,H26-J26) -> 37700 | N26: =$J$26*O26 -> 0 | O26: ='Parameters_Inc Calcs'!$E$4 -> 0.22 | R26: Basic Rate | S26: =MAX(0,V17-SUM(U23:U24)) -> 37700 | T26: =MAX(0,T25-U25) -> 0 | U26: 0 | V26: =MAX(0,S26-U26) -> 37700 | W26: =MIN(V18,MAX(0,U24-V17)) -> 0 | X26: 0 | Y26: ='Parameters_Inc Calcs'!$E$4 -> 0.22 | Z26: 0 | AD26: Basic Rate | AE26: =MAX(0,AH17-SUM(AG24:AG25)) -> 37700 | AF26: =MAX(0,AF25-AG25) -> 0 | AG26: 0 | AH26: =MAX(0,AE26-AG26) -> 37700 | AK26: Basic Rate | AL26: =MAX(0,AO17-SUM(AN24:AN25)) -> 37700 | AM26: =MAX(0,AM25-AN25) -> 0 | AN26: 0 | AO26: =MAX(0,AL26-AN26) -> 37700 | AV26: Step 2 | AW26: Tax Credit | BA26: =(AX17-AX19)*AZ22 -> 0 | BC26: Basic Rate | BD26: =MAX(0,BG17-SUM(BF23:BF24)) -> 37700 | BE26: =MAX(0,BE25-BF25) -> 0 | BF26: 0 | BG26: =MAX(0,BD26-BF26) -> 37700 | BH26: =MIN(BG18,MAX(0,BF24-BG17)) -> 0 | BI26: 0 | BJ26: ='Parameters_Inc Calcs'!$E$4 -> 0.22 | BK26: 0 | BO26: Basic Rate | BP26: =MAX(0,BS17-SUM(BR24:BR25)) -> 37700 | BQ26: =MAX(0,BQ25-BR25) -> 0 | BR26: 0 | BS26: =MAX(0,BP26-BR26) -> 37700 | BV26: Basic Rate | BW26: =MAX(0,BZ17-SUM(BY24:BY25)) -> 37700 | BX26: =MAX(0,BX25-BY25) -> 0 | BY26: 0 | BZ26: =MAX(0,BW26-BY26) -> 37700 | CG26: Step 2 | CH26: Tax Credit | CL26: =(CI17-CI19)*CK22 -> 0 | CN26: Basic Rate | CO26: =MAX(0,CR17-SUM(CQ23:CQ24)) -> 37700 | CP26: =MAX(0,CP25-CQ25) -> 0 | CQ26: 0 | CR26: =MAX(0,CO26-CQ26) -> 37700 | CS26: =MIN(CR18,MAX(0,CQ24-CR17)) -> 0 | CT26: 0 | CU26: ='Parameters_Inc Calcs'!$E$4 -> 0.22 | CV26: 0 | CZ26: Basic Rate | DA26: =MAX(0,DD17-SUM(DC24:DC25)) -> 37700 | DB26: =MAX(0,DB25-DC25) -> 0 | DC26: 0 | DD26: =MAX(0,DA26-DC26) -> 37700 | DG26: Basic Rate | DH26: =MAX(0,DK17-SUM(DJ24:DJ25)) -> 37700 | DI26: =MAX(0,DI25-DJ25) -> 0 | DJ26: 0 | DK26: =MAX(0,DH26-DJ26) -> 37700 | DR26: Step 2 | DS26: Tax Credit | DW26: =(DT17-DT19)*DV22 -> 0 | DY26: Basic Rate | DZ26: =MAX(0,EC17-SUM(EB23:EB24)) -> 37700 | EA26: =MAX(0,EA25-EB25) -> 0 | EB26: 0 | EC26: =MAX(0,DZ26-EB26) -> 37700 | ED26: =MIN(EC18,MAX(0,EB24-EC17)) -> 0 | EE26: 0 | EF26: ='Parameters_Inc Calcs'!$E$4 -> 0.22 | EG26: 0 | EK26: Basic Rate | EL26: =MAX(0,EO17-SUM(EN24:EN25)) -> 37700 | EM26: =MAX(0,EM25-EN25) -> 0 | EN26: 0 | EO26: =MAX(0,EL26-EN26) -> 37700 | ER26: Basic Rate | ES26: =MAX(0,EV17-SUM(EU24:EU25)) -> 37700 | ET26: =MAX(0,ET25-EU25) -> 0 | EU26: 0 | EV26: =MAX(0,ES26-EU26) -> 37700 | FC26: Step 2 | FD26: Tax Credit | FH26: =(FE17-FE19)*FG22 -> 0
C27: Personal Allowance | D27: =MAX(0,D36-D25) -> 12570 | G27: Higher Rate | H27: =K18-L27 -> 87440 | I27: =MAX(0,I26-J26) -> 0 | J27: 0 | K27: =MAX(0,H27-J27) -> 87440 | L27: =MIN(K18,MAX(J24-K17,0)) -> 0 | N27: =$J$27*O27 -> 0 | O27: ='Parameters_Inc Calcs'!$E$5 -> 0.42 | R27: Higher Rate | S27: =V18-W26 -> 87440 | T27: =MAX(0,T26-U26) -> 0 | U27: 0 | V27: =MAX(0,S27-U27) -> 87440 | X27: 0 | Y27: ='Parameters_Inc Calcs'!$E$5 -> 0.42 | Z27: 0 | AD27: Higher Rate | AE27: =AH18-AI27 -> 87440 | AF27: =MAX(0,AF26-AG26) -> 0 | AG27: 0 | AH27: =MAX(0,AE27-AG27) -> 87440 | AI27: =MIN(AH18,MAX(0,AG25-AH17)) -> 0 | AK27: Higher Rate | AL27: =AO18-AP27 -> 87440 | AM27: =MAX(0,AM26-AN26) -> 0 | AN27: 0 | AO27: =MAX(0,AL27-AN27) -> 87440 | AP27: =MIN(AO18,MAX(0,AN25-AO17)) -> 0 | AW27: Relieved liability on gain | BA27: =MAX(0,BA25-BA26) -> 0 | BC27: Higher Rate | BD27: =BG18-BH26 -> 87440 | BE27: =MAX(0,BE26-BF26) -> 0 | BF27: 0 | BG27: =MAX(0,BD27-BF27) -> 87440 | BI27: 0 | BJ27: ='Parameters_Inc Calcs'!$E$5 -> 0.42 | BK27: 0 | BO27: Higher Rate | BP27: =BS18-BT27 -> 87440 | BQ27: =MAX(0,BQ26-BR26) -> 0 | BR27: 0 | BS27: =MAX(0,BP27-BR27) -> 87440 | BT27: =MIN(BS18,MAX(0,BR25-BS17)) -> 0 | BV27: Higher Rate | BW27: =BZ18-CA27 -> 87440 | BX27: =MAX(0,BX26-BY26) -> 0 | BY27: 0 | BZ27: =MAX(0,BW27-BY27) -> 87440 | CA27: =MIN(BZ18,MAX(0,BY25-BZ17)) -> 0 | CH27: Relieved liability on gain | CL27: =MAX(0,CL25-CL26) -> 0 | CN27: Higher Rate | CO27: =CR18-CS26 -> 87440 | CP27: =MAX(0,CP26-CQ26) -> 0 | CQ27: 0 | CR27: =MAX(0,CO27-CQ27) -> 87440 | CT27: 0 | CU27: ='Parameters_Inc Calcs'!$E$5 -> 0.42 | CV27: 0 | CZ27: Higher Rate | DA27: =DD18-DE27 -> 87440 | DB27: =MAX(0,DB26-DC26) -> 0 | DC27: 0 | DD27: =MAX(0,DA27-DC27) -> 87440 | DE27: =MIN(DD18,MAX(0,DC25-DD17)) -> 0 | DG27: Higher Rate | DH27: =DK18-DL27 -> 87440 | DI27: =MAX(0,DI26-DJ26) -> 0 | DJ27: 0 | DK27: =MAX(0,DH27-DJ27) -> 87440 | DL27: =MIN(DK18,MAX(0,DJ25-DK17)) -> 0 | DS27: Relieved liability on gain | DW27: =MAX(0,DW25-DW26) -> 0 | DY27: Higher Rate | DZ27: =EC18-ED26 -> 87440 | EA27: =MAX(0,EA26-EB26) -> 0 | EB27: 0 | EC27: =MAX(0,DZ27-EB27) -> 87440 | EE27: 0 | EF27: ='Parameters_Inc Calcs'!$E$5 -> 0.42 | EG27: 0 | EK27: Higher Rate | EL27: =EO18-EP27 -> 87440 | EM27: =MAX(0,EM26-EN26) -> 0 | EN27: 0 | EO27: =MAX(0,EL27-EN27) -> 87440 | EP27: =MIN(EO18,MAX(0,EN25-EO17)) -> 0 | ER27: Higher Rate | ES27: =EV18-EW27 -> 87440 | ET27: =MAX(0,ET26-EU26) -> 0 | EU27: 0 | EV27: =MAX(0,ES27-EU27) -> 87440 | EW27: =MIN(EV18,MAX(0,EU25-EV17)) -> 0 | FD27: Relieved liability on gain | FH27: =MAX(0,FH25-FH26) -> 0
G28: Additional Rate | I28: =MAX(0,I27-J27) -> 0 | J28: 0 | K28: NA | N28: =$J$28*O28 -> 0 | O28: ='Parameters_Inc Calcs'!$E$8 -> 0.47 | R28: Additional Rate | T28: =MAX(0,T27-U27) -> 0 | U28: 0 | V28: NA | X28: 0 | Y28: ='Parameters_Inc Calcs'!$E$8 -> 0.47 | Z28: 0 | AA28: =SUM(Z23:Z28) -> 0 | AB28: =AA28-$N$29 -> 0 | AD28: Additional Rate | AF28: =MAX(0,AF27-AG27) -> 0 | AG28: 0 | AK28: Additional Rate | AM28: =MAX(0,AM27-AN27) -> 0 | AN28: 0 | BC28: Additional Rate | BE28: =MAX(0,BE27-BF27) -> 0 | BF28: 0 | BG28: NA | BI28: 0 | BJ28: ='Parameters_Inc Calcs'!$E$8 -> 0.47 | BK28: 0 | BL28: =SUM(BK23:BK28) -> 0 | BM28: =BL28-$N$29 -> 0 | BO28: Additional Rate | BQ28: =MAX(0,BQ27-BR27) -> 0 | BR28: 0 | BV28: Additional Rate | BX28: =MAX(0,BX27-BY27) -> 0 | BY28: 0 | CN28: Additional Rate | CP28: =MAX(0,CP27-CQ27) -> 0 | CQ28: 0 | CR28: NA | CT28: 0 | CU28: ='Parameters_Inc Calcs'!$E$8 -> 0.47 | CV28: 0 | CW28: =SUM(CV23:CV28) -> 0 | CX28: =CW28-$N$29 -> 0 | CZ28: Additional Rate | DB28: =MAX(0,DB27-DC27) -> 0 | DC28: 0 | DG28: Additional Rate | DI28: =MAX(0,DI27-DJ27) -> 0 | DJ28: 0 | DY28: Additional Rate | EA28: =MAX(0,EA27-EB27) -> 0 | EB28: 0 | EC28: NA | EE28: 0 | EF28: ='Parameters_Inc Calcs'!$E$8 -> 0.47 | EG28: 0 | EH28: =SUM(EG23:EG28) -> 0 | EI28: =EH28-$N$29 -> 0 | EK28: Additional Rate | EM28: =MAX(0,EM27-EN27) -> 0 | EN28: 0 | ER28: Additional Rate | ET28: =MAX(0,ET27-EU27) -> 0 | EU28: 0
C29: Taxable Income | D29: =MAX(0,D14-D27) -> 0 | G29: Nil Rate available | H29: =SUM(H23:H25) -> 18570 | N29: =SUM(N23:N28) -> 0
AD30: Offshore Bond Gain Tax Band Apportionment - set to £0 as included at total gain below | AK30: Offshore Bond Gain Tax Band Apportionment - set to £0 as included at total gain below | AV30: Step 3 | AW30: Taxation of slice | AX30: =AL3 -> 0 | BO30: Offshore Bond Gain Tax Band Apportionment - set to £0 as included at total gain below | BV30: Offshore Bond Gain Tax Band Apportionment - set to £0 as included at total gain below | CG30: Step 3 | CH30: Taxation of slice | CI30: =BW3 -> 0 | CZ30: Offshore Bond Gain Tax Band Apportionment - set to £0 as included at total gain below | DG30: Offshore Bond Gain Tax Band Apportionment - set to £0 as included at total gain below | DR30: Step 3 | DS30: Taxation of slice | DT30: =DH3 -> 0 | EK30: Offshore Bond Gain Tax Band Apportionment - set to £0 as included at total gain below | ER30: Offshore Bond Gain Tax Band Apportionment - set to £0 as included at total gain below | FC30: Step 3 | FD30: Taxation of slice | FE30: =ES3 -> 0
C31: Basic Rate Band | D31: ='Parameters_Inc Calcs'!C26 -> 37700 | G31: Offshore Bond Tax Band Apportionment | R31: Offshore Bond Gain Tax Band Apportionment | AE31: Allowances | AF31: Still to tax | AG31: Used | AH31: Unused | AL31: Allowances | AM31: Still to tax | AN31: Used | AO31: Unused | BA31: Tax | BC31: Offshore Bond Gain Tax Band Apportionment | BP31: Allowances | BQ31: Still to tax | BR31: Used | BS31: Unused | BW31: Allowances | BX31: Still to tax | BY31: Used | BZ31: Unused | CL31: Tax | CN31: Offshore Bond Gain Tax Band Apportionment | DA31: Allowances | DB31: Still to tax | DC31: Used | DD31: Unused | DH31: Allowances | DI31: Still to tax | DJ31: Used | DK31: Unused | DW31: Tax | DY31: Offshore Bond Gain Tax Band Apportionment | EL31: Allowances | EM31: Still to tax | EN31: Used | EO31: Unused | ES31: Allowances | ET31: Still to tax | EU31: Used | EV31: Unused | FH31: Tax
C32: Higher Threshold | D32: ='Parameters_Inc Calcs'!C27 -> 50270 | N32: Before | O32: Rate | S32: Allowances | T32: Still to tax | U32: Used | V32: Unused | X32: Amount | Y32: Rate | Z32: Tax | AD32: Personal Allowance | AE32: =AH23 -> 12570 | AF32: 0 | AG32: =MIN(AE32,AF32) -> 0 | AH32: =MAX(0,AE32-AG32) -> 12570 | AK32: Personal Allowance | AL32: =AO23 -> 12570 | AM32: 0 | AN32: =MIN(AL32,AM32) -> 0 | AO32: =MAX(0,AL32-AN32) -> 12570 | AV32: Step 4 | AW32: Personal Allowance | AX32: =AN50 -> 0 | AY32: @ | AZ32: =AZ19 -> 0 | BA32: =AZ32*AX32 -> 0 | BD32: Allowances | BE32: Still to tax | BF32: Used | BG32: Unused | BI32: Amount | BJ32: Rate | BK32: Tax | BO32: Personal Allowance | BP32: =BS23 -> 12570 | BQ32: 0 | BR32: =MIN(BP32,BQ32) -> 0 | BS32: =MAX(0,BP32-BR32) -> 12570 | BV32: Personal Allowance | BW32: =BZ23 -> 12570 | BX32: 0 | BY32: =MIN(BW32,BX32) -> 0 | BZ32: =MAX(0,BW32-BY32) -> 12570 | CG32: Step 4 | CH32: Personal Allowance | CI32: =BY50 -> 0 | CJ32: @ | CK32: =CK19 -> 0 | CL32: =CK32*CI32 -> 0 | CO32: Allowances | CP32: Still to tax | CQ32: Used | CR32: Unused | CT32: Amount | CU32: Rate | CV32: Tax | CZ32: Personal Allowance | DA32: =DD23 -> 12570 | DB32: 0 | DC32: =MIN(DA32,DB32) -> 0 | DD32: =MAX(0,DA32-DC32) -> 12570 | DG32: Personal Allowance | DH32: =DK23 -> 12570 | DI32: 0 | DJ32: =MIN(DH32,DI32) -> 0 | DK32: =MAX(0,DH32-DJ32) -> 12570 | DR32: Step 4 | DS32: Personal Allowance | DT32: =DJ50 -> 0 | DU32: @ | DV32: =DV19 -> 0 | DW32: =DV32*DT32 -> 0 | DZ32: Allowances | EA32: Still to tax | EB32: Used | EC32: Unused | EE32: Amount | EF32: Rate | EG32: Tax | EK32: Personal Allowance | EL32: =EO23 -> 12570 | EM32: 0 | EN32: =MIN(EL32,EM32) -> 0 | EO32: =MAX(0,EL32-EN32) -> 12570 | ER32: Personal Allowance | ES32: =EV23 -> 12570 | ET32: 0 | EU32: =MIN(ES32,ET32) -> 0 | EV32: =MAX(0,ES32-EU32) -> 12570 | FC32: Step 4 | FD32: Personal Allowance | FE32: =EU50 -> 0 | FF32: @ | FG32: =FG19 -> 0 | FH32: =FG32*FE32 -> 0
C33: Higher Rate Band | D33: ='Parameters_Inc Calcs'!C28 -> 87440 | G33: Starting Rate | H33: =K23 -> 5000 | I33: 0 | J33: =MIN(I33,H33) -> 0 | K33: =MAX(0,H33-J33) -> 5000 | N33: =$J$33*O33 -> 0 | O33: 0 | R33: Starting Rate | S33: =V23 -> 5000 | T33: 0 | U33: 0 | V33: =MAX(0,S33-U33) -> 5000 | X33: =U33 -> 0 | Y33: 0 | Z33: =X33*Y33 -> 0 | AD33: Starting Rate | AE33: =AH24 -> 5000 | AF33: =MAX(0,AF32-AG32) -> 0 | AG33: 0 | AH33: =MAX(0,AE33-AG33) -> 5000 | AK33: Starting Rate | AL33: =AO24 -> 5000 | AM33: =MAX(0,AM32-AN32) -> 0 | AN33: 0 | AO33: =MAX(0,AL33-AN33) -> 5000 | AW33: Starting Rate | AX33: 0 | AY33: @ | AZ33: 0 | BA33: 0 | BC33: Starting Rate | BD33: =BG23 -> 5000 | BE33: =BD3 -> 0 | BF33: =MIN(BD33,BE33) -> 0 | BG33: =MAX(0,BD33-BF33) -> 5000 | BI33: =BF33 -> 0 | BJ33: 0 | BK33: =BI33*BJ33 -> 0 | BO33: Starting Rate | BP33: =BS24 -> 5000 | BQ33: =MAX(0,BQ32-BR32) -> 0 | BR33: 0 | BS33: =MAX(0,BP33-BR33) -> 5000 | BV33: Starting Rate | BW33: =BZ24 -> 5000 | BX33: =MAX(0,BX32-BY32) -> 0 | BY33: 0 | BZ33: =MAX(0,BW33-BY33) -> 5000 | CH33: Starting Rate | CI33: 0 | CJ33: @ | CK33: 0 | CL33: 0 | CN33: Starting Rate | CO33: =CR23 -> 5000 | CP33: 0 | CQ33: 0 | CR33: =MAX(0,CO33-CQ33) -> 5000 | CT33: =CQ33 -> 0 | CU33: 0 | CV33: =CT33*CU33 -> 0 | CZ33: Starting Rate | DA33: =DD24 -> 5000 | DB33: =MAX(0,DB32-DC32) -> 0 | DC33: 0 | DD33: =MAX(0,DA33-DC33) -> 5000 | DG33: Starting Rate | DH33: =DK24 -> 5000 | DI33: =MAX(0,DI32-DJ32) -> 0 | DJ33: 0 | DK33: =MAX(0,DH33-DJ33) -> 5000 | DS33: Starting Rate | DT33: 0 | DU33: @ | DV33: 0 | DW33: 0 | DY33: Starting Rate | DZ33: =EC23 -> 5000 | EA33: =DZ3 -> 0 | EB33: =MIN(DZ33,EA33) -> 0 | EC33: =MAX(0,DZ33-EB33) -> 5000 | EE33: =EB33 -> 0 | EF33: 0 | EG33: =EE33*EF33 -> 0 | EK33: Starting Rate | EL33: =EO24 -> 5000 | EM33: =MAX(0,EM32-EN32) -> 0 | EN33: 0 | EO33: =MAX(0,EL33-EN33) -> 5000 | ER33: Starting Rate | ES33: =EV24 -> 5000 | ET33: =MAX(0,ET32-EU32) -> 0 | EU33: 0 | EV33: =MAX(0,ES33-EU33) -> 5000 | FD33: Starting Rate | FE33: 0 | FF33: @ | FG33: 0 | FH33: 0
C34: Additional Threshold | D34: ='Parameters_Inc Calcs'!C29 -> 125140 | G34: Personal Savings Allowance | H34: =K24 -> 1000 | I34: =MAX(0,I33-J33) -> 0 | J34: 0 | K34: =MAX(0,H34-J34) -> 1000 | N34: =$J$34*O34 -> 0 | O34: 0 | R34: Personal Savings Allowance | S34: =V24 -> 1000 | T34: =MAX(0,T33-U33) -> 0 | U34: 0 | V34: =MAX(0,S34-U34) -> 1000 | X34: 0 | Y34: 0 | Z34: 0 | AD34: Personal Savings Allowance | AE34: =AH25 -> 1000 | AF34: =MAX(0,AF33-AG33) -> 0 | AG34: 0 | AH34: =MAX(0,AE34-AG34) -> 1000 | AK34: Personal Savings Allowance | AL34: =AO25 -> 1000 | AM34: =MAX(0,AM33-AN33) -> 0 | AN34: 0 | AO34: =MAX(0,AL34-AN34) -> 1000 | AW34: Personal Savings Allowance | AX34: 0 | AY34: @ | AZ34: 0 | BA34: 0 | BC34: Personal Savings Allowance | BD34: =BG24 -> 1000 | BE34: =MAX(0,BE33-BF33) -> 0 | BF34: 0 | BG34: =MAX(0,BD34-BF34) -> 1000 | BI34: 0 | BJ34: 0 | BK34: 0 | BO34: Personal Savings Allowance | BP34: =BS25 -> 1000 | BQ34: =MAX(0,BQ33-BR33) -> 0 | BR34: 0 | BS34: =MAX(0,BP34-BR34) -> 1000 | BV34: Personal Savings Allowance | BW34: =BZ25 -> 1000 | BX34: =MAX(0,BX33-BY33) -> 0 | BY34: 0 | BZ34: =MAX(0,BW34-BY34) -> 1000 | CH34: Personal Savings Allowance | CI34: 0 | CJ34: @ | CK34: 0 | CL34: 0 | CN34: Personal Savings Allowance | CO34: =CR24 -> 1000 | CP34: =MAX(0,CP33-CQ33) -> 0 | CQ34: 0 | CR34: =MAX(0,CO34-CQ34) -> 1000 | CT34: 0 | CU34: 0 | CV34: 0 | CZ34: Personal Savings Allowance | DA34: =DD25 -> 1000 | DB34: =MAX(0,DB33-DC33) -> 0 | DC34: 0 | DD34: =MAX(0,DA34-DC34) -> 1000 | DG34: Personal Savings Allowance | DH34: =DK25 -> 1000 | DI34: =MAX(0,DI33-DJ33) -> 0 | DJ34: 0 | DK34: =MAX(0,DH34-DJ34) -> 1000 | DS34: Personal Savings Allowance | DT34: 0 | DU34: @ | DV34: 0 | DW34: 0 | DY34: Personal Savings Allowance | DZ34: =EC24 -> 1000 | EA34: =MAX(0,EA33-EB33) -> 0 | EB34: 0 | EC34: =MAX(0,DZ34-EB34) -> 1000 | EE34: 0 | EF34: 0 | EG34: 0 | EK34: Personal Savings Allowance | EL34: =EO25 -> 1000 | EM34: =MAX(0,EM33-EN33) -> 0 | EN34: 0 | EO34: =MAX(0,EL34-EN34) -> 1000 | ER34: Personal Savings Allowance | ES34: =EV25 -> 1000 | ET34: =MAX(0,ET33-EU33) -> 0 | EU34: 0 | EV34: =MAX(0,ES34-EU34) -> 1000 | FD34: Personal Savings Allowance | FE34: 0 | FF34: @ | FG34: 0 | FH34: 0
G35: Personal Allowance | H35: =K25 -> 12570 | I35: =MAX(0,I34-J34) -> 0 | J35: 0 | K35: =MAX(0,H35-J35) -> 12570 | N35: =$J$35*O35 -> 0 | O35: 0 | R35: Personal Allowance | S35: =V25 -> 12570 | T35: =MAX(0,T34-U34) -> 0 | U35: 0 | V35: =MAX(0,S35-U35) -> 12570 | X35: 0 | Y35: 0 | Z35: 0 | AD35: Basic Rate | AE35: =MAX(0,AH26-SUM(AG33:AG34)) -> 37700 | AF35: =MAX(0,AF34-AG34) -> 0 | AG35: 0 | AH35: =MAX(0,AE35-AG35) -> 37700 | AK35: Basic Rate | AL35: =MAX(0,AO26-SUM(AN33:AN34)) -> 37700 | AM35: =MAX(0,AM34-AN34) -> 0 | AN35: 0 | AO35: =MAX(0,AL35-AN35) -> 37700 | AW35: Basic Rate | AX35: 0 | AY35: @ | AZ35: ='Parameters_Inc Calcs'!$E$4 -> 0.22 | BA35: 0 | BC35: Personal Allowance | BD35: =BG25 -> 12570 | BE35: =MAX(0,BE34-BF34) -> 0 | BF35: 0 | BG35: =MAX(0,BD35-BF35) -> 12570 | BI35: 0 | BJ35: 0 | BK35: 0 | BO35: Basic Rate | BP35: =MAX(0,BS26-SUM(BR33:BR34)) -> 37700 | BQ35: =MAX(0,BQ34-BR34) -> 0 | BR35: 0 | BS35: =MAX(0,BP35-BR35) -> 37700 | BV35: Basic Rate | BW35: =MAX(0,BZ26-SUM(BY33:BY34)) -> 37700 | BX35: =MAX(0,BX34-BY34) -> 0 | BY35: 0 | BZ35: =MAX(0,BW35-BY35) -> 37700 | CH35: Basic Rate | CI35: 0 | CJ35: @ | CK35: ='Parameters_Inc Calcs'!$E$4 -> 0.22 | CL35: 0 | CN35: Personal Allowance | CO35: =CR25 -> 12570 | CP35: =MAX(0,CP34-CQ34) -> 0 | CQ35: 0 | CR35: =MAX(0,CO35-CQ35) -> 12570 | CT35: 0 | CU35: 0 | CV35: 0 | CZ35: Basic Rate | DA35: =MAX(0,DD26-SUM(DC33:DC34)) -> 37700 | DB35: =MAX(0,DB34-DC34) -> 0 | DC35: 0 | DD35: =MAX(0,DA35-DC35) -> 37700 | DG35: Basic Rate | DH35: =MAX(0,DK26-SUM(DJ33:DJ34)) -> 37700 | DI35: =MAX(0,DI34-DJ34) -> 0 | DJ35: 0 | DK35: =MAX(0,DH35-DJ35) -> 37700 | DS35: Basic Rate | DT35: 0 | DU35: @ | DV35: ='Parameters_Inc Calcs'!$E$4 -> 0.22 | DW35: 0 | DY35: Personal Allowance | DZ35: =EC25 -> 12570 | EA35: =MAX(0,EA34-EB34) -> 0 | EB35: 0 | EC35: =MAX(0,DZ35-EB35) -> 12570 | EE35: 0 | EF35: 0 | EG35: 0 | EK35: Basic Rate | EL35: =MAX(0,EO26-SUM(EN33:EN34)) -> 37700 | EM35: =MAX(0,EM34-EN34) -> 0 | EN35: 0 | EO35: =MAX(0,EL35-EN35) -> 37700 | ER35: Basic Rate | ES35: =MAX(0,EV26-SUM(EU33:EU34)) -> 37700 | ET35: =MAX(0,ET34-EU34) -> 0 | EU35: 0 | EV35: =MAX(0,ES35-EU35) -> 37700 | FD35: Basic Rate | FE35: 0 | FF35: @ | FG35: ='Parameters_Inc Calcs'!$E$4 -> 0.22 | FH35: 0
C36: PA standard | D36: ='Parameters_Inc Calcs'!C25 -> 12570 | G36: Basic Rate | H36: =MAX(0,K26-SUM(J33:J34)) -> 37700 | I36: =MAX(0,I35-J35) -> 0 | J36: 0 | K36: =MAX(0,H36-J36) -> 37700 | N36: =$J$36*O36 -> 0 | O36: ='Parameters_Inc Calcs'!$E$4 -> 0.22 | R36: Basic Rate | S36: =MAX(0,V26-SUM(U33:U34)) -> 37700 | T36: =MAX(0,T35-U35) -> 0 | U36: 0 | V36: =MAX(0,S36-U36) -> 37700 | W36: =MIN(V27,MAX(0,U34-V26)) -> 0 | X36: 0 | Y36: ='Parameters_Inc Calcs'!$E$4 -> 0.22 | Z36: 0 | AD36: Higher Rate | AE36: =AH27-AI36 -> 87440 | AF36: =MAX(0,AF35-AG35) -> 0 | AG36: 0 | AH36: =MAX(0,AE36-AG36) -> 87440 | AI36: =MIN(AH27,MAX(0,AG34-AH26)) -> 0 | AK36: Higher Rate | AL36: =AO27-AP36 -> 87440 | AM36: =MAX(0,AM35-AN35) -> 0 | AN36: 0 | AO36: =MAX(0,AL36-AN36) -> 87440 | AP36: =MIN(AO27,MAX(0,AN34-AO26)) -> 0 | AW36: Higher Rate | AX36: 0 | AY36: @ | AZ36: ='Parameters_Inc Calcs'!$E$5 -> 0.42 | BA36: 0 | BC36: Basic Rate | BD36: =MAX(0,BG26-SUM(BF33:BF34)) -> 37700 | BE36: =MAX(0,BE35-BF35) -> 0 | BF36: 0 | BG36: =MAX(0,BD36-BF36) -> 37700 | BH36: =MIN(BG27,MAX(0,BF34-BG26)) -> 0 | BI36: 0 | BJ36: ='Parameters_Inc Calcs'!$E$4 -> 0.22 | BK36: 0 | BO36: Higher Rate | BP36: =BS27-BT36 -> 87440 | BQ36: =MAX(0,BQ35-BR35) -> 0 | BR36: 0 | BS36: =MAX(0,BP36-BR36) -> 87440 | BT36: =MIN(BS27,MAX(0,BR34-BS26)) -> 0 | BV36: Higher Rate | BW36: =BZ27-CA36 -> 87440 | BX36: =MAX(0,BX35-BY35) -> 0 | BY36: 0 | BZ36: =MAX(0,BW36-BY36) -> 87440 | CA36: =MIN(BZ27,MAX(0,BY34-BZ26)) -> 0 | CH36: Higher Rate | CI36: 0 | CJ36: @ | CK36: ='Parameters_Inc Calcs'!$E$5 -> 0.42 | CL36: 0 | CN36: Basic Rate | CO36: =MAX(0,CR26-SUM(CQ33:CQ34)) -> 37700 | CP36: =MAX(0,CP35-CQ35) -> 0 | CQ36: 0 | CR36: =MAX(0,CO36-CQ36) -> 37700 | CS36: =MIN(CR27,MAX(0,CQ34-CR26)) -> 0 | CT36: 0 | CU36: ='Parameters_Inc Calcs'!$E$4 -> 0.22 | CV36: 0 | CZ36: Higher Rate | DA36: =DD27-DE36 -> 87440 | DB36: =MAX(0,DB35-DC35) -> 0 | DC36: 0 | DD36: =MAX(0,DA36-DC36) -> 87440 | DE36: =MIN(DD27,MAX(0,DC34-DD26)) -> 0 | DG36: Higher Rate | DH36: =DK27-DL36 -> 87440 | DI36: =MAX(0,DI35-DJ35) -> 0 | DJ36: 0 | DK36: =MAX(0,DH36-DJ36) -> 87440 | DL36: =MIN(DK27,MAX(0,DJ34-DK26)) -> 0 | DS36: Higher Rate | DT36: 0 | DU36: @ | DV36: ='Parameters_Inc Calcs'!$E$5 -> 0.42 | DW36: 0 | DY36: Basic Rate | DZ36: =MAX(0,EC26-SUM(EB33:EB34)) -> 37700 | EA36: =MAX(0,EA35-EB35) -> 0 | EB36: 0 | EC36: =MAX(0,DZ36-EB36) -> 37700 | ED36: =MIN(EC27,MAX(0,EB34-EC26)) -> 0 | EE36: 0 | EF36: ='Parameters_Inc Calcs'!$E$4 -> 0.22 | EG36: 0 | EK36: Higher Rate | EL36: =EO27-EP36 -> 87440 | EM36: =MAX(0,EM35-EN35) -> 0 | EN36: 0 | EO36: =MAX(0,EL36-EN36) -> 87440 | EP36: =MIN(EO27,MAX(0,EN34-EO26)) -> 0 | ER36: Higher Rate | ES36: =EV27-EW36 -> 87440 | ET36: =MAX(0,ET35-EU35) -> 0 | EU36: 0 | EV36: =MAX(0,ES36-EU36) -> 87440 | EW36: =MIN(EV27,MAX(0,EU34-EV26)) -> 0 | FD36: Higher Rate | FE36: 0 | FF36: @ | FG36: ='Parameters_Inc Calcs'!$E$5 -> 0.42 | FH36: 0
G37: Higher Rate | H37: =K27-L37 -> 87440 | I37: =MAX(0,I36-J36) -> 0 | J37: 0 | K37: =MAX(0,H37-J37) -> 87440 | L37: =MIN(K27,MAX(0,J34-K26)) -> 0 | N37: =$J$37*O37 -> 0 | O37: ='Parameters_Inc Calcs'!$E$5 -> 0.42 | R37: Higher Rate | S37: =V27-W36 -> 87440 | T37: =MAX(0,T36-U36) -> 0 | U37: 0 | V37: =MAX(0,S37-U37) -> 87440 | X37: 0 | Y37: ='Parameters_Inc Calcs'!$E$5 -> 0.42 | Z37: 0 | AD37: Additional Rate | AF37: =MAX(0,AF36-AG36) -> 0 | AG37: 0 | AK37: Additional Rate | AM37: =MAX(0,AM36-AN36) -> 0 | AN37: 0 | AW37: Additional Rate | AX37: 0 | AY37: @ | AZ37: ='Parameters_Inc Calcs'!$E$8 -> 0.47 | BA37: 0 | BC37: Higher Rate | BD37: =BG27-BH36 -> 87440 | BE37: =MAX(0,BE36-BF36) -> 0 | BF37: 0 | BG37: =MAX(0,BD37-BF37) -> 87440 | BI37: 0 | BJ37: ='Parameters_Inc Calcs'!$E$5 -> 0.42 | BK37: 0 | BO37: Additional Rate | BQ37: =MAX(0,BQ36-BR36) -> 0 | BR37: 0 | BV37: Additional Rate | BX37: =MAX(0,BX36-BY36) -> 0 | BY37: 0 | CH37: Additional Rate | CI37: 0 | CJ37: @ | CK37: ='Parameters_Inc Calcs'!$E$8 -> 0.47 | CL37: 0 | CN37: Higher Rate | CO37: =CR27-CS36 -> 87440 | CP37: =MAX(0,CP36-CQ36) -> 0 | CQ37: 0 | CR37: =MAX(0,CO37-CQ37) -> 87440 | CT37: 0 | CU37: ='Parameters_Inc Calcs'!$E$5 -> 0.42 | CV37: 0 | CZ37: Additional Rate | DB37: =MAX(0,DB36-DC36) -> 0 | DC37: 0 | DG37: Additional Rate | DI37: =MAX(0,DI36-DJ36) -> 0 | DJ37: 0 | DS37: Additional Rate | DT37: 0 | DU37: @ | DV37: ='Parameters_Inc Calcs'!$E$8 -> 0.47 | DW37: 0 | DY37: Higher Rate | DZ37: =EC27-ED36 -> 87440 | EA37: =MAX(0,EA36-EB36) -> 0 | EB37: 0 | EC37: =MAX(0,DZ37-EB37) -> 87440 | EE37: 0 | EF37: ='Parameters_Inc Calcs'!$E$5 -> 0.42 | EG37: 0 | EK37: Additional Rate | EM37: =MAX(0,EM36-EN36) -> 0 | EN37: 0 | ER37: Additional Rate | ET37: =MAX(0,ET36-EU36) -> 0 | EU37: 0 | FD37: Additional Rate | FE37: 0 | FF37: @ | FG37: ='Parameters_Inc Calcs'!$E$8 -> 0.47 | FH37: 0
C38: PSA Basic | D38: ='Parameters_Inc Calcs'!$C$9 -> 1000 | G38: Additional Rate | I38: =MAX(0,I37-J37) -> 0 | J38: 0 | N38: =$J$38*O38 -> 0 | O38: ='Parameters_Inc Calcs'!$E$8 -> 0.47 | R38: Additional Rate | T38: =MAX(0,T37-U37) -> 0 | U38: 0 | V38: NA | X38: 0 | Y38: ='Parameters_Inc Calcs'!$E$8 -> 0.47 | Z38: 0 | AA38: =SUM(Z32:Z38) -> 0 | AB38: =AA38-$N$39 -> 0 | AW38: Total Liability | BA38: =SUM(BA33:BA37) -> 0 | BC38: Additional Rate | BE38: =MAX(0,BE37-BF37) -> 0 | BF38: 0 | BG38: NA | BI38: 0 | BJ38: ='Parameters_Inc Calcs'!$E$8 -> 0.47 | BK38: 0 | BL38: =SUM(BK33:BK38) -> 0 | BM38: =BL38-$N$39 -> 0 | CH38: Total Liability | CL38: =SUM(CL33:CL37) -> 0 | CN38: Additional Rate | CP38: =MAX(0,CP37-CQ37) -> 0 | CQ38: 0 | CR38: NA | CT38: 0 | CU38: ='Parameters_Inc Calcs'!$E$8 -> 0.47 | CV38: 0 | CW38: =SUM(CV32:CV38) -> 0 | CX38: =CW38-$N$39 -> 0 | DS38: Total Liability | DW38: =SUM(DW33:DW37) -> 0 | DY38: Additional Rate | EA38: =MAX(0,EA37-EB37) -> 0 | EB38: 0 | EC38: NA | EE38: 0 | EF38: ='Parameters_Inc Calcs'!$E$8 -> 0.47 | EG38: 0 | EH38: =SUM(EG33:EG38) -> 0 | EI38: =EH38-$N$39 -> 0 | FD38: Total Liability | FH38: =SUM(FH33:FH37) -> 0
C39: PSA Higher | D39: ='Parameters_Inc Calcs'!$C$10 -> 500 | N39: =SUM(N33:N38) -> 0 | AW39: Tax Credit | BA39: =(AX30-AX32)*AZ35 -> 0 | CH39: Tax Credit | CL39: =(CI30-CI32)*CK35 -> 0 | DS39: Tax Credit | DW39: =(DT30-DT32)*DV35 -> 0 | FD39: Tax Credit | FH39: =(FE30-FE32)*FG35 -> 0
C40: PSA Add | D40: ='Parameters_Inc Calcs'!$C$11 -> 0 | G40: Dividend Income Tax Band Apportionment | R40: Dividend Income Tax Band Apportionment | AD40: Dividend Income Tax Band Apportionment | AK40: Dividend Income Tax Band Apportionment | AW40: Relieved Liability on Slice | BA40: =MAX(0,BA38-BA39) -> 0 | BC40: Dividend Income Tax Band Apportionment | BO40: Dividend Income Tax Band Apportionment | BV40: Dividend Income Tax Band Apportionment | CH40: Relieved Liability on Slice | CL40: =MAX(0,CL38-CL39) -> 0 | CN40: Dividend Income Tax Band Apportionment | CZ40: Dividend Income Tax Band Apportionment | DG40: Dividend Income Tax Band Apportionment | DS40: Relieved Liability on Slice | DW40: =MAX(0,DW38-DW39) -> 0 | DY40: Dividend Income Tax Band Apportionment | EK40: Dividend Income Tax Band Apportionment | ER40: Dividend Income Tax Band Apportionment | FD40: Relieved Liability on Slice | FH40: =MAX(0,FH38-FH39) -> 0
H41: Allowances | I41: Still to tax | J41: Used | K41: Unused | N41: Before | O41: Rate | S41: Allowances | T41: Still to tax | U41: Used | V41: Unused | X41: Amount | Y41: Rate | Z41: Tax | AE41: Allowances | AF41: Still to tax | AG41: Used | AH41: Unused | AL41: Allowances | AM41: Still to tax | AN41: Used | AO41: Unused | AW41: Derived years (N) | BA41: =IF(AX17=0,0,AX17/AX30) -> 0 | BD41: Allowances | BE41: Still to tax | BF41: Used | BG41: Unused | BI41: Amount | BJ41: Rate | BK41: Tax | BP41: Allowances | BQ41: Still to tax | BR41: Used | BS41: Unused | BW41: Allowances | BX41: Still to tax | BY41: Used | BZ41: Unused | CH41: Derived years (N) | CL41: =IF(CI17=0,0,CI17/CI30) -> 0 | CO41: Allowances | CP41: Still to tax | CQ41: Used | CR41: Unused | CT41: Amount | CU41: Rate | CV41: Tax | DA41: Allowances | DB41: Still to tax | DC41: Used | DD41: Unused | DH41: Allowances | DI41: Still to tax | DJ41: Used | DK41: Unused | DS41: Derived years (N) | DW41: =IF(DT17=0,0,DT17/DT30) -> 0 | DZ41: Allowances | EA41: Still to tax | EB41: Used | EC41: Unused | EE41: Amount | EF41: Rate | EG41: Tax | EL41: Allowances | EM41: Still to tax | EN41: Used | EO41: Unused | ES41: Allowances | ET41: Still to tax | EU41: Used | EV41: Unused | FD41: Derived years (N) | FH41: =IF(FE17=0,0,FE17/FE30) -> 0
C42: Starting Rate for Savings | D42: ='Parameters_Inc Calcs'!C12 -> 5000 | G42: Dividend Allowance | H42: =$D$47 -> 500 | I42: =D16 -> 0 | J42: =MIN(H42,I42) -> 0 | K42: =MAX(0,H42-J42) -> 500 | L42: Higher Rate Adjustment for PSA and SRS Bands | N42: =$J$42*O42 -> 0 | O42: 0 | R42: Dividend Allowance | S42: ='Parameters_Inc Calcs'!$C$15 -> 500 | T42: =S6 -> 0 | U42: =MIN(S42,T42) -> 0 | V42: =MAX(0,S42-U42) -> 500 | X42: =U42 -> 0 | Y42: 0 | Z42: =X42*Y42 -> 0 | AD42: Personal Allowance | AE42: =AH32 -> 12570 | AF42: =S6 -> 0 | AG42: =MIN(AE42,AF42) -> 0 | AH42: =MAX(0,AE42-AG42) -> 12570 | AK42: Personal Allowance | AL42: =AO32 -> 12570 | AM42: =AL6 -> 0 | AN42: =MIN(AL42,AM42) -> 0 | AO42: =MAX(0,AL42-AN42) -> 12570 | AW42: Relieved Liability on Slice x N | BA42: =BA40*BA41 -> 0 | BC42: Dividend Allowance | BD42: ='Parameters_Inc Calcs'!$C$15 -> 500 | BE42: =BD6 -> 0 | BF42: =MIN(BD42,BE42) -> 0 | BG42: =MAX(0,BD42-BF42) -> 500 | BI42: =BF42 -> 0 | BJ42: 0 | BK42: =BI42*BJ42 -> 0 | BO42: Personal Allowance | BP42: =BS32 -> 12570 | BQ42: =BD6 -> 0 | BR42: =MIN(BP42,BQ42) -> 0 | BS42: =MAX(0,BP42-BR42) -> 12570 | BV42: Personal Allowance | BW42: =BZ32 -> 12570 | BX42: =BW6 -> 0 | BY42: =MIN(BW42,BX42) -> 0 | BZ42: =MAX(0,BW42-BY42) -> 12570 | CH42: Relieved Liability on Slice x N | CL42: =CL40*CL41 -> 0 | CN42: Dividend Allowance | CO42: ='Parameters_Inc Calcs'!$C$15 -> 500 | CP42: =CO6 -> 0 | CQ42: =MIN(CO42,CP42) -> 0 | CR42: =MAX(0,CO42-CQ42) -> 500 | CT42: =CQ42 -> 0 | CU42: 0 | CV42: =CT42*CU42 -> 0 | CZ42: Personal Allowance | DA42: =DD32 -> 12570 | DB42: =CO6 -> 0 | DC42: =MIN(DA42,DB42) -> 0 | DD42: =MAX(0,DA42-DC42) -> 12570 | DG42: Personal Allowance | DH42: =DK32 -> 12570 | DI42: =DH6 -> 0 | DJ42: =MIN(DH42,DI42) -> 0 | DK42: =MAX(0,DH42-DJ42) -> 12570 | DS42: Relieved Liability on Slice x N | DW42: =DW40*DW41 -> 0 | DY42: Dividend Allowance | DZ42: ='Parameters_Inc Calcs'!$C$15 -> 500 | EA42: =DZ6 -> 0 | EB42: =MIN(DZ42,EA42) -> 0 | EC42: =MAX(0,DZ42-EB42) -> 500 | EE42: =EB42 -> 0 | EF42: 0 | EG42: =EE42*EF42 -> 0 | EK42: Personal Allowance | EL42: =EO32 -> 12570 | EM42: =DZ6 -> 0 | EN42: =MIN(EL42,EM42) -> 0 | EO42: =MAX(0,EL42-EN42) -> 12570 | ER42: Personal Allowance | ES42: =EV32 -> 12570 | ET42: =ES6 -> 0 | EU42: =MIN(ES42,ET42) -> 0 | EV42: =MAX(0,ES42-EU42) -> 12570 | FD42: Relieved Liability on Slice x N | FH42: =FH40*FH41 -> 0
C43: Available | D43: =MAX(0,MIN(D42,(D27+D42)-D14)) -> 5000 | G43: Personal Allowance | H43: =K35 -> 12570 | I43: =MAX(0,I42-J42) -> 0 | J43: =MIN(H43,I43) -> 0 | K43: =MAX(0,H43-J43) -> 12570 | N43: =$J$43*O43 -> 0 | O43: 0 | R43: Personal Allowance | S43: =V35 -> 12570 | T43: =MAX(0,T42-U42) -> 0 | U43: =MIN(S43,T43) -> 0 | V43: =MAX(0,S43-U43) -> 12570 | X43: =U43 -> 0 | Y43: 0 | Z43: =X43*Y43 -> 0 | AD43: Dividend Allowance | AE43: ='Parameters_Inc Calcs'!$C$15 -> 500 | AF43: =MAX(0,AF42-AG42) -> 0 | AG43: =MIN(AE43,AF43) -> 0 | AH43: =MAX(0,AE43-AG43) -> 500 | AK43: Dividend Allowance | AL43: ='Parameters_Inc Calcs'!$C$15 -> 500 | AM43: =MAX(0,AM42-AN42) -> 0 | AN43: =MIN(AL43,AM43) -> 0 | AO43: =MAX(0,AL43-AN43) -> 500 | BC43: Personal Allowance | BD43: =BG35 -> 12570 | BE43: =MAX(0,BE42-BF42) -> 0 | BF43: =MIN(BD43,BE43) -> 0 | BG43: =MAX(0,BD43-BF43) -> 12570 | BI43: =BF43 -> 0 | BJ43: 0 | BK43: =BI43*BJ43 -> 0 | BO43: Dividend Allowance | BP43: ='Parameters_Inc Calcs'!$C$15 -> 500 | BQ43: =MAX(0,BQ42-BR42) -> 0 | BR43: =MIN(BP43,BQ43) -> 0 | BS43: =MAX(0,BP43-BR43) -> 500 | BV43: Dividend Allowance | BW43: ='Parameters_Inc Calcs'!$C$15 -> 500 | BX43: =MAX(0,BX42-BY42) -> 0 | BY43: =MIN(BW43,BX43) -> 0 | BZ43: =MAX(0,BW43-BY43) -> 500 | CN43: Personal Allowance | CO43: =CR35 -> 12570 | CP43: =MAX(0,CP42-CQ42) -> 0 | CQ43: =MIN(CO43,CP43) -> 0 | CR43: =MAX(0,CO43-CQ43) -> 12570 | CT43: =CQ43 -> 0 | CU43: 0 | CV43: =CT43*CU43 -> 0 | CZ43: Dividend Allowance | DA43: ='Parameters_Inc Calcs'!$C$15 -> 500 | DB43: =MAX(0,DB42-DC42) -> 0 | DC43: =MIN(DA43,DB43) -> 0 | DD43: =MAX(0,DA43-DC43) -> 500 | DG43: Dividend Allowance | DH43: ='Parameters_Inc Calcs'!$C$15 -> 500 | DI43: =MAX(0,DI42-DJ42) -> 0 | DJ43: =MIN(DH43,DI43) -> 0 | DK43: =MAX(0,DH43-DJ43) -> 500 | DY43: Personal Allowance | DZ43: =EC35 -> 12570 | EA43: =MAX(0,EA42-EB42) -> 0 | EB43: =MIN(DZ43,EA43) -> 0 | EC43: =MAX(0,DZ43-EB43) -> 12570 | EE43: =EB43 -> 0 | EF43: 0 | EG43: =EE43*EF43 -> 0 | EK43: Dividend Allowance | EL43: ='Parameters_Inc Calcs'!$C$15 -> 500 | EM43: =MAX(0,EM42-EN42) -> 0 | EN43: =MIN(EL43,EM43) -> 0 | EO43: =MAX(0,EL43-EN43) -> 500 | ER43: Dividend Allowance | ES43: ='Parameters_Inc Calcs'!$C$15 -> 500 | ET43: =MAX(0,ET42-EU42) -> 0 | EU43: =MIN(ES43,ET43) -> 0 | EV43: =MAX(0,ES43-EU43) -> 500
G44: Basic Rate | H44: =MAX(0,K36-J42) -> 37700 | I44: =MAX(0,I43-J43) -> 0 | J44: =MIN(H44,I44) -> 0 | K44: =MAX(0,H44-J44) -> 37700 | N44: =$J$44*O44 -> 0 | O44: ='Parameters_Inc Calcs'!$D$4 -> 0.1075 | R44: Basic Rate | S44: =MAX(0,V36-U42) -> 37700 | T44: =MAX(0,T43-U43) -> 0 | U44: =MIN(S44,T44) -> 0 | V44: =MAX(0,S44-U44) -> 37700 | W44: =MIN(V37,MAX(0,U42-V36)) -> 0 | X44: =U44 -> 0 | Y44: ='Parameters_Inc Calcs'!$D$4 -> 0.1075 | Z44: =X44*Y44 -> 0 | AD44: Basic Rate | AE44: =MAX(0,AH35-AG43) -> 37700 | AF44: =MAX(0,AF43-AG43) -> 0 | AG44: =MIN(AE44,AF44) -> 0 | AH44: =MAX(0,AE44-AG44) -> 37700 | AK44: Basic Rate | AL44: =MAX(0,AO35-AN43) -> 37700 | AM44: =MAX(0,AM43-AN43) -> 0 | AN44: =MIN(AL44,AM44) -> 0 | AO44: =MAX(0,AL44-AN44) -> 37700 | AW44: Top Slicing Relief | BC44: Basic Rate | BD44: =MAX(0,BG36-BF42) -> 37700 | BE44: =MAX(0,BE43-BF43) -> 0 | BF44: =MIN(BD44,BE44) -> 0 | BG44: =MAX(0,BD44-BF44) -> 37700 | BH44: =MIN(BG37,MAX(0,BF42-BG36)) -> 0 | BI44: =BF44 -> 0 | BJ44: ='Parameters_Inc Calcs'!$D$4 -> 0.1075 | BK44: =BI44*BJ44 -> 0 | BO44: Basic Rate | BP44: =MAX(0,BS35-BR43) -> 37700 | BQ44: =MAX(0,BQ43-BR43) -> 0 | BR44: =MIN(BP44,BQ44) -> 0 | BS44: =MAX(0,BP44-BR44) -> 37700 | BV44: Basic Rate | BW44: =MAX(0,BZ35-BY43) -> 37700 | BX44: =MAX(0,BX43-BY43) -> 0 | BY44: =MIN(BW44,BX44) -> 0 | BZ44: =MAX(0,BW44-BY44) -> 37700 | CH44: Top Slicing Relief | CN44: Basic Rate | CO44: =MAX(0,CR36-CQ42) -> 37700 | CP44: =MAX(0,CP43-CQ43) -> 0 | CQ44: =MIN(CO44,CP44) -> 0 | CR44: =MAX(0,CO44-CQ44) -> 37700 | CS44: =MIN(CR37,MAX(0,CQ42-CR36)) -> 0 | CT44: =CQ44 -> 0 | CU44: ='Parameters_Inc Calcs'!$D$4 -> 0.1075 | CV44: =CT44*CU44 -> 0 | CZ44: Basic Rate | DA44: =MAX(0,DD35-DC43) -> 37700 | DB44: =MAX(0,DB43-DC43) -> 0 | DC44: =MIN(DA44,DB44) -> 0 | DD44: =MAX(0,DA44-DC44) -> 37700 | DG44: Basic Rate | DH44: =MAX(0,DK35-DJ43) -> 37700 | DI44: =MAX(0,DI43-DJ43) -> 0 | DJ44: =MIN(DH44,DI44) -> 0 | DK44: =MAX(0,DH44-DJ44) -> 37700 | DS44: Top Slicing Relief | DY44: Basic Rate | DZ44: =MAX(0,EC36-EB42) -> 37700 | EA44: =MAX(0,EA43-EB43) -> 0 | EB44: =MIN(DZ44,EA44) -> 0 | EC44: =MAX(0,DZ44-EB44) -> 37700 | ED44: =MIN(EC37,MAX(0,EB42-EC36)) -> 0 | EE44: =EB44 -> 0 | EF44: ='Parameters_Inc Calcs'!$D$4 -> 0.1075 | EG44: =EE44*EF44 -> 0 | EK44: Basic Rate | EL44: =MAX(0,EO35-EN43) -> 37700 | EM44: =MAX(0,EM43-EN43) -> 0 | EN44: =MIN(EL44,EM44) -> 0 | EO44: =MAX(0,EL44-EN44) -> 37700 | ER44: Basic Rate | ES44: =MAX(0,EV35-EU43) -> 37700 | ET44: =MAX(0,ET43-EU43) -> 0 | EU44: =MIN(ES44,ET44) -> 0 | EV44: =MAX(0,ES44-EU44) -> 37700 | FD44: Top Slicing Relief
C45: PSA | D45: =IF(D19>D34,D40,IF(D19>D32,D39,D38)) -> 1000 | G45: Higher Rate | H45: =K37-L45 -> 87440 | I45: =MAX(0,I44-J44) -> 0 | J45: =MIN(H45,I45) -> 0 | K45: =MAX(0,H45-J45) -> 87440 | L45: =MIN(K27,MAX(J42-K26,0)) -> 0 | N45: =$J$45*O45 -> 0 | O45: ='Parameters_Inc Calcs'!$D$5 -> 0.3575 | R45: Higher Rate | S45: =V37-W44 -> 87440 | T45: =MAX(0,T44-U44) -> 0 | U45: =MIN(S45,T45) -> 0 | V45: =MAX(0,S45-U45) -> 87440 | X45: =U45 -> 0 | Y45: ='Parameters_Inc Calcs'!$D$5 -> 0.3575 | Z45: =X45*Y45 -> 0 | AD45: Higher Rate | AE45: =AH36-AI45 -> 87440 | AF45: =MAX(0,AF44-AG44) -> 0 | AG45: =MIN(AE45,AF45) -> 0 | AH45: =MAX(0,AE45-AG45) -> 87440 | AI45: =MIN(AH36,MAX(0,AG43-AH35)) -> 0 | AK45: Higher Rate | AL45: =AO36-AP45 -> 87440 | AM45: =MAX(0,AM44-AN44) -> 0 | AN45: =MIN(AL45,AM45) -> 0 | AO45: =MAX(0,AL45-AN45) -> 87440 | AP45: =MIN(AO36,MAX(0,AN43-AO35)) -> 0 | AV45: Step 5 | AW45: Relieved liability on full gain | BA45: =BA27 -> 0 | BB45: a | BC45: Higher Rate | BD45: =BG37-BH44 -> 87440 | BE45: =MAX(0,BE44-BF44) -> 0 | BF45: =MIN(BD45,BE45) -> 0 | BG45: =MAX(0,BD45-BF45) -> 87440 | BI45: =BF45 -> 0 | BJ45: ='Parameters_Inc Calcs'!$D$5 -> 0.3575 | BK45: =BI45*BJ45 -> 0 | BO45: Higher Rate | BP45: =BS36-BT45 -> 87440 | BQ45: =MAX(0,BQ44-BR44) -> 0 | BR45: =MIN(BP45,BQ45) -> 0 | BS45: =MAX(0,BP45-BR45) -> 87440 | BT45: =MIN(BS36,MAX(0,BR43-BS35)) -> 0 | BV45: Higher Rate | BW45: =BZ36-CA45 -> 87440 | BX45: =MAX(0,BX44-BY44) -> 0 | BY45: =MIN(BW45,BX45) -> 0 | BZ45: =MAX(0,BW45-BY45) -> 87440 | CA45: =MIN(BZ36,MAX(0,BY43-BZ35)) -> 0 | CG45: Step 5 | CH45: Relieved liability on full gain | CL45: =CL27 -> 0 | CM45: a | CN45: Higher Rate | CO45: =CR37-CS44 -> 87440 | CP45: =MAX(0,CP44-CQ44) -> 0 | CQ45: =MIN(CO45,CP45) -> 0 | CR45: =MAX(0,CO45-CQ45) -> 87440 | CT45: =CQ45 -> 0 | CU45: ='Parameters_Inc Calcs'!$D$5 -> 0.3575 | CV45: =CT45*CU45 -> 0 | CZ45: Higher Rate | DA45: =DD36-DE45 -> 87440 | DB45: =MAX(0,DB44-DC44) -> 0 | DC45: =MIN(DA45,DB45) -> 0 | DD45: =MAX(0,DA45-DC45) -> 87440 | DE45: =MIN(DD36,MAX(0,DC43-DD35)) -> 0 | DG45: Higher Rate | DH45: =DK36-DL45 -> 87440 | DI45: =MAX(0,DI44-DJ44) -> 0 | DJ45: =MIN(DH45,DI45) -> 0 | DK45: =MAX(0,DH45-DJ45) -> 87440 | DL45: =MIN(DK36,MAX(0,DJ43-DK35)) -> 0 | DR45: Step 5 | DS45: Relieved liability on full gain | DW45: =DW27 -> 0 | DX45: a | DY45: Higher Rate | DZ45: =EC37-ED44 -> 87440 | EA45: =MAX(0,EA44-EB44) -> 0 | EB45: =MIN(DZ45,EA45) -> 0 | EC45: =MAX(0,DZ45-EB45) -> 87440 | EE45: =EB45 -> 0 | EF45: ='Parameters_Inc Calcs'!$D$5 -> 0.3575 | EG45: =EE45*EF45 -> 0 | EK45: Higher Rate | EL45: =EO36-EP45 -> 87440 | EM45: =MAX(0,EM44-EN44) -> 0 | EN45: =MIN(EL45,EM45) -> 0 | EO45: =MAX(0,EL45-EN45) -> 87440 | EP45: =MIN(EO36,MAX(0,EN43-EO35)) -> 0 | ER45: Higher Rate | ES45: =EV36-EW45 -> 87440 | ET45: =MAX(0,ET44-EU44) -> 0 | EU45: =MIN(ES45,ET45) -> 0 | EV45: =MAX(0,ES45-EU45) -> 87440 | EW45: =MIN(EV36,MAX(0,EU43-EV35)) -> 0 | FC45: Step 5 | FD45: Relieved liability on full gain | FH45: =FH27 -> 0 | FI45: a
G46: Additional Rate | I46: =MAX(0,I45-J45) -> 0 | J46: =MIN(H46,I46) -> 0 | K46: NA | N46: =$J$46*O46 -> 0 | O46: ='Parameters_Inc Calcs'!$D$8 -> 0.3935 | R46: Additional Rate | T46: =MAX(0,T45-U45) -> 0 | U46: =MIN(S46,T46) -> 0 | V46: NA | X46: =U46 -> 0 | Y46: ='Parameters_Inc Calcs'!$D$8 -> 0.3935 | Z46: =X46*Y46 -> 0 | AA46: =SUM(Z42:Z46) -> 0 | AB46: =AA46-$N$47 -> 0 | AD46: Additional Rate | AF46: =MAX(0,AF45-AG45) -> 0 | AG46: =MIN(AE46,AF46) -> 0 | AK46: Additional Rate | AM46: =MAX(0,AM45-AN45) -> 0 | AN46: =MIN(AL46,AM46) -> 0 | AW46: =AW42 -> Relieved Liability on Slice x N | BA46: =BA42 -> 0 | BB46: b | BC46: Additional Rate | BE46: =MAX(0,BE45-BF45) -> 0 | BF46: =MIN(BD46,BE46) -> 0 | BG46: NA | BI46: =BF46 -> 0 | BJ46: ='Parameters_Inc Calcs'!$D$8 -> 0.3935 | BK46: =BI46*BJ46 -> 0 | BL46: =SUM(BK42:BK46) -> 0 | BM46: =BL46-$N$47 -> 0 | BO46: Additional Rate | BQ46: =MAX(0,BQ45-BR45) -> 0 | BR46: =MIN(BP46,BQ46) -> 0 | BV46: Additional Rate | BX46: =MAX(0,BX45-BY45) -> 0 | BY46: =MIN(BW46,BX46) -> 0 | CH46: =CH42 -> Relieved Liability on Slice x N | CL46: =CL42 -> 0 | CM46: b | CN46: Additional Rate | CP46: =MAX(0,CP45-CQ45) -> 0 | CQ46: =MIN(CO46,CP46) -> 0 | CR46: NA | CT46: =CQ46 -> 0 | CU46: ='Parameters_Inc Calcs'!$D$8 -> 0.3935 | CV46: =CT46*CU46 -> 0 | CW46: =SUM(CV42:CV46) -> 0 | CX46: =CW46-$N$47 -> 0 | CZ46: Additional Rate | DB46: =MAX(0,DB45-DC45) -> 0 | DC46: =MIN(DA46,DB46) -> 0 | DG46: Additional Rate | DI46: =MAX(0,DI45-DJ45) -> 0 | DJ46: =MIN(DH46,DI46) -> 0 | DS46: =DS42 -> Relieved Liability on Slice x N | DW46: =DW42 -> 0 | DX46: b | DY46: Additional Rate | EA46: =MAX(0,EA45-EB45) -> 0 | EB46: =MIN(DZ46,EA46) -> 0 | EC46: NA | EE46: =EB46 -> 0 | EF46: ='Parameters_Inc Calcs'!$D$8 -> 0.3935 | EG46: =EE46*EF46 -> 0 | EH46: =SUM(EG42:EG46) -> 0 | EI46: =EH46-$N$47 -> 0 | EK46: Additional Rate | EM46: =MAX(0,EM45-EN45) -> 0 | EN46: =MIN(EL46,EM46) -> 0 | ER46: Additional Rate | ET46: =MAX(0,ET45-EU45) -> 0 | EU46: =MIN(ES46,ET46) -> 0 | FD46: =FD42 -> Relieved Liability on Slice x N | FH46: =FH42 -> 0 | FI46: b
C47: Div All | D47: ='Parameters_Inc Calcs'!$C$15 -> 500 | G47: Nil Rate available | H47: =H42+H43 -> 13070 | N47: =SUM(N42:N46) -> 0 | AW47: Top Slice Relief (a-b) | BA47: =MAX(0,BA45-BA46) -> 0 | CH47: Top Slice Relief (a-b) | CL47: =MAX(0,CL45-CL46) -> 0 | DS47: Top Slice Relief (a-b) | DW47: =MAX(0,DW45-DW46) -> 0 | FD47: Top Slice Relief (a-b) | FH47: =MAX(0,FH45-FH46) -> 0
C48: CGT All | D48: ='Parameters_Inc Calcs'!$D$16 -> 0 | AD48: Total Gain Tax Band Apportionment | AK48: Total Gain Tax Band Apportionment | BO48: Total Gain Tax Band Apportionment | BV48: Total Gain Tax Band Apportionment | CZ48: Total Gain Tax Band Apportionment | DG48: Total Gain Tax Band Apportionment | EK48: Total Gain Tax Band Apportionment | ER48: Total Gain Tax Band Apportionment
G49: Onshore Bond Gain Tax Band Apportionment | R49: Onshore Bond Gain Tax Band Apportionment | AE49: Allowances | AF49: Still to tax | AG49: Used | AH49: Unused | AL49: Allowances | AM49: Still to tax | AN49: Used | AO49: Unused | BC49: Onshore Bond Gain Tax Band Apportionment | BP49: Allowances | BQ49: Still to tax | BR49: Used | BS49: Unused | BW49: Allowances | BX49: Still to tax | BY49: Used | BZ49: Unused | CN49: Onshore Bond Gain Tax Band Apportionment | DA49: Allowances | DB49: Still to tax | DC49: Used | DD49: Unused | DH49: Allowances | DI49: Still to tax | DJ49: Used | DK49: Unused | DY49: Onshore Bond Gain Tax Band Apportionment | EL49: Allowances | EM49: Still to tax | EN49: Used | EO49: Unused | ES49: Allowances | ET49: Still to tax | EU49: Used | EV49: Unused
N50: Before | O50: Rate | S50: Allowances | T50: Still to tax | U50: Used | V50: Unused | X50: Amount | Y50: Rate | Z50: Tax | AD50: Personal Allowance | AE50: =AH42 -> 12570 | AF50: =S3 -> 0 | AG50: =MIN(AE50,AF50) -> 0 | AH50: =MAX(0,AE50-AG50) -> 12570 | AK50: Personal Allowance | AL50: =AO42 -> 12570 | AM50: =AL3 -> 0 | AN50: =MIN(AL50,AM50) -> 0 | AO50: =MAX(0,AL50-AN50) -> 12570 | BD50: Allowances | BE50: Still to tax | BF50: Used | BG50: Unused | BI50: Amount | BJ50: Rate | BK50: Tax | BO50: Personal Allowance | BP50: =BS42 -> 12570 | BQ50: =BD3 -> 0 | BR50: =MIN(BP50,BQ50) -> 0 | BS50: =MAX(0,BP50-BR50) -> 12570 | BV50: Personal Allowance | BW50: =BZ42 -> 12570 | BX50: =BW3 -> 0 | BY50: =MIN(BW50,BX50) -> 0 | BZ50: =MAX(0,BW50-BY50) -> 12570 | CO50: Allowances | CP50: Still to tax | CQ50: Used | CR50: Unused | CT50: Amount | CU50: Rate | CV50: Tax | CZ50: Personal Allowance | DA50: =DD42 -> 12570 | DB50: =CO3 -> 0 | DC50: =MIN(DA50,DB50) -> 0 | DD50: =MAX(0,DA50-DC50) -> 12570 | DG50: Personal Allowance | DH50: =DK42 -> 12570 | DI50: =DH3 -> 0 | DJ50: =MIN(DH50,DI50) -> 0 | DK50: =MAX(0,DH50-DJ50) -> 12570 | DZ50: Allowances | EA50: Still to tax | EB50: Used | EC50: Unused | EE50: Amount | EF50: Rate | EG50: Tax | EK50: Personal Allowance | EL50: =EO42 -> 12570 | EM50: =DZ3 -> 0 | EN50: =MIN(EL50,EM50) -> 0 | EO50: =MAX(0,EL50-EN50) -> 12570 | ER50: Personal Allowance | ES50: =EV42 -> 12570 | ET50: =ES3 -> 0 | EU50: =MIN(ES50,ET50) -> 0 | EV50: =MAX(0,ES50-EU50) -> 12570
G51: Starting Rate | H51: =MAX(0,K33-L51) -> 5000 | I51: 0 | J51: =MIN(I51,H51) -> 0 | K51: =MAX(0,H51-J51) -> 5000 | L51: =J42+J44 -> 0 | N51: =$J$51*O51 -> 0 | O51: 0 | R51: Starting Rate | S51: =MAX(0,V33-W51) -> 5000 | T51: =S3 -> 0 | U51: =MIN(T51,S51) -> 0 | V51: =MAX(0,S51-U51) -> 5000 | W51: =U42+U44 -> 0 | X51: =U51 -> 0 | Y51: 0 | Z51: =X51*Y51 -> 0 | AD51: Starting Rate | AE51: =MAX(0,AH33-AI51) -> 5000 | AF51: =MAX(0,AF50-AG50) -> 0 | AG51: 0 | AH51: =MAX(0,AE51-AG51) -> 5000 | AI51: =AG43+AG44 -> 0 | AK51: Starting Rate | AL51: =MAX(0,AO33-AP51) -> 5000 | AM51: =MAX(0,AM50-AN50) -> 0 | AN51: 0 | AO51: =MAX(0,AL51-AN51) -> 5000 | AP51: =AN43+AN44 -> 0 | BC51: Starting Rate | BD51: =MAX(0,BG33-BH51) -> 5000 | BE51: 0 | BF51: =MIN(BE51,BD51) -> 0 | BG51: =MAX(0,BD51-BF51) -> 5000 | BH51: =BF42+BF44 -> 0 | BI51: =BF51 -> 0 | BJ51: 0 | BK51: =BI51*BJ51 -> 0 | BO51: Starting Rate | BP51: =MAX(0,BS33-BT51) -> 5000 | BQ51: =MAX(0,BQ50-BR50) -> 0 | BR51: 0 | BS51: =MAX(0,BP51-BR51) -> 5000 | BT51: =BR43+BR44 -> 0 | BV51: Starting Rate | BW51: =MAX(0,BZ33-CA51) -> 5000 | BX51: =MAX(0,BX50-BY50) -> 0 | BY51: 0 | BZ51: =MAX(0,BW51-BY51) -> 5000 | CA51: =BY43+BY44 -> 0 | CN51: Starting Rate | CO51: =MAX(0,CR33-CS51) -> 5000 | CP51: =CO3 -> 0 | CQ51: =MIN(CP51,CO51) -> 0 | CR51: =MAX(0,CO51-CQ51) -> 5000 | CS51: =CQ42+CQ44 -> 0 | CT51: =CQ51 -> 0 | CU51: 0 | CV51: =CT51*CU51 -> 0 | CZ51: Starting Rate | DA51: =MAX(0,DD33-DE51) -> 5000 | DB51: =MAX(0,DB50-DC50) -> 0 | DC51: 0 | DD51: =MAX(0,DA51-DC51) -> 5000 | DE51: =DC43+DC44 -> 0 | DG51: Starting Rate | DH51: =MAX(0,DK33-DL51) -> 5000 | DI51: =MAX(0,DI50-DJ50) -> 0 | DJ51: 0 | DK51: =MAX(0,DH51-DJ51) -> 5000 | DL51: =DJ43+DJ44 -> 0 | DY51: Starting Rate | DZ51: =MAX(0,EC33-ED51) -> 5000 | EA51: 0 | EB51: =MIN(EA51,DZ51) -> 0 | EC51: =MAX(0,DZ51-EB51) -> 5000 | ED51: =EB42+EB44 -> 0 | EE51: =EB51 -> 0 | EF51: 0 | EG51: =EE51*EF51 -> 0 | EK51: Starting Rate | EL51: =MAX(0,EO33-EP51) -> 5000 | EM51: =MAX(0,EM50-EN50) -> 0 | EN51: 0 | EO51: =MAX(0,EL51-EN51) -> 5000 | EP51: =EN43+EN44 -> 0 | ER51: Starting Rate | ES51: =MAX(0,EV33-EW51) -> 5000 | ET51: =MAX(0,ET50-EU50) -> 0 | EU51: 0 | EV51: =MAX(0,ES51-EU51) -> 5000 | EW51: =EU43+EU44 -> 0
G52: Personal Savings Allowance | H52: =K34 -> 1000 | I52: =MAX(0,I51-J51) -> 0 | J52: 0 | K52: =MAX(0,H52-J52) -> 1000 | N52: =$J$52*O52 -> 0 | O52: 0 | R52: Personal Savings Allowance | S52: =V34 -> 1000 | T52: =MAX(0,T51-U51) -> 0 | U52: 0 | V52: =MAX(0,S52-U52) -> 1000 | X52: 0 | Y52: 0 | Z52: 0 | AD52: Personal Savings Allowance | AE52: =AH34 -> 1000 | AF52: =MAX(0,AF51-AG51) -> 0 | AG52: 0 | AH52: =MAX(0,AE52-AG52) -> 1000 | AK52: Personal Savings Allowance | AL52: =AO34 -> 1000 | AM52: =MAX(0,AM51-AN51) -> 0 | AN52: 0 | AO52: =MAX(0,AL52-AN52) -> 1000 | BC52: Personal Savings Allowance | BD52: =BG34 -> 1000 | BE52: =MAX(0,BE51-BF51) -> 0 | BF52: 0 | BG52: =MAX(0,BD52-BF52) -> 1000 | BI52: 0 | BJ52: 0 | BK52: 0 | BO52: Personal Savings Allowance | BP52: =BS34 -> 1000 | BQ52: =MAX(0,BQ51-BR51) -> 0 | BR52: 0 | BS52: =MAX(0,BP52-BR52) -> 1000 | BV52: Personal Savings Allowance | BW52: =BZ34 -> 1000 | BX52: =MAX(0,BX51-BY51) -> 0 | BY52: 0 | BZ52: =MAX(0,BW52-BY52) -> 1000 | CN52: Personal Savings Allowance | CO52: =CR34 -> 1000 | CP52: =MAX(0,CP51-CQ51) -> 0 | CQ52: 0 | CR52: =MAX(0,CO52-CQ52) -> 1000 | CT52: 0 | CU52: 0 | CV52: 0 | CZ52: Personal Savings Allowance | DA52: =DD34 -> 1000 | DB52: =MAX(0,DB51-DC51) -> 0 | DC52: 0 | DD52: =MAX(0,DA52-DC52) -> 1000 | DG52: Personal Savings Allowance | DH52: =DK34 -> 1000 | DI52: =MAX(0,DI51-DJ51) -> 0 | DJ52: 0 | DK52: =MAX(0,DH52-DJ52) -> 1000 | DY52: Personal Savings Allowance | DZ52: =EC34 -> 1000 | EA52: =MAX(0,EA51-EB51) -> 0 | EB52: 0 | EC52: =MAX(0,DZ52-EB52) -> 1000 | EE52: 0 | EF52: 0 | EG52: 0 | EK52: Personal Savings Allowance | EL52: =EO34 -> 1000 | EM52: =MAX(0,EM51-EN51) -> 0 | EN52: 0 | EO52: =MAX(0,EL52-EN52) -> 1000 | ER52: Personal Savings Allowance | ES52: =EV34 -> 1000 | ET52: =MAX(0,ET51-EU51) -> 0 | EU52: 0 | EV52: =MAX(0,ES52-EU52) -> 1000
G53: Personal Allowance | H53: =K43 -> 12570 | I53: =MAX(0,I52-J52) -> 0 | J53: 0 | K53: =MAX(0,H53-J53) -> 12570 | N53: =$J$53*O53 -> 0 | O53: 0 | R53: Personal Allowance | S53: =V43 -> 12570 | T53: =MAX(0,T52-U52) -> 0 | U53: 0 | V53: =MAX(0,S53-U53) -> 12570 | X53: 0 | Y53: 0 | Z53: 0 | AD53: Basic Rate | AE53: =MAX(0,AH44-SUM(AG51:AG52)) -> 37700 | AF53: =MAX(0,AF52-AG52) -> 0 | AG53: 0 | AH53: =MAX(0,AE53-AG53) -> 37700 | AK53: Basic Rate | AL53: =MAX(0,AO44-SUM(AN51:AN52)) -> 37700 | AM53: =MAX(0,AM52-AN52) -> 0 | AN53: 0 | AO53: =MAX(0,AL53-AN53) -> 37700 | BC53: Personal Allowance | BD53: =BG43 -> 12570 | BE53: =MAX(0,BE52-BF52) -> 0 | BF53: 0 | BG53: =MAX(0,BD53-BF53) -> 12570 | BI53: 0 | BJ53: 0 | BK53: 0 | BO53: Basic Rate | BP53: =MAX(0,BS44-SUM(BR51:BR52)) -> 37700 | BQ53: =MAX(0,BQ52-BR52) -> 0 | BR53: 0 | BS53: =MAX(0,BP53-BR53) -> 37700 | BV53: Basic Rate | BW53: =MAX(0,BZ44-SUM(BY51:BY52)) -> 37700 | BX53: =MAX(0,BX52-BY52) -> 0 | BY53: 0 | BZ53: =MAX(0,BW53-BY53) -> 37700 | CN53: Personal Allowance | CO53: =CR43 -> 12570 | CP53: =MAX(0,CP52-CQ52) -> 0 | CQ53: 0 | CR53: =MAX(0,CO53-CQ53) -> 12570 | CT53: 0 | CU53: 0 | CV53: 0 | CZ53: Basic Rate | DA53: =MAX(0,DD44-SUM(DC51:DC52)) -> 37700 | DB53: =MAX(0,DB52-DC52) -> 0 | DC53: 0 | DD53: =MAX(0,DA53-DC53) -> 37700 | DG53: Basic Rate | DH53: =MAX(0,DK44-SUM(DJ51:DJ52)) -> 37700 | DI53: =MAX(0,DI52-DJ52) -> 0 | DJ53: 0 | DK53: =MAX(0,DH53-DJ53) -> 37700 | DY53: Personal Allowance | DZ53: =EC43 -> 12570 | EA53: =MAX(0,EA52-EB52) -> 0 | EB53: 0 | EC53: =MAX(0,DZ53-EB53) -> 12570 | EE53: 0 | EF53: 0 | EG53: 0 | EK53: Basic Rate | EL53: =MAX(0,EO44-SUM(EN51:EN52)) -> 37700 | EM53: =MAX(0,EM52-EN52) -> 0 | EN53: 0 | EO53: =MAX(0,EL53-EN53) -> 37700 | ER53: Basic Rate | ES53: =MAX(0,EV44-SUM(EU51:EU52)) -> 37700 | ET53: =MAX(0,ET52-EU52) -> 0 | EU53: 0 | EV53: =MAX(0,ES53-EU53) -> 37700
G54: Basic Rate | H54: =MAX(0,K44-SUM(J51:J52)) -> 37700 | I54: =MAX(0,I53-J53) -> 0 | J54: 0 | K54: =MAX(0,H54-J54) -> 37700 | N54: =$J$54*O54 -> 0 | O54: ='Parameters_Inc Calcs'!$E$4 -> 0.22 | R54: Basic Rate | S54: =MAX(0,V44-SUM(U51:U52)) -> 37700 | T54: =MAX(0,T53-U53) -> 0 | U54: 0 | V54: =MAX(0,S54-U54) -> 37700 | X54: 0 | Y54: ='Parameters_Inc Calcs'!$E$4 -> 0.22 | Z54: 0 | AD54: Higher Rate | AE54: =AH45-AI54 -> 87440 | AF54: =MAX(0,AF53-AG53) -> 0 | AG54: 0 | AH54: =MAX(0,AE54-AG54) -> 87440 | AI54: =MIN(AH45,MAX(0,AG52-AH44)) -> 0 | AK54: Higher Rate | AL54: =AO45-AP54 -> 87440 | AM54: =MAX(0,AM53-AN53) -> 0 | AN54: 0 | AO54: =MAX(0,AL54-AN54) -> 87440 | AP54: =MIN(AO45,MAX(0,AN52-AO44)) -> 0 | BC54: Basic Rate | BD54: =MAX(0,BG44-SUM(BF51:BF52)) -> 37700 | BE54: =MAX(0,BE53-BF53) -> 0 | BF54: 0 | BG54: =MAX(0,BD54-BF54) -> 37700 | BI54: 0 | BJ54: ='Parameters_Inc Calcs'!$E$4 -> 0.22 | BK54: 0 | BO54: Higher Rate | BP54: =BS45-BT54 -> 87440 | BQ54: =MAX(0,BQ53-BR53) -> 0 | BR54: 0 | BS54: =MAX(0,BP54-BR54) -> 87440 | BT54: =MIN(BS45,MAX(0,BR52-BS44)) -> 0 | BV54: Higher Rate | BW54: =BZ45-CA54 -> 87440 | BX54: =MAX(0,BX53-BY53) -> 0 | BY54: 0 | BZ54: =MAX(0,BW54-BY54) -> 87440 | CA54: =MIN(BZ45,MAX(0,BY52-BZ44)) -> 0 | CN54: Basic Rate | CO54: =MAX(0,CR44-SUM(CQ51:CQ52)) -> 37700 | CP54: =MAX(0,CP53-CQ53) -> 0 | CQ54: 0 | CR54: =MAX(0,CO54-CQ54) -> 37700 | CT54: 0 | CU54: ='Parameters_Inc Calcs'!$E$4 -> 0.22 | CV54: 0 | CZ54: Higher Rate | DA54: =DD45-DE54 -> 87440 | DB54: =MAX(0,DB53-DC53) -> 0 | DC54: 0 | DD54: =MAX(0,DA54-DC54) -> 87440 | DE54: =MIN(DD45,MAX(0,DC52-DD44)) -> 0 | DG54: Higher Rate | DH54: =DK45-DL54 -> 87440 | DI54: =MAX(0,DI53-DJ53) -> 0 | DJ54: 0 | DK54: =MAX(0,DH54-DJ54) -> 87440 | DL54: =MIN(DK45,MAX(0,DJ52-DK44)) -> 0 | DY54: Basic Rate | DZ54: =MAX(0,EC44-SUM(EB51:EB52)) -> 37700 | EA54: =MAX(0,EA53-EB53) -> 0 | EB54: 0 | EC54: =MAX(0,DZ54-EB54) -> 37700 | EE54: 0 | EF54: ='Parameters_Inc Calcs'!$E$4 -> 0.22 | EG54: 0 | EK54: Higher Rate | EL54: =EO45-EP54 -> 87440 | EM54: =MAX(0,EM53-EN53) -> 0 | EN54: 0 | EO54: =MAX(0,EL54-EN54) -> 87440 | EP54: =MIN(EO45,MAX(0,EN52-EO44)) -> 0 | ER54: Higher Rate | ES54: =EV45-EW54 -> 87440 | ET54: =MAX(0,ET53-EU53) -> 0 | EU54: 0 | EV54: =MAX(0,ES54-EU54) -> 87440 | EW54: =MIN(EV45,MAX(0,EU52-EV44)) -> 0
G55: Higher Rate | H55: =K45-L55 -> 87440 | I55: =MAX(0,I54-J54) -> 0 | J55: 0 | K55: =MAX(0,H55-J55) -> 87440 | L55: =MIN(K45,MAX(0,J52-K44)) -> 0 | N55: =$J$55*O55 -> 0 | O55: ='Parameters_Inc Calcs'!$E$5 -> 0.42 | R55: Higher Rate | S55: =V45-W55 -> 87440 | T55: =MAX(0,T54-U54) -> 0 | U55: 0 | V55: =MAX(0,S55-U55) -> 87440 | W55: =MIN(V45,MAX(0,U52-V44)) -> 0 | X55: 0 | Y55: ='Parameters_Inc Calcs'!$E$5 -> 0.42 | Z55: =X55*Y55 -> 0 | AD55: Additional Rate | AF55: =MAX(0,AF54-AG54) -> 0 | AG55: 0 | AK55: Additional Rate | AM55: =MAX(0,AM54-AN54) -> 0 | AN55: 0 | BC55: Higher Rate | BD55: =BG45-BH55 -> 87440 | BE55: =MAX(0,BE54-BF54) -> 0 | BF55: 0 | BG55: =MAX(0,BD55-BF55) -> 87440 | BH55: =MIN(BG45,MAX(0,BF52-BG44)) -> 0 | BI55: 0 | BJ55: ='Parameters_Inc Calcs'!$E$5 -> 0.42 | BK55: 0 | BO55: Additional Rate | BQ55: =MAX(0,BQ54-BR54) -> 0 | BR55: 0 | BV55: Additional Rate | BX55: =MAX(0,BX54-BY54) -> 0 | BY55: 0 | CN55: Higher Rate | CO55: =CR45-CS55 -> 87440 | CP55: =MAX(0,CP54-CQ54) -> 0 | CQ55: 0 | CR55: =MAX(0,CO55-CQ55) -> 87440 | CS55: =MIN(CR45,MAX(0,CQ52-CR44)) -> 0 | CT55: 0 | CU55: ='Parameters_Inc Calcs'!$E$5 -> 0.42 | CV55: =CT55*CU55 -> 0 | CZ55: Additional Rate | DB55: =MAX(0,DB54-DC54) -> 0 | DC55: 0 | DG55: Additional Rate | DI55: =MAX(0,DI54-DJ54) -> 0 | DJ55: 0 | DY55: Higher Rate | DZ55: =EC45-ED55 -> 87440 | EA55: =MAX(0,EA54-EB54) -> 0 | EB55: 0 | EC55: =MAX(0,DZ55-EB55) -> 87440 | ED55: =MIN(EC45,MAX(0,EB52-EC44)) -> 0 | EE55: 0 | EF55: ='Parameters_Inc Calcs'!$E$5 -> 0.42 | EG55: 0 | EK55: Additional Rate | EM55: =MAX(0,EM54-EN54) -> 0 | EN55: 0 | ER55: Additional Rate | ET55: =MAX(0,ET54-EU54) -> 0 | EU55: 0
G56: Additional Rate | I56: =MAX(0,I55-J55) -> 0 | J56: 0 | N56: =$J$56*O56 -> 0 | O56: ='Parameters_Inc Calcs'!$E$8 -> 0.47 | R56: Additional Rate | T56: =MAX(0,T55-U55) -> 0 | U56: 0 | X56: 0 | Y56: ='Parameters_Inc Calcs'!$E$8 -> 0.47 | Z56: 0 | AA56: =SUM(Z51:Z56) -> 0 | AB56: =AA56-$N$57 -> 0 | BC56: Additional Rate | BE56: =MAX(0,BE55-BF55) -> 0 | BF56: 0 | BI56: 0 | BJ56: ='Parameters_Inc Calcs'!$E$8 -> 0.47 | BK56: 0 | BL56: =SUM(BK51:BK56) -> 0 | BM56: =BL56-$N$57 -> 0 | CN56: Additional Rate | CP56: =MAX(0,CP55-CQ55) -> 0 | CQ56: 0 | CT56: 0 | CU56: ='Parameters_Inc Calcs'!$E$8 -> 0.47 | CV56: =CT56*CU56 -> 0 | CW56: =SUM(CV51:CV56) -> 0 | CX56: =CW56-$N$57 -> 0 | DY56: Additional Rate | EA56: =MAX(0,EA55-EB55) -> 0 | EB56: 0 | EE56: 0 | EF56: ='Parameters_Inc Calcs'!$E$8 -> 0.47 | EG56: 0 | EH56: =SUM(EG51:EG56) -> 0 | EI56: =EH56-$N$57 -> 0
N57: =SUM(N51:N56) -> 0
G58: CGT allowances set to zero here as used in CGT calcs | R58: Deficiency Calcs | Y58: Step 5 Total | AA58: =SUM(AA19:AA57) -> 0 | BC58: Deficiency Calcs | BJ58: Step 5 Total | BL58: =SUM(BL19:BL57) -> 0 | CN58: Deficiency Calcs | CU58: Step 5 Total | CW58: =SUM(CW19:CW57) -> 0 | DY58: Deficiency Calcs | EF58: Step 5 Total | EH58: =SUM(EH19:EH57) -> 0
G59: Capital Gains Tax Band Apportionment | N59: Before | O59: Rate | R59: Is gain negative? | S59: =IF(Bonds!E81<0,Bonds!E81,0) -> 0 | BC59: Is gain negative? | BD59: =IF(Bonds!E95<0,Bonds!E95,0) -> 0 | CN59: Is gain negative? | CO59: =IF(Bonds!BY74<0,Bonds!BY74,0) -> 0 | DY59: Is gain negative? | DZ59: =IF(Bonds!BY88<0,Bonds!BY88,0) -> 0
G60: Annual Exemption | H60: 0 | I60: 0 | J60: =MIN(H60,I60) -> 0 | K60: =MAX(0,H60-J60) -> 0 | N60: =$J$60*O60 -> 0 | O60: 0 | R60: Max previous gains? | S60: =Bonds!E84 -> 0 | X60: Less Onshore Bond Tax Credit | AA60: =(T51-U53)*'Parameters_Inc Calcs'!$E$4 -> 0 | BC60: Max previous gains? | BD60: =Bonds!E98 -> 0 | BI60: Less Onshore Bond Tax Credit | BL60: =(BE51-BF53)*'Parameters_Inc Calcs'!AO4 -> 0 | CN60: Max previous gains? | CO60: =Bonds!BY77 -> 0 | CT60: Less Onshore Bond Tax Credit | CW60: =(CP51-CQ53)*'Parameters_Inc Calcs'!$E$4 -> 0 | DY60: Max previous gains? | DZ60: =Bonds!BY91 -> 0 | EE60: Less Onshore Bond Tax Credit | EH60: =(EA51-EB53)*'Parameters_Inc Calcs'!$E$4 -> 0
G61: Basic Rate | H61: =K44 -> 37700 | I61: =MAX(0,I60-J60) -> 0 | J61: =MIN(H61,I61) -> 0 | K61: =MAX(0,H61-J61) -> 37700 | N61: =$J$61*O61 -> 0 | O61: ='Parameters_Inc Calcs'!$F$4 -> 0.18 | R61: Max Deficiency | S61: =MIN(-S59,S60) -> 0 | X61: Less Top Slicing Relief | AA61: =BA47 -> 0 | BC61: Max Deficiency | BD61: =MIN(-BD59,BD60) -> 0 | BI61: Less Top Slicing Relief | BL61: =CL47 -> 0 | CN61: Max Deficiency | CO61: =MIN(-CO59,CO60) -> 0 | CT61: Less Top Slicing Relief | CW61: =DW47 -> 0 | DY61: Max Deficiency | DZ61: =MIN(-DZ59,DZ60) -> 0 | EE61: Less Top Slicing Relief | EH61: =FH47 -> 0
G62: Higher Rate | I62: =I61-J61 -> 0 | J62: =MIN(H62,I62) -> 0 | K62: =MAX(0,H62-J62) -> 0 | N62: =$J$62*O62 -> 0 | O62: ='Parameters_Inc Calcs'!$F$5 -> 0.24 | S62: Allowances | T62: Still to tax | U62: Used | V62: Unused | W62: Value | X62: Less Deficiency Relief | AA62: =W63+W64 -> 0 | BD62: Allowances | BE62: Still to tax | BF62: Used | BG62: Unused | BH62: Value | BI62: Less Deficiency Relief | BL62: =BH63+BH64 -> 0 | CO62: Allowances | CP62: Still to tax | CQ62: Used | CR62: Unused | CS62: Value | CT62: Less Deficiency Relief | CW62: =CS63+CS64 -> 0 | DZ62: Allowances | EA62: Still to tax | EB62: Used | EC62: Unused | ED62: Value | EE62: Less Deficiency Relief | EH62: =ED63+ED64 -> 0
G63: Nil Rate available | H63: =H60 -> 0 | N63: =SUM(N60:N62) -> 0 | R63: Divis in HRT | S63: =S61 -> 0 | T63: =J45 -> 0 | U63: =MIN(T63,S63) -> 0 | V63: =MAX(0,S63-U63) -> 0 | W63: =U63*('Parameters_Inc Calcs'!$D$5-'Parameters_Inc Calcs'!$D$4) -> 0 | AA63: =SUM(AA60:AA62) -> 0 | BC63: Divis in HRT | BD63: =BD61 -> 0 | BE63: =J45 -> 0 | BF63: =MIN(BE63,BD63) -> 0 | BG63: =MAX(0,BD63-BF63) -> 0 | BH63: =BF63*('Parameters_Inc Calcs'!$D$5-'Parameters_Inc Calcs'!$D$4) -> 0 | BL63: =SUM(BL60:BL62) -> 0 | CN63: Divis in HRT | CO63: =CO61 -> 0 | CP63: =CF45 -> 0 | CQ63: =MIN(CP63,CO63) -> 0 | CR63: =MAX(0,CO63-CQ63) -> 0 | CS63: =CQ63*('Parameters_Inc Calcs'!$D$5-'Parameters_Inc Calcs'!$D$4) -> 0 | CW63: =SUM(CW60:CW62) -> 0 | DY63: Divis in HRT | DZ63: =DZ61 -> 0 | EA63: =CF45 -> 0 | EB63: =MIN(EA63,DZ63) -> 0 | EC63: =MAX(0,DZ63-EB63) -> 0 | ED63: =EB63*('Parameters_Inc Calcs'!$D$5-'Parameters_Inc Calcs'!$D$4) -> 0 | EH63: =SUM(EH60:EH62) -> 0
R64: Savings and NSND in HRT | S64: =V63 -> 0 | T64: =J27+J18 -> 0 | U64: =MIN(T64,S64) -> 0 | V64: =MAX(0,S64-U64) -> 0 | W64: =U64*('Parameters_Inc Calcs'!$E$5-'Parameters_Inc Calcs'!$E$4) -> 0 | BC64: Savings and NSND in HRT | BD64: =BG63 -> 0 | BE64: =J27+J18 -> 0 | BF64: =MIN(BE64,BD64) -> 0 | BG64: =MAX(0,BD64-BF64) -> 0 | BH64: =BF64*('Parameters_Inc Calcs'!$E$5-'Parameters_Inc Calcs'!$E$4) -> 0 | CN64: Savings and NSND in HRT | CO64: =CR63 -> 0 | CP64: =CF27+CF18 -> 0 | CQ64: =MIN(CP64,CO64) -> 0 | CR64: =MAX(0,CO64-CQ64) -> 0 | CS64: =CQ64*('Parameters_Inc Calcs'!$E$5-'Parameters_Inc Calcs'!$E$4) -> 0 | DY64: Savings and NSND in HRT | DZ64: =EC63 -> 0 | EA64: =CF27+CF18 -> 0 | EB64: =MIN(EA64,DZ64) -> 0 | EC64: =MAX(0,DZ64-EB64) -> 0 | ED64: =EB64*('Parameters_Inc Calcs'!$E$5-'Parameters_Inc Calcs'!$E$4) -> 0
N66: Total Tax Before | Y66: Income Tax payable | AA66: =MAX(0,AA58-AA63) -> 0 | BJ66: Income Tax payable | BL66: =MAX(0,BL58-BL63) -> 0 | CU66: Income Tax payable | CW66: =MAX(0,CW58-CW63) -> 0 | EF66: Income Tax payable | EH66: =MAX(0,EH58-EH63) -> 0
N67: =N20+N29+N39+N47+N57+N63 -> 0
W69: Change in Tax Bill | AA69: =AA66-$N$67 -> 0 | BH69: Change in Tax Bill | BL69: =BL66-$N$67 -> 0 | CS69: Change in Tax Bill | CW69: =CW66-$N$67 -> 0 | ED69: Change in Tax Bill | EH69: =EH66-$N$67 -> 0

Sheet Yr 2 (hidden)
G1: Before for All Situations | R1: Onshore Bond After | BC1: Offshore After | CN1: ONSHORE FULL CALCS SURRENDER EACH YEAR | DY1: OFFSHORE FULL CALCS SURRENDER EACH YEAR
G2: Before | R2: Workings | AD2: Workings Top Slicing Full | AK2: Workings Top Slicing Slice | AR2: Slicing Calcs | BC2: Workings | BO2: Workings Top Slicing Full | BV2: Workings Top Slicing Slice | CC2: Slicing Calcs | CN2: Workings | CZ2: Workings Top Slicing Full | DG2: Workings Top Slicing Slice | DN2: Slicing Calcs | DY2: Workings | EK2: Workings Top Slicing Full | ER2: Workings Top Slicing Slice | EY2: Slicing Calcs
R3: Full Bond Gain | S3: =MAX(0,Bonds!F81) -> 0 | AK3: Slice | AL3: =Bonds!F82 -> 0 | BC3: Full Bond Gain | BD3: =MAX(0,Bonds!F95) -> 0 | BV3: Slice | BW3: =Bonds!F96 -> 0 | CN3: Full Bond Gain | CO3: =MAX(0,Bonds!F115) -> 0 | DG3: Slice | DH3: =Bonds!F116 -> 0 | DY3: Full Bond Gain | DZ3: =MAX(0,Bonds!F124) -> 0 | ER3: Slice | ES3: =Bonds!F125 -> 0
R4: NSND in Year of encashment | S4: =$D$14 -> 0 | AK4: NSND in Year of encashment | AL4: =$D$14 -> 0 | BC4: NSND in Year of encashment | BD4: =$D$14 -> 0 | BV4: NSND in Year of encashment | BW4: =$D$14 -> 0 | CN4: NSND in Year of encashment | CO4: =$D$14 -> 0 | DG4: NSND in Year of encashment | DH4: =$D$14 -> 0 | DY4: NSND in Year of encashment | DZ4: =$D$14 -> 0 | ER4: NSND in Year of encashment | ES4: =$D$14 -> 0
R5: Savings in Year of encashment | S5: =$D$15 -> 0 | AK5: Savings in Year of encashment | AL5: =$D$15 -> 0 | BC5: Savings in Year of encashment | BD5: =$D$15 -> 0 | BV5: Savings in Year of encashment | BW5: =$D$15 -> 0 | CN5: Savings in Year of encashment | CO5: =$D$15 -> 0 | DG5: Savings in Year of encashment | DH5: =$D$15 -> 0 | DY5: Savings in Year of encashment | DZ5: =$D$15 -> 0 | ER5: Savings in Year of encashment | ES5: =$D$15 -> 0
R6: Dividend in Year of encashment | S6: =$D$16 -> 0 | AK6: Dividend in Year of encashment | AL6: =$D$16 -> 0 | BC6: Dividend in Year of encashment | BD6: =$D$16 -> 0 | BV6: Dividend in Year of encashment | BW6: =$D$16 -> 0 | CN6: Dividend in Year of encashment | CO6: =$D$16 -> 0 | DG6: Dividend in Year of encashment | DH6: =$D$16 -> 0 | DY6: Dividend in Year of encashment | DZ6: =$D$16 -> 0 | ER6: Dividend in Year of encashment | ES6: =$D$16 -> 0
B7: Year | C7: 2 | D7: move year on 1 | G7: Allowances: | R7: Personal Allowance Adjustment | S7: =IF((S3+S4+S5+S6)<'Parameters_Inc Calcs'!$C$3,0,MIN($D$36,((S3+S4+S5+S6)-'Parameters_Inc Calcs'!$C$3)/2)) -> 0 | U7: PA Lost | AK7: Personal Allowance Adjustment | AL7: =IF((AL3+AL4+AL5+AL6)<'Parameters_Inc Calcs'!$C$3,0,MIN($D$36,((AL3+AL4+AL5+AL6)-'Parameters_Inc Calcs'!$C$3)/2)) -> 0 | BC7: Personal Allowance Adjustment | BD7: =IF((BD3+BD4+BD5+BD6)<'Parameters_Inc Calcs'!$C$3,0,MIN($D$36,((BD3+BD4+BD5+BD6)-'Parameters_Inc Calcs'!$C$3)/2)) -> 0 | BF7: PA Lost | BV7: Personal Allowance Adjustment | BW7: =IF((BW3+BW4+BW5+BW6)<'Parameters_Inc Calcs'!$C$3,0,MIN($D$36,((BW3+BW4+BW5+BW6)-'Parameters_Inc Calcs'!$C$3)/2)) -> 0 | CN7: Personal Allowance Adjustment | CO7: =IF((CO3+CO4+CO5+CO6)<'Parameters_Inc Calcs'!$C$3,0,MIN($D$36,((CO3+CO4+CO5+CO6)-'Parameters_Inc Calcs'!$C$3)/2)) -> 0 | CQ7: PA Lost | DG7: Personal Allowance Adjustment | DH7: =IF((DH3+DH4+DH5+DH6)<'Parameters_Inc Calcs'!$C$3,0,MIN($D$36,((DH3+DH4+DH5+DH6)-'Parameters_Inc Calcs'!$C$3)/2)) -> 0 | DY7: Personal Allowance Adjustment | DZ7: =IF((DZ3+DZ4+DZ5+DZ6)<'Parameters_Inc Calcs'!$C$3,0,MIN($D$36,((DZ3+DZ4+DZ5+DZ6)-'Parameters_Inc Calcs'!$C$3)/2)) -> 0 | EB7: PA Lost | ER7: Personal Allowance Adjustment | ES7: =IF((ES3+ES4+ES5+ES6)<'Parameters_Inc Calcs'!$C$3,0,MIN($D$36,((ES3+ES4+ES5+ES6)-'Parameters_Inc Calcs'!$C$3)/2)) -> 0
B8: Final Year | C8: =IF(C7=Inputs!D9,"Yes","No") -> No | G8: Pers_Allow_Adj | R8: PA to Use | S8: =D36-S7 -> 12570 | U8: =$H$9-S8 -> 0 | AK8: PA to Use - Silver adjustment | AL8: =$D$36-AL7 -> 12570 | BC8: PA to Use | BD8: =$D$36-BD7 -> 12570 | BF8: =$H$9-BD8 -> 0 | BV8: PA to Use - Silver adjustment | BW8: =$D$36-BW7 -> 12570 | CN8: PA to Use | CO8: =$D$36-CO7 -> 12570 | CQ8: =$H$9-CO8 -> 0 | DG8: PA to Use - Silver adjustment | DH8: =$D$36-DH7 -> 12570 | DY8: PA to Use | DZ8: =$D$36-DZ7 -> 12570 | EB8: =$H$9-DZ8 -> 0 | ER8: PA to Use - Silver adjustment | ES8: =$D$36-ES7 -> 12570
B9: After Final Year | C9: =AND(C7>Inputs!D9) -> TRUE | G9: Tot_Pers_Allow | H9: =D27 -> 12570 | R9: Starter Rate to Use | S9: =IF(S4>S8+'Parameters_Inc Calcs'!$C$12,0,MIN('Parameters_Inc Calcs'!$C$12,S8+'Parameters_Inc Calcs'!$C$12-S4)) -> 5000 | AK9: Starter Rate to Use -"gold" adjustment | AL9: =IF(AL4>AL8+'Parameters_Inc Calcs'!$C$12,0,MIN('Parameters_Inc Calcs'!$C$12,AL8+'Parameters_Inc Calcs'!$C$12-AL4)) -> 5000 | BC9: Starter Rate to Use | BD9: =IF(BD4>BD8+'Parameters_Inc Calcs'!$C$12,0,MIN('Parameters_Inc Calcs'!$C$12,BD8+'Parameters_Inc Calcs'!$C$12-BD4)) -> 5000 | BV9: Starter Rate to Use -"gold" adjustment | BW9: =IF(BW4>BW8+'Parameters_Inc Calcs'!$C$12,0,MIN('Parameters_Inc Calcs'!$C$12,BW8+'Parameters_Inc Calcs'!$C$12-BW4)) -> 5000 | CN9: Starter Rate to Use | CO9: =IF(CO4>CO8+'Parameters_Inc Calcs'!$C$12,0,MIN('Parameters_Inc Calcs'!$C$12,CO8+'Parameters_Inc Calcs'!$C$12-CO4)) -> 5000 | DG9: Starter Rate to Use -"gold" adjustment | DH9: =IF(DH4>DH8+'Parameters_Inc Calcs'!$C$12,0,MIN('Parameters_Inc Calcs'!$C$12,DH8+'Parameters_Inc Calcs'!$C$12-DH4)) -> 5000 | DY9: Starter Rate to Use | DZ9: =IF(DZ4>DZ8+'Parameters_Inc Calcs'!$C$12,0,MIN('Parameters_Inc Calcs'!$C$12,DZ8+'Parameters_Inc Calcs'!$C$12-DZ4)) -> 5000 | ER9: Starter Rate to Use -"gold" adjustment | ES9: =IF(ES4>ES8+'Parameters_Inc Calcs'!$C$12,0,MIN('Parameters_Inc Calcs'!$C$12,ES8+'Parameters_Inc Calcs'!$C$12-ES4)) -> 5000
G10: Pers_Sav_Allow | H10: =D45 -> 1000 | R10: PSA to USE | S10: =IF(SUM(S3:S6)>'Parameters_Inc Calcs'!$C$8,'Parameters_Inc Calcs'!$C$11,IF(SUM(S3:S6)>'Parameters_Inc Calcs'!$C$5,'Parameters_Inc Calcs'!$C$10,'Parameters_Inc Calcs'!$C$9)) -> 1000 | AK10: PSA to use - from full calc as no silver adjustment | AL10: =IF(SUM(AL3:AL6)>'Parameters_Inc Calcs'!$C$8,'Parameters_Inc Calcs'!$C$11,IF(SUM(AL3:AL6)>'Parameters_Inc Calcs'!$C$5,'Parameters_Inc Calcs'!$C$10,'Parameters_Inc Calcs'!$C$9)) -> 1000 | BC10: PSA to USE | BD10: =IF(SUM(BD3:BD6)>'Parameters_Inc Calcs'!$C$8,'Parameters_Inc Calcs'!$C$11,IF(SUM(BD3:BD6)>'Parameters_Inc Calcs'!$C$5,'Parameters_Inc Calcs'!$C$10,'Parameters_Inc Calcs'!$C$9)) -> 1000 | BV10: PSA to use - "gold" adjustment | BW10: =IF(SUM(BW3:BW6)>'Parameters_Inc Calcs'!$C$8,'Parameters_Inc Calcs'!$C$11,IF(SUM(BW3:BW6)>'Parameters_Inc Calcs'!$C$5,'Parameters_Inc Calcs'!$C$10,'Parameters_Inc Calcs'!$C$9)) -> 1000 | CN10: PSA to USE | CO10: =IF(SUM(CO3:CO6)>'Parameters_Inc Calcs'!$C$8,'Parameters_Inc Calcs'!$C$11,IF(SUM(CO3:CO6)>'Parameters_Inc Calcs'!$C$5,'Parameters_Inc Calcs'!$C$10,'Parameters_Inc Calcs'!$C$9)) -> 1000 | DG10: PSA to use - from full calc as no silver adjustment | DH10: =IF(SUM(DH3:DH6)>'Parameters_Inc Calcs'!$C$8,'Parameters_Inc Calcs'!$C$11,IF(SUM(DH3:DH6)>'Parameters_Inc Calcs'!$C$5,'Parameters_Inc Calcs'!$C$10,'Parameters_Inc Calcs'!$C$9)) -> 1000 | DY10: PSA to USE | DZ10: =IF(SUM(DZ3:DZ6)>'Parameters_Inc Calcs'!$C$8,'Parameters_Inc Calcs'!$C$11,IF(SUM(DZ3:DZ6)>'Parameters_Inc Calcs'!$C$5,'Parameters_Inc Calcs'!$C$10,'Parameters_Inc Calcs'!$C$9)) -> 1000 | ER10: PSA to use - "gold" adjustment | ES10: =IF(SUM(ES3:ES6)>'Parameters_Inc Calcs'!$C$8,'Parameters_Inc Calcs'!$C$11,IF(SUM(ES3:ES6)>'Parameters_Inc Calcs'!$C$5,'Parameters_Inc Calcs'!$C$10,'Parameters_Inc Calcs'!$C$9)) -> 1000
AB12: Difference to All before | BM12: Difference to All before | BO12: Non Savings Income Apportionment | CX12: Difference to All before | EI12: Difference to All before | EK12: Non Savings Income Apportionment
B13: Factor | C13: Before | G13: Non Savings Income Apportionment | R13: Non Savings Income Apportionment | AD13: Non Savings Income Apportionment | AK13: Non Savings Income Apportionment | BC13: Non Savings Income Apportionment | BV13: Non Savings Income Apportionment | CN13: Non Savings Income Apportionment | CZ13: Non Savings Income Apportionment | DG13: Non Savings Income Apportionment | DY13: Non Savings Income Apportionment | ER13: Non Savings Income Apportionment
B14: =1+Inputs!K6 -> 1 | C14: NSND | D14: =IF(C9=TRUE,0,IF(OR($C$8="Yes",$C$9=TRUE),Inputs!I13,'Yr 1'!D14*B14)) -> 0
B15: =1+Inputs!K7 -> 1 | C15: Savings | D15: =IF(C9=TRUE,0,IF(OR($C$8="Yes",$C$9=TRUE),Inputs!I14,'Yr 1'!D15*B15)) -> 0 | H15: Allowances | I15: Still to tax | J15: Used | K15: Unused | N15: Before | O15: Rate | S15: Allowances | T15: Still to tax | U15: Used | V15: Unused | X15: Amount | Y15: Rate | Z15: Tax | AE15: Allowances | AF15: Still to tax | AG15: Used | AH15: Unused | AL15: Allowances | AM15: Still to tax | AN15: Used | AO15: Unused | AV15: Top Slicing | BD15: Allowances | BE15: Still to tax | BF15: Used | BG15: Unused | BI15: Amount | BJ15: Rate | BK15: Tax | BP15: Allowances | BQ15: Still to tax | BR15: Used | BS15: Unused | BW15: Allowances | BX15: Still to tax | BY15: Used | BZ15: Unused | CG15: Top Slicing | CO15: Allowances | CP15: Still to tax | CQ15: Used | CR15: Unused | CT15: Amount | CU15: Rate | CV15: Tax | DA15: Allowances | DB15: Still to tax | DC15: Used | DD15: Unused | DH15: Allowances | DI15: Still to tax | DJ15: Used | DK15: Unused | DR15: Top Slicing | DZ15: Allowances | EA15: Still to tax | EB15: Used | EC15: Unused | EE15: Amount | EF15: Rate | EG15: Tax | EL15: Allowances | EM15: Still to tax | EN15: Used | EO15: Unused | ES15: Allowances | ET15: Still to tax | EU15: Used | EV15: Unused | FC15: Top Slicing
B16: =1+Inputs!K8 -> 1 | C16: Divi | D16: =IF(OR($C$8="Yes",$C$9=TRUE),Inputs!I15,Inputs!I8*B16) -> 0 | G16: Personal Allowance | H16: =H9 -> 12570 | I16: =D14 -> 0 | J16: =MIN(H16,I16) -> 0 | K16: =MAX(0,H16-J16) -> 12570 | N16: =$J$16*O16 -> 0 | O16: 0 | R16: Personal Allowance | S16: =S8 -> 12570 | T16: =S4 -> 0 | U16: =MIN(S16,T16) -> 0 | V16: =MAX(0,S16-U16) -> 12570 | X16: =U16 -> 0 | Y16: 0 | Z16: =X16*Y16 -> 0 | AD16: Personal Allowance | AE16: =S8 -> 12570 | AF16: =MAX(0,S4) -> 0 | AG16: =MIN(AE16,AF16) -> 0 | AH16: =MAX(0,AE16-AG16) -> 12570 | AK16: Personal Allowance | AL16: =AL8 -> 12570 | AM16: =MAX(0,AL4) -> 0 | AN16: =MIN(AL16,AM16) -> 0 | AO16: =MAX(0,AL16-AN16) -> 12570 | BC16: Personal Allowance | BD16: =BD8 -> 12570 | BE16: =BD4 -> 0 | BF16: =MIN(BD16,BE16) -> 0 | BG16: =MAX(0,BD16-BF16) -> 12570 | BI16: =BF16 -> 0 | BJ16: 0 | BK16: =BI16*BJ16 -> 0 | BO16: Personal Allowance | BP16: =BD8 -> 12570 | BQ16: =MAX(0,BD4) -> 0 | BR16: =MIN(BP16,BQ16) -> 0 | BS16: =MAX(0,BP16-BR16) -> 12570 | BV16: Personal Allowance | BW16: =BW8 -> 12570 | BX16: =MAX(0,BW4) -> 0 | BY16: =MIN(BW16,BX16) -> 0 | BZ16: =MAX(0,BW16-BY16) -> 12570 | CN16: Personal Allowance | CO16: =CO8 -> 12570 | CP16: =CO4 -> 0 | CQ16: =MIN(CO16,CP16) -> 0 | CR16: =MAX(0,CO16-CQ16) -> 12570 | CT16: =CQ16 -> 0 | CU16: 0 | CV16: =CT16*CU16 -> 0 | CZ16: Personal Allowance | DA16: =CO8 -> 12570 | DB16: =MAX(0,CO4) -> 0 | DC16: =MIN(DA16,DB16) -> 0 | DD16: =MAX(0,DA16-DC16) -> 12570 | DG16: Personal Allowance | DH16: =DH8 -> 12570 | DI16: =MAX(0,DH4) -> 0 | DJ16: =MIN(DH16,DI16) -> 0 | DK16: =MAX(0,DH16-DJ16) -> 12570 | DY16: Personal Allowance | DZ16: =DZ8 -> 12570 | EA16: =DZ4 -> 0 | EB16: =MIN(DZ16,EA16) -> 0 | EC16: =MAX(0,DZ16-EB16) -> 12570 | EE16: =EB16 -> 0 | EF16: 0 | EG16: =EE16*EF16 -> 0 | EK16: Personal Allowance | EL16: =DZ8 -> 12570 | EM16: =MAX(0,DZ4) -> 0 | EN16: =MIN(EL16,EM16) -> 0 | EO16: =MAX(0,EL16-EN16) -> 12570 | ER16: Personal Allowance | ES16: =ES8 -> 12570 | ET16: =MAX(0,ES4) -> 0 | EU16: =MIN(ES16,ET16) -> 0 | EV16: =MAX(0,ES16-EU16) -> 12570
B17: =Inputs!AT6 -> 0 | G17: Basic Rate | H17: =$D$31 -> 37700 | I17: =MAX(0,I16-J16) -> 0 | J17: =MIN(H17,I17) -> 0 | K17: =MAX(0,H17-J17) -> 37700 | N17: =$J$17*O17 -> 0 | O17: ='Parameters_Inc Calcs'!$G$4 -> 0.2 | R17: Basic Rate | S17: =$D$31 -> 37700 | T17: =MAX(0,T16-U16) -> 0 | U17: =MIN(S17,T17) -> 0 | V17: =MAX(0,S17-U17) -> 37700 | X17: =U17 -> 0 | Y17: ='Parameters_Inc Calcs'!$G$4 -> 0.2 | Z17: =X17*Y17 -> 0 | AD17: Basic Rate | AE17: =$D$31 -> 37700 | AF17: =MAX(0,AF16-AG16) -> 0 | AG17: =MIN(AE17,AF17) -> 0 | AH17: =MAX(0,AE17-AG17) -> 37700 | AK17: Basic Rate | AL17: =AE17 -> 37700 | AM17: =MAX(0,AM16-AN16) -> 0 | AN17: =MIN(AL17,AM17) -> 0 | AO17: =MAX(0,AL17-AN17) -> 37700 | AW17: Taxation of full gain | AX17: =S3 -> 0 | BC17: Basic Rate | BD17: =$D$31 -> 37700 | BE17: =MAX(0,BE16-BF16) -> 0 | BF17: =MIN(BD17,BE17) -> 0 | BG17: =MAX(0,BD17-BF17) -> 37700 | BI17: =BF17 -> 0 | BJ17: ='Parameters_Inc Calcs'!$G$4 -> 0.2 | BK17: =BI17*BJ17 -> 0 | BO17: Basic Rate | BP17: =BD17 -> 37700 | BQ17: =MAX(0,BQ16-BR16) -> 0 | BR17: =MIN(BP17,BQ17) -> 0 | BS17: =MAX(0,BP17-BR17) -> 37700 | BV17: Basic Rate | BW17: =BP17 -> 37700 | BX17: =MAX(0,BX16-BY16) -> 0 | BY17: =MIN(BW17,BX17) -> 0 | BZ17: =MAX(0,BW17-BY17) -> 37700 | CH17: Taxation of full gain | CI17: =BD3 -> 0 | CN17: Basic Rate | CO17: =$D$31 -> 37700 | CP17: =MAX(0,CP16-CQ16) -> 0 | CQ17: =MIN(CO17,CP17) -> 0 | CR17: =MAX(0,CO17-CQ17) -> 37700 | CT17: =CQ17 -> 0 | CU17: ='Parameters_Inc Calcs'!$G$4 -> 0.2 | CV17: =CT17*CU17 -> 0 | CZ17: Basic Rate | DA17: =$D$31 -> 37700 | DB17: =MAX(0,DB16-DC16) -> 0 | DC17: =MIN(DA17,DB17) -> 0 | DD17: =MAX(0,DA17-DC17) -> 37700 | DG17: Basic Rate | DH17: =DA17 -> 37700 | DI17: =MAX(0,DI16-DJ16) -> 0 | DJ17: =MIN(DH17,DI17) -> 0 | DK17: =MAX(0,DH17-DJ17) -> 37700 | DS17: Taxation of full gain | DT17: =CO3 -> 0 | DY17: Basic Rate | DZ17: =$D$31 -> 37700 | EA17: =MAX(0,EA16-EB16) -> 0 | EB17: =MIN(DZ17,EA17) -> 0 | EC17: =MAX(0,DZ17-EB17) -> 37700 | EE17: =EB17 -> 0 | EF17: ='Parameters_Inc Calcs'!$G$4 -> 0.2 | EG17: =EE17*EF17 -> 0 | EK17: Basic Rate | EL17: =DZ17 -> 37700 | EM17: =MAX(0,EM16-EN16) -> 0 | EN17: =MIN(EL17,EM17) -> 0 | EO17: =MAX(0,EL17-EN17) -> 37700 | ER17: Basic Rate | ES17: =EL17 -> 37700 | ET17: =MAX(0,ET16-EU16) -> 0 | EU17: =MIN(ES17,ET17) -> 0 | EV17: =MAX(0,ES17-EU17) -> 37700 | FD17: Taxation of full gain | FE17: =DZ3 -> 0
B18: =Inputs!AT7 -> 0 | G18: Higher Rate | H18: =$D$33 -> 87440 | I18: =MAX(0,I17-J17) -> 0 | J18: =MIN(H18,I18) -> 0 | K18: =MAX(0,H18-J18) -> 87440 | N18: =$J$18*O18 -> 0 | O18: ='Parameters_Inc Calcs'!$G$5 -> 0.4 | R18: Higher Rate | S18: =$D$33 -> 87440 | T18: =MAX(0,T17-U17) -> 0 | U18: =MIN(S18,T18) -> 0 | V18: =MAX(0,S18-U18) -> 87440 | X18: =U18 -> 0 | Y18: ='Parameters_Inc Calcs'!$G$5 -> 0.4 | Z18: =X18*Y18 -> 0 | AD18: Higher Rate | AE18: =$D$33 -> 87440 | AF18: =MAX(0,AF17-AG17) -> 0 | AG18: =MIN(AE18,AF18) -> 0 | AH18: =MAX(0,AE18-AG18) -> 87440 | AK18: Higher Rate | AL18: =AE18 -> 87440 | AM18: =MAX(0,AM17-AN17) -> 0 | AN18: =MIN(AL18,AM18) -> 0 | AO18: =MAX(0,AL18-AN18) -> 87440 | BA18: Tax | BC18: Higher Rate | BD18: =$D$33 -> 87440 | BE18: =MAX(0,BE17-BF17) -> 0 | BF18: =MIN(BD18,BE18) -> 0 | BG18: =MAX(0,BD18-BF18) -> 87440 | BI18: =BF18 -> 0 | BJ18: ='Parameters_Inc Calcs'!$G$5 -> 0.4 | BK18: =BI18*BJ18 -> 0 | BO18: Higher Rate | BP18: =BD18 -> 87440 | BQ18: =MAX(0,BQ17-BR17) -> 0 | BR18: =MIN(BP18,BQ18) -> 0 | BS18: =MAX(0,BP18-BR18) -> 87440 | BV18: Higher Rate | BW18: =BP18 -> 87440 | BX18: =MAX(0,BX17-BY17) -> 0 | BY18: =MIN(BW18,BX18) -> 0 | BZ18: =MAX(0,BW18-BY18) -> 87440 | CL18: Tax | CN18: Higher Rate | CO18: =$D$33 -> 87440 | CP18: =MAX(0,CP17-CQ17) -> 0 | CQ18: =MIN(CO18,CP18) -> 0 | CR18: =MAX(0,CO18-CQ18) -> 87440 | CT18: =CQ18 -> 0 | CU18: ='Parameters_Inc Calcs'!$G$5 -> 0.4 | CV18: =CT18*CU18 -> 0 | CZ18: Higher Rate | DA18: =$D$33 -> 87440 | DB18: =MAX(0,DB17-DC17) -> 0 | DC18: =MIN(DA18,DB18) -> 0 | DD18: =MAX(0,DA18-DC18) -> 87440 | DG18: Higher Rate | DH18: =DA18 -> 87440 | DI18: =MAX(0,DI17-DJ17) -> 0 | DJ18: =MIN(DH18,DI18) -> 0 | DK18: =MAX(0,DH18-DJ18) -> 87440 | DW18: Tax | DY18: Higher Rate | DZ18: =$D$33 -> 87440 | EA18: =MAX(0,EA17-EB17) -> 0 | EB18: =MIN(DZ18,EA18) -> 0 | EC18: =MAX(0,DZ18-EB18) -> 87440 | EE18: =EB18 -> 0 | EF18: ='Parameters_Inc Calcs'!$G$5 -> 0.4 | EG18: =EE18*EF18 -> 0 | EK18: Higher Rate | EL18: =DZ18 -> 87440 | EM18: =MAX(0,EM17-EN17) -> 0 | EN18: =MIN(EL18,EM18) -> 0 | EO18: =MAX(0,EL18-EN18) -> 87440 | ER18: Higher Rate | ES18: =EL18 -> 87440 | ET18: =MAX(0,ET17-EU17) -> 0 | EU18: =MIN(ES18,ET18) -> 0 | EV18: =MAX(0,ES18-EU18) -> 87440 | FH18: Tax
C19: ANI | D19: =SUM(D14:D18) -> 0 | G19: Additional Rate | I19: =MAX(0,I18-J18) -> 0 | J19: =I19 -> 0 | K19: NA | N19: =$J$19*O19 -> 0 | O19: ='Parameters_Inc Calcs'!$G$8 -> 0.45 | R19: Additional Rate | T19: =MAX(0,T18-U18) -> 0 | U19: =MIN(S19,T19) -> 0 | V19: NA | X19: =U19 -> 0 | Y19: ='Parameters_Inc Calcs'!$G$8 -> 0.45 | Z19: =X19*Y19 -> 0 | AA19: =SUM(Z16:Z19) -> 0 | AB19: =AA19-$N$20 -> 0 | AD19: Additional Rate | AF19: =MAX(0,AF18-AG18) -> 0 | AG19: =MIN(AE19,AF19) -> 0 | AK19: Additional Rate | AM19: =MAX(0,AM18-AN18) -> 0 | AN19: =MIN(AL19,AM19) -> 0 | AV19: Step 1 | AW19: Personal Allowance | AX19: =AG50 -> 0 | AY19: @ | AZ19: =Y25 -> 0 | BA19: =AX19*AZ19 -> 0 | BC19: Additional Rate | BE19: =MAX(0,BE18-BF18) -> 0 | BF19: =MIN(BD19,BE19) -> 0 | BG19: NA | BI19: =BF19 -> 0 | BJ19: ='Parameters_Inc Calcs'!$G$8 -> 0.45 | BK19: =BI19*BJ19 -> 0 | BL19: =SUM(BK16:BK19) -> 0 | BM19: =BL19-$N$20 -> 0 | BO19: Additional Rate | BQ19: =MAX(0,BQ18-BR18) -> 0 | BR19: =MIN(BP19,BQ19) -> 0 | BV19: Additional Rate | BX19: =MAX(0,BX18-BY18) -> 0 | BY19: =MIN(BW19,BX19) -> 0 | CG19: Step 1 | CH19: Personal Allowance | CI19: =BR50 -> 0 | CJ19: @ | CK19: =BJ25 -> 0 | CL19: =CI19*CK19 -> 0 | CN19: Additional Rate | CP19: =MAX(0,CP18-CQ18) -> 0 | CQ19: =MIN(CO19,CP19) -> 0 | CR19: NA | CT19: =CQ19 -> 0 | CU19: ='Parameters_Inc Calcs'!$G$8 -> 0.45 | CV19: =CT19*CU19 -> 0 | CW19: =SUM(CV16:CV19) -> 0 | CX19: =CW19-$N$20 -> 0 | CZ19: Additional Rate | DB19: =MAX(0,DB18-DC18) -> 0 | DC19: =MIN(DA19,DB19) -> 0 | DG19: Additional Rate | DI19: =MAX(0,DI18-DJ18) -> 0 | DJ19: =MIN(DH19,DI19) -> 0 | DR19: Step 1 | DS19: Personal Allowance | DT19: =DC50 -> 0 | DU19: @ | DV19: =CU25 -> 0 | DW19: =DT19*DV19 -> 0 | DY19: Additional Rate | EA19: =MAX(0,EA18-EB18) -> 0 | EB19: =MIN(DZ19,EA19) -> 0 | EC19: NA | EE19: =EB19 -> 0 | EF19: ='Parameters_Inc Calcs'!$G$8 -> 0.45 | EG19: =EE19*EF19 -> 0 | EH19: =SUM(EG16:EG19) -> 0 | EI19: =EH19-$N$20 -> 0 | EK19: Additional Rate | EM19: =MAX(0,EM18-EN18) -> 0 | EN19: =MIN(EL19,EM19) -> 0 | ER19: Additional Rate | ET19: =MAX(0,ET18-EU18) -> 0 | EU19: =MIN(ES19,ET19) -> 0 | FC19: Step 1 | FD19: Personal Allowance | FE19: =EN50 -> 0 | FF19: @ | FG19: =EF25 -> 0 | FH19: =FE19*FG19 -> 0
N20: =SUM(N16:N19) -> 0 | AW20: Starting Rate | AX20: 0 | AY20: @ | AZ20: =Y23 -> 0 | BA20: 0 | CH20: Starting Rate | CI20: 0 | CJ20: @ | CK20: =BJ23 -> 0 | CL20: 0 | DS20: Starting Rate | DT20: 0 | DU20: @ | DV20: =CU23 -> 0 | DW20: 0 | FD20: Starting Rate | FE20: 0 | FF20: @ | FG20: =EF23 -> 0 | FH20: 0
G21: Savings Income Tax Band Apportionment | R21: Savings Income Tax Band Apportionment | AD21: Savings Income Tax Band Apportionment | AK21: Savings Income Tax Band Apportionment | AW21: Personal Savings Allowance | AX21: 0 | AY21: @ | AZ21: =Y25 -> 0 | BA21: 0 | BC21: Savings Income Tax Band Apportionment | BO21: Savings Income Tax Band Apportionment | BV21: Savings Income Tax Band Apportionment | CH21: Personal Savings Allowance | CI21: 0 | CJ21: @ | CK21: =BJ25 -> 0 | CL21: 0 | CN21: Savings Income Tax Band Apportionment | CZ21: Savings Income Tax Band Apportionment | DG21: Savings Income Tax Band Apportionment | DS21: Personal Savings Allowance | DT21: 0 | DU21: @ | DV21: =CU25 -> 0 | DW21: 0 | DY21: Savings Income Tax Band Apportionment | EK21: Savings Income Tax Band Apportionment | ER21: Savings Income Tax Band Apportionment | FD21: Personal Savings Allowance | FE21: 0 | FF21: @ | FG21: =EF25 -> 0 | FH21: 0
H22: Allowances | I22: Still to tax | J22: Used | K22: Unused | N22: Before | O22: Rate | S22: Allowances | T22: Still to tax | U22: Used | V22: Unused | X22: Amount | Y22: Rate | Z22: Tax | AE22: Allowances | AF22: Still to tax | AG22: Used | AH22: Unused | AW22: Basic Rate | AX22: 0 | AY22: @ | AZ22: ='Parameters_Inc Calcs'!$E$4 -> 0.22 | BA22: 0 | BD22: Allowances | BE22: Still to tax | BF22: Used | BG22: Unused | BI22: Amount | BJ22: Rate | BK22: Tax | BP22: Allowances | BQ22: Still to tax | BR22: Used | BS22: Unused | CH22: Basic Rate | CI22: 0 | CJ22: @ | CK22: ='Parameters_Inc Calcs'!$E$4 -> 0.22 | CL22: 0 | CO22: Allowances | CP22: Still to tax | CQ22: Used | CR22: Unused | CT22: Amount | CU22: Rate | CV22: Tax | DA22: Allowances | DB22: Still to tax | DC22: Used | DD22: Unused | DS22: Basic Rate | DT22: 0 | DU22: @ | DV22: ='Parameters_Inc Calcs'!$E$4 -> 0.22 | DW22: 0 | DZ22: Allowances | EA22: Still to tax | EB22: Used | EC22: Unused | EE22: Amount | EF22: Rate | EG22: Tax | EL22: Allowances | EM22: Still to tax | EN22: Used | EO22: Unused | FD22: Basic Rate | FE22: 0 | FF22: @ | FG22: ='Parameters_Inc Calcs'!$E$4 -> 0.22 | FH22: 0
C23: ANI Limit | D23: ='Parameters_Inc Calcs'!$C$3 -> 100000 | G23: Starting Rate | H23: =$D$43 -> 5000 | I23: =D15 -> 0 | J23: =MIN(H23,I23) -> 0 | K23: =MAX(0,H23-J23) -> 5000 | N23: =$J$23*O23 -> 0 | O23: 0 | R23: Starting Rate | S23: =S9 -> 5000 | T23: =S5 -> 0 | U23: =MIN(S23,T23) -> 0 | V23: =MAX(0,S23-U23) -> 5000 | X23: =U23 -> 0 | Y23: 0 | Z23: =X23*Y23 -> 0 | AD23: Personal Allowance | AE23: =AH16 -> 12570 | AF23: =S5 -> 0 | AG23: =MIN(AE23,AF23) -> 0 | AH23: =MAX(0,AE23-AG23) -> 12570 | AK23: Personal Allowance | AL23: =AO16 -> 12570 | AM23: =AL5 -> 0 | AN23: =MIN(AL23,AM23) -> 0 | AO23: =MAX(0,AL23-AN23) -> 12570 | AW23: Higher Rate | AX23: 0 | AY23: @ | AZ23: ='Parameters_Inc Calcs'!$E$5 -> 0.42 | BA23: =AX23*AZ23 -> 0 | BC23: Starting Rate | BD23: =BD9 -> 5000 | BE23: =BD5 -> 0 | BF23: =MIN(BD23,BE23) -> 0 | BG23: =MAX(0,BD23-BF23) -> 5000 | BI23: =BF23 -> 0 | BJ23: 0 | BK23: =BI23*BJ23 -> 0 | BO23: Personal Allowance | BP23: =BS16 -> 12570 | BQ23: =BD5 -> 0 | BR23: =MIN(BP23,BQ23) -> 0 | BS23: =MAX(0,BP23-BR23) -> 12570 | BV23: Personal Allowance | BW23: =BZ16 -> 12570 | BX23: =BW5 -> 0 | BY23: =MIN(BW23,BX23) -> 0 | BZ23: =MAX(0,BW23-BY23) -> 12570 | CH23: Higher Rate | CI23: 0 | CJ23: @ | CK23: ='Parameters_Inc Calcs'!$E$5 -> 0.42 | CL23: =CI23*CK23 -> 0 | CN23: Starting Rate | CO23: =CO9 -> 5000 | CP23: =CO5 -> 0 | CQ23: =MIN(CO23,CP23) -> 0 | CR23: =MAX(0,CO23-CQ23) -> 5000 | CT23: =CQ23 -> 0 | CU23: 0 | CV23: =CT23*CU23 -> 0 | CZ23: Personal Allowance | DA23: =DD16 -> 12570 | DB23: =CO5 -> 0 | DC23: =MIN(DA23,DB23) -> 0 | DD23: =MAX(0,DA23-DC23) -> 12570 | DG23: Personal Allowance | DH23: =DK16 -> 12570 | DI23: =DH5 -> 0 | DJ23: =MIN(DH23,DI23) -> 0 | DK23: =MAX(0,DH23-DJ23) -> 12570 | DS23: Higher Rate | DT23: 0 | DU23: @ | DV23: ='Parameters_Inc Calcs'!$E$5 -> 0.42 | DW23: =DT23*DV23 -> 0 | DY23: Starting Rate | DZ23: =DZ9 -> 5000 | EA23: =DZ5 -> 0 | EB23: =MIN(DZ23,EA23) -> 0 | EC23: =MAX(0,DZ23-EB23) -> 5000 | EE23: =EB23 -> 0 | EF23: 0 | EG23: =EE23*EF23 -> 0 | EK23: Personal Allowance | EL23: =EO16 -> 12570 | EM23: =DZ5 -> 0 | EN23: =MIN(EL23,EM23) -> 0 | EO23: =MAX(0,EL23-EN23) -> 12570 | ER23: Personal Allowance | ES23: =EV16 -> 12570 | ET23: =ES5 -> 0 | EU23: =MIN(ES23,ET23) -> 0 | EV23: =MAX(0,ES23-EU23) -> 12570 | FD23: Higher Rate | FE23: 0 | FF23: @ | FG23: ='Parameters_Inc Calcs'!$E$5 -> 0.42 | FH23: =FE23*FG23 -> 0
C24: ANI Excess | D24: =MAX(0,D19-D23) -> 0 | G24: Personal Savings Allowance | H24: =D45 -> 1000 | I24: =MAX(0,I23-J23) -> 0 | J24: 0 | K24: =MAX(0,H24-J24) -> 1000 | L24: Higher Rate Adjustment for PSA and SRS Bands | N24: =$J$24*O24 -> 0 | O24: 0 | R24: Personal Savings Allowance | S24: =S10 -> 1000 | T24: =MAX(0,T23-U23) -> 0 | U24: 0 | V24: =MAX(0,S24-U24) -> 1000 | X24: 0 | Y24: 0 | Z24: 0 | AD24: Starting Rate | AE24: =S9 -> 5000 | AF24: =MAX(0,AF23-AG23) -> 0 | AG24: 0 | AH24: =MAX(0,AE24-AG24) -> 5000 | AK24: Starting Rate | AL24: =AL9 -> 5000 | AM24: =MAX(0,AM23-AN23) -> 0 | AN24: 0 | AO24: =MAX(0,AL24-AN24) -> 5000 | AW24: Additional Rate | AX24: 0 | AY24: @ | AZ24: ='Parameters_Inc Calcs'!$E$8 -> 0.47 | BA24: 0 | BC24: Personal Savings Allowance | BD24: =BD10 -> 1000 | BE24: =MAX(0,BE23-BF23) -> 0 | BF24: 0 | BG24: =MAX(0,BD24-BF24) -> 1000 | BI24: 0 | BJ24: 0 | BK24: 0 | BO24: Starting Rate | BP24: =BD9 -> 5000 | BQ24: =MAX(0,BQ23-BR23) -> 0 | BR24: 0 | BS24: =MAX(0,BP24-BR24) -> 5000 | BV24: Starting Rate | BW24: =BW9 -> 5000 | BX24: =MAX(0,BX23-BY23) -> 0 | BY24: 0 | BZ24: =MAX(0,BW24-BY24) -> 5000 | CH24: Additional Rate | CI24: 0 | CJ24: @ | CK24: ='Parameters_Inc Calcs'!$E$8 -> 0.47 | CL24: =CI24*CK24 -> 0 | CN24: Personal Savings Allowance | CO24: =CO10 -> 1000 | CP24: =MAX(0,CP23-CQ23) -> 0 | CQ24: 0 | CR24: =MAX(0,CO24-CQ24) -> 1000 | CT24: 0 | CU24: 0 | CV24: 0 | CZ24: Starting Rate | DA24: =CO9 -> 5000 | DB24: =MAX(0,DB23-DC23) -> 0 | DC24: 0 | DD24: =MAX(0,DA24-DC24) -> 5000 | DG24: Starting Rate | DH24: =DH9 -> 5000 | DI24: =MAX(0,DI23-DJ23) -> 0 | DJ24: 0 | DK24: =MAX(0,DH24-DJ24) -> 5000 | DS24: Additional Rate | DT24: 0 | DU24: @ | DV24: ='Parameters_Inc Calcs'!$E$8 -> 0.47 | DW24: =DT24*DV24 -> 0 | DY24: Personal Savings Allowance | DZ24: =DZ10 -> 1000 | EA24: =MAX(0,EA23-EB23) -> 0 | EB24: 0 | EC24: =MAX(0,DZ24-EB24) -> 1000 | EE24: 0 | EF24: 0 | EG24: 0 | EK24: Starting Rate | EL24: =DZ9 -> 5000 | EM24: =MAX(0,EM23-EN23) -> 0 | EN24: 0 | EO24: =MAX(0,EL24-EN24) -> 5000 | ER24: Starting Rate | ES24: =ES9 -> 5000 | ET24: =MAX(0,ET23-EU23) -> 0 | EU24: 0 | EV24: =MAX(0,ES24-EU24) -> 5000 | FD24: Additional Rate | FE24: 0 | FF24: @ | FG24: ='Parameters_Inc Calcs'!$E$8 -> 0.47 | FH24: =FE24*FG24 -> 0
